Workbook

Sheet Start
A1: Welcome to eZ-Score. | AA1: Hawkins-Leon
A2: EZ-Score 4.02 and eZ-Score 4.02 xls and EZ-SCORE Copyright 2002 Jeffrey E. Stake All rights reserved.
A4: The copyright to this software belongs to Jeffrey E. Stake.
A5: The purchaser obtains only a license to use the software to calculate grades for students for whom the purchaser bears the official responsibility
A6: for assigning grades. Any other use or copying of this software constitutes a violation of this license agreement.
A7: Liability for defects in this software is limited to a refund of the purchase price, unless otherwise affirmatively prohibited by law.
A8: Use of this software constitutes agreement to these terms.
A10: You may try this software to see whether it is useful to you. For use after a few trials, please send $19 to:
A11: Jeff Stake
A12: 3707 Rachel's Glen Road, Bloomington Indiana 47408
A15: This template should make it easier to create final grades from a group of subscores.
A16: You will complete the following steps to get your grading done:
A17: add students to the initial class of 3
A18: enter scores into the spaces (called "cells") for the student scores, and SAVE your work
A19: choose whether to use the Z-score method of adding subscores to get total scores; some advice is available by clicking the "warning" tab below
A20: enter a target mean and target standard deviation for the class
A21: tinker with the target mean and standard deviation until you get a distribution that is consistent with other grading at your school
A22: sort the scores by ID, Name, or Total score
A23: print your results
A24: save the file
A26: IMPORTANT!
A27: Before you start entering scores and calculating grades, you must edit EZGrader's grading scale to match your school's grading scale.
A28: To go to the sheet with the grading scale, click on the "Grading Scale" tab below.

Sheet Grading Scale
B1: numerical values | F1: Count? | G1: (minimum) | I1: suggested | L1: 0 | M1: =1+L1 -> 1 | N1: 2 | O1: 3 | P1: 4 | Q1: 5 | R1: 6 | S1: 7 | T1: 8 | U1: 9 | V1: 10 | W1: 11 | X1: 12 | Y1: 13 | Z1: 14 | AA1: 15 | AB1: 16 | AC1: 17 | AD1: 18 | AE1: 19 | AF1: 20 | AG1: 21
A2: Count? | B2: grade | D2: Count? | E2: grade | F2: yes | G2: cutoffs | I2: cutoff | M2: =Calculations!T12 -> 0 | N2: =Calculations!T11 -> 0 | O2: =Calculations!T10 -> 0 | P2: =Calculations!T9 -> 0 | Q2: =Calculations!T8 -> 0 | R2: =Calculations!T7 -> 0 | S2: =Calculations!T6 -> 0 | T2: =Calculations!T5 -> 0 | U2: =Calculations!T4 -> 2 | V2: =Calculations!T3 -> 0 | W2: =Calculations!T2 -> 1 | X2: =Calculations!T1 -> 0
A3: yes | B3: 4 | C3: A | D3: yes | E3: 2 | F3: C | G3: =I3 -> 3.85 | H3: =C3 -> A | I3: =(B3+B5)/2 -> 3.85
A4: Count? | B4: grade | D4: Count? | E4: grade | G4: 3.5 | H4: =C5 -> A- | I4: =(B5+B7)/2 -> 3.5
A5: yes | B5: 3.7 | C5: A- | D5: yes | E5: 1.7 | F5: C- | G5: 3.15 | H5: =C7 -> B+ | I5: =(B7+B9)/2 -> 3.15
A6: Count? | B6: grade | D6: Count? | E6: grade | G6: 2.85 | H6: =C9 -> B | I6: =(B9+B11)/2 -> 2.85
A7: yes | B7: 3.3 | C7: B+ | D7: yes | E7: 1.3 | F7: D+ | G7: 2.5 | H7: =C11 -> B- | I7: =(B11+B13)/2 -> 2.5
A8: Count? | B8: grade | D8: Count? | E8: grade | G8: 2.15 | H8: =C13 -> C+ | I8: =(B13+E3)/2 -> 2.15
A9: yes | B9: 3 | C9: B | D9: yes | E9: 1 | F9: D | G9: 1.85 | H9: =F3 -> C | I9: =(E3+E5)/2 -> 1.85
A10: Count? | B10: grade | D10: Count? | E10: grade | G10: 1.5 | H10: =F5 -> C- | I10: =(E5+E7)/2 -> 1.5
A11: yes | B11: 2.7 | C11: B- | D11: yes | E11: 0 | F11: F | G11: 1.15 | H11: =F7 -> D+ | I11: =(E7+E9)/2 -> 1.15
A12: Count? | B12: grade | D12: Count? | E12: grade | G12: 0.5 | H12: =F9 -> D | I12: =(E9+E11)/2 -> 0.5
A13: yes | B13: 2.3 | C13: C+ | D13: yes | E13: -9 | F13: F-? | G13: -4.5 | H13: =F11 -> F | I13: =(E11+E13)/2 -> -4.5
H14: =F13 -> F-?
A15: Examine the blue data, both the letter grades and their numerical equivalents. All Grades are based on this numerical scale.
A16: The blue numbers and letters should match your school's grading scale. Notice that an A- is 3.7, not 3.66, for example.
A17: Make such changes as are necessary by moving the cursor to the cells needing changing and enter new values as needed.
A18: Change ONLY cells with blue contents.
A19: When the scale fits your school, SAVE this template and then click the Grades tab below.
A21: To the right of the grades there is a suggested cutoff column. Those cutoffs are points halfway between the grades to the left.
A22: The minimum cutoffs used by the program are in pink, and can be changed, but do not change them unless you know what you are doing.
A24: If your school has more than 12 useful grade intervals, it might be better not to use this program.
A26: When the scale fits your school, SAVE this template.
A28: You will next enter the data for the students and calculate their grades.
A29: To get to the sheet for that, click the Grades tab below.
A31: Some additional help is provided on the "Instructions" sheet. Click on the tab to turn to that sheet.

Sheet Z-score Warning
A1: Regarding the use of the Z-score method,
A2: There is one important warning:
A3: If the scores on one of the subparts are essentially the same, the differences between
A4: students on that part might not be very important. If that is the case, either do not give
A5: that part much weight or do not use the Z-score method of weighting.
A7: One other time that you might not want to use the Z-score method is when
A8: one group of students has a grade on one part and another group has a grade on a
A9: different part. It is best if each student has a grade in each column used. If not,
A10: it might be better not to use the Z-score method.
A11: Otherwise, the Z-score method is ordinarily recommended for weighting subscores.
A13: The Z-scores are calculated based on only the students that were included by having "yes" in the far left column.
A14: This allows you to exclude some students from the calculations, although the program will still calculate the grades for the excluded students.

Sheet Instructions
A1: Cursor around the sheet using the arrow keys, or the home key.
A2: Type only in the cells with blue data. Typing in other cells can cause errors.
A3: Ctrl+a adds another student to the class.
A5: To determine whether to use the Z-score method of calculating grades, read the Z-score Warning page by clicking the tab below.
A7: To use the Z-score method of combining scores, type "yes" in the appropriate cell in the left most column of the Grades sheet.
A8: To avoid using the Z-score method of combining scores, type anything other than "yes" in the appropriate cell in the left most column of the Grades sheet.
A9: Consult the Z-score Warning page, by clicking on the tab below, for a warning about use of the Z-score method.
A11: In order for scores to be included in the totals, you must enter some "weight" for that column of scores.
A12: If you do not enter a weight for some scores, they do not count in the totals.
A14: For a student to count in the calculations, you must enter "yes" in the far left column for that student.
A15: You can eliminate a student from the calculations by typing anything other than the word "yes" in the far left ("count?") column for that student.
A16: When you save this file, the next time you open it it will open on the sheet you were on when you saved.
A18: The following macros will help you sort. (They will work correctly, however, only if you have used Ctrl+a to add students to the class.)
A19: Ctrl+i sorts by ID number
A20: Ctrl+n sorts by name
A21: Ctrl+t sorts by total
A23: To give extra credit, or discredit, for attendance and talking, you must give a student a student a score of some kind and must also enter a "factor" at the top
A24: of that column. The number in the row is multiplied by the number at the top, then added to the exam score for the total.
A25: Click on the tabs below to turn to different sheets in the workbook.
A26: The "Distribution" tab shows you a distribution of the class grades.
A27: You will spend most of your time on the "Grades" sheet.
A29: To print in portrait mode, highlight the cells to be printed and press Ctrl+Shift+P. To print in landscape mode, highlight cells and press Ctrl+Shift+L.
A31: Do Not delete rows or columns. Just put "no" in the left most cell of the row to take it out of the calculations, or type over the data with a different student.
A32: You can change the column width or row height to essentially make a row or column too thin to see, without eliminating it.
A33: If you must eliminate a row, give it a high ID number, like zzzzz, and then sort by ID, then hit the delete key while in EVERY cell of the entire row, A through Z.
A35: Remember to use Ctrl+a to add students to the initial class of 3.
A36: This version is limited to 250 students and 10 subscores. Versions with larger capacities can be supplied by Jeff Stake.

Sheet Scores
A1: eZ-Score | C1: Copyright 2022 Jeffrey E. Stake All rights reserved | O1: Control-A adds more students. Do not delete ANYTHING. | Y1: =Calculations!T1 -> 0 | Z1: =Calculations!U1 -> A | AA1: =Calculations!V1 -> 0
A2: Version 5.05 | D2: Limited to 250 students. Larger capacity versions can be supplied. | Y2: =Calculations!T2 -> 1 | Z2: =Calculations!U2 -> A- | AA2: =Calculations!V2 -> 0.3333333333
A3: If you see "Security Warning Macros have been disabled." above, click "Options", "Enable this content", OK | Y3: =Calculations!T3 -> 0 | Z3: =Calculations!U3 -> B+ | AA3: =Calculations!V3 -> 0
A4: Enter new data over blue data ONLY. Typing in other cells can cause errors. | U4: Target | X4: Results | Y4: =Calculations!T4 -> 2 | Z4: =Calculations!U4 -> B | AA4: =Calculations!V4 -> 0.6666666667
C5: =Calculations!D10 ->  | U5: 3.22 | V5: =IF(X7<=10,"ok",IF(A7="yes",IF(X5>=3.305,"Too High",IF(X5<3.2,"too low","ok")),IF(X7<=18,IF(X5>=3.605,"Too High",IF(X5<3.3,"too low","ok")),IF(X5>=3.405,"Too High",IF(X5<3.3,"too low","ok"))))) -> ok | W5: Average 3.2-3.3 | X5: =Calculations!T14 -> 3.233333333 | Y5: =Calculations!T5 -> 0 | Z5: =Calculations!U5 -> B- | AA5: =Calculations!V5 -> 0
A6: yes | B6: The Z-score method of weighting subscores | J6: =Calculations!I12 -> IS being used. | U6: 0.38 | V6: =IF(X6>0.4,"Too High","ok") -> ok | W6: Std. Deviation <.4 | X6: =Calculations!T15 -> 0.3299831646 | Y6: =Calculations!T6 -> 0 | Z6: =Calculations!U6 -> C+ | AA6: =Calculations!V6 -> 0
A7: yes | B7: =IF(A7="yes","This IS a 1L class. (enter 'no' in cell A7 to toggle)","This is NOT a 1L class. ('yes' in cell A7 to toggle)") -> This IS a 1L class. (enter 'no' in cell A7 to toggle) | N7: extra | O7: extra | W7: Class Size | X7: =Calculations!T16 -> 3 | Y7: =Calculations!T7 -> 0 | Z7: =Calculations!U7 -> C | AA7: =Calculations!V7 -> 0
B8: average | C8: =Calculations!C17 -> 0.3333333333 | D8: =Calculations!D17 -> 0 | E8: =Calculations!E17 -> 0 | F8: =Calculations!F17 -> 0 | G8: =Calculations!G17 -> 0 | H8: =Calculations!H17 -> 0 | I8: =Calculations!I17 -> 0 | J8: =Calculations!J17 -> 0 | K8: =Calculations!K17 -> 0 | L8: =Calculations!L17 -> 0 | N8: credit | O8: credit | W8: Teacher | Y8: =Calculations!T8 -> 0 | Z8: =Calculations!U8 -> C- | AA8: =Calculations!V8 -> 0
B9: std. dev. | C9: =Calculations!C14 -> 0.4714045208 | D9: =Calculations!D14 -> 0 | E9: =Calculations!E14 -> 0 | F9: =Calculations!F14 -> 0 | G9: =Calculations!G14 -> 0 | H9: =Calculations!H14 -> 0 | I9: =Calculations!I14 -> 0 | J9: =Calculations!J14 -> 0 | K9: =Calculations!K14 -> 0 | L9: =Calculations!L14 -> 0 | N9: factor | O9: factor | W9: Semester | Y9: =Calculations!T9 -> 0 | Z9: =Calculations!U9 -> D+ | AA9: =Calculations!V9 -> 0
B10: factor | C10: =Calculations!C19 -> 2.121320344 | D10: =Calculations!D19 -> 0 | E10: =Calculations!E19 -> 0 | F10: =Calculations!F19 -> 0 | G10: =Calculations!G19 -> 0 | H10: =Calculations!H19 -> 0 | I10: =Calculations!I19 -> 0 | J10: =Calculations!J19 -> 0 | K10: =Calculations!K19 -> 0 | L10: =Calculations!L19 -> 0 | N10: for | O10: for | W10: Year | Y10: =Calculations!T10 -> 0 | Z10: =Calculations!U10 -> D | AA10: =Calculations!V10 -> 0
M11: sum | N11: attend | O11: talk | W11: Course | Y11: =Calculations!T11 -> 0 | Z11: =Calculations!U11 -> F | AA11: =Calculations!V11 -> 0
B12: Weight = | C12: 1 | D12: 0 | E12: 0 | F12: 0 | G12: 0 | H12: 0 | I12: 0 | J12: 0 | K12: 0 | L12: 0 | M12: =Calculations!M21 -> 1 | N12: 0 | O12: 0 | S12: exam sum | T12: exam | W12: final or preliminary | Y12: =Calculations!T12 -> 0 | Z12: =Calculations!U12 -> F-? | AA12: =Calculations!V12 -> 0
A13: Count? | B13: ID# | C13: part1 | D13: part2 | E13: part3 | F13: part4 | G13: part5 | H13: part6 | I13: part7 | J13: part8 | K13: part9 | L13: part10 | M13: name | N13: attend | O13: talk | P13: copied total | S13: sum | T13: score | U13: total | V13: grade | W13: ID# | X13: letter grade
A14: yes | B14: 123456789 | C14: 1 | D14: 0 | E14: 0 | F14: 0 | G14: 0 | H14: 0 | I14: 0 | J14: 0 | K14: 0 | L14: 0 | M14: JD | N14: 0 | O14: 0 | P14: 2.385299144 | S14: =Calculations!P23 -> 1.414213562 | T14: =Calculations!Q23 -> 3.757401154 | U14: =Calculations!R23 -> 3.757401154 | V14: =Calculations!S23 -> 3.7 | W14: =Calculations!T23 -> 123456789 | X14: =Calculations!U23 -> A- | Y14: =Calculations!V23 -> BEST
A15: yes | B15: 0 | C15: 0 | D15: 0 | E15: 0 | F15: 0 | G15: 0 | H15: 0 | I15: 0 | J15: 0 | K15: 0 | L15: 0 | M15: JD | N15: 0 | O15: 0 | P15: 3.491760685 | S15: =Calculations!P24 -> -0.7071067812 | T15: =Calculations!Q24 -> 2.951299423 | U15: =Calculations!R24 -> 2.951299423 | V15: =Calculations!S24 -> 3 | W15: =Calculations!T24 -> 0 | X15: =Calculations!U24 -> B | Y15: =Calculations!V24 -> 
A16: yes | B16: 0 | C16: 0 | D16: 0 | E16: 0 | F16: 0 | G16: 0 | H16: 0 | I16: 0 | J16: 0 | K16: 0 | L16: 0 | M16: JD | N16: 0 | O16: 0 | P16: 3.122940171 | S16: =Calculations!P25 -> -0.7071067812 | T16: =Calculations!Q25 -> 2.951299423 | U16: =Calculations!R25 -> 2.951299423 | V16: =Calculations!S25 -> 3 | W16: =Calculations!T25 -> 0 | X16: =Calculations!U25 -> B | Y16: =Calculations!V25 -> 
AA19: =Calculations!X28 -> 
AA20: =Calculations!X29 -> 
AA21: =Calculations!X30 -> 
AA22: =Calculations!X31 -> 
AA23: =Calculations!X32 -> 
AA24: =Calculations!X33 -> 
AA25: =Calculations!X34 -> 
AA26: =Calculations!X35 -> 
AA27: =Calculations!X36 -> 
AA28: =Calculations!X37 -> 
AA29: =Calculations!X38 -> 
AA30: =Calculations!X39 -> 
AA31: =Calculations!X40 -> 
AA32: =Calculations!X41 -> 
AA33: =Calculations!X42 -> 
AA34: =Calculations!X43 -> 
AA35: =Calculations!X44 -> 
AA36: =Calculations!X45 -> 
AA37: =Calculations!X46 -> 
AA38: =Calculations!X47 -> 
AA39: =Calculations!X48 -> 
AA40: =Calculations!X49 -> 
AA41: =Calculations!X50 -> 
AA42: =Calculations!X51 -> 
AA43: =Calculations!X52 -> 
AA44: =Calculations!X53 -> 
AA45: =Calculations!X54 -> 
AA46: =Calculations!X55 -> 
AA47: =Calculations!X56 -> 
AA48: =Calculations!X57 -> 
AA49: =Calculations!X58 -> 
AA50: =Calculations!X59 -> 
AA51: =Calculations!X60 -> 
AA52: =Calculations!X61 -> 
AA53: =Calculations!X62 -> 
AA54: =Calculations!X63 -> 
AA55: =Calculations!X64 -> 
AA56: =Calculations!X65 -> 
AA57: =Calculations!X66 -> 
AA58: =Calculations!X67 -> 
AA59: =Calculations!X68 -> 
AA60: =Calculations!X69 -> 
AA61: =Calculations!X70 -> 
AA62: =Calculations!X71 -> 
AA63: =Calculations!X72 -> 
AA64: =Calculations!X73 -> 
AA65: =Calculations!X74 -> 
AA66: =Calculations!X75 -> 
AA67: =Calculations!X76 -> 
AA68: =Calculations!X77 -> 
AA69: =Calculations!X78 -> 
AA70: =Calculations!X79 -> 
AA71: =Calculations!X80 -> 
AA72: =Calculations!X81 -> 
AA73: =Calculations!X82 -> 
AA74: =Calculations!X83 -> 
AA75: =Calculations!X84 -> 
AA76: =Calculations!X85 -> 
AA77: =Calculations!X86 -> 
AA78: =Calculations!X87 -> 
AA79: =Calculations!X88 -> 
AA80: =Calculations!X89 -> 
AA81: =Calculations!X90 -> 
AA82: =Calculations!X91 -> 
AA83: =Calculations!X92 -> 
AA84: =Calculations!X93 -> 
AA85: =Calculations!X94 -> 
AA86: =Calculations!X95 -> 
AA87: =Calculations!X96 -> 
AA88: =Calculations!X97 -> 
AA89: =Calculations!X98 -> 
AA90: =Calculations!X99 -> 
AA91: =Calculations!X100 -> 
AA92: =Calculations!X101 -> 
AA93: =Calculations!X102 -> 
AA94: =Calculations!X103 -> 
AA95: =Calculations!X104 -> 
AA96: =Calculations!X105 -> 
AA97: =Calculations!X106 -> 
AA98: =Calculations!X107 -> 
AA99: =Calculations!X108 -> 
AA100: =Calculations!X109 -> 
AA101: =Calculations!X110 -> 
AA102: =Calculations!X111 -> 
AA103: =Calculations!X112 -> 
AA104: =Calculations!X113 -> 
AA105: =Calculations!X114 -> 
AA106: =Calculations!X115 -> 
AA107: =Calculations!X116 -> 
AA108: =Calculations!X117 -> 
AA109: =Calculations!X118 -> 
AA110: =Calculations!X119 -> 
AA111: =Calculations!X120 -> 
AA112: =Calculations!X121 -> 
AA113: =Calculations!X122 -> 
AA114: =Calculations!X123 -> 
AA115: =Calculations!X124 -> 
AA116: =Calculations!X125 -> 
AA117: =Calculations!X126 -> 
AA118: =Calculations!X127 -> 
AA119: =Calculations!X128 -> 
AA120: =Calculations!X129 -> 
AA121: =Calculations!X130 -> 
AA122: =Calculations!X131 -> 
AA123: =Calculations!X132 -> 
AA124: =Calculations!X133 -> 
AA125: =Calculations!X134 -> 
AA126: =Calculations!X135 -> 
AA127: =Calculations!X136 -> 
AA128: =Calculations!X137 -> 
AA129: =Calculations!X138 -> 
AA130: =Calculations!X139 -> 
AA131: =Calculations!X140 -> 
AA132: =Calculations!X141 -> 
AA133: =Calculations!X142 -> 
AA134: =Calculations!X143 -> 
AA135: =Calculations!X144 -> 
AA136: =Calculations!X145 -> 
AA137: =Calculations!X146 -> 
AA138: =Calculations!X147 -> 
AA139: =Calculations!X148 -> 
AA140: =Calculations!X149 -> 
AA141: =Calculations!X150 -> 
AA142: =Calculations!X151 -> 
AA143: =Calculations!X152 -> 
AA144: =Calculations!X153 -> 
AA145: =Calculations!X154 -> 
AA146: =Calculations!X155 -> 
AA147: =Calculations!X156 -> 
AA148: =Calculations!X157 -> 
AA149: =Calculations!X158 -> 
AA150: =Calculations!X159 -> 
AA151: =Calculations!X160 -> 
AA152: =Calculations!X161 -> 
AA153: =Calculations!X162 -> 
AA154: =Calculations!X163 -> 
AA155: =Calculations!X164 -> 
AA156: =Calculations!X165 -> 
AA157: =Calculations!X166 -> 
AA158: =Calculations!X167 -> 
AA159: =Calculations!X168 -> 
AA160: =Calculations!X169 -> 
AA161: =Calculations!X170 -> 
AA162: =Calculations!X171 -> 
AA163: =Calculations!X172 -> 
AA164: =Calculations!X173 -> 
AA165: =Calculations!X174 -> 
AA166: =Calculations!X175 -> 
AA167: =Calculations!X176 -> 
AA168: =Calculations!X177 -> 
AA169: =Calculations!X178 -> 
AA170: =Calculations!X179 -> 
AA171: =Calculations!X180 -> 
AA172: =Calculations!X181 -> 
AA173: =Calculations!X182 -> 
AA174: =Calculations!X183 -> 
AA175: =Calculations!X184 -> 
AA176: =Calculations!X185 -> 
AA177: =Calculations!X186 -> 
AA178: =Calculations!X187 -> 
AA179: =Calculations!X188 -> 
AA180: =Calculations!X189 -> 
AA181: =Calculations!X190 -> 
AA182: =Calculations!X191 -> 
AA183: =Calculations!X192 -> 
AA184: =Calculations!X193 -> 
AA185: =Calculations!X194 -> 
AA186: =Calculations!X195 -> 
AA187: =Calculations!X196 -> 
AA188: =Calculations!X197 -> 
AA189: =Calculations!X198 -> 
AA190: =Calculations!X199 -> 
AA191: =Calculations!X200 -> 
AA192: =Calculations!X201 -> 
AA193: =Calculations!X202 -> 
AA194: =Calculations!X203 -> 
AA195: =Calculations!X204 -> 
AA196: =Calculations!X205 -> 
AA197: =Calculations!X206 -> 
AA198: =Calculations!X207 -> 
AA199: =Calculations!X208 -> 
AA200: =Calculations!X209 -> 
AA201: =Calculations!X210 -> 
AA202: =Calculations!X211 -> 
... 62 more rows

Sheet GradGrades
A1: Grade | B1: JD cut | C1: grad cut | D1: conversion | F1: Input only over the blue letters.
A2: A+ | B2: 4.15 | C2: =4-((4-B2)*$D$2) -> 4.21 | D2: =(4-2.6)/(4-3) -> 1.4 | F2: The blue data below do not sort.
A3: ='Grading Scale'!H3 -> A | B3: ='Grading Scale'!G3 -> 3.85 | C3: 3.79 | D3: factor | F3: Re-enter the blue data below after sorting!!
A4: ='Grading Scale'!H4 -> A- | B4: ='Grading Scale'!G4 -> 3.5 | C4: 3.3 | G4: only
A5: ='Grading Scale'!H5 -> B+ | B5: ='Grading Scale'!G5 -> 3.15 | C5: 2.81 | G5: "grad"
A6: ='Grading Scale'!H6 -> B | B6: ='Grading Scale'!G6 -> 2.85 | C6: 2.39 | G6: (without quotes)
A7: ='Grading Scale'!H7 -> B- | B7: ='Grading Scale'!G7 -> 2.5 | C7: 1.9 | G7: will be
A8: ='Grading Scale'!H8 -> C+ | B8: ='Grading Scale'!G8 -> 2.15 | G8: raised | H8: =Scores!W8 -> Teacher
A9: ='Grading Scale'!H9 -> C | B9: ='Grading Scale'!G9 -> 1.85 | G9: to the | H9: =Scores!W9 -> Semester
A10: ='Grading Scale'!H10 -> C- | G10: higher | H10: =Scores!W10 -> Year
G11: scale | H11: =Scores!W11 -> Course
G12: grad | H12: =Scores!W12 -> final or preliminary | I12: Letter
A13: total score | B13: JD | C13: grad | E13: count? | F13: name | G13: or not? | H13: ID# | I13: Grade
A14: =Scores!U14 -> 3.757401154 | B14: =IF(A14<$B$9,$A$10,IF(A14<$B$8,$A$9,IF(A14<$B$7,$A$8,IF(A14<$B$6,$A$7,IF(A14<$B$5,$A$6,IF(A14<$B$4,$A$5,IF(A14<$B$3,$A$4,IF(A14<$B$2,$A$3,$A$2)))))))) -> A- | C14: =IF(A14<$C$7,$A$8,IF(A14<$C$6,$A$7,IF(A14<$C$5,$A$6,IF(A14<$C$4,$A$5,IF(A14<$C$3,$A$4,IF(A14<$C$2,$A$3,$A$2)))))) -> A- | D14: =IF(G14="JD",IF(E14="yes","","check"),IF(E14="yes","BAD?","")) ->  | E14: =Scores!A14 -> yes | F14: =Scores!M14 -> JD | G14: JD | H14: =Scores!B14 -> 123456789 | I14: =IF(G14="grad",C14,B14) -> A- | J14: =Scores!Y14 -> BEST
A15: =Scores!U15 -> 2.951299423 | B15: =IF(A15<$B$9,$A$10,IF(A15<$B$8,$A$9,IF(A15<$B$7,$A$8,IF(A15<$B$6,$A$7,IF(A15<$B$5,$A$6,IF(A15<$B$4,$A$5,IF(A15<$B$3,$A$4,IF(A15<$B$2,$A$3,$A$2)))))))) -> B | C15: =IF(A15<$C$7,$A$8,IF(A15<$C$6,$A$7,IF(A15<$C$5,$A$6,IF(A15<$C$4,$A$5,IF(A15<$C$3,$A$4,IF(A15<$C$2,$A$3,$A$2)))))) -> B+ | D15: =IF(G15="JD",IF(E15="yes","","check"),IF(E15="yes","BAD?","")) ->  | E15: =Scores!A15 -> yes | F15: =Scores!M15 -> JD | G15: JD | H15: =Scores!B15 -> 0 | I15: =IF(G15="grad",C15,B15) -> B | J15: =Scores!Y15 -> 
A16: =Scores!U16 -> 2.951299423 | B16: B | C16: B+ | E16: =Scores!A16 -> yes | F16: =Scores!M16 -> JD | G16: JD | H16: =Scores!B16 -> 0 | I16: B | J16: =Scores!Y16 -> 
A17: =Scores!U17 -> 0 | B17: C- | C17: C+ | D17: check | E17: =Scores!A17 -> 0 | F17: =Scores!M17 -> 0 | G17: JD | H17: =Scores!B17 -> 0 | I17: C- | J17: =Scores!Y17 -> 0
A18: =Scores!U18 -> 0 | B18: C- | C18: C+ | D18: check | E18: =Scores!A18 -> 0 | F18: =Scores!M18 -> 0 | G18: JD | H18: =Scores!B18 -> 0 | I18: C- | J18: =Scores!Y18 -> 0
A19: =Scores!U19 -> 0 | B19: C- | C19: C+ | D19: check | E19: =Scores!A19 -> 0 | F19: =Scores!M19 -> 0 | G19: JD | H19: =Scores!B19 -> 0 | I19: C- | J19: =Scores!Y19 -> 0
A20: =Scores!U20 -> 0 | B20: C- | C20: C+ | D20: check | E20: =Scores!A20 -> 0 | F20: =Scores!M20 -> 0 | G20: JD | H20: =Scores!B20 -> 0 | I20: C- | J20: =Scores!Y20 -> 0
A21: =Scores!U21 -> 0 | B21: C- | C21: C+ | D21: check | E21: =Scores!A21 -> 0 | F21: =Scores!M21 -> 0 | G21: JD | H21: =Scores!B21 -> 0 | I21: C- | J21: =Scores!Y21 -> 0
A22: =Scores!U22 -> 0 | B22: C- | C22: C+ | D22: check | E22: =Scores!A22 -> 0 | F22: =Scores!M22 -> 0 | G22: JD | H22: =Scores!B22 -> 0 | I22: C- | J22: =Scores!Y22 -> 0
A23: =Scores!U23 -> 0 | B23: C- | C23: C+ | D23: check | E23: =Scores!A23 -> 0 | F23: =Scores!M23 -> 0 | G23: JD | H23: =Scores!B23 -> 0 | I23: C- | J23: =Scores!Y23 -> 0
A24: =Scores!U24 -> 0 | B24: C- | C24: C+ | D24: check | E24: =Scores!A24 -> 0 | F24: =Scores!M24 -> 0 | G24: JD | H24: =Scores!B24 -> 0 | I24: C- | J24: =Scores!Y24 -> 0
A25: =Scores!U25 -> 0 | B25: C- | C25: C+ | D25: check | E25: =Scores!A25 -> 0 | F25: =Scores!M25 -> 0 | G25: JD | H25: =Scores!B25 -> 0 | I25: C- | J25: =Scores!Y25 -> 0
A26: =Scores!U26 -> 0 | B26: C- | C26: C+ | D26: check | E26: =Scores!A26 -> 0 | F26: =Scores!M26 -> 0 | G26: JD | H26: =Scores!B26 -> 0 | I26: C- | J26: =Scores!Y26 -> 0
A27: =Scores!U27 -> 0 | B27: C- | C27: C+ | D27: check | E27: =Scores!A27 -> 0 | F27: =Scores!M27 -> 0 | G27: JD | H27: =Scores!B27 -> 0 | I27: C- | J27: =Scores!Y27 -> 0
A28: =Scores!U28 -> 0 | B28: C- | C28: C+ | D28: check | E28: =Scores!A28 -> 0 | F28: =Scores!M28 -> 0 | G28: JD | H28: =Scores!B28 -> 0 | I28: C- | J28: =Scores!Y28 -> 0
A29: =Scores!U29 -> 0 | B29: C- | C29: C+ | D29: check | E29: =Scores!A29 -> 0 | F29: =Scores!M29 -> 0 | G29: JD | H29: =Scores!B29 -> 0 | I29: C- | J29: =Scores!Y29 -> 0
A30: =Scores!U30 -> 0 | B30: C- | C30: C+ | D30: check | E30: =Scores!A30 -> 0 | F30: =Scores!M30 -> 0 | G30: JD | H30: =Scores!B30 -> 0 | I30: C- | J30: =Scores!Y30 -> 0
A31: =Scores!U31 -> 0 | B31: C- | C31: C+ | D31: check | E31: =Scores!A31 -> 0 | F31: =Scores!M31 -> 0 | G31: JD | H31: =Scores!B31 -> 0 | I31: C- | J31: =Scores!Y31 -> 0
A32: =Scores!U32 -> 0 | B32: C- | C32: C+ | D32: check | E32: =Scores!A32 -> 0 | F32: =Scores!M32 -> 0 | G32: JD | H32: =Scores!B32 -> 0 | I32: C- | J32: =Scores!Y32 -> 0
A33: =Scores!U33 -> 0 | B33: C- | C33: C+ | D33: check | E33: =Scores!A33 -> 0 | F33: =Scores!M33 -> 0 | G33: JD | H33: =Scores!B33 -> 0 | I33: C- | J33: =Scores!Y33 -> 0
A34: =Scores!U34 -> 0 | B34: C- | C34: C+ | D34: check | E34: =Scores!A34 -> 0 | F34: =Scores!M34 -> 0 | G34: JD | H34: =Scores!B34 -> 0 | I34: C- | J34: =Scores!Y34 -> 0
A35: =Scores!U35 -> 0 | B35: C- | C35: C+ | D35: check | E35: =Scores!A35 -> 0 | F35: =Scores!M35 -> 0 | G35: JD | H35: =Scores!B35 -> 0 | I35: C- | J35: =Scores!Y35 -> 0
A36: =Scores!U36 -> 0 | B36: C- | C36: C+ | D36: check | E36: =Scores!A36 -> 0 | F36: =Scores!M36 -> 0 | G36: JD | H36: =Scores!B36 -> 0 | I36: C- | J36: =Scores!Y36 -> 0
A37: =Scores!U37 -> 0 | B37: C- | C37: C+ | D37: check | E37: =Scores!A37 -> 0 | F37: =Scores!M37 -> 0 | G37: JD | H37: =Scores!B37 -> 0 | I37: C- | J37: =Scores!Y37 -> 0
A38: =Scores!U38 -> 0 | B38: C- | C38: C+ | D38: check | E38: =Scores!A38 -> 0 | F38: =Scores!M38 -> 0 | G38: JD | H38: =Scores!B38 -> 0 | I38: C- | J38: =Scores!Y38 -> 0
A39: =Scores!U39 -> 0 | B39: C- | C39: C+ | D39: check | E39: =Scores!A39 -> 0 | F39: =Scores!M39 -> 0 | G39: JD | H39: =Scores!B39 -> 0 | I39: C- | J39: =Scores!Y39 -> 0
A40: =Scores!U40 -> 0 | B40: C- | C40: C+ | D40: check | E40: =Scores!A40 -> 0 | F40: =Scores!M40 -> 0 | G40: JD | H40: =Scores!B40 -> 0 | I40: C- | J40: =Scores!Y40 -> 0
A41: =Scores!U41 -> 0 | B41: C- | C41: C+ | D41: check | E41: =Scores!A41 -> 0 | F41: =Scores!M41 -> 0 | G41: JD | H41: =Scores!B41 -> 0 | I41: C- | J41: =Scores!Y41 -> 0
A42: =Scores!U42 -> 0 | B42: C- | C42: C+ | D42: check | E42: =Scores!A42 -> 0 | F42: =Scores!M42 -> 0 | G42: JD | H42: =Scores!B42 -> 0 | I42: C- | J42: =Scores!Y42 -> 0
A43: =Scores!U43 -> 0 | B43: C- | C43: C+ | D43: check | E43: =Scores!A43 -> 0 | F43: =Scores!M43 -> 0 | G43: JD | H43: =Scores!B43 -> 0 | I43: C- | J43: =Scores!Y43 -> 0
A44: =Scores!U44 -> 0 | B44: C- | C44: C+ | D44: check | E44: =Scores!A44 -> 0 | F44: =Scores!M44 -> 0 | G44: JD | H44: =Scores!B44 -> 0 | I44: C- | J44: =Scores!Y44 -> 0
A45: =Scores!U45 -> 0 | B45: C- | C45: C+ | D45: check | E45: =Scores!A45 -> 0 | F45: =Scores!M45 -> 0 | G45: JD | H45: =Scores!B45 -> 0 | I45: C- | J45: =Scores!Y45 -> 0
A46: =Scores!U46 -> 0 | B46: C- | C46: C+ | D46: check | E46: =Scores!A46 -> 0 | F46: =Scores!M46 -> 0 | G46: JD | H46: =Scores!B46 -> 0 | I46: C- | J46: =Scores!Y46 -> 0
A47: =Scores!U47 -> 0 | B47: C- | C47: C+ | D47: check | E47: =Scores!A47 -> 0 | F47: =Scores!M47 -> 0 | G47: JD | H47: =Scores!B47 -> 0 | I47: C- | J47: =Scores!Y47 -> 0
A48: =Scores!U48 -> 0 | B48: C- | C48: C+ | D48: check | E48: =Scores!A48 -> 0 | F48: =Scores!M48 -> 0 | G48: JD | H48: =Scores!B48 -> 0 | I48: C- | J48: =Scores!Y48 -> 0
A49: =Scores!U49 -> 0 | B49: C- | C49: C+ | D49: check | E49: =Scores!A49 -> 0 | F49: =Scores!M49 -> 0 | G49: JD | H49: =Scores!B49 -> 0 | I49: C- | J49: =Scores!Y49 -> 0
A50: =Scores!U50 -> 0 | B50: C- | C50: C+ | D50: check | E50: =Scores!A50 -> 0 | F50: =Scores!M50 -> 0 | G50: JD | H50: =Scores!B50 -> 0 | I50: C- | J50: =Scores!Y50 -> 0
A51: =Scores!U51 -> 0 | B51: C- | C51: C+ | D51: check | E51: =Scores!A51 -> 0 | F51: =Scores!M51 -> 0 | G51: JD | H51: =Scores!B51 -> 0 | I51: C- | J51: =Scores!Y51 -> 0
A52: =Scores!U52 -> 0 | B52: C- | C52: C+ | D52: check | E52: =Scores!A52 -> 0 | F52: =Scores!M52 -> 0 | G52: JD | H52: =Scores!B52 -> 0 | I52: C- | J52: =Scores!Y52 -> 0
A53: =Scores!U53 -> 0 | B53: C- | C53: C+ | D53: check | E53: =Scores!A53 -> 0 | F53: =Scores!M53 -> 0 | G53: JD | H53: =Scores!B53 -> 0 | I53: C- | J53: =Scores!Y53 -> 0
A54: =Scores!U54 -> 0 | B54: C- | C54: C+ | D54: check | E54: =Scores!A54 -> 0 | F54: =Scores!M54 -> 0 | G54: JD | H54: =Scores!B54 -> 0 | I54: C- | J54: =Scores!Y54 -> 0
A55: =Scores!U55 -> 0 | B55: C- | C55: C+ | D55: check | E55: =Scores!A55 -> 0 | F55: =Scores!M55 -> 0 | G55: JD | H55: =Scores!B55 -> 0 | I55: C- | J55: =Scores!Y55 -> 0
A56: =Scores!U56 -> 0 | B56: C- | C56: C+ | D56: check | E56: =Scores!A56 -> 0 | F56: =Scores!M56 -> 0 | G56: JD | H56: =Scores!B56 -> 0 | I56: C- | J56: =Scores!Y56 -> 0
A57: =Scores!U57 -> 0 | B57: C- | C57: C+ | D57: check | E57: =Scores!A57 -> 0 | F57: =Scores!M57 -> 0 | G57: JD | H57: =Scores!B57 -> 0 | I57: C- | J57: =Scores!Y57 -> 0
A58: =Scores!U58 -> 0 | B58: C- | C58: C+ | D58: check | E58: =Scores!A58 -> 0 | F58: =Scores!M58 -> 0 | G58: JD | H58: =Scores!B58 -> 0 | I58: C- | J58: =Scores!Y58 -> 0
A59: =Scores!U59 -> 0 | B59: C- | C59: C+ | D59: check | E59: =Scores!A59 -> 0 | F59: =Scores!M59 -> 0 | G59: JD | H59: =Scores!B59 -> 0 | I59: C- | J59: =Scores!Y59 -> 0
A60: =Scores!U60 -> 0 | B60: C- | C60: C+ | D60: check | E60: =Scores!A60 -> 0 | F60: =Scores!M60 -> 0 | G60: JD | H60: =Scores!B60 -> 0 | I60: C- | J60: =Scores!Y60 -> 0
A61: =Scores!U61 -> 0 | B61: C- | C61: C+ | D61: check | E61: =Scores!A61 -> 0 | F61: =Scores!M61 -> 0 | G61: JD | H61: =Scores!B61 -> 0 | I61: C- | J61: =Scores!Y61 -> 0
A62: =Scores!U62 -> 0 | B62: C- | C62: C+ | D62: check | E62: =Scores!A62 -> 0 | F62: =Scores!M62 -> 0 | G62: JD | H62: =Scores!B62 -> 0 | I62: C- | J62: =Scores!Y62 -> 0
A63: =Scores!U63 -> 0 | B63: C- | C63: C+ | D63: check | E63: =Scores!A63 -> 0 | F63: =Scores!M63 -> 0 | G63: JD | H63: =Scores!B63 -> 0 | I63: C- | J63: =Scores!Y63 -> 0
A64: =Scores!U64 -> 0 | B64: C- | C64: C+ | D64: check | E64: =Scores!A64 -> 0 | F64: =Scores!M64 -> 0 | G64: JD | H64: =Scores!B64 -> 0 | I64: C- | J64: =Scores!Y64 -> 0
A65: =Scores!U65 -> 0 | B65: C- | C65: C+ | D65: check | E65: =Scores!A65 -> 0 | F65: =Scores!M65 -> 0 | G65: JD | H65: =Scores!B65 -> 0 | I65: C- | J65: =Scores!Y65 -> 0
A66: =Scores!U66 -> 0 | B66: C- | C66: C+ | D66: check | E66: =Scores!A66 -> 0 | F66: =Scores!M66 -> 0 | G66: JD | H66: =Scores!B66 -> 0 | I66: C- | J66: =Scores!Y66 -> 0
A67: =Scores!U67 -> 0 | B67: C- | C67: C+ | D67: check | E67: =Scores!A67 -> 0 | F67: =Scores!M67 -> 0 | G67: JD | H67: =Scores!B67 -> 0 | I67: C- | J67: =Scores!Y67 -> 0
A68: =Scores!U68 -> 0 | B68: C- | C68: C+ | D68: check | E68: =Scores!A68 -> 0 | F68: =Scores!M68 -> 0 | G68: JD | H68: =Scores!B68 -> 0 | I68: C- | J68: =Scores!Y68 -> 0
A69: =Scores!U69 -> 0 | B69: C- | C69: C+ | D69: check | E69: =Scores!A69 -> 0 | F69: =Scores!M69 -> 0 | G69: JD | H69: =Scores!B69 -> 0 | I69: C- | J69: =Scores!Y69 -> 0
A70: =Scores!U70 -> 0 | B70: C- | C70: C+ | D70: check | E70: =Scores!A70 -> 0 | F70: =Scores!M70 -> 0 | G70: JD | H70: =Scores!B70 -> 0 | I70: C- | J70: =Scores!Y70 -> 0
A71: =Scores!U71 -> 0 | B71: C- | C71: C+ | D71: check | E71: =Scores!A71 -> 0 | F71: =Scores!M71 -> 0 | G71: JD | H71: =Scores!B71 -> 0 | I71: C- | J71: =Scores!Y71 -> 0
A72: =Scores!U72 -> 0 | B72: C- | C72: C+ | D72: check | E72: =Scores!A72 -> 0 | F72: =Scores!M72 -> 0 | G72: JD | H72: =Scores!B72 -> 0 | I72: C- | J72: =Scores!Y72 -> 0
A73: =Scores!U73 -> 0 | B73: C- | C73: C+ | D73: check | E73: =Scores!A73 -> 0 | F73: =Scores!M73 -> 0 | G73: JD | H73: =Scores!B73 -> 0 | I73: C- | J73: =Scores!Y73 -> 0
A74: =Scores!U74 -> 0 | B74: C- | C74: C+ | D74: check | E74: =Scores!A74 -> 0 | F74: =Scores!M74 -> 0 | G74: JD | H74: =Scores!B74 -> 0 | I74: C- | J74: =Scores!Y74 -> 0
A75: =Scores!U75 -> 0 | B75: C- | C75: C+ | D75: check | E75: =Scores!A75 -> 0 | F75: =Scores!M75 -> 0 | G75: JD | H75: =Scores!B75 -> 0 | I75: C- | J75: =Scores!Y75 -> 0
A76: =Scores!U76 -> 0 | B76: C- | C76: C+ | D76: check | E76: =Scores!A76 -> 0 | F76: =Scores!M76 -> 0 | G76: JD | H76: =Scores!B76 -> 0 | I76: C- | J76: =Scores!Y76 -> 0
A77: =Scores!U77 -> 0 | B77: C- | C77: C+ | D77: check | E77: =Scores!A77 -> 0 | F77: =Scores!M77 -> 0 | G77: JD | H77: =Scores!B77 -> 0 | I77: C- | J77: =Scores!Y77 -> 0
A78: =Scores!U78 -> 0 | B78: C- | C78: C+ | D78: check | E78: =Scores!A78 -> 0 | F78: =Scores!M78 -> 0 | G78: JD | H78: =Scores!B78 -> 0 | I78: C- | J78: =Scores!Y78 -> 0
A79: =Scores!U79 -> 0 | B79: =IF(A79<$B$9,$A$10,IF(A79<$B$8,$A$9,IF(A79<$B$7,$A$8,IF(A79<$B$6,$A$7,IF(A79<$B$5,$A$6,IF(A79<$B$4,$A$5,IF(A79<$B$3,$A$4,IF(A79<$B$2,$A$3,$A$2)))))))) -> C- | C79: =IF(A79<$C$7,$A$8,IF(A79<$C$6,$A$7,IF(A79<$C$5,$A$6,IF(A79<$C$4,$A$5,IF(A79<$C$3,$A$4,IF(A79<$C$2,$A$3,$A$2)))))) -> C+ | D79: =IF(G79="JD",IF(E79="yes","","check"),IF(E79="yes","BAD?","")) -> check | E79: =Scores!A79 -> 0 | F79: =Scores!M79 -> 0 | G79: JD | H79: =Scores!B79 -> 0 | I79: =IF(G79="grad",C79,B79) -> C- | J79: =Scores!Y79 -> 0
A80: =Scores!U80 -> 0 | B80: C- | C80: C+ | D80: check | E80: =Scores!A80 -> 0 | F80: =Scores!M80 -> 0 | G80: JD | H80: =Scores!B80 -> 0 | I80: C- | J80: =Scores!Y80 -> 0
A81: =Scores!U81 -> 0 | B81: C- | C81: C+ | D81: check | E81: =Scores!A81 -> 0 | F81: =Scores!M81 -> 0 | G81: JD | H81: =Scores!B81 -> 0 | I81: C- | J81: =Scores!Y81 -> 0
A82: =Scores!U82 -> 0 | B82: C- | C82: C+ | D82: check | E82: =Scores!A82 -> 0 | F82: =Scores!M82 -> 0 | G82: JD | H82: =Scores!B82 -> 0 | I82: C- | J82: =Scores!Y82 -> 0
A83: =Scores!U83 -> 0 | B83: C- | C83: C+ | D83: check | E83: =Scores!A83 -> 0 | F83: =Scores!M83 -> 0 | G83: JD | H83: =Scores!B83 -> 0 | I83: C- | J83: =Scores!Y83 -> 0
A84: =Scores!U84 -> 0 | B84: C- | C84: C+ | D84: check | E84: =Scores!A84 -> 0 | F84: =Scores!M84 -> 0 | G84: JD | H84: =Scores!B84 -> 0 | I84: C- | J84: =Scores!Y84 -> 0
A85: =Scores!U85 -> 0 | B85: C- | C85: C+ | D85: check | E85: =Scores!A85 -> 0 | F85: =Scores!M85 -> 0 | G85: JD | H85: =Scores!B85 -> 0 | I85: C- | J85: =Scores!Y85 -> 0
A86: =Scores!U86 -> 0 | B86: C- | C86: C+ | D86: check | E86: =Scores!A86 -> 0 | F86: =Scores!M86 -> 0 | G86: JD | H86: =Scores!B86 -> 0 | I86: C- | J86: =Scores!Y86 -> 0
A87: =Scores!U87 -> 0 | B87: C- | C87: C+ | D87: check | E87: =Scores!A87 -> 0 | F87: =Scores!M87 -> 0 | G87: JD | H87: =Scores!B87 -> 0 | I87: C- | J87: =Scores!Y87 -> 0
A88: =Scores!U88 -> 0 | B88: C- | C88: C+ | D88: check | E88: =Scores!A88 -> 0 | F88: =Scores!M88 -> 0 | G88: JD | H88: =Scores!B88 -> 0 | I88: C- | J88: =Scores!Y88 -> 0
A89: =Scores!U89 -> 0 | B89: C- | C89: C+ | D89: check | E89: =Scores!A89 -> 0 | F89: =Scores!M89 -> 0 | G89: JD | H89: =Scores!B89 -> 0 | I89: C- | J89: =Scores!Y89 -> 0
A90: =Scores!U90 -> 0 | B90: C- | C90: C+ | D90: check | E90: =Scores!A90 -> 0 | F90: =Scores!M90 -> 0 | G90: JD | H90: =Scores!B90 -> 0 | I90: C- | J90: =Scores!Y90 -> 0
A91: =Scores!U91 -> 0 | B91: C- | C91: C+ | D91: check | E91: =Scores!A91 -> 0 | F91: =Scores!M91 -> 0 | G91: JD | H91: =Scores!B91 -> 0 | I91: C- | J91: =Scores!Y91 -> 0
A92: =Scores!U92 -> 0 | B92: C- | C92: C+ | D92: check | E92: =Scores!A92 -> 0 | F92: =Scores!M92 -> 0 | G92: JD | H92: =Scores!B92 -> 0 | I92: C- | J92: =Scores!Y92 -> 0
A93: =Scores!U93 -> 0 | B93: C- | C93: C+ | D93: check | E93: =Scores!A93 -> 0 | F93: =Scores!M93 -> 0 | G93: JD | H93: =Scores!B93 -> 0 | I93: C- | J93: =Scores!Y93 -> 0
A94: =Scores!U94 -> 0 | B94: C- | C94: C+ | D94: check | E94: =Scores!A94 -> 0 | F94: =Scores!M94 -> 0 | G94: JD | H94: =Scores!B94 -> 0 | I94: C- | J94: =Scores!Y94 -> 0
A95: =Scores!U95 -> 0 | B95: C- | C95: C+ | D95: check | E95: =Scores!A95 -> 0 | F95: =Scores!M95 -> 0 | G95: JD | H95: =Scores!B95 -> 0 | I95: C- | J95: =Scores!Y95 -> 0
A96: =Scores!U96 -> 0 | B96: C- | C96: C+ | D96: check | E96: =Scores!A96 -> 0 | F96: =Scores!M96 -> 0 | G96: JD | H96: =Scores!B96 -> 0 | I96: C- | J96: =Scores!Y96 -> 0
A97: =Scores!U97 -> 0 | B97: C- | C97: C+ | D97: check | E97: =Scores!A97 -> 0 | F97: =Scores!M97 -> 0 | G97: JD | H97: =Scores!B97 -> 0 | I97: C- | J97: =Scores!Y97 -> 0
A98: =Scores!U98 -> 0 | B98: C- | C98: C+ | D98: check | E98: =Scores!A98 -> 0 | F98: =Scores!M98 -> 0 | G98: JD | H98: =Scores!B98 -> 0 | I98: C- | J98: =Scores!Y98 -> 0
A99: =Scores!U99 -> 0 | B99: C- | C99: C+ | D99: check | E99: =Scores!A99 -> 0 | F99: =Scores!M99 -> 0 | G99: JD | H99: =Scores!B99 -> 0 | I99: C- | J99: =Scores!Y99 -> 0
A100: =Scores!U100 -> 0 | B100: C- | C100: C+ | D100: check | E100: =Scores!A100 -> 0 | F100: =Scores!M100 -> 0 | G100: JD | H100: =Scores!B100 -> 0 | I100: C- | J100: =Scores!Y100 -> 0
A101: =Scores!U101 -> 0 | B101: C- | C101: C+ | D101: check | E101: =Scores!A101 -> 0 | F101: =Scores!M101 -> 0 | G101: JD | H101: =Scores!B101 -> 0 | I101: C- | J101: =Scores!Y101 -> 0
A102: =Scores!U102 -> 0 | B102: C- | C102: C+ | D102: check | E102: =Scores!A102 -> 0 | F102: =Scores!M102 -> 0 | G102: JD | H102: =Scores!B102 -> 0 | I102: C- | J102: =Scores!Y102 -> 0
A103: =Scores!U103 -> 0 | B103: C- | C103: C+ | D103: check | E103: =Scores!A103 -> 0 | F103: =Scores!M103 -> 0 | G103: JD | H103: =Scores!B103 -> 0 | I103: C- | J103: =Scores!Y103 -> 0
A104: =Scores!U104 -> 0 | B104: C- | C104: C+ | D104: check | E104: =Scores!A104 -> 0 | F104: =Scores!M104 -> 0 | G104: JD | H104: =Scores!B104 -> 0 | I104: C- | J104: =Scores!Y104 -> 0
A105: =Scores!U105 -> 0 | B105: C- | C105: C+ | D105: check | E105: =Scores!A105 -> 0 | F105: =Scores!M105 -> 0 | G105: JD | H105: =Scores!B105 -> 0 | I105: C- | J105: =Scores!Y105 -> 0
A106: =Scores!U106 -> 0 | B106: C- | C106: C+ | D106: check | E106: =Scores!A106 -> 0 | F106: =Scores!M106 -> 0 | G106: JD | H106: =Scores!B106 -> 0 | I106: C- | J106: =Scores!Y106 -> 0
A107: =Scores!U107 -> 0 | B107: C- | C107: C+ | D107: check | E107: =Scores!A107 -> 0 | F107: =Scores!M107 -> 0 | G107: JD | H107: =Scores!B107 -> 0 | I107: C- | J107: =Scores!Y107 -> 0
A108: =Scores!U108 -> 0 | B108: C- | C108: C+ | D108: check | E108: =Scores!A108 -> 0 | F108: =Scores!M108 -> 0 | G108: JD | H108: =Scores!B108 -> 0 | I108: C- | J108: =Scores!Y108 -> 0
A109: =Scores!U109 -> 0 | B109: C- | C109: C+ | D109: check | E109: =Scores!A109 -> 0 | F109: =Scores!M109 -> 0 | G109: JD | H109: =Scores!B109 -> 0 | I109: C- | J109: =Scores!Y109 -> 0
A110: =Scores!U110 -> 0 | B110: C- | C110: C+ | D110: check | E110: =Scores!A110 -> 0 | F110: =Scores!M110 -> 0 | G110: JD | H110: =Scores!B110 -> 0 | I110: C- | J110: =Scores!Y110 -> 0
A111: =Scores!U111 -> 0 | B111: C- | C111: C+ | D111: check | E111: =Scores!A111 -> 0 | F111: =Scores!M111 -> 0 | G111: JD | H111: =Scores!B111 -> 0 | I111: C- | J111: =Scores!Y111 -> 0
A112: =Scores!U112 -> 0 | B112: C- | C112: C+ | D112: check | E112: =Scores!A112 -> 0 | F112: =Scores!M112 -> 0 | G112: JD | H112: =Scores!B112 -> 0 | I112: C- | J112: =Scores!Y112 -> 0
A113: =Scores!U113 -> 0 | B113: C- | C113: C+ | D113: check | E113: =Scores!A113 -> 0 | F113: =Scores!M113 -> 0 | G113: JD | H113: =Scores!B113 -> 0 | I113: C- | J113: =Scores!Y113 -> 0
A114: =Scores!U114 -> 0 | B114: C- | C114: C+ | D114: check | E114: =Scores!A114 -> 0 | F114: =Scores!M114 -> 0 | G114: JD | H114: =Scores!B114 -> 0 | I114: C- | J114: =Scores!Y114 -> 0
A115: =Scores!U115 -> 0 | B115: C- | C115: C+ | D115: check | E115: =Scores!A115 -> 0 | F115: =Scores!M115 -> 0 | G115: JD | H115: =Scores!B115 -> 0 | I115: C- | J115: =Scores!Y115 -> 0
A116: =Scores!U116 -> 0 | B116: C- | C116: C+ | D116: check | E116: =Scores!A116 -> 0 | F116: =Scores!M116 -> 0 | G116: JD | H116: =Scores!B116 -> 0 | I116: C- | J116: =Scores!Y116 -> 0
A117: =Scores!U117 -> 0 | B117: C- | C117: C+ | D117: check | E117: =Scores!A117 -> 0 | F117: =Scores!M117 -> 0 | G117: JD | H117: =Scores!B117 -> 0 | I117: C- | J117: =Scores!Y117 -> 0
A118: =Scores!U118 -> 0 | B118: C- | C118: C+ | D118: check | E118: =Scores!A118 -> 0 | F118: =Scores!M118 -> 0 | G118: JD | H118: =Scores!B118 -> 0 | I118: C- | J118: =Scores!Y118 -> 0
A119: =Scores!U119 -> 0 | B119: C- | C119: C+ | D119: check | E119: =Scores!A119 -> 0 | F119: =Scores!M119 -> 0 | G119: JD | H119: =Scores!B119 -> 0 | I119: C- | J119: =Scores!Y119 -> 0
A120: =Scores!U120 -> 0 | B120: C- | C120: C+ | D120: check | E120: =Scores!A120 -> 0 | F120: =Scores!M120 -> 0 | G120: JD | H120: =Scores!B120 -> 0 | I120: C- | J120: =Scores!Y120 -> 0
A121: =Scores!U121 -> 0 | B121: C- | C121: C+ | D121: check | E121: =Scores!A121 -> 0 | F121: =Scores!M121 -> 0 | G121: JD | H121: =Scores!B121 -> 0 | I121: C- | J121: =Scores!Y121 -> 0
A122: =Scores!U122 -> 0 | B122: C- | C122: C+ | D122: check | E122: =Scores!A122 -> 0 | F122: =Scores!M122 -> 0 | G122: JD | H122: =Scores!B122 -> 0 | I122: C- | J122: =Scores!Y122 -> 0
A123: =Scores!U123 -> 0 | B123: C- | C123: C+ | D123: check | E123: =Scores!A123 -> 0 | F123: =Scores!M123 -> 0 | G123: JD | H123: =Scores!B123 -> 0 | I123: C- | J123: =Scores!Y123 -> 0
A124: =Scores!U124 -> 0 | B124: C- | C124: C+ | D124: check | E124: =Scores!A124 -> 0 | F124: =Scores!M124 -> 0 | G124: JD | H124: =Scores!B124 -> 0 | I124: C- | J124: =Scores!Y124 -> 0
A125: =Scores!U125 -> 0 | B125: C- | C125: C+ | D125: check | E125: =Scores!A125 -> 0 | F125: =Scores!M125 -> 0 | G125: JD | H125: =Scores!B125 -> 0 | I125: C- | J125: =Scores!Y125 -> 0
A126: =Scores!U126 -> 0 | B126: C- | C126: C+ | D126: check | E126: =Scores!A126 -> 0 | F126: =Scores!M126 -> 0 | G126: JD | H126: =Scores!B126 -> 0 | I126: C- | J126: =Scores!Y126 -> 0
A127: =Scores!U127 -> 0 | B127: C- | C127: C+ | D127: check | E127: =Scores!A127 -> 0 | F127: =Scores!M127 -> 0 | G127: JD | H127: =Scores!B127 -> 0 | I127: C- | J127: =Scores!Y127 -> 0
A128: =Scores!U128 -> 0 | B128: C- | C128: C+ | D128: check | E128: =Scores!A128 -> 0 | F128: =Scores!M128 -> 0 | G128: JD | H128: =Scores!B128 -> 0 | I128: C- | J128: =Scores!Y128 -> 0
A129: =Scores!U129 -> 0 | B129: C- | C129: C+ | D129: check | E129: =Scores!A129 -> 0 | F129: =Scores!M129 -> 0 | G129: JD | H129: =Scores!B129 -> 0 | I129: C- | J129: =Scores!Y129 -> 0
A130: =Scores!U130 -> 0 | B130: C- | C130: C+ | D130: check | E130: =Scores!A130 -> 0 | F130: =Scores!M130 -> 0 | G130: JD | H130: =Scores!B130 -> 0 | I130: C- | J130: =Scores!Y130 -> 0
A131: =Scores!U131 -> 0 | B131: C- | C131: C+ | D131: check | E131: =Scores!A131 -> 0 | F131: =Scores!M131 -> 0 | G131: JD | H131: =Scores!B131 -> 0 | I131: C- | J131: =Scores!Y131 -> 0
A132: =Scores!U132 -> 0 | B132: C- | C132: C+ | D132: check | E132: =Scores!A132 -> 0 | F132: =Scores!M132 -> 0 | G132: JD | H132: =Scores!B132 -> 0 | I132: C- | J132: =Scores!Y132 -> 0
A133: =Scores!U133 -> 0 | B133: C- | C133: C+ | D133: check | E133: =Scores!A133 -> 0 | F133: =Scores!M133 -> 0 | G133: JD | H133: =Scores!B133 -> 0 | I133: C- | J133: =Scores!Y133 -> 0
A134: =Scores!U134 -> 0 | B134: C- | C134: C+ | D134: check | E134: =Scores!A134 -> 0 | F134: =Scores!M134 -> 0 | G134: JD | H134: =Scores!B134 -> 0 | I134: C- | J134: =Scores!Y134 -> 0
A135: =Scores!U135 -> 0 | B135: C- | C135: C+ | D135: check | E135: =Scores!A135 -> 0 | F135: =Scores!M135 -> 0 | G135: JD | H135: =Scores!B135 -> 0 | I135: C- | J135: =Scores!Y135 -> 0
A136: =Scores!U136 -> 0 | B136: C- | C136: C+ | D136: check | E136: =Scores!A136 -> 0 | F136: =Scores!M136 -> 0 | G136: JD | H136: =Scores!B136 -> 0 | I136: C- | J136: =Scores!Y136 -> 0
A137: =Scores!U137 -> 0 | B137: C- | C137: C+ | D137: check | E137: =Scores!A137 -> 0 | F137: =Scores!M137 -> 0 | G137: JD | H137: =Scores!B137 -> 0 | I137: C- | J137: =Scores!Y137 -> 0
A138: =Scores!U138 -> 0 | B138: C- | C138: C+ | D138: check | E138: =Scores!A138 -> 0 | F138: =Scores!M138 -> 0 | G138: JD | H138: =Scores!B138 -> 0 | I138: C- | J138: =Scores!Y138 -> 0
A139: =Scores!U139 -> 0 | B139: C- | C139: C+ | D139: check | E139: =Scores!A139 -> 0 | F139: =Scores!M139 -> 0 | G139: JD | H139: =Scores!B139 -> 0 | I139: C- | J139: =Scores!Y139 -> 0
A140: =Scores!U140 -> 0 | B140: C- | C140: C+ | D140: check | E140: =Scores!A140 -> 0 | F140: =Scores!M140 -> 0 | G140: JD | H140: =Scores!B140 -> 0 | I140: C- | J140: =Scores!Y140 -> 0
A141: =Scores!U141 -> 0 | B141: C- | C141: C+ | D141: check | E141: =Scores!A141 -> 0 | F141: =Scores!M141 -> 0 | G141: JD | H141: =Scores!B141 -> 0 | I141: C- | J141: =Scores!Y141 -> 0
A142: =Scores!U142 -> 0 | B142: C- | C142: C+ | D142: check | E142: =Scores!A142 -> 0 | F142: =Scores!M142 -> 0 | G142: JD | H142: =Scores!B142 -> 0 | I142: C- | J142: =Scores!Y142 -> 0
A143: =Scores!U143 -> 0 | B143: =IF(A143<$B$9,$A$10,IF(A143<$B$8,$A$9,IF(A143<$B$7,$A$8,IF(A143<$B$6,$A$7,IF(A143<$B$5,$A$6,IF(A143<$B$4,$A$5,IF(A143<$B$3,$A$4,IF(A143<$B$2,$A$3,$A$2)))))))) -> C- | C143: =IF(A143<$C$7,$A$8,IF(A143<$C$6,$A$7,IF(A143<$C$5,$A$6,IF(A143<$C$4,$A$5,IF(A143<$C$3,$A$4,IF(A143<$C$2,$A$3,$A$2)))))) -> C+ | D143: =IF(G143="JD",IF(E143="yes","","check"),IF(E143="yes","BAD?","")) -> check | E143: =Scores!A143 -> 0 | F143: =Scores!M143 -> 0 | G143: JD | H143: =Scores!B143 -> 0 | I143: =IF(G143="grad",C143,B143) -> C- | J143: =Scores!Y143 -> 0
A144: =Scores!U144 -> 0 | B144: C- | C144: C+ | D144: check | E144: =Scores!A144 -> 0 | F144: =Scores!M144 -> 0 | G144: JD | H144: =Scores!B144 -> 0 | I144: C- | J144: =Scores!Y144 -> 0
A145: =Scores!U145 -> 0 | B145: C- | C145: C+ | D145: check | E145: =Scores!A145 -> 0 | F145: =Scores!M145 -> 0 | G145: JD | H145: =Scores!B145 -> 0 | I145: C- | J145: =Scores!Y145 -> 0
A146: =Scores!U146 -> 0 | B146: C- | C146: C+ | D146: check | E146: =Scores!A146 -> 0 | F146: =Scores!M146 -> 0 | G146: JD | H146: =Scores!B146 -> 0 | I146: C- | J146: =Scores!Y146 -> 0
A147: =Scores!U147 -> 0 | B147: C- | C147: C+ | D147: check | E147: =Scores!A147 -> 0 | F147: =Scores!M147 -> 0 | G147: JD | H147: =Scores!B147 -> 0 | I147: C- | J147: =Scores!Y147 -> 0
A148: =Scores!U148 -> 0 | B148: C- | C148: C+ | D148: check | E148: =Scores!A148 -> 0 | F148: =Scores!M148 -> 0 | G148: JD | H148: =Scores!B148 -> 0 | I148: C- | J148: =Scores!Y148 -> 0
A149: =Scores!U149 -> 0 | B149: C- | C149: C+ | D149: check | E149: =Scores!A149 -> 0 | F149: =Scores!M149 -> 0 | G149: JD | H149: =Scores!B149 -> 0 | I149: C- | J149: =Scores!Y149 -> 0
A150: =Scores!U150 -> 0 | B150: C- | C150: C+ | D150: check | E150: =Scores!A150 -> 0 | F150: =Scores!M150 -> 0 | G150: JD | H150: =Scores!B150 -> 0 | I150: C- | J150: =Scores!Y150 -> 0
A151: =Scores!U151 -> 0 | B151: C- | C151: C+ | D151: check | E151: =Scores!A151 -> 0 | F151: =Scores!M151 -> 0 | G151: JD | H151: =Scores!B151 -> 0 | I151: C- | J151: =Scores!Y151 -> 0
A152: =Scores!U152 -> 0 | B152: C- | C152: C+ | D152: check | E152: =Scores!A152 -> 0 | F152: =Scores!M152 -> 0 | G152: JD | H152: =Scores!B152 -> 0 | I152: C- | J152: =Scores!Y152 -> 0
A153: =Scores!U153 -> 0 | B153: C- | C153: C+ | D153: check | E153: =Scores!A153 -> 0 | F153: =Scores!M153 -> 0 | G153: JD | H153: =Scores!B153 -> 0 | I153: C- | J153: =Scores!Y153 -> 0
A154: =Scores!U154 -> 0 | B154: C- | C154: C+ | D154: check | E154: =Scores!A154 -> 0 | F154: =Scores!M154 -> 0 | G154: JD | H154: =Scores!B154 -> 0 | I154: C- | J154: =Scores!Y154 -> 0
A155: =Scores!U155 -> 0 | B155: C- | C155: C+ | D155: check | E155: =Scores!A155 -> 0 | F155: =Scores!M155 -> 0 | G155: JD | H155: =Scores!B155 -> 0 | I155: C- | J155: =Scores!Y155 -> 0
A156: =Scores!U156 -> 0 | B156: C- | C156: C+ | D156: check | E156: =Scores!A156 -> 0 | F156: =Scores!M156 -> 0 | G156: JD | H156: =Scores!B156 -> 0 | I156: C- | J156: =Scores!Y156 -> 0
A157: =Scores!U157 -> 0 | B157: C- | C157: C+ | D157: check | E157: =Scores!A157 -> 0 | F157: =Scores!M157 -> 0 | G157: JD | H157: =Scores!B157 -> 0 | I157: C- | J157: =Scores!Y157 -> 0
A158: =Scores!U158 -> 0 | B158: C- | C158: C+ | D158: check | E158: =Scores!A158 -> 0 | F158: =Scores!M158 -> 0 | G158: JD | H158: =Scores!B158 -> 0 | I158: C- | J158: =Scores!Y158 -> 0
A159: =Scores!U159 -> 0 | B159: C- | C159: C+ | D159: check | E159: =Scores!A159 -> 0 | F159: =Scores!M159 -> 0 | G159: JD | H159: =Scores!B159 -> 0 | I159: C- | J159: =Scores!Y159 -> 0
A160: =Scores!U160 -> 0 | B160: C- | C160: C+ | D160: check | E160: =Scores!A160 -> 0 | F160: =Scores!M160 -> 0 | G160: JD | H160: =Scores!B160 -> 0 | I160: C- | J160: =Scores!Y160 -> 0
A161: =Scores!U161 -> 0 | B161: C- | C161: C+ | D161: check | E161: =Scores!A161 -> 0 | F161: =Scores!M161 -> 0 | G161: JD | H161: =Scores!B161 -> 0 | I161: C- | J161: =Scores!Y161 -> 0
A162: =Scores!U162 -> 0 | B162: C- | C162: C+ | D162: check | E162: =Scores!A162 -> 0 | F162: =Scores!M162 -> 0 | G162: JD | H162: =Scores!B162 -> 0 | I162: C- | J162: =Scores!Y162 -> 0
A163: =Scores!U163 -> 0 | B163: C- | C163: C+ | D163: check | E163: =Scores!A163 -> 0 | F163: =Scores!M163 -> 0 | G163: JD | H163: =Scores!B163 -> 0 | I163: C- | J163: =Scores!Y163 -> 0
A164: =Scores!U164 -> 0 | B164: C- | C164: C+ | D164: check | E164: =Scores!A164 -> 0 | F164: =Scores!M164 -> 0 | G164: JD | H164: =Scores!B164 -> 0 | I164: C- | J164: =Scores!Y164 -> 0
A165: =Scores!U165 -> 0 | B165: C- | C165: C+ | D165: check | E165: =Scores!A165 -> 0 | F165: =Scores!M165 -> 0 | G165: JD | H165: =Scores!B165 -> 0 | I165: C- | J165: =Scores!Y165 -> 0
A166: =Scores!U166 -> 0 | B166: C- | C166: C+ | D166: check | E166: =Scores!A166 -> 0 | F166: =Scores!M166 -> 0 | G166: JD | H166: =Scores!B166 -> 0 | I166: C- | J166: =Scores!Y166 -> 0
A167: =Scores!U167 -> 0 | B167: C- | C167: C+ | D167: check | E167: =Scores!A167 -> 0 | F167: =Scores!M167 -> 0 | G167: JD | H167: =Scores!B167 -> 0 | I167: C- | J167: =Scores!Y167 -> 0
A168: =Scores!U168 -> 0 | B168: C- | C168: C+ | D168: check | E168: =Scores!A168 -> 0 | F168: =Scores!M168 -> 0 | G168: JD | H168: =Scores!B168 -> 0 | I168: C- | J168: =Scores!Y168 -> 0
A169: =Scores!U169 -> 0 | B169: C- | C169: C+ | D169: check | E169: =Scores!A169 -> 0 | F169: =Scores!M169 -> 0 | G169: JD | H169: =Scores!B169 -> 0 | I169: C- | J169: =Scores!Y169 -> 0
A170: =Scores!U170 -> 0 | B170: C- | C170: C+ | D170: check | E170: =Scores!A170 -> 0 | F170: =Scores!M170 -> 0 | G170: JD | H170: =Scores!B170 -> 0 | I170: C- | J170: =Scores!Y170 -> 0
A171: =Scores!U171 -> 0 | B171: C- | C171: C+ | D171: check | E171: =Scores!A171 -> 0 | F171: =Scores!M171 -> 0 | G171: JD | H171: =Scores!B171 -> 0 | I171: C- | J171: =Scores!Y171 -> 0
A172: =Scores!U172 -> 0 | B172: C- | C172: C+ | D172: check | E172: =Scores!A172 -> 0 | F172: =Scores!M172 -> 0 | G172: JD | H172: =Scores!B172 -> 0 | I172: C- | J172: =Scores!Y172 -> 0
A173: =Scores!U173 -> 0 | B173: C- | C173: C+ | D173: check | E173: =Scores!A173 -> 0 | F173: =Scores!M173 -> 0 | G173: JD | H173: =Scores!B173 -> 0 | I173: C- | J173: =Scores!Y173 -> 0
A174: =Scores!U174 -> 0 | B174: C- | C174: C+ | D174: check | E174: =Scores!A174 -> 0 | F174: =Scores!M174 -> 0 | G174: JD | H174: =Scores!B174 -> 0 | I174: C- | J174: =Scores!Y174 -> 0
A175: =Scores!U175 -> 0 | B175: C- | C175: C+ | D175: check | E175: =Scores!A175 -> 0 | F175: =Scores!M175 -> 0 | G175: JD | H175: =Scores!B175 -> 0 | I175: C- | J175: =Scores!Y175 -> 0
A176: =Scores!U176 -> 0 | B176: C- | C176: C+ | D176: check | E176: =Scores!A176 -> 0 | F176: =Scores!M176 -> 0 | G176: JD | H176: =Scores!B176 -> 0 | I176: C- | J176: =Scores!Y176 -> 0
A177: =Scores!U177 -> 0 | B177: C- | C177: C+ | D177: check | E177: =Scores!A177 -> 0 | F177: =Scores!M177 -> 0 | G177: JD | H177: =Scores!B177 -> 0 | I177: C- | J177: =Scores!Y177 -> 0
A178: =Scores!U178 -> 0 | B178: C- | C178: C+ | D178: check | E178: =Scores!A178 -> 0 | F178: =Scores!M178 -> 0 | G178: JD | H178: =Scores!B178 -> 0 | I178: C- | J178: =Scores!Y178 -> 0
A179: =Scores!U179 -> 0 | B179: C- | C179: C+ | D179: check | E179: =Scores!A179 -> 0 | F179: =Scores!M179 -> 0 | G179: JD | H179: =Scores!B179 -> 0 | I179: C- | J179: =Scores!Y179 -> 0
A180: =Scores!U180 -> 0 | B180: C- | C180: C+ | D180: check | E180: =Scores!A180 -> 0 | F180: =Scores!M180 -> 0 | G180: JD | H180: =Scores!B180 -> 0 | I180: C- | J180: =Scores!Y180 -> 0
A181: =Scores!U181 -> 0 | B181: C- | C181: C+ | D181: check | E181: =Scores!A181 -> 0 | F181: =Scores!M181 -> 0 | G181: JD | H181: =Scores!B181 -> 0 | I181: C- | J181: =Scores!Y181 -> 0
A182: =Scores!U182 -> 0 | B182: C- | C182: C+ | D182: check | E182: =Scores!A182 -> 0 | F182: =Scores!M182 -> 0 | G182: JD | H182: =Scores!B182 -> 0 | I182: C- | J182: =Scores!Y182 -> 0
A183: =Scores!U183 -> 0 | B183: C- | C183: C+ | D183: check | E183: =Scores!A183 -> 0 | F183: =Scores!M183 -> 0 | G183: JD | H183: =Scores!B183 -> 0 | I183: C- | J183: =Scores!Y183 -> 0
A184: =Scores!U184 -> 0 | B184: C- | C184: C+ | D184: check | E184: =Scores!A184 -> 0 | F184: =Scores!M184 -> 0 | G184: JD | H184: =Scores!B184 -> 0 | I184: C- | J184: =Scores!Y184 -> 0
A185: =Scores!U185 -> 0 | B185: C- | C185: C+ | D185: check | E185: =Scores!A185 -> 0 | F185: =Scores!M185 -> 0 | G185: JD | H185: =Scores!B185 -> 0 | I185: C- | J185: =Scores!Y185 -> 0
A186: =Scores!U186 -> 0 | B186: C- | C186: C+ | D186: check | E186: =Scores!A186 -> 0 | F186: =Scores!M186 -> 0 | G186: JD | H186: =Scores!B186 -> 0 | I186: C- | J186: =Scores!Y186 -> 0
A187: =Scores!U187 -> 0 | B187: C- | C187: C+ | D187: check | E187: =Scores!A187 -> 0 | F187: =Scores!M187 -> 0 | G187: JD | H187: =Scores!B187 -> 0 | I187: C- | J187: =Scores!Y187 -> 0
A188: =Scores!U188 -> 0 | B188: C- | C188: C+ | D188: check | E188: =Scores!A188 -> 0 | F188: =Scores!M188 -> 0 | G188: JD | H188: =Scores!B188 -> 0 | I188: C- | J188: =Scores!Y188 -> 0
A189: =Scores!U189 -> 0 | B189: C- | C189: C+ | D189: check | E189: =Scores!A189 -> 0 | F189: =Scores!M189 -> 0 | G189: JD | H189: =Scores!B189 -> 0 | I189: C- | J189: =Scores!Y189 -> 0
A190: =Scores!U190 -> 0 | B190: C- | C190: C+ | D190: check | E190: =Scores!A190 -> 0 | F190: =Scores!M190 -> 0 | G190: JD | H190: =Scores!B190 -> 0 | I190: C- | J190: =Scores!Y190 -> 0
A191: =Scores!U191 -> 0 | B191: C- | C191: C+ | D191: check | E191: =Scores!A191 -> 0 | F191: =Scores!M191 -> 0 | G191: JD | H191: =Scores!B191 -> 0 | I191: C- | J191: =Scores!Y191 -> 0
A192: =Scores!U192 -> 0 | B192: C- | C192: C+ | D192: check | E192: =Scores!A192 -> 0 | F192: =Scores!M192 -> 0 | G192: JD | H192: =Scores!B192 -> 0 | I192: C- | J192: =Scores!Y192 -> 0
A193: =Scores!U193 -> 0 | B193: C- | C193: C+ | D193: check | E193: =Scores!A193 -> 0 | F193: =Scores!M193 -> 0 | G193: JD | H193: =Scores!B193 -> 0 | I193: C- | J193: =Scores!Y193 -> 0
A194: =Scores!U194 -> 0 | B194: C- | C194: C+ | D194: check | E194: =Scores!A194 -> 0 | F194: =Scores!M194 -> 0 | G194: JD | H194: =Scores!B194 -> 0 | I194: C- | J194: =Scores!Y194 -> 0
A195: =Scores!U195 -> 0 | B195: C- | C195: C+ | D195: check | E195: =Scores!A195 -> 0 | F195: =Scores!M195 -> 0 | G195: JD | H195: =Scores!B195 -> 0 | I195: C- | J195: =Scores!Y195 -> 0
A196: =Scores!U196 -> 0 | B196: C- | C196: C+ | D196: check | E196: =Scores!A196 -> 0 | F196: =Scores!M196 -> 0 | G196: JD | H196: =Scores!B196 -> 0 | I196: C- | J196: =Scores!Y196 -> 0
A197: =Scores!U197 -> 0 | B197: C- | C197: C+ | D197: check | E197: =Scores!A197 -> 0 | F197: =Scores!M197 -> 0 | G197: JD | H197: =Scores!B197 -> 0 | I197: C- | J197: =Scores!Y197 -> 0
A198: =Scores!U198 -> 0 | B198: C- | C198: C+ | D198: check | E198: =Scores!A198 -> 0 | F198: =Scores!M198 -> 0 | G198: JD | H198: =Scores!B198 -> 0 | I198: C- | J198: =Scores!Y198 -> 0
A199: =Scores!U199 -> 0 | B199: C- | C199: C+ | D199: check | E199: =Scores!A199 -> 0 | F199: =Scores!M199 -> 0 | G199: JD | H199: =Scores!B199 -> 0 | I199: C- | J199: =Scores!Y199 -> 0
A200: =Scores!U200 -> 0 | B200: C- | C200: C+ | D200: check | E200: =Scores!A200 -> 0 | F200: =Scores!M200 -> 0 | G200: JD | H200: =Scores!B200 -> 0 | I200: C- | J200: =Scores!Y200 -> 0
... 63 more rows

Sheet Calculations
A1: eZ-Score | C1: Copyright 2002 Jeffrey E. Stake All rights reserved | Q1: Target | R1: mean | S1: =Scores!U5 -> 3.22 | T1: =DCOUNTA($A$22:$V$273,21,'Grading Scale'!A2:B3) -> 0 | U1: ='Grading Scale'!C3 -> A | V1: =T1/$T$16 -> 0
A2: Version 4.02 xls | Q2: Target | R2: stdev | S2: =Scores!U6 -> 0.38 | T2: =DCOUNTA($A$22:$V$273,21,'Grading Scale'!A4:B5) -> 1 | U2: ='Grading Scale'!C5 -> A- | V2: 0.3333333333
T3: =DCOUNTA($A$22:$V$273,21,'Grading Scale'!A6:B7) -> 0 | U3: ='Grading Scale'!C7 -> B+ | V3: 0
T4: =DCOUNTA($A$22:$V$273,21,'Grading Scale'!A8:B9) -> 2 | U4: ='Grading Scale'!C9 -> B | V4: 0.6666666667
T5: =DCOUNTA($A$22:$V$273,21,'Grading Scale'!A10:B11) -> 0 | U5: ='Grading Scale'!C11 -> B- | V5: 0
T6: =DCOUNTA($A$22:$V$273,21,'Grading Scale'!A12:B13) -> 0 | U6: ='Grading Scale'!C13 -> C+ | V6: 0
T7: =DCOUNTA($A$22:$V$273,21,'Grading Scale'!D2:E3) -> 0 | U7: ='Grading Scale'!F3 -> C | V7: 0
T8: =DCOUNTA($A$22:$V$273,21,'Grading Scale'!D4:E5) -> 0 | U8: ='Grading Scale'!F5 -> C- | V8: 0
T9: =DCOUNTA($A$22:$V$273,21,'Grading Scale'!D6:E7) -> 0 | U9: ='Grading Scale'!F7 -> D+ | V9: 0
D10: =IF(M11>0,"WARNING, you gave some scores no weight"," ") ->  | T10: =DCOUNTA($A$22:$V$273,21,'Grading Scale'!D8:E9) -> 0 | U10: ='Grading Scale'!F9 -> D | V10: 0
C11: =IF(C21=0,IF(C14>0,1,0),0) -> 0 | D11: 0 | E11: 0 | F11: 0 | G11: 0 | H11: 0 | I11: 0 | J11: 0 | K11: 0 | L11: 0 | M11: =SUM(C11:L11) -> 0 | T11: =DCOUNTA($A$22:$V$273,21,'Grading Scale'!D10:E11) -> 0 | U11: ='Grading Scale'!F11 -> F | V11: 0
A12: =Scores!A6 -> yes | B12: the Z-score method of weighting subscores | I12: =IF(A12="yes","IS being used.","is NOT being used.") -> IS being used. | T12: =DCOUNTA($A$22:$V$273,21,'Grading Scale'!D12:E13) -> 0 | U12: ='Grading Scale'!F13 -> F-? | V12: 0
B13: SUBSCORE DATA
B14: stdev | C14: =DSTDEVP($A$22:$L$273,('Grading Scale'!N1+1),'Grading Scale'!$F$1:$F$2) -> 0.4714045208 | D14: =DSTDEVP($A$22:$L$273,('Grading Scale'!O1+1),'Grading Scale'!$F$1:$F$2) -> 0 | E14: =DSTDEVP($A$22:$L$273,('Grading Scale'!P1+1),'Grading Scale'!$F$1:$F$2) -> 0 | F14: =DSTDEVP($A$22:$L$273,('Grading Scale'!Q1+1),'Grading Scale'!$F$1:$F$2) -> 0 | G14: =DSTDEVP($A$22:$L$273,('Grading Scale'!R1+1),'Grading Scale'!$F$1:$F$2) -> 0 | H14: =DSTDEVP($A$22:$L$273,('Grading Scale'!S1+1),'Grading Scale'!$F$1:$F$2) -> 0 | I14: =DSTDEVP($A$22:$L$273,('Grading Scale'!T1+1),'Grading Scale'!$F$1:$F$2) -> 0 | J14: =DSTDEVP($A$22:$L$273,('Grading Scale'!U1+1),'Grading Scale'!$F$1:$F$2) -> 0 | K14: =DSTDEVP($A$22:$L$273,('Grading Scale'!V1+1),'Grading Scale'!$F$1:$F$2) -> 0 | L14: =DSTDEVP($A$22:$L$273,('Grading Scale'!W1+1),'Grading Scale'!$F$1:$F$2) -> 0 | T14: =S19 -> 3.233333333 | U14: = Average
B15: high | C15: =DMAX($A$22:$L$273,('Grading Scale'!N$1+1),'Grading Scale'!$F$1:$F$2) -> 1 | D15: =DMAX($A$22:$L$273,('Grading Scale'!O$1+1),'Grading Scale'!$F$1:$F$2) -> 0 | E15: =DMAX($A$22:$L$273,('Grading Scale'!P$1+1),'Grading Scale'!$F$1:$F$2) -> 0 | F15: =DMAX($A$22:$L$273,('Grading Scale'!Q$1+1),'Grading Scale'!$F$1:$F$2) -> 0 | G15: =DMAX($A$22:$L$273,('Grading Scale'!R$1+1),'Grading Scale'!$F$1:$F$2) -> 0 | H15: =DMAX($A$22:$L$273,('Grading Scale'!S$1+1),'Grading Scale'!$F$1:$F$2) -> 0 | I15: =DMAX($A$22:$L$273,('Grading Scale'!T$1+1),'Grading Scale'!$F$1:$F$2) -> 0 | J15: =DMAX($A$22:$L$273,('Grading Scale'!U$1+1),'Grading Scale'!$F$1:$F$2) -> 0 | K15: =DMAX($A$22:$L$273,('Grading Scale'!V$1+1),'Grading Scale'!$F$1:$F$2) -> 0 | L15: =DMAX($A$22:$L$273,('Grading Scale'!W$1+1),'Grading Scale'!$F$1:$F$2) -> 0 | N15: extra | O15: extra | T15: =S16 -> 0.3299831646 | U15: = Std. Dev.
B16: low | C16: =DMIN($A$22:$L$273,('Grading Scale'!N$1+1),'Grading Scale'!$F$1:$F$2) -> 0 | D16: =DMIN($A$22:$L$273,('Grading Scale'!O$1+1),'Grading Scale'!$F$1:$F$2) -> 0 | E16: =DMIN($A$22:$L$273,('Grading Scale'!P$1+1),'Grading Scale'!$F$1:$F$2) -> 0 | F16: =DMIN($A$22:$L$273,('Grading Scale'!Q$1+1),'Grading Scale'!$F$1:$F$2) -> 0 | G16: =DMIN($A$22:$L$273,('Grading Scale'!R$1+1),'Grading Scale'!$F$1:$F$2) -> 0 | H16: =DMIN($A$22:$L$273,('Grading Scale'!S$1+1),'Grading Scale'!$F$1:$F$2) -> 0 | I16: =DMIN($A$22:$L$273,('Grading Scale'!T$1+1),'Grading Scale'!$F$1:$F$2) -> 0 | J16: =DMIN($A$22:$L$273,('Grading Scale'!U$1+1),'Grading Scale'!$F$1:$F$2) -> 0 | K16: =DMIN($A$22:$L$273,('Grading Scale'!V$1+1),'Grading Scale'!$F$1:$F$2) -> 0 | L16: =DMIN($A$22:$L$273,('Grading Scale'!W$1+1),'Grading Scale'!$F$1:$F$2) -> 0 | N16: credit | O16: credit | P16: =DSTDEVP($A$22:P$273,('Grading Scale'!AA$1+1),'Grading Scale'!$F$1:$F$2) -> 1 | Q16: stdev | R16: =DSTDEVP($A$22:R$273,('Grading Scale'!AC$1+1),'Grading Scale'!$F$1:$F$2) -> 0.38 | S16: =DSTDEVP($A$22:S$273,('Grading Scale'!AD$1+1),'Grading Scale'!$F$1:$F$2) -> 0.3299831646 | T16: =SUM(T1:T12) -> 3 | U16: = Class Size
B17: mean | C17: =IF($A$12="yes",DAVERAGE($A$22:$L$273,('Grading Scale'!N$1+1),'Grading Scale'!$F$1:$F$2),0) -> 0.3333333333 | D17: =IF($A$12="yes",DAVERAGE($A$22:$L$273,('Grading Scale'!O$1+1),'Grading Scale'!$F$1:$F$2),0) -> 0 | E17: =IF($A$12="yes",DAVERAGE($A$22:$L$273,('Grading Scale'!P$1+1),'Grading Scale'!$F$1:$F$2),0) -> 0 | F17: =IF($A$12="yes",DAVERAGE($A$22:$L$273,('Grading Scale'!Q$1+1),'Grading Scale'!$F$1:$F$2),0) -> 0 | G17: =IF($A$12="yes",DAVERAGE($A$22:$L$273,('Grading Scale'!R$1+1),'Grading Scale'!$F$1:$F$2),0) -> 0 | H17: =IF($A$12="yes",DAVERAGE($A$22:$L$273,('Grading Scale'!S$1+1),'Grading Scale'!$F$1:$F$2),0) -> 0 | I17: =IF($A$12="yes",DAVERAGE($A$22:$L$273,('Grading Scale'!T$1+1),'Grading Scale'!$F$1:$F$2),0) -> 0 | J17: =IF($A$12="yes",DAVERAGE($A$22:$L$273,('Grading Scale'!U$1+1),'Grading Scale'!$F$1:$F$2),0) -> 0 | K17: =IF($A$12="yes",DAVERAGE($A$22:$L$273,('Grading Scale'!V$1+1),'Grading Scale'!$F$1:$F$2),0) -> 0 | L17: =IF($A$12="yes",DAVERAGE($A$22:$L$273,('Grading Scale'!W$1+1),'Grading Scale'!$F$1:$F$2),0) -> 0 | N17: factor | O17: factor | P17: =DMAX($A$22:P$273,('Grading Scale'!AA$1+1),'Grading Scale'!$F$1:$F$2) -> 1.414213562 | Q17: max | R17: =DMAX($A$22:R$273,('Grading Scale'!AC$1+1),'Grading Scale'!$F$1:$F$2) -> 3.757401154 | S17: =DMAX($A$22:S$273,('Grading Scale'!AD$1+1),'Grading Scale'!$F$1:$F$2) -> 3.7
B18: % of grade | C18: =C21/$M$21 -> 1 | D18: 0 | E18: 0 | F18: 0 | G18: 0 | H18: 0 | I18: 0 | J18: 0 | K18: 0 | L18: 0 | N18: for | O18: for | P18: =DMIN($A$22:P$273,('Grading Scale'!AA$1+1),'Grading Scale'!$F$1:$F$2) -> -0.7071067812 | Q18: min | R18: =DMIN($A$22:R$273,('Grading Scale'!AC$1+1),'Grading Scale'!$F$1:$F$2) -> 2.951299423 | S18: =DMIN($A$22:S$273,('Grading Scale'!AD$1+1),'Grading Scale'!$F$1:$F$2) -> 3
B19: factor | C19: =IF(C21=0,0,IF($A$12="yes",+C21/C14,+C21)) -> 2.121320344 | D19: 0 | E19: 0 | F19: 0 | G19: 0 | H19: 0 | I19: 0 | J19: 0 | K19: 0 | L19: 0 | M19: sum | N19: attend | O19: talk | P19: =DAVERAGE($A$22:P$273,('Grading Scale'!AA$1+1),'Grading Scale'!$F$1:$F$2) -> 7.401486831e-17 | Q19: mean | R19: =DAVERAGE($A$22:R$273,('Grading Scale'!AC$1+1),'Grading Scale'!$F$1:$F$2) -> 3.22 | S19: =DAVERAGE($A$22:S$273,('Grading Scale'!AD$1+1),'Grading Scale'!$F$1:$F$2) -> 3.233333333
A20: score possible (optional) | C20: =Scores!C11 -> 0 | D20: =Scores!D11 -> 0 | E20: =Scores!E11 -> 0 | F20: =Scores!F11 -> 0 | G20: =Scores!G11 -> 0 | H20: =Scores!H11 -> 0 | I20: =Scores!I11 -> 0 | J20: =Scores!J11 -> 0 | K20: =Scores!K11 -> 0 | L20: =Scores!L11 -> 0 | M20: =SUM(C20:L20) -> 0
B21: Weight = | C21: =Scores!C12 -> 1 | D21: =Scores!D12 -> 0 | E21: =Scores!E12 -> 0 | F21: =Scores!F12 -> 0 | G21: =Scores!G12 -> 0 | H21: =Scores!H12 -> 0 | I21: =Scores!I12 -> 0 | J21: =Scores!J12 -> 0 | K21: =Scores!K12 -> 0 | L21: =Scores!L12 -> 0 | M21: =SUM(C21:L21) -> 1 | N21: =Scores!N12 -> 0 | O21: =Scores!O12 -> 0 | P21: exam | Q21: exam
A22: Count? | B22: ID# | C22: part1 | D22: part2 | E22: part3 | F22: part4 | G22: part5 | H22: part6 | I22: part7 | J22: part8 | K22: part9 | L22: part10 | M22: name | N22: attend | O22: talk | P22: sum | Q22: score | R22: total | S22: grade | T22: ID | U22: letter grade
A23: =Scores!A14 -> yes | B23: =Scores!B14 -> 123456789 | C23: =Scores!C14 -> 1 | D23: =Scores!D14 -> 0 | E23: =Scores!E14 -> 0 | F23: =Scores!F14 -> 0 | G23: =Scores!G14 -> 0 | H23: =Scores!H14 -> 0 | I23: =Scores!I14 -> 0 | J23: =Scores!J14 -> 0 | K23: =Scores!K14 -> 0 | L23: =Scores!L14 -> 0 | M23: =Scores!M14 -> JD | N23: =Scores!N14 -> 0 | O23: =Scores!O14 -> 0 | P23: =(C23-$C$17)*$C$19+(D23-$D$17)*$D$19+(E23-$E$17)*$E$19+(F23-$F$17)*$F$19+(G23-$G$17)*$G$19+(H23-$H$17)*$H$19+(I23-$I$17)*$I$19+(J23-$J$17)*$J$19+(K23-$K$17)*$K$19+(L23-$L$17)*$L$19 -> 1.414213562 | Q23: =(((P23-$P$19)/$P$16)*$S$2)+$S$1 -> 3.757401154 | R23: =Q23+(N23*N$21)+(O23*O$21) -> 3.757401154 | S23: =IF(R23<'Grading Scale'!G$8,IF(R23<'Grading Scale'!G$13,'Grading Scale'!E$13,IF(R23<'Grading Scale'!G$12,'Grading Scale'!E$11,IF(R23<'Grading Scale'!G$11,'Grading Scale'!E$9,IF(R23<'Grading Scale'!G$10,'Grading Scale'!E$7,IF(R23<'Grading Scale'!G$9,'Grading Scale'!E$5,'Grading Scale'!E$3))))),IF(R23<'Grading Scale'!G$7,'Grading Scale'!B$13,IF(R23<'Grading Scale'!G$6,'Grading Scale'!B$11,IF(R23<'Grading Scale'!G$5,'Grading Scale'!B$9,IF(R23<'Grading Scale'!G$4,'Grading Scale'!B$7,IF(R23<'Grading Scale'!G$3,'Grading Scale'!B$5,'Grading Scale'!B$3)))))) -> 3.7 | T23: =Scores!B14 -> 123456789 | U23: =IF(S23>='Grading Scale'!B$13,IF(S23='Grading Scale'!B$3,'Grading Scale'!C$3,IF(S23='Grading Scale'!B$5,'Grading Scale'!C$5,IF(S23='Grading Scale'!B$7,'Grading Scale'!C$7,IF(S23='Grading Scale'!B$9,'Grading Scale'!C$9,IF(S23='Grading Scale'!B$11,'Grading Scale'!C$11,'Grading Scale'!C$13))))),IF(S23='Grading Scale'!E$3,'Grading Scale'!F$3,IF(S23='Grading Scale'!E$5,'Grading Scale'!F$5,IF(S23='Grading Scale'!E$7,'Grading Scale'!F$7,IF(S23='Grading Scale'!E$9,'Grading Scale'!F$9,IF(S23='Grading Scale'!E$11,'Grading Scale'!F$11,'Grading Scale'!F$13)))))) -> A- | V23: =IF(P23=$P$17,"BEST"," ") -> BEST | X23: =IF(W23=0,"",IF(W23=S23,"",IF(W23>S23,"dropped","increased"))) -> 
A24: =Scores!A15 -> yes | B24: =Scores!B15 -> 0 | C24: =Scores!C15 -> 0 | D24: =Scores!D15 -> 0 | E24: =Scores!E15 -> 0 | F24: =Scores!F15 -> 0 | G24: =Scores!G15 -> 0 | H24: =Scores!H15 -> 0 | I24: =Scores!I15 -> 0 | J24: =Scores!J15 -> 0 | K24: =Scores!K15 -> 0 | L24: =Scores!L15 -> 0 | M24: =Scores!M15 -> JD | N24: =Scores!N15 -> 0 | O24: =Scores!O15 -> 0 | P24: -0.7071067812 | Q24: 2.951299423 | R24: 2.951299423 | S24: =IF(R24<'Grading Scale'!G$8,IF(R24<'Grading Scale'!G$13,'Grading Scale'!E$13,IF(R24<'Grading Scale'!G$12,'Grading Scale'!E$11,IF(R24<'Grading Scale'!G$11,'Grading Scale'!E$9,IF(R24<'Grading Scale'!G$10,'Grading Scale'!E$7,IF(R24<'Grading Scale'!G$9,'Grading Scale'!E$5,'Grading Scale'!E$3))))),IF(R24<'Grading Scale'!G$7,'Grading Scale'!B$13,IF(R24<'Grading Scale'!G$6,'Grading Scale'!B$11,IF(R24<'Grading Scale'!G$5,'Grading Scale'!B$9,IF(R24<'Grading Scale'!G$4,'Grading Scale'!B$7,IF(R24<'Grading Scale'!G$3,'Grading Scale'!B$5,'Grading Scale'!B$3)))))) -> 3 | T24: =Scores!B15 -> 0 | U24: =IF(S24>='Grading Scale'!B$13,IF(S24='Grading Scale'!B$3,'Grading Scale'!C$3,IF(S24='Grading Scale'!B$5,'Grading Scale'!C$5,IF(S24='Grading Scale'!B$7,'Grading Scale'!C$7,IF(S24='Grading Scale'!B$9,'Grading Scale'!C$9,IF(S24='Grading Scale'!B$11,'Grading Scale'!C$11,'Grading Scale'!C$13))))),IF(S24='Grading Scale'!E$3,'Grading Scale'!F$3,IF(S24='Grading Scale'!E$5,'Grading Scale'!F$5,IF(S24='Grading Scale'!E$7,'Grading Scale'!F$7,IF(S24='Grading Scale'!E$9,'Grading Scale'!F$9,IF(S24='Grading Scale'!E$11,'Grading Scale'!F$11,'Grading Scale'!F$13)))))) -> B
A25: =Scores!A16 -> yes | B25: =Scores!B16 -> 0 | C25: =Scores!C16 -> 0 | D25: =Scores!D16 -> 0 | E25: =Scores!E16 -> 0 | F25: =Scores!F16 -> 0 | G25: =Scores!G16 -> 0 | H25: =Scores!H16 -> 0 | I25: =Scores!I16 -> 0 | J25: =Scores!J16 -> 0 | K25: =Scores!K16 -> 0 | L25: =Scores!L16 -> 0 | M25: =Scores!M16 -> JD | N25: =Scores!N16 -> 0 | O25: =Scores!O16 -> 0 | P25: -0.7071067812 | Q25: 2.951299423 | R25: 2.951299423 | S25: =IF(R25<'Grading Scale'!G$8,IF(R25<'Grading Scale'!G$13,'Grading Scale'!E$13,IF(R25<'Grading Scale'!G$12,'Grading Scale'!E$11,IF(R25<'Grading Scale'!G$11,'Grading Scale'!E$9,IF(R25<'Grading Scale'!G$10,'Grading Scale'!E$7,IF(R25<'Grading Scale'!G$9,'Grading Scale'!E$5,'Grading Scale'!E$3))))),IF(R25<'Grading Scale'!G$7,'Grading Scale'!B$13,IF(R25<'Grading Scale'!G$6,'Grading Scale'!B$11,IF(R25<'Grading Scale'!G$5,'Grading Scale'!B$9,IF(R25<'Grading Scale'!G$4,'Grading Scale'!B$7,IF(R25<'Grading Scale'!G$3,'Grading Scale'!B$5,'Grading Scale'!B$3)))))) -> 3 | T25: =Scores!B16 -> 0 | U25: =IF(S25>='Grading Scale'!B$13,IF(S25='Grading Scale'!B$3,'Grading Scale'!C$3,IF(S25='Grading Scale'!B$5,'Grading Scale'!C$5,IF(S25='Grading Scale'!B$7,'Grading Scale'!C$7,IF(S25='Grading Scale'!B$9,'Grading Scale'!C$9,IF(S25='Grading Scale'!B$11,'Grading Scale'!C$11,'Grading Scale'!C$13))))),IF(S25='Grading Scale'!E$3,'Grading Scale'!F$3,IF(S25='Grading Scale'!E$5,'Grading Scale'!F$5,IF(S25='Grading Scale'!E$7,'Grading Scale'!F$7,IF(S25='Grading Scale'!E$9,'Grading Scale'!F$9,IF(S25='Grading Scale'!E$11,'Grading Scale'!F$11,'Grading Scale'!F$13)))))) -> B
A26: =Scores!A17 -> 0 | B26: =Scores!B17 -> 0 | C26: =Scores!C17 -> 0 | D26: =Scores!D17 -> 0 | E26: =Scores!E17 -> 0 | F26: =Scores!F17 -> 0 | G26: =Scores!G17 -> 0 | H26: =Scores!H17 -> 0 | I26: =Scores!I17 -> 0 | J26: =Scores!J17 -> 0 | K26: =Scores!K17 -> 0 | L26: =Scores!L17 -> 0 | M26: =Scores!M17 -> 0 | N26: =Scores!N17 -> 0 | O26: =Scores!O17 -> 0 | P26: -0.7071067812 | Q26: 2.951299423 | R26: 2.951299423 | S26: =IF(R26<'Grading Scale'!G$8,IF(R26<'Grading Scale'!G$13,'Grading Scale'!E$13,IF(R26<'Grading Scale'!G$12,'Grading Scale'!E$11,IF(R26<'Grading Scale'!G$11,'Grading Scale'!E$9,IF(R26<'Grading Scale'!G$10,'Grading Scale'!E$7,IF(R26<'Grading Scale'!G$9,'Grading Scale'!E$5,'Grading Scale'!E$3))))),IF(R26<'Grading Scale'!G$7,'Grading Scale'!B$13,IF(R26<'Grading Scale'!G$6,'Grading Scale'!B$11,IF(R26<'Grading Scale'!G$5,'Grading Scale'!B$9,IF(R26<'Grading Scale'!G$4,'Grading Scale'!B$7,IF(R26<'Grading Scale'!G$3,'Grading Scale'!B$5,'Grading Scale'!B$3)))))) -> 3 | T26: =Scores!B17 -> 0 | U26: =IF(S26>='Grading Scale'!B$13,IF(S26='Grading Scale'!B$3,'Grading Scale'!C$3,IF(S26='Grading Scale'!B$5,'Grading Scale'!C$5,IF(S26='Grading Scale'!B$7,'Grading Scale'!C$7,IF(S26='Grading Scale'!B$9,'Grading Scale'!C$9,IF(S26='Grading Scale'!B$11,'Grading Scale'!C$11,'Grading Scale'!C$13))))),IF(S26='Grading Scale'!E$3,'Grading Scale'!F$3,IF(S26='Grading Scale'!E$5,'Grading Scale'!F$5,IF(S26='Grading Scale'!E$7,'Grading Scale'!F$7,IF(S26='Grading Scale'!E$9,'Grading Scale'!F$9,IF(S26='Grading Scale'!E$11,'Grading Scale'!F$11,'Grading Scale'!F$13)))))) -> B
A27: =Scores!A18 -> 0 | B27: =Scores!B18 -> 0 | C27: =Scores!C18 -> 0 | D27: =Scores!D18 -> 0 | E27: =Scores!E18 -> 0 | F27: =Scores!F18 -> 0 | G27: =Scores!G18 -> 0 | H27: =Scores!H18 -> 0 | I27: =Scores!I18 -> 0 | J27: =Scores!J18 -> 0 | K27: =Scores!K18 -> 0 | L27: =Scores!L18 -> 0 | M27: =Scores!M18 -> 0 | N27: =Scores!N18 -> 0 | O27: =Scores!O18 -> 0 | P27: -0.7071067812 | Q27: 2.951299423 | R27: 2.951299423 | S27: =IF(R27<'Grading Scale'!G$8,IF(R27<'Grading Scale'!G$13,'Grading Scale'!E$13,IF(R27<'Grading Scale'!G$12,'Grading Scale'!E$11,IF(R27<'Grading Scale'!G$11,'Grading Scale'!E$9,IF(R27<'Grading Scale'!G$10,'Grading Scale'!E$7,IF(R27<'Grading Scale'!G$9,'Grading Scale'!E$5,'Grading Scale'!E$3))))),IF(R27<'Grading Scale'!G$7,'Grading Scale'!B$13,IF(R27<'Grading Scale'!G$6,'Grading Scale'!B$11,IF(R27<'Grading Scale'!G$5,'Grading Scale'!B$9,IF(R27<'Grading Scale'!G$4,'Grading Scale'!B$7,IF(R27<'Grading Scale'!G$3,'Grading Scale'!B$5,'Grading Scale'!B$3)))))) -> 3 | T27: =Scores!B18 -> 0 | U27: =IF(S27>='Grading Scale'!B$13,IF(S27='Grading Scale'!B$3,'Grading Scale'!C$3,IF(S27='Grading Scale'!B$5,'Grading Scale'!C$5,IF(S27='Grading Scale'!B$7,'Grading Scale'!C$7,IF(S27='Grading Scale'!B$9,'Grading Scale'!C$9,IF(S27='Grading Scale'!B$11,'Grading Scale'!C$11,'Grading Scale'!C$13))))),IF(S27='Grading Scale'!E$3,'Grading Scale'!F$3,IF(S27='Grading Scale'!E$5,'Grading Scale'!F$5,IF(S27='Grading Scale'!E$7,'Grading Scale'!F$7,IF(S27='Grading Scale'!E$9,'Grading Scale'!F$9,IF(S27='Grading Scale'!E$11,'Grading Scale'!F$11,'Grading Scale'!F$13)))))) -> B
A28: =Scores!A19 -> 0 | B28: =Scores!B19 -> 0 | C28: =Scores!C19 -> 0 | D28: =Scores!D19 -> 0 | E28: =Scores!E19 -> 0 | F28: =Scores!F19 -> 0 | G28: =Scores!G19 -> 0 | H28: =Scores!H19 -> 0 | I28: =Scores!I19 -> 0 | J28: =Scores!J19 -> 0 | K28: =Scores!K19 -> 0 | L28: =Scores!L19 -> 0 | M28: =Scores!M19 -> 0 | N28: =Scores!N19 -> 0 | O28: =Scores!O19 -> 0 | P28: -0.7071067812 | Q28: 2.951299423 | R28: 2.951299423 | S28: =IF(R28<'Grading Scale'!G$8,IF(R28<'Grading Scale'!G$13,'Grading Scale'!E$13,IF(R28<'Grading Scale'!G$12,'Grading Scale'!E$11,IF(R28<'Grading Scale'!G$11,'Grading Scale'!E$9,IF(R28<'Grading Scale'!G$10,'Grading Scale'!E$7,IF(R28<'Grading Scale'!G$9,'Grading Scale'!E$5,'Grading Scale'!E$3))))),IF(R28<'Grading Scale'!G$7,'Grading Scale'!B$13,IF(R28<'Grading Scale'!G$6,'Grading Scale'!B$11,IF(R28<'Grading Scale'!G$5,'Grading Scale'!B$9,IF(R28<'Grading Scale'!G$4,'Grading Scale'!B$7,IF(R28<'Grading Scale'!G$3,'Grading Scale'!B$5,'Grading Scale'!B$3)))))) -> 3 | T28: =Scores!B19 -> 0 | U28: =IF(S28>='Grading Scale'!B$13,IF(S28='Grading Scale'!B$3,'Grading Scale'!C$3,IF(S28='Grading Scale'!B$5,'Grading Scale'!C$5,IF(S28='Grading Scale'!B$7,'Grading Scale'!C$7,IF(S28='Grading Scale'!B$9,'Grading Scale'!C$9,IF(S28='Grading Scale'!B$11,'Grading Scale'!C$11,'Grading Scale'!C$13))))),IF(S28='Grading Scale'!E$3,'Grading Scale'!F$3,IF(S28='Grading Scale'!E$5,'Grading Scale'!F$5,IF(S28='Grading Scale'!E$7,'Grading Scale'!F$7,IF(S28='Grading Scale'!E$9,'Grading Scale'!F$9,IF(S28='Grading Scale'!E$11,'Grading Scale'!F$11,'Grading Scale'!F$13)))))) -> B
A29: =Scores!A20 -> 0 | B29: =Scores!B20 -> 0 | C29: =Scores!C20 -> 0 | D29: =Scores!D20 -> 0 | E29: =Scores!E20 -> 0 | F29: =Scores!F20 -> 0 | G29: =Scores!G20 -> 0 | H29: =Scores!H20 -> 0 | I29: =Scores!I20 -> 0 | J29: =Scores!J20 -> 0 | K29: =Scores!K20 -> 0 | L29: =Scores!L20 -> 0 | M29: =Scores!M20 -> 0 | N29: =Scores!N20 -> 0 | O29: =Scores!O20 -> 0 | P29: -0.7071067812 | Q29: 2.951299423 | R29: 2.951299423 | S29: =IF(R29<'Grading Scale'!G$8,IF(R29<'Grading Scale'!G$13,'Grading Scale'!E$13,IF(R29<'Grading Scale'!G$12,'Grading Scale'!E$11,IF(R29<'Grading Scale'!G$11,'Grading Scale'!E$9,IF(R29<'Grading Scale'!G$10,'Grading Scale'!E$7,IF(R29<'Grading Scale'!G$9,'Grading Scale'!E$5,'Grading Scale'!E$3))))),IF(R29<'Grading Scale'!G$7,'Grading Scale'!B$13,IF(R29<'Grading Scale'!G$6,'Grading Scale'!B$11,IF(R29<'Grading Scale'!G$5,'Grading Scale'!B$9,IF(R29<'Grading Scale'!G$4,'Grading Scale'!B$7,IF(R29<'Grading Scale'!G$3,'Grading Scale'!B$5,'Grading Scale'!B$3)))))) -> 3 | T29: =Scores!B20 -> 0 | U29: =IF(S29>='Grading Scale'!B$13,IF(S29='Grading Scale'!B$3,'Grading Scale'!C$3,IF(S29='Grading Scale'!B$5,'Grading Scale'!C$5,IF(S29='Grading Scale'!B$7,'Grading Scale'!C$7,IF(S29='Grading Scale'!B$9,'Grading Scale'!C$9,IF(S29='Grading Scale'!B$11,'Grading Scale'!C$11,'Grading Scale'!C$13))))),IF(S29='Grading Scale'!E$3,'Grading Scale'!F$3,IF(S29='Grading Scale'!E$5,'Grading Scale'!F$5,IF(S29='Grading Scale'!E$7,'Grading Scale'!F$7,IF(S29='Grading Scale'!E$9,'Grading Scale'!F$9,IF(S29='Grading Scale'!E$11,'Grading Scale'!F$11,'Grading Scale'!F$13)))))) -> B
A30: =Scores!A21 -> 0 | B30: =Scores!B21 -> 0 | C30: =Scores!C21 -> 0 | D30: =Scores!D21 -> 0 | E30: =Scores!E21 -> 0 | F30: =Scores!F21 -> 0 | G30: =Scores!G21 -> 0 | H30: =Scores!H21 -> 0 | I30: =Scores!I21 -> 0 | J30: =Scores!J21 -> 0 | K30: =Scores!K21 -> 0 | L30: =Scores!L21 -> 0 | M30: =Scores!M21 -> 0 | N30: =Scores!N21 -> 0 | O30: =Scores!O21 -> 0 | P30: -0.7071067812 | Q30: 2.951299423 | R30: 2.951299423 | S30: =IF(R30<'Grading Scale'!G$8,IF(R30<'Grading Scale'!G$13,'Grading Scale'!E$13,IF(R30<'Grading Scale'!G$12,'Grading Scale'!E$11,IF(R30<'Grading Scale'!G$11,'Grading Scale'!E$9,IF(R30<'Grading Scale'!G$10,'Grading Scale'!E$7,IF(R30<'Grading Scale'!G$9,'Grading Scale'!E$5,'Grading Scale'!E$3))))),IF(R30<'Grading Scale'!G$7,'Grading Scale'!B$13,IF(R30<'Grading Scale'!G$6,'Grading Scale'!B$11,IF(R30<'Grading Scale'!G$5,'Grading Scale'!B$9,IF(R30<'Grading Scale'!G$4,'Grading Scale'!B$7,IF(R30<'Grading Scale'!G$3,'Grading Scale'!B$5,'Grading Scale'!B$3)))))) -> 3 | T30: =Scores!B21 -> 0 | U30: =IF(S30>='Grading Scale'!B$13,IF(S30='Grading Scale'!B$3,'Grading Scale'!C$3,IF(S30='Grading Scale'!B$5,'Grading Scale'!C$5,IF(S30='Grading Scale'!B$7,'Grading Scale'!C$7,IF(S30='Grading Scale'!B$9,'Grading Scale'!C$9,IF(S30='Grading Scale'!B$11,'Grading Scale'!C$11,'Grading Scale'!C$13))))),IF(S30='Grading Scale'!E$3,'Grading Scale'!F$3,IF(S30='Grading Scale'!E$5,'Grading Scale'!F$5,IF(S30='Grading Scale'!E$7,'Grading Scale'!F$7,IF(S30='Grading Scale'!E$9,'Grading Scale'!F$9,IF(S30='Grading Scale'!E$11,'Grading Scale'!F$11,'Grading Scale'!F$13)))))) -> B
A31: =Scores!A22 -> 0 | B31: =Scores!B22 -> 0 | C31: =Scores!C22 -> 0 | D31: =Scores!D22 -> 0 | E31: =Scores!E22 -> 0 | F31: =Scores!F22 -> 0 | G31: =Scores!G22 -> 0 | H31: =Scores!H22 -> 0 | I31: =Scores!I22 -> 0 | J31: =Scores!J22 -> 0 | K31: =Scores!K22 -> 0 | L31: =Scores!L22 -> 0 | M31: =Scores!M22 -> 0 | N31: =Scores!N22 -> 0 | O31: =Scores!O22 -> 0 | P31: -0.7071067812 | Q31: 2.951299423 | R31: 2.951299423 | S31: =IF(R31<'Grading Scale'!G$8,IF(R31<'Grading Scale'!G$13,'Grading Scale'!E$13,IF(R31<'Grading Scale'!G$12,'Grading Scale'!E$11,IF(R31<'Grading Scale'!G$11,'Grading Scale'!E$9,IF(R31<'Grading Scale'!G$10,'Grading Scale'!E$7,IF(R31<'Grading Scale'!G$9,'Grading Scale'!E$5,'Grading Scale'!E$3))))),IF(R31<'Grading Scale'!G$7,'Grading Scale'!B$13,IF(R31<'Grading Scale'!G$6,'Grading Scale'!B$11,IF(R31<'Grading Scale'!G$5,'Grading Scale'!B$9,IF(R31<'Grading Scale'!G$4,'Grading Scale'!B$7,IF(R31<'Grading Scale'!G$3,'Grading Scale'!B$5,'Grading Scale'!B$3)))))) -> 3 | T31: =Scores!B22 -> 0 | U31: =IF(S31>='Grading Scale'!B$13,IF(S31='Grading Scale'!B$3,'Grading Scale'!C$3,IF(S31='Grading Scale'!B$5,'Grading Scale'!C$5,IF(S31='Grading Scale'!B$7,'Grading Scale'!C$7,IF(S31='Grading Scale'!B$9,'Grading Scale'!C$9,IF(S31='Grading Scale'!B$11,'Grading Scale'!C$11,'Grading Scale'!C$13))))),IF(S31='Grading Scale'!E$3,'Grading Scale'!F$3,IF(S31='Grading Scale'!E$5,'Grading Scale'!F$5,IF(S31='Grading Scale'!E$7,'Grading Scale'!F$7,IF(S31='Grading Scale'!E$9,'Grading Scale'!F$9,IF(S31='Grading Scale'!E$11,'Grading Scale'!F$11,'Grading Scale'!F$13)))))) -> B
A32: =Scores!A23 -> 0 | B32: =Scores!B23 -> 0 | C32: =Scores!C23 -> 0 | D32: =Scores!D23 -> 0 | E32: =Scores!E23 -> 0 | F32: =Scores!F23 -> 0 | G32: =Scores!G23 -> 0 | H32: =Scores!H23 -> 0 | I32: =Scores!I23 -> 0 | J32: =Scores!J23 -> 0 | K32: =Scores!K23 -> 0 | L32: =Scores!L23 -> 0 | M32: =Scores!M23 -> 0 | N32: =Scores!N23 -> 0 | O32: =Scores!O23 -> 0 | P32: -0.7071067812 | Q32: 2.951299423 | R32: 2.951299423 | S32: =IF(R32<'Grading Scale'!G$8,IF(R32<'Grading Scale'!G$13,'Grading Scale'!E$13,IF(R32<'Grading Scale'!G$12,'Grading Scale'!E$11,IF(R32<'Grading Scale'!G$11,'Grading Scale'!E$9,IF(R32<'Grading Scale'!G$10,'Grading Scale'!E$7,IF(R32<'Grading Scale'!G$9,'Grading Scale'!E$5,'Grading Scale'!E$3))))),IF(R32<'Grading Scale'!G$7,'Grading Scale'!B$13,IF(R32<'Grading Scale'!G$6,'Grading Scale'!B$11,IF(R32<'Grading Scale'!G$5,'Grading Scale'!B$9,IF(R32<'Grading Scale'!G$4,'Grading Scale'!B$7,IF(R32<'Grading Scale'!G$3,'Grading Scale'!B$5,'Grading Scale'!B$3)))))) -> 3 | T32: =Scores!B23 -> 0 | U32: =IF(S32>='Grading Scale'!B$13,IF(S32='Grading Scale'!B$3,'Grading Scale'!C$3,IF(S32='Grading Scale'!B$5,'Grading Scale'!C$5,IF(S32='Grading Scale'!B$7,'Grading Scale'!C$7,IF(S32='Grading Scale'!B$9,'Grading Scale'!C$9,IF(S32='Grading Scale'!B$11,'Grading Scale'!C$11,'Grading Scale'!C$13))))),IF(S32='Grading Scale'!E$3,'Grading Scale'!F$3,IF(S32='Grading Scale'!E$5,'Grading Scale'!F$5,IF(S32='Grading Scale'!E$7,'Grading Scale'!F$7,IF(S32='Grading Scale'!E$9,'Grading Scale'!F$9,IF(S32='Grading Scale'!E$11,'Grading Scale'!F$11,'Grading Scale'!F$13)))))) -> B
A33: =Scores!A24 -> 0 | B33: =Scores!B24 -> 0 | C33: =Scores!C24 -> 0 | D33: =Scores!D24 -> 0 | E33: =Scores!E24 -> 0 | F33: =Scores!F24 -> 0 | G33: =Scores!G24 -> 0 | H33: =Scores!H24 -> 0 | I33: =Scores!I24 -> 0 | J33: =Scores!J24 -> 0 | K33: =Scores!K24 -> 0 | L33: =Scores!L24 -> 0 | M33: =Scores!M24 -> 0 | N33: =Scores!N24 -> 0 | O33: =Scores!O24 -> 0 | P33: -0.7071067812 | Q33: 2.951299423 | R33: 2.951299423 | S33: =IF(R33<'Grading Scale'!G$8,IF(R33<'Grading Scale'!G$13,'Grading Scale'!E$13,IF(R33<'Grading Scale'!G$12,'Grading Scale'!E$11,IF(R33<'Grading Scale'!G$11,'Grading Scale'!E$9,IF(R33<'Grading Scale'!G$10,'Grading Scale'!E$7,IF(R33<'Grading Scale'!G$9,'Grading Scale'!E$5,'Grading Scale'!E$3))))),IF(R33<'Grading Scale'!G$7,'Grading Scale'!B$13,IF(R33<'Grading Scale'!G$6,'Grading Scale'!B$11,IF(R33<'Grading Scale'!G$5,'Grading Scale'!B$9,IF(R33<'Grading Scale'!G$4,'Grading Scale'!B$7,IF(R33<'Grading Scale'!G$3,'Grading Scale'!B$5,'Grading Scale'!B$3)))))) -> 3 | T33: =Scores!B24 -> 0 | U33: =IF(S33>='Grading Scale'!B$13,IF(S33='Grading Scale'!B$3,'Grading Scale'!C$3,IF(S33='Grading Scale'!B$5,'Grading Scale'!C$5,IF(S33='Grading Scale'!B$7,'Grading Scale'!C$7,IF(S33='Grading Scale'!B$9,'Grading Scale'!C$9,IF(S33='Grading Scale'!B$11,'Grading Scale'!C$11,'Grading Scale'!C$13))))),IF(S33='Grading Scale'!E$3,'Grading Scale'!F$3,IF(S33='Grading Scale'!E$5,'Grading Scale'!F$5,IF(S33='Grading Scale'!E$7,'Grading Scale'!F$7,IF(S33='Grading Scale'!E$9,'Grading Scale'!F$9,IF(S33='Grading Scale'!E$11,'Grading Scale'!F$11,'Grading Scale'!F$13)))))) -> B
A34: =Scores!A25 -> 0 | B34: =Scores!B25 -> 0 | C34: =Scores!C25 -> 0 | D34: =Scores!D25 -> 0 | E34: =Scores!E25 -> 0 | F34: =Scores!F25 -> 0 | G34: =Scores!G25 -> 0 | H34: =Scores!H25 -> 0 | I34: =Scores!I25 -> 0 | J34: =Scores!J25 -> 0 | K34: =Scores!K25 -> 0 | L34: =Scores!L25 -> 0 | M34: =Scores!M25 -> 0 | N34: =Scores!N25 -> 0 | O34: =Scores!O25 -> 0 | P34: -0.7071067812 | Q34: 2.951299423 | R34: 2.951299423 | S34: =IF(R34<'Grading Scale'!G$8,IF(R34<'Grading Scale'!G$13,'Grading Scale'!E$13,IF(R34<'Grading Scale'!G$12,'Grading Scale'!E$11,IF(R34<'Grading Scale'!G$11,'Grading Scale'!E$9,IF(R34<'Grading Scale'!G$10,'Grading Scale'!E$7,IF(R34<'Grading Scale'!G$9,'Grading Scale'!E$5,'Grading Scale'!E$3))))),IF(R34<'Grading Scale'!G$7,'Grading Scale'!B$13,IF(R34<'Grading Scale'!G$6,'Grading Scale'!B$11,IF(R34<'Grading Scale'!G$5,'Grading Scale'!B$9,IF(R34<'Grading Scale'!G$4,'Grading Scale'!B$7,IF(R34<'Grading Scale'!G$3,'Grading Scale'!B$5,'Grading Scale'!B$3)))))) -> 3 | T34: =Scores!B25 -> 0 | U34: =IF(S34>='Grading Scale'!B$13,IF(S34='Grading Scale'!B$3,'Grading Scale'!C$3,IF(S34='Grading Scale'!B$5,'Grading Scale'!C$5,IF(S34='Grading Scale'!B$7,'Grading Scale'!C$7,IF(S34='Grading Scale'!B$9,'Grading Scale'!C$9,IF(S34='Grading Scale'!B$11,'Grading Scale'!C$11,'Grading Scale'!C$13))))),IF(S34='Grading Scale'!E$3,'Grading Scale'!F$3,IF(S34='Grading Scale'!E$5,'Grading Scale'!F$5,IF(S34='Grading Scale'!E$7,'Grading Scale'!F$7,IF(S34='Grading Scale'!E$9,'Grading Scale'!F$9,IF(S34='Grading Scale'!E$11,'Grading Scale'!F$11,'Grading Scale'!F$13)))))) -> B
A35: =Scores!A26 -> 0 | B35: =Scores!B26 -> 0 | C35: =Scores!C26 -> 0 | D35: =Scores!D26 -> 0 | E35: =Scores!E26 -> 0 | F35: =Scores!F26 -> 0 | G35: =Scores!G26 -> 0 | H35: =Scores!H26 -> 0 | I35: =Scores!I26 -> 0 | J35: =Scores!J26 -> 0 | K35: =Scores!K26 -> 0 | L35: =Scores!L26 -> 0 | M35: =Scores!M26 -> 0 | N35: =Scores!N26 -> 0 | O35: =Scores!O26 -> 0 | P35: -0.7071067812 | Q35: 2.951299423 | R35: 2.951299423 | S35: =IF(R35<'Grading Scale'!G$8,IF(R35<'Grading Scale'!G$13,'Grading Scale'!E$13,IF(R35<'Grading Scale'!G$12,'Grading Scale'!E$11,IF(R35<'Grading Scale'!G$11,'Grading Scale'!E$9,IF(R35<'Grading Scale'!G$10,'Grading Scale'!E$7,IF(R35<'Grading Scale'!G$9,'Grading Scale'!E$5,'Grading Scale'!E$3))))),IF(R35<'Grading Scale'!G$7,'Grading Scale'!B$13,IF(R35<'Grading Scale'!G$6,'Grading Scale'!B$11,IF(R35<'Grading Scale'!G$5,'Grading Scale'!B$9,IF(R35<'Grading Scale'!G$4,'Grading Scale'!B$7,IF(R35<'Grading Scale'!G$3,'Grading Scale'!B$5,'Grading Scale'!B$3)))))) -> 3 | T35: =Scores!B26 -> 0 | U35: =IF(S35>='Grading Scale'!B$13,IF(S35='Grading Scale'!B$3,'Grading Scale'!C$3,IF(S35='Grading Scale'!B$5,'Grading Scale'!C$5,IF(S35='Grading Scale'!B$7,'Grading Scale'!C$7,IF(S35='Grading Scale'!B$9,'Grading Scale'!C$9,IF(S35='Grading Scale'!B$11,'Grading Scale'!C$11,'Grading Scale'!C$13))))),IF(S35='Grading Scale'!E$3,'Grading Scale'!F$3,IF(S35='Grading Scale'!E$5,'Grading Scale'!F$5,IF(S35='Grading Scale'!E$7,'Grading Scale'!F$7,IF(S35='Grading Scale'!E$9,'Grading Scale'!F$9,IF(S35='Grading Scale'!E$11,'Grading Scale'!F$11,'Grading Scale'!F$13)))))) -> B
A36: =Scores!A27 -> 0 | B36: =Scores!B27 -> 0 | C36: =Scores!C27 -> 0 | D36: =Scores!D27 -> 0 | E36: =Scores!E27 -> 0 | F36: =Scores!F27 -> 0 | G36: =Scores!G27 -> 0 | H36: =Scores!H27 -> 0 | I36: =Scores!I27 -> 0 | J36: =Scores!J27 -> 0 | K36: =Scores!K27 -> 0 | L36: =Scores!L27 -> 0 | M36: =Scores!M27 -> 0 | N36: =Scores!N27 -> 0 | O36: =Scores!O27 -> 0 | P36: -0.7071067812 | Q36: 2.951299423 | R36: 2.951299423 | S36: =IF(R36<'Grading Scale'!G$8,IF(R36<'Grading Scale'!G$13,'Grading Scale'!E$13,IF(R36<'Grading Scale'!G$12,'Grading Scale'!E$11,IF(R36<'Grading Scale'!G$11,'Grading Scale'!E$9,IF(R36<'Grading Scale'!G$10,'Grading Scale'!E$7,IF(R36<'Grading Scale'!G$9,'Grading Scale'!E$5,'Grading Scale'!E$3))))),IF(R36<'Grading Scale'!G$7,'Grading Scale'!B$13,IF(R36<'Grading Scale'!G$6,'Grading Scale'!B$11,IF(R36<'Grading Scale'!G$5,'Grading Scale'!B$9,IF(R36<'Grading Scale'!G$4,'Grading Scale'!B$7,IF(R36<'Grading Scale'!G$3,'Grading Scale'!B$5,'Grading Scale'!B$3)))))) -> 3 | T36: =Scores!B27 -> 0 | U36: =IF(S36>='Grading Scale'!B$13,IF(S36='Grading Scale'!B$3,'Grading Scale'!C$3,IF(S36='Grading Scale'!B$5,'Grading Scale'!C$5,IF(S36='Grading Scale'!B$7,'Grading Scale'!C$7,IF(S36='Grading Scale'!B$9,'Grading Scale'!C$9,IF(S36='Grading Scale'!B$11,'Grading Scale'!C$11,'Grading Scale'!C$13))))),IF(S36='Grading Scale'!E$3,'Grading Scale'!F$3,IF(S36='Grading Scale'!E$5,'Grading Scale'!F$5,IF(S36='Grading Scale'!E$7,'Grading Scale'!F$7,IF(S36='Grading Scale'!E$9,'Grading Scale'!F$9,IF(S36='Grading Scale'!E$11,'Grading Scale'!F$11,'Grading Scale'!F$13)))))) -> B
A37: =Scores!A28 -> 0 | B37: =Scores!B28 -> 0 | C37: =Scores!C28 -> 0 | D37: =Scores!D28 -> 0 | E37: =Scores!E28 -> 0 | F37: =Scores!F28 -> 0 | G37: =Scores!G28 -> 0 | H37: =Scores!H28 -> 0 | I37: =Scores!I28 -> 0 | J37: =Scores!J28 -> 0 | K37: =Scores!K28 -> 0 | L37: =Scores!L28 -> 0 | M37: =Scores!M28 -> 0 | N37: =Scores!N28 -> 0 | O37: =Scores!O28 -> 0 | P37: -0.7071067812 | Q37: 2.951299423 | R37: 2.951299423 | S37: =IF(R37<'Grading Scale'!G$8,IF(R37<'Grading Scale'!G$13,'Grading Scale'!E$13,IF(R37<'Grading Scale'!G$12,'Grading Scale'!E$11,IF(R37<'Grading Scale'!G$11,'Grading Scale'!E$9,IF(R37<'Grading Scale'!G$10,'Grading Scale'!E$7,IF(R37<'Grading Scale'!G$9,'Grading Scale'!E$5,'Grading Scale'!E$3))))),IF(R37<'Grading Scale'!G$7,'Grading Scale'!B$13,IF(R37<'Grading Scale'!G$6,'Grading Scale'!B$11,IF(R37<'Grading Scale'!G$5,'Grading Scale'!B$9,IF(R37<'Grading Scale'!G$4,'Grading Scale'!B$7,IF(R37<'Grading Scale'!G$3,'Grading Scale'!B$5,'Grading Scale'!B$3)))))) -> 3 | T37: =Scores!B28 -> 0 | U37: =IF(S37>='Grading Scale'!B$13,IF(S37='Grading Scale'!B$3,'Grading Scale'!C$3,IF(S37='Grading Scale'!B$5,'Grading Scale'!C$5,IF(S37='Grading Scale'!B$7,'Grading Scale'!C$7,IF(S37='Grading Scale'!B$9,'Grading Scale'!C$9,IF(S37='Grading Scale'!B$11,'Grading Scale'!C$11,'Grading Scale'!C$13))))),IF(S37='Grading Scale'!E$3,'Grading Scale'!F$3,IF(S37='Grading Scale'!E$5,'Grading Scale'!F$5,IF(S37='Grading Scale'!E$7,'Grading Scale'!F$7,IF(S37='Grading Scale'!E$9,'Grading Scale'!F$9,IF(S37='Grading Scale'!E$11,'Grading Scale'!F$11,'Grading Scale'!F$13)))))) -> B
A38: =Scores!A29 -> 0 | B38: =Scores!B29 -> 0 | C38: =Scores!C29 -> 0 | D38: =Scores!D29 -> 0 | E38: =Scores!E29 -> 0 | F38: =Scores!F29 -> 0 | G38: =Scores!G29 -> 0 | H38: =Scores!H29 -> 0 | I38: =Scores!I29 -> 0 | J38: =Scores!J29 -> 0 | K38: =Scores!K29 -> 0 | L38: =Scores!L29 -> 0 | M38: =Scores!M29 -> 0 | N38: =Scores!N29 -> 0 | O38: =Scores!O29 -> 0 | P38: -0.7071067812 | Q38: 2.951299423 | R38: 2.951299423 | S38: =IF(R38<'Grading Scale'!G$8,IF(R38<'Grading Scale'!G$13,'Grading Scale'!E$13,IF(R38<'Grading Scale'!G$12,'Grading Scale'!E$11,IF(R38<'Grading Scale'!G$11,'Grading Scale'!E$9,IF(R38<'Grading Scale'!G$10,'Grading Scale'!E$7,IF(R38<'Grading Scale'!G$9,'Grading Scale'!E$5,'Grading Scale'!E$3))))),IF(R38<'Grading Scale'!G$7,'Grading Scale'!B$13,IF(R38<'Grading Scale'!G$6,'Grading Scale'!B$11,IF(R38<'Grading Scale'!G$5,'Grading Scale'!B$9,IF(R38<'Grading Scale'!G$4,'Grading Scale'!B$7,IF(R38<'Grading Scale'!G$3,'Grading Scale'!B$5,'Grading Scale'!B$3)))))) -> 3 | T38: =Scores!B29 -> 0 | U38: =IF(S38>='Grading Scale'!B$13,IF(S38='Grading Scale'!B$3,'Grading Scale'!C$3,IF(S38='Grading Scale'!B$5,'Grading Scale'!C$5,IF(S38='Grading Scale'!B$7,'Grading Scale'!C$7,IF(S38='Grading Scale'!B$9,'Grading Scale'!C$9,IF(S38='Grading Scale'!B$11,'Grading Scale'!C$11,'Grading Scale'!C$13))))),IF(S38='Grading Scale'!E$3,'Grading Scale'!F$3,IF(S38='Grading Scale'!E$5,'Grading Scale'!F$5,IF(S38='Grading Scale'!E$7,'Grading Scale'!F$7,IF(S38='Grading Scale'!E$9,'Grading Scale'!F$9,IF(S38='Grading Scale'!E$11,'Grading Scale'!F$11,'Grading Scale'!F$13)))))) -> B
A39: =Scores!A30 -> 0 | B39: =Scores!B30 -> 0 | C39: =Scores!C30 -> 0 | D39: =Scores!D30 -> 0 | E39: =Scores!E30 -> 0 | F39: =Scores!F30 -> 0 | G39: =Scores!G30 -> 0 | H39: =Scores!H30 -> 0 | I39: =Scores!I30 -> 0 | J39: =Scores!J30 -> 0 | K39: =Scores!K30 -> 0 | L39: =Scores!L30 -> 0 | M39: =Scores!M30 -> 0 | N39: =Scores!N30 -> 0 | O39: =Scores!O30 -> 0 | P39: -0.7071067812 | Q39: 2.951299423 | R39: 2.951299423 | S39: =IF(R39<'Grading Scale'!G$8,IF(R39<'Grading Scale'!G$13,'Grading Scale'!E$13,IF(R39<'Grading Scale'!G$12,'Grading Scale'!E$11,IF(R39<'Grading Scale'!G$11,'Grading Scale'!E$9,IF(R39<'Grading Scale'!G$10,'Grading Scale'!E$7,IF(R39<'Grading Scale'!G$9,'Grading Scale'!E$5,'Grading Scale'!E$3))))),IF(R39<'Grading Scale'!G$7,'Grading Scale'!B$13,IF(R39<'Grading Scale'!G$6,'Grading Scale'!B$11,IF(R39<'Grading Scale'!G$5,'Grading Scale'!B$9,IF(R39<'Grading Scale'!G$4,'Grading Scale'!B$7,IF(R39<'Grading Scale'!G$3,'Grading Scale'!B$5,'Grading Scale'!B$3)))))) -> 3 | T39: =Scores!B30 -> 0 | U39: =IF(S39>='Grading Scale'!B$13,IF(S39='Grading Scale'!B$3,'Grading Scale'!C$3,IF(S39='Grading Scale'!B$5,'Grading Scale'!C$5,IF(S39='Grading Scale'!B$7,'Grading Scale'!C$7,IF(S39='Grading Scale'!B$9,'Grading Scale'!C$9,IF(S39='Grading Scale'!B$11,'Grading Scale'!C$11,'Grading Scale'!C$13))))),IF(S39='Grading Scale'!E$3,'Grading Scale'!F$3,IF(S39='Grading Scale'!E$5,'Grading Scale'!F$5,IF(S39='Grading Scale'!E$7,'Grading Scale'!F$7,IF(S39='Grading Scale'!E$9,'Grading Scale'!F$9,IF(S39='Grading Scale'!E$11,'Grading Scale'!F$11,'Grading Scale'!F$13)))))) -> B
A40: =Scores!A31 -> 0 | B40: =Scores!B31 -> 0 | C40: =Scores!C31 -> 0 | D40: =Scores!D31 -> 0 | E40: =Scores!E31 -> 0 | F40: =Scores!F31 -> 0 | G40: =Scores!G31 -> 0 | H40: =Scores!H31 -> 0 | I40: =Scores!I31 -> 0 | J40: =Scores!J31 -> 0 | K40: =Scores!K31 -> 0 | L40: =Scores!L31 -> 0 | M40: =Scores!M31 -> 0 | N40: =Scores!N31 -> 0 | O40: =Scores!O31 -> 0 | P40: -0.7071067812 | Q40: 2.951299423 | R40: 2.951299423 | S40: =IF(R40<'Grading Scale'!G$8,IF(R40<'Grading Scale'!G$13,'Grading Scale'!E$13,IF(R40<'Grading Scale'!G$12,'Grading Scale'!E$11,IF(R40<'Grading Scale'!G$11,'Grading Scale'!E$9,IF(R40<'Grading Scale'!G$10,'Grading Scale'!E$7,IF(R40<'Grading Scale'!G$9,'Grading Scale'!E$5,'Grading Scale'!E$3))))),IF(R40<'Grading Scale'!G$7,'Grading Scale'!B$13,IF(R40<'Grading Scale'!G$6,'Grading Scale'!B$11,IF(R40<'Grading Scale'!G$5,'Grading Scale'!B$9,IF(R40<'Grading Scale'!G$4,'Grading Scale'!B$7,IF(R40<'Grading Scale'!G$3,'Grading Scale'!B$5,'Grading Scale'!B$3)))))) -> 3 | T40: =Scores!B31 -> 0 | U40: =IF(S40>='Grading Scale'!B$13,IF(S40='Grading Scale'!B$3,'Grading Scale'!C$3,IF(S40='Grading Scale'!B$5,'Grading Scale'!C$5,IF(S40='Grading Scale'!B$7,'Grading Scale'!C$7,IF(S40='Grading Scale'!B$9,'Grading Scale'!C$9,IF(S40='Grading Scale'!B$11,'Grading Scale'!C$11,'Grading Scale'!C$13))))),IF(S40='Grading Scale'!E$3,'Grading Scale'!F$3,IF(S40='Grading Scale'!E$5,'Grading Scale'!F$5,IF(S40='Grading Scale'!E$7,'Grading Scale'!F$7,IF(S40='Grading Scale'!E$9,'Grading Scale'!F$9,IF(S40='Grading Scale'!E$11,'Grading Scale'!F$11,'Grading Scale'!F$13)))))) -> B
A41: =Scores!A32 -> 0 | B41: =Scores!B32 -> 0 | C41: =Scores!C32 -> 0 | D41: =Scores!D32 -> 0 | E41: =Scores!E32 -> 0 | F41: =Scores!F32 -> 0 | G41: =Scores!G32 -> 0 | H41: =Scores!H32 -> 0 | I41: =Scores!I32 -> 0 | J41: =Scores!J32 -> 0 | K41: =Scores!K32 -> 0 | L41: =Scores!L32 -> 0 | M41: =Scores!M32 -> 0 | N41: =Scores!N32 -> 0 | O41: =Scores!O32 -> 0 | P41: -0.7071067812 | Q41: 2.951299423 | R41: 2.951299423 | S41: =IF(R41<'Grading Scale'!G$8,IF(R41<'Grading Scale'!G$13,'Grading Scale'!E$13,IF(R41<'Grading Scale'!G$12,'Grading Scale'!E$11,IF(R41<'Grading Scale'!G$11,'Grading Scale'!E$9,IF(R41<'Grading Scale'!G$10,'Grading Scale'!E$7,IF(R41<'Grading Scale'!G$9,'Grading Scale'!E$5,'Grading Scale'!E$3))))),IF(R41<'Grading Scale'!G$7,'Grading Scale'!B$13,IF(R41<'Grading Scale'!G$6,'Grading Scale'!B$11,IF(R41<'Grading Scale'!G$5,'Grading Scale'!B$9,IF(R41<'Grading Scale'!G$4,'Grading Scale'!B$7,IF(R41<'Grading Scale'!G$3,'Grading Scale'!B$5,'Grading Scale'!B$3)))))) -> 3 | T41: =Scores!B32 -> 0 | U41: =IF(S41>='Grading Scale'!B$13,IF(S41='Grading Scale'!B$3,'Grading Scale'!C$3,IF(S41='Grading Scale'!B$5,'Grading Scale'!C$5,IF(S41='Grading Scale'!B$7,'Grading Scale'!C$7,IF(S41='Grading Scale'!B$9,'Grading Scale'!C$9,IF(S41='Grading Scale'!B$11,'Grading Scale'!C$11,'Grading Scale'!C$13))))),IF(S41='Grading Scale'!E$3,'Grading Scale'!F$3,IF(S41='Grading Scale'!E$5,'Grading Scale'!F$5,IF(S41='Grading Scale'!E$7,'Grading Scale'!F$7,IF(S41='Grading Scale'!E$9,'Grading Scale'!F$9,IF(S41='Grading Scale'!E$11,'Grading Scale'!F$11,'Grading Scale'!F$13)))))) -> B
A42: =Scores!A33 -> 0 | B42: =Scores!B33 -> 0 | C42: =Scores!C33 -> 0 | D42: =Scores!D33 -> 0 | E42: =Scores!E33 -> 0 | F42: =Scores!F33 -> 0 | G42: =Scores!G33 -> 0 | H42: =Scores!H33 -> 0 | I42: =Scores!I33 -> 0 | J42: =Scores!J33 -> 0 | K42: =Scores!K33 -> 0 | L42: =Scores!L33 -> 0 | M42: =Scores!M33 -> 0 | N42: =Scores!N33 -> 0 | O42: =Scores!O33 -> 0 | P42: -0.7071067812 | Q42: 2.951299423 | R42: 2.951299423 | S42: =IF(R42<'Grading Scale'!G$8,IF(R42<'Grading Scale'!G$13,'Grading Scale'!E$13,IF(R42<'Grading Scale'!G$12,'Grading Scale'!E$11,IF(R42<'Grading Scale'!G$11,'Grading Scale'!E$9,IF(R42<'Grading Scale'!G$10,'Grading Scale'!E$7,IF(R42<'Grading Scale'!G$9,'Grading Scale'!E$5,'Grading Scale'!E$3))))),IF(R42<'Grading Scale'!G$7,'Grading Scale'!B$13,IF(R42<'Grading Scale'!G$6,'Grading Scale'!B$11,IF(R42<'Grading Scale'!G$5,'Grading Scale'!B$9,IF(R42<'Grading Scale'!G$4,'Grading Scale'!B$7,IF(R42<'Grading Scale'!G$3,'Grading Scale'!B$5,'Grading Scale'!B$3)))))) -> 3 | T42: =Scores!B33 -> 0 | U42: =IF(S42>='Grading Scale'!B$13,IF(S42='Grading Scale'!B$3,'Grading Scale'!C$3,IF(S42='Grading Scale'!B$5,'Grading Scale'!C$5,IF(S42='Grading Scale'!B$7,'Grading Scale'!C$7,IF(S42='Grading Scale'!B$9,'Grading Scale'!C$9,IF(S42='Grading Scale'!B$11,'Grading Scale'!C$11,'Grading Scale'!C$13))))),IF(S42='Grading Scale'!E$3,'Grading Scale'!F$3,IF(S42='Grading Scale'!E$5,'Grading Scale'!F$5,IF(S42='Grading Scale'!E$7,'Grading Scale'!F$7,IF(S42='Grading Scale'!E$9,'Grading Scale'!F$9,IF(S42='Grading Scale'!E$11,'Grading Scale'!F$11,'Grading Scale'!F$13)))))) -> B
A43: =Scores!A34 -> 0 | B43: =Scores!B34 -> 0 | C43: =Scores!C34 -> 0 | D43: =Scores!D34 -> 0 | E43: =Scores!E34 -> 0 | F43: =Scores!F34 -> 0 | G43: =Scores!G34 -> 0 | H43: =Scores!H34 -> 0 | I43: =Scores!I34 -> 0 | J43: =Scores!J34 -> 0 | K43: =Scores!K34 -> 0 | L43: =Scores!L34 -> 0 | M43: =Scores!M34 -> 0 | N43: =Scores!N34 -> 0 | O43: =Scores!O34 -> 0 | P43: -0.7071067812 | Q43: 2.951299423 | R43: 2.951299423 | S43: =IF(R43<'Grading Scale'!G$8,IF(R43<'Grading Scale'!G$13,'Grading Scale'!E$13,IF(R43<'Grading Scale'!G$12,'Grading Scale'!E$11,IF(R43<'Grading Scale'!G$11,'Grading Scale'!E$9,IF(R43<'Grading Scale'!G$10,'Grading Scale'!E$7,IF(R43<'Grading Scale'!G$9,'Grading Scale'!E$5,'Grading Scale'!E$3))))),IF(R43<'Grading Scale'!G$7,'Grading Scale'!B$13,IF(R43<'Grading Scale'!G$6,'Grading Scale'!B$11,IF(R43<'Grading Scale'!G$5,'Grading Scale'!B$9,IF(R43<'Grading Scale'!G$4,'Grading Scale'!B$7,IF(R43<'Grading Scale'!G$3,'Grading Scale'!B$5,'Grading Scale'!B$3)))))) -> 3 | T43: =Scores!B34 -> 0 | U43: =IF(S43>='Grading Scale'!B$13,IF(S43='Grading Scale'!B$3,'Grading Scale'!C$3,IF(S43='Grading Scale'!B$5,'Grading Scale'!C$5,IF(S43='Grading Scale'!B$7,'Grading Scale'!C$7,IF(S43='Grading Scale'!B$9,'Grading Scale'!C$9,IF(S43='Grading Scale'!B$11,'Grading Scale'!C$11,'Grading Scale'!C$13))))),IF(S43='Grading Scale'!E$3,'Grading Scale'!F$3,IF(S43='Grading Scale'!E$5,'Grading Scale'!F$5,IF(S43='Grading Scale'!E$7,'Grading Scale'!F$7,IF(S43='Grading Scale'!E$9,'Grading Scale'!F$9,IF(S43='Grading Scale'!E$11,'Grading Scale'!F$11,'Grading Scale'!F$13)))))) -> B
A44: =Scores!A35 -> 0 | B44: =Scores!B35 -> 0 | C44: =Scores!C35 -> 0 | D44: =Scores!D35 -> 0 | E44: =Scores!E35 -> 0 | F44: =Scores!F35 -> 0 | G44: =Scores!G35 -> 0 | H44: =Scores!H35 -> 0 | I44: =Scores!I35 -> 0 | J44: =Scores!J35 -> 0 | K44: =Scores!K35 -> 0 | L44: =Scores!L35 -> 0 | M44: =Scores!M35 -> 0 | N44: =Scores!N35 -> 0 | O44: =Scores!O35 -> 0 | P44: -0.7071067812 | Q44: 2.951299423 | R44: 2.951299423 | S44: =IF(R44<'Grading Scale'!G$8,IF(R44<'Grading Scale'!G$13,'Grading Scale'!E$13,IF(R44<'Grading Scale'!G$12,'Grading Scale'!E$11,IF(R44<'Grading Scale'!G$11,'Grading Scale'!E$9,IF(R44<'Grading Scale'!G$10,'Grading Scale'!E$7,IF(R44<'Grading Scale'!G$9,'Grading Scale'!E$5,'Grading Scale'!E$3))))),IF(R44<'Grading Scale'!G$7,'Grading Scale'!B$13,IF(R44<'Grading Scale'!G$6,'Grading Scale'!B$11,IF(R44<'Grading Scale'!G$5,'Grading Scale'!B$9,IF(R44<'Grading Scale'!G$4,'Grading Scale'!B$7,IF(R44<'Grading Scale'!G$3,'Grading Scale'!B$5,'Grading Scale'!B$3)))))) -> 3 | T44: =Scores!B35 -> 0 | U44: =IF(S44>='Grading Scale'!B$13,IF(S44='Grading Scale'!B$3,'Grading Scale'!C$3,IF(S44='Grading Scale'!B$5,'Grading Scale'!C$5,IF(S44='Grading Scale'!B$7,'Grading Scale'!C$7,IF(S44='Grading Scale'!B$9,'Grading Scale'!C$9,IF(S44='Grading Scale'!B$11,'Grading Scale'!C$11,'Grading Scale'!C$13))))),IF(S44='Grading Scale'!E$3,'Grading Scale'!F$3,IF(S44='Grading Scale'!E$5,'Grading Scale'!F$5,IF(S44='Grading Scale'!E$7,'Grading Scale'!F$7,IF(S44='Grading Scale'!E$9,'Grading Scale'!F$9,IF(S44='Grading Scale'!E$11,'Grading Scale'!F$11,'Grading Scale'!F$13)))))) -> B
A45: =Scores!A36 -> 0 | B45: =Scores!B36 -> 0 | C45: =Scores!C36 -> 0 | D45: =Scores!D36 -> 0 | E45: =Scores!E36 -> 0 | F45: =Scores!F36 -> 0 | G45: =Scores!G36 -> 0 | H45: =Scores!H36 -> 0 | I45: =Scores!I36 -> 0 | J45: =Scores!J36 -> 0 | K45: =Scores!K36 -> 0 | L45: =Scores!L36 -> 0 | M45: =Scores!M36 -> 0 | N45: =Scores!N36 -> 0 | O45: =Scores!O36 -> 0 | P45: -0.7071067812 | Q45: 2.951299423 | R45: 2.951299423 | S45: =IF(R45<'Grading Scale'!G$8,IF(R45<'Grading Scale'!G$13,'Grading Scale'!E$13,IF(R45<'Grading Scale'!G$12,'Grading Scale'!E$11,IF(R45<'Grading Scale'!G$11,'Grading Scale'!E$9,IF(R45<'Grading Scale'!G$10,'Grading Scale'!E$7,IF(R45<'Grading Scale'!G$9,'Grading Scale'!E$5,'Grading Scale'!E$3))))),IF(R45<'Grading Scale'!G$7,'Grading Scale'!B$13,IF(R45<'Grading Scale'!G$6,'Grading Scale'!B$11,IF(R45<'Grading Scale'!G$5,'Grading Scale'!B$9,IF(R45<'Grading Scale'!G$4,'Grading Scale'!B$7,IF(R45<'Grading Scale'!G$3,'Grading Scale'!B$5,'Grading Scale'!B$3)))))) -> 3 | T45: =Scores!B36 -> 0 | U45: =IF(S45>='Grading Scale'!B$13,IF(S45='Grading Scale'!B$3,'Grading Scale'!C$3,IF(S45='Grading Scale'!B$5,'Grading Scale'!C$5,IF(S45='Grading Scale'!B$7,'Grading Scale'!C$7,IF(S45='Grading Scale'!B$9,'Grading Scale'!C$9,IF(S45='Grading Scale'!B$11,'Grading Scale'!C$11,'Grading Scale'!C$13))))),IF(S45='Grading Scale'!E$3,'Grading Scale'!F$3,IF(S45='Grading Scale'!E$5,'Grading Scale'!F$5,IF(S45='Grading Scale'!E$7,'Grading Scale'!F$7,IF(S45='Grading Scale'!E$9,'Grading Scale'!F$9,IF(S45='Grading Scale'!E$11,'Grading Scale'!F$11,'Grading Scale'!F$13)))))) -> B
A46: =Scores!A37 -> 0 | B46: =Scores!B37 -> 0 | C46: =Scores!C37 -> 0 | D46: =Scores!D37 -> 0 | E46: =Scores!E37 -> 0 | F46: =Scores!F37 -> 0 | G46: =Scores!G37 -> 0 | H46: =Scores!H37 -> 0 | I46: =Scores!I37 -> 0 | J46: =Scores!J37 -> 0 | K46: =Scores!K37 -> 0 | L46: =Scores!L37 -> 0 | M46: =Scores!M37 -> 0 | N46: =Scores!N37 -> 0 | O46: =Scores!O37 -> 0 | P46: -0.7071067812 | Q46: 2.951299423 | R46: 2.951299423 | S46: =IF(R46<'Grading Scale'!G$8,IF(R46<'Grading Scale'!G$13,'Grading Scale'!E$13,IF(R46<'Grading Scale'!G$12,'Grading Scale'!E$11,IF(R46<'Grading Scale'!G$11,'Grading Scale'!E$9,IF(R46<'Grading Scale'!G$10,'Grading Scale'!E$7,IF(R46<'Grading Scale'!G$9,'Grading Scale'!E$5,'Grading Scale'!E$3))))),IF(R46<'Grading Scale'!G$7,'Grading Scale'!B$13,IF(R46<'Grading Scale'!G$6,'Grading Scale'!B$11,IF(R46<'Grading Scale'!G$5,'Grading Scale'!B$9,IF(R46<'Grading Scale'!G$4,'Grading Scale'!B$7,IF(R46<'Grading Scale'!G$3,'Grading Scale'!B$5,'Grading Scale'!B$3)))))) -> 3 | T46: =Scores!B37 -> 0 | U46: =IF(S46>='Grading Scale'!B$13,IF(S46='Grading Scale'!B$3,'Grading Scale'!C$3,IF(S46='Grading Scale'!B$5,'Grading Scale'!C$5,IF(S46='Grading Scale'!B$7,'Grading Scale'!C$7,IF(S46='Grading Scale'!B$9,'Grading Scale'!C$9,IF(S46='Grading Scale'!B$11,'Grading Scale'!C$11,'Grading Scale'!C$13))))),IF(S46='Grading Scale'!E$3,'Grading Scale'!F$3,IF(S46='Grading Scale'!E$5,'Grading Scale'!F$5,IF(S46='Grading Scale'!E$7,'Grading Scale'!F$7,IF(S46='Grading Scale'!E$9,'Grading Scale'!F$9,IF(S46='Grading Scale'!E$11,'Grading Scale'!F$11,'Grading Scale'!F$13)))))) -> B
A47: =Scores!A38 -> 0 | B47: =Scores!B38 -> 0 | C47: =Scores!C38 -> 0 | D47: =Scores!D38 -> 0 | E47: =Scores!E38 -> 0 | F47: =Scores!F38 -> 0 | G47: =Scores!G38 -> 0 | H47: =Scores!H38 -> 0 | I47: =Scores!I38 -> 0 | J47: =Scores!J38 -> 0 | K47: =Scores!K38 -> 0 | L47: =Scores!L38 -> 0 | M47: =Scores!M38 -> 0 | N47: =Scores!N38 -> 0 | O47: =Scores!O38 -> 0 | P47: -0.7071067812 | Q47: 2.951299423 | R47: 2.951299423 | S47: =IF(R47<'Grading Scale'!G$8,IF(R47<'Grading Scale'!G$13,'Grading Scale'!E$13,IF(R47<'Grading Scale'!G$12,'Grading Scale'!E$11,IF(R47<'Grading Scale'!G$11,'Grading Scale'!E$9,IF(R47<'Grading Scale'!G$10,'Grading Scale'!E$7,IF(R47<'Grading Scale'!G$9,'Grading Scale'!E$5,'Grading Scale'!E$3))))),IF(R47<'Grading Scale'!G$7,'Grading Scale'!B$13,IF(R47<'Grading Scale'!G$6,'Grading Scale'!B$11,IF(R47<'Grading Scale'!G$5,'Grading Scale'!B$9,IF(R47<'Grading Scale'!G$4,'Grading Scale'!B$7,IF(R47<'Grading Scale'!G$3,'Grading Scale'!B$5,'Grading Scale'!B$3)))))) -> 3 | T47: =Scores!B38 -> 0 | U47: =IF(S47>='Grading Scale'!B$13,IF(S47='Grading Scale'!B$3,'Grading Scale'!C$3,IF(S47='Grading Scale'!B$5,'Grading Scale'!C$5,IF(S47='Grading Scale'!B$7,'Grading Scale'!C$7,IF(S47='Grading Scale'!B$9,'Grading Scale'!C$9,IF(S47='Grading Scale'!B$11,'Grading Scale'!C$11,'Grading Scale'!C$13))))),IF(S47='Grading Scale'!E$3,'Grading Scale'!F$3,IF(S47='Grading Scale'!E$5,'Grading Scale'!F$5,IF(S47='Grading Scale'!E$7,'Grading Scale'!F$7,IF(S47='Grading Scale'!E$9,'Grading Scale'!F$9,IF(S47='Grading Scale'!E$11,'Grading Scale'!F$11,'Grading Scale'!F$13)))))) -> B
A48: =Scores!A39 -> 0 | B48: =Scores!B39 -> 0 | C48: =Scores!C39 -> 0 | D48: =Scores!D39 -> 0 | E48: =Scores!E39 -> 0 | F48: =Scores!F39 -> 0 | G48: =Scores!G39 -> 0 | H48: =Scores!H39 -> 0 | I48: =Scores!I39 -> 0 | J48: =Scores!J39 -> 0 | K48: =Scores!K39 -> 0 | L48: =Scores!L39 -> 0 | M48: =Scores!M39 -> 0 | N48: =Scores!N39 -> 0 | O48: =Scores!O39 -> 0 | P48: -0.7071067812 | Q48: 2.951299423 | R48: 2.951299423 | S48: =IF(R48<'Grading Scale'!G$8,IF(R48<'Grading Scale'!G$13,'Grading Scale'!E$13,IF(R48<'Grading Scale'!G$12,'Grading Scale'!E$11,IF(R48<'Grading Scale'!G$11,'Grading Scale'!E$9,IF(R48<'Grading Scale'!G$10,'Grading Scale'!E$7,IF(R48<'Grading Scale'!G$9,'Grading Scale'!E$5,'Grading Scale'!E$3))))),IF(R48<'Grading Scale'!G$7,'Grading Scale'!B$13,IF(R48<'Grading Scale'!G$6,'Grading Scale'!B$11,IF(R48<'Grading Scale'!G$5,'Grading Scale'!B$9,IF(R48<'Grading Scale'!G$4,'Grading Scale'!B$7,IF(R48<'Grading Scale'!G$3,'Grading Scale'!B$5,'Grading Scale'!B$3)))))) -> 3 | T48: =Scores!B39 -> 0 | U48: =IF(S48>='Grading Scale'!B$13,IF(S48='Grading Scale'!B$3,'Grading Scale'!C$3,IF(S48='Grading Scale'!B$5,'Grading Scale'!C$5,IF(S48='Grading Scale'!B$7,'Grading Scale'!C$7,IF(S48='Grading Scale'!B$9,'Grading Scale'!C$9,IF(S48='Grading Scale'!B$11,'Grading Scale'!C$11,'Grading Scale'!C$13))))),IF(S48='Grading Scale'!E$3,'Grading Scale'!F$3,IF(S48='Grading Scale'!E$5,'Grading Scale'!F$5,IF(S48='Grading Scale'!E$7,'Grading Scale'!F$7,IF(S48='Grading Scale'!E$9,'Grading Scale'!F$9,IF(S48='Grading Scale'!E$11,'Grading Scale'!F$11,'Grading Scale'!F$13)))))) -> B
A49: =Scores!A40 -> 0 | B49: =Scores!B40 -> 0 | C49: =Scores!C40 -> 0 | D49: =Scores!D40 -> 0 | E49: =Scores!E40 -> 0 | F49: =Scores!F40 -> 0 | G49: =Scores!G40 -> 0 | H49: =Scores!H40 -> 0 | I49: =Scores!I40 -> 0 | J49: =Scores!J40 -> 0 | K49: =Scores!K40 -> 0 | L49: =Scores!L40 -> 0 | M49: =Scores!M40 -> 0 | N49: =Scores!N40 -> 0 | O49: =Scores!O40 -> 0 | P49: -0.7071067812 | Q49: 2.951299423 | R49: 2.951299423 | S49: =IF(R49<'Grading Scale'!G$8,IF(R49<'Grading Scale'!G$13,'Grading Scale'!E$13,IF(R49<'Grading Scale'!G$12,'Grading Scale'!E$11,IF(R49<'Grading Scale'!G$11,'Grading Scale'!E$9,IF(R49<'Grading Scale'!G$10,'Grading Scale'!E$7,IF(R49<'Grading Scale'!G$9,'Grading Scale'!E$5,'Grading Scale'!E$3))))),IF(R49<'Grading Scale'!G$7,'Grading Scale'!B$13,IF(R49<'Grading Scale'!G$6,'Grading Scale'!B$11,IF(R49<'Grading Scale'!G$5,'Grading Scale'!B$9,IF(R49<'Grading Scale'!G$4,'Grading Scale'!B$7,IF(R49<'Grading Scale'!G$3,'Grading Scale'!B$5,'Grading Scale'!B$3)))))) -> 3 | T49: =Scores!B40 -> 0 | U49: =IF(S49>='Grading Scale'!B$13,IF(S49='Grading Scale'!B$3,'Grading Scale'!C$3,IF(S49='Grading Scale'!B$5,'Grading Scale'!C$5,IF(S49='Grading Scale'!B$7,'Grading Scale'!C$7,IF(S49='Grading Scale'!B$9,'Grading Scale'!C$9,IF(S49='Grading Scale'!B$11,'Grading Scale'!C$11,'Grading Scale'!C$13))))),IF(S49='Grading Scale'!E$3,'Grading Scale'!F$3,IF(S49='Grading Scale'!E$5,'Grading Scale'!F$5,IF(S49='Grading Scale'!E$7,'Grading Scale'!F$7,IF(S49='Grading Scale'!E$9,'Grading Scale'!F$9,IF(S49='Grading Scale'!E$11,'Grading Scale'!F$11,'Grading Scale'!F$13)))))) -> B
A50: =Scores!A41 -> 0 | B50: =Scores!B41 -> 0 | C50: =Scores!C41 -> 0 | D50: =Scores!D41 -> 0 | E50: =Scores!E41 -> 0 | F50: =Scores!F41 -> 0 | G50: =Scores!G41 -> 0 | H50: =Scores!H41 -> 0 | I50: =Scores!I41 -> 0 | J50: =Scores!J41 -> 0 | K50: =Scores!K41 -> 0 | L50: =Scores!L41 -> 0 | M50: =Scores!M41 -> 0 | N50: =Scores!N41 -> 0 | O50: =Scores!O41 -> 0 | P50: -0.7071067812 | Q50: 2.951299423 | R50: 2.951299423 | S50: =IF(R50<'Grading Scale'!G$8,IF(R50<'Grading Scale'!G$13,'Grading Scale'!E$13,IF(R50<'Grading Scale'!G$12,'Grading Scale'!E$11,IF(R50<'Grading Scale'!G$11,'Grading Scale'!E$9,IF(R50<'Grading Scale'!G$10,'Grading Scale'!E$7,IF(R50<'Grading Scale'!G$9,'Grading Scale'!E$5,'Grading Scale'!E$3))))),IF(R50<'Grading Scale'!G$7,'Grading Scale'!B$13,IF(R50<'Grading Scale'!G$6,'Grading Scale'!B$11,IF(R50<'Grading Scale'!G$5,'Grading Scale'!B$9,IF(R50<'Grading Scale'!G$4,'Grading Scale'!B$7,IF(R50<'Grading Scale'!G$3,'Grading Scale'!B$5,'Grading Scale'!B$3)))))) -> 3 | T50: =Scores!B41 -> 0 | U50: =IF(S50>='Grading Scale'!B$13,IF(S50='Grading Scale'!B$3,'Grading Scale'!C$3,IF(S50='Grading Scale'!B$5,'Grading Scale'!C$5,IF(S50='Grading Scale'!B$7,'Grading Scale'!C$7,IF(S50='Grading Scale'!B$9,'Grading Scale'!C$9,IF(S50='Grading Scale'!B$11,'Grading Scale'!C$11,'Grading Scale'!C$13))))),IF(S50='Grading Scale'!E$3,'Grading Scale'!F$3,IF(S50='Grading Scale'!E$5,'Grading Scale'!F$5,IF(S50='Grading Scale'!E$7,'Grading Scale'!F$7,IF(S50='Grading Scale'!E$9,'Grading Scale'!F$9,IF(S50='Grading Scale'!E$11,'Grading Scale'!F$11,'Grading Scale'!F$13)))))) -> B
A51: =Scores!A42 -> 0 | B51: =Scores!B42 -> 0 | C51: =Scores!C42 -> 0 | D51: =Scores!D42 -> 0 | E51: =Scores!E42 -> 0 | F51: =Scores!F42 -> 0 | G51: =Scores!G42 -> 0 | H51: =Scores!H42 -> 0 | I51: =Scores!I42 -> 0 | J51: =Scores!J42 -> 0 | K51: =Scores!K42 -> 0 | L51: =Scores!L42 -> 0 | M51: =Scores!M42 -> 0 | N51: =Scores!N42 -> 0 | O51: =Scores!O42 -> 0 | P51: -0.7071067812 | Q51: 2.951299423 | R51: 2.951299423 | S51: =IF(R51<'Grading Scale'!G$8,IF(R51<'Grading Scale'!G$13,'Grading Scale'!E$13,IF(R51<'Grading Scale'!G$12,'Grading Scale'!E$11,IF(R51<'Grading Scale'!G$11,'Grading Scale'!E$9,IF(R51<'Grading Scale'!G$10,'Grading Scale'!E$7,IF(R51<'Grading Scale'!G$9,'Grading Scale'!E$5,'Grading Scale'!E$3))))),IF(R51<'Grading Scale'!G$7,'Grading Scale'!B$13,IF(R51<'Grading Scale'!G$6,'Grading Scale'!B$11,IF(R51<'Grading Scale'!G$5,'Grading Scale'!B$9,IF(R51<'Grading Scale'!G$4,'Grading Scale'!B$7,IF(R51<'Grading Scale'!G$3,'Grading Scale'!B$5,'Grading Scale'!B$3)))))) -> 3 | T51: =Scores!B42 -> 0 | U51: =IF(S51>='Grading Scale'!B$13,IF(S51='Grading Scale'!B$3,'Grading Scale'!C$3,IF(S51='Grading Scale'!B$5,'Grading Scale'!C$5,IF(S51='Grading Scale'!B$7,'Grading Scale'!C$7,IF(S51='Grading Scale'!B$9,'Grading Scale'!C$9,IF(S51='Grading Scale'!B$11,'Grading Scale'!C$11,'Grading Scale'!C$13))))),IF(S51='Grading Scale'!E$3,'Grading Scale'!F$3,IF(S51='Grading Scale'!E$5,'Grading Scale'!F$5,IF(S51='Grading Scale'!E$7,'Grading Scale'!F$7,IF(S51='Grading Scale'!E$9,'Grading Scale'!F$9,IF(S51='Grading Scale'!E$11,'Grading Scale'!F$11,'Grading Scale'!F$13)))))) -> B
A52: =Scores!A43 -> 0 | B52: =Scores!B43 -> 0 | C52: =Scores!C43 -> 0 | D52: =Scores!D43 -> 0 | E52: =Scores!E43 -> 0 | F52: =Scores!F43 -> 0 | G52: =Scores!G43 -> 0 | H52: =Scores!H43 -> 0 | I52: =Scores!I43 -> 0 | J52: =Scores!J43 -> 0 | K52: =Scores!K43 -> 0 | L52: =Scores!L43 -> 0 | M52: =Scores!M43 -> 0 | N52: =Scores!N43 -> 0 | O52: =Scores!O43 -> 0 | P52: -0.7071067812 | Q52: 2.951299423 | R52: 2.951299423 | S52: =IF(R52<'Grading Scale'!G$8,IF(R52<'Grading Scale'!G$13,'Grading Scale'!E$13,IF(R52<'Grading Scale'!G$12,'Grading Scale'!E$11,IF(R52<'Grading Scale'!G$11,'Grading Scale'!E$9,IF(R52<'Grading Scale'!G$10,'Grading Scale'!E$7,IF(R52<'Grading Scale'!G$9,'Grading Scale'!E$5,'Grading Scale'!E$3))))),IF(R52<'Grading Scale'!G$7,'Grading Scale'!B$13,IF(R52<'Grading Scale'!G$6,'Grading Scale'!B$11,IF(R52<'Grading Scale'!G$5,'Grading Scale'!B$9,IF(R52<'Grading Scale'!G$4,'Grading Scale'!B$7,IF(R52<'Grading Scale'!G$3,'Grading Scale'!B$5,'Grading Scale'!B$3)))))) -> 3 | T52: =Scores!B43 -> 0 | U52: =IF(S52>='Grading Scale'!B$13,IF(S52='Grading Scale'!B$3,'Grading Scale'!C$3,IF(S52='Grading Scale'!B$5,'Grading Scale'!C$5,IF(S52='Grading Scale'!B$7,'Grading Scale'!C$7,IF(S52='Grading Scale'!B$9,'Grading Scale'!C$9,IF(S52='Grading Scale'!B$11,'Grading Scale'!C$11,'Grading Scale'!C$13))))),IF(S52='Grading Scale'!E$3,'Grading Scale'!F$3,IF(S52='Grading Scale'!E$5,'Grading Scale'!F$5,IF(S52='Grading Scale'!E$7,'Grading Scale'!F$7,IF(S52='Grading Scale'!E$9,'Grading Scale'!F$9,IF(S52='Grading Scale'!E$11,'Grading Scale'!F$11,'Grading Scale'!F$13)))))) -> B
A53: =Scores!A44 -> 0 | B53: =Scores!B44 -> 0 | C53: =Scores!C44 -> 0 | D53: =Scores!D44 -> 0 | E53: =Scores!E44 -> 0 | F53: =Scores!F44 -> 0 | G53: =Scores!G44 -> 0 | H53: =Scores!H44 -> 0 | I53: =Scores!I44 -> 0 | J53: =Scores!J44 -> 0 | K53: =Scores!K44 -> 0 | L53: =Scores!L44 -> 0 | M53: =Scores!M44 -> 0 | N53: =Scores!N44 -> 0 | O53: =Scores!O44 -> 0 | P53: -0.7071067812 | Q53: 2.951299423 | R53: 2.951299423 | S53: =IF(R53<'Grading Scale'!G$8,IF(R53<'Grading Scale'!G$13,'Grading Scale'!E$13,IF(R53<'Grading Scale'!G$12,'Grading Scale'!E$11,IF(R53<'Grading Scale'!G$11,'Grading Scale'!E$9,IF(R53<'Grading Scale'!G$10,'Grading Scale'!E$7,IF(R53<'Grading Scale'!G$9,'Grading Scale'!E$5,'Grading Scale'!E$3))))),IF(R53<'Grading Scale'!G$7,'Grading Scale'!B$13,IF(R53<'Grading Scale'!G$6,'Grading Scale'!B$11,IF(R53<'Grading Scale'!G$5,'Grading Scale'!B$9,IF(R53<'Grading Scale'!G$4,'Grading Scale'!B$7,IF(R53<'Grading Scale'!G$3,'Grading Scale'!B$5,'Grading Scale'!B$3)))))) -> 3 | T53: =Scores!B44 -> 0 | U53: =IF(S53>='Grading Scale'!B$13,IF(S53='Grading Scale'!B$3,'Grading Scale'!C$3,IF(S53='Grading Scale'!B$5,'Grading Scale'!C$5,IF(S53='Grading Scale'!B$7,'Grading Scale'!C$7,IF(S53='Grading Scale'!B$9,'Grading Scale'!C$9,IF(S53='Grading Scale'!B$11,'Grading Scale'!C$11,'Grading Scale'!C$13))))),IF(S53='Grading Scale'!E$3,'Grading Scale'!F$3,IF(S53='Grading Scale'!E$5,'Grading Scale'!F$5,IF(S53='Grading Scale'!E$7,'Grading Scale'!F$7,IF(S53='Grading Scale'!E$9,'Grading Scale'!F$9,IF(S53='Grading Scale'!E$11,'Grading Scale'!F$11,'Grading Scale'!F$13)))))) -> B
A54: =Scores!A45 -> 0 | B54: =Scores!B45 -> 0 | C54: =Scores!C45 -> 0 | D54: =Scores!D45 -> 0 | E54: =Scores!E45 -> 0 | F54: =Scores!F45 -> 0 | G54: =Scores!G45 -> 0 | H54: =Scores!H45 -> 0 | I54: =Scores!I45 -> 0 | J54: =Scores!J45 -> 0 | K54: =Scores!K45 -> 0 | L54: =Scores!L45 -> 0 | M54: =Scores!M45 -> 0 | N54: =Scores!N45 -> 0 | O54: =Scores!O45 -> 0 | P54: -0.7071067812 | Q54: 2.951299423 | R54: 2.951299423 | S54: =IF(R54<'Grading Scale'!G$8,IF(R54<'Grading Scale'!G$13,'Grading Scale'!E$13,IF(R54<'Grading Scale'!G$12,'Grading Scale'!E$11,IF(R54<'Grading Scale'!G$11,'Grading Scale'!E$9,IF(R54<'Grading Scale'!G$10,'Grading Scale'!E$7,IF(R54<'Grading Scale'!G$9,'Grading Scale'!E$5,'Grading Scale'!E$3))))),IF(R54<'Grading Scale'!G$7,'Grading Scale'!B$13,IF(R54<'Grading Scale'!G$6,'Grading Scale'!B$11,IF(R54<'Grading Scale'!G$5,'Grading Scale'!B$9,IF(R54<'Grading Scale'!G$4,'Grading Scale'!B$7,IF(R54<'Grading Scale'!G$3,'Grading Scale'!B$5,'Grading Scale'!B$3)))))) -> 3 | T54: =Scores!B45 -> 0 | U54: =IF(S54>='Grading Scale'!B$13,IF(S54='Grading Scale'!B$3,'Grading Scale'!C$3,IF(S54='Grading Scale'!B$5,'Grading Scale'!C$5,IF(S54='Grading Scale'!B$7,'Grading Scale'!C$7,IF(S54='Grading Scale'!B$9,'Grading Scale'!C$9,IF(S54='Grading Scale'!B$11,'Grading Scale'!C$11,'Grading Scale'!C$13))))),IF(S54='Grading Scale'!E$3,'Grading Scale'!F$3,IF(S54='Grading Scale'!E$5,'Grading Scale'!F$5,IF(S54='Grading Scale'!E$7,'Grading Scale'!F$7,IF(S54='Grading Scale'!E$9,'Grading Scale'!F$9,IF(S54='Grading Scale'!E$11,'Grading Scale'!F$11,'Grading Scale'!F$13)))))) -> B
A55: =Scores!A46 -> 0 | B55: =Scores!B46 -> 0 | C55: =Scores!C46 -> 0 | D55: =Scores!D46 -> 0 | E55: =Scores!E46 -> 0 | F55: =Scores!F46 -> 0 | G55: =Scores!G46 -> 0 | H55: =Scores!H46 -> 0 | I55: =Scores!I46 -> 0 | J55: =Scores!J46 -> 0 | K55: =Scores!K46 -> 0 | L55: =Scores!L46 -> 0 | M55: =Scores!M46 -> 0 | N55: =Scores!N46 -> 0 | O55: =Scores!O46 -> 0 | P55: -0.7071067812 | Q55: 2.951299423 | R55: 2.951299423 | S55: =IF(R55<'Grading Scale'!G$8,IF(R55<'Grading Scale'!G$13,'Grading Scale'!E$13,IF(R55<'Grading Scale'!G$12,'Grading Scale'!E$11,IF(R55<'Grading Scale'!G$11,'Grading Scale'!E$9,IF(R55<'Grading Scale'!G$10,'Grading Scale'!E$7,IF(R55<'Grading Scale'!G$9,'Grading Scale'!E$5,'Grading Scale'!E$3))))),IF(R55<'Grading Scale'!G$7,'Grading Scale'!B$13,IF(R55<'Grading Scale'!G$6,'Grading Scale'!B$11,IF(R55<'Grading Scale'!G$5,'Grading Scale'!B$9,IF(R55<'Grading Scale'!G$4,'Grading Scale'!B$7,IF(R55<'Grading Scale'!G$3,'Grading Scale'!B$5,'Grading Scale'!B$3)))))) -> 3 | T55: =Scores!B46 -> 0 | U55: =IF(S55>='Grading Scale'!B$13,IF(S55='Grading Scale'!B$3,'Grading Scale'!C$3,IF(S55='Grading Scale'!B$5,'Grading Scale'!C$5,IF(S55='Grading Scale'!B$7,'Grading Scale'!C$7,IF(S55='Grading Scale'!B$9,'Grading Scale'!C$9,IF(S55='Grading Scale'!B$11,'Grading Scale'!C$11,'Grading Scale'!C$13))))),IF(S55='Grading Scale'!E$3,'Grading Scale'!F$3,IF(S55='Grading Scale'!E$5,'Grading Scale'!F$5,IF(S55='Grading Scale'!E$7,'Grading Scale'!F$7,IF(S55='Grading Scale'!E$9,'Grading Scale'!F$9,IF(S55='Grading Scale'!E$11,'Grading Scale'!F$11,'Grading Scale'!F$13)))))) -> B
A56: =Scores!A47 -> 0 | B56: =Scores!B47 -> 0 | C56: =Scores!C47 -> 0 | D56: =Scores!D47 -> 0 | E56: =Scores!E47 -> 0 | F56: =Scores!F47 -> 0 | G56: =Scores!G47 -> 0 | H56: =Scores!H47 -> 0 | I56: =Scores!I47 -> 0 | J56: =Scores!J47 -> 0 | K56: =Scores!K47 -> 0 | L56: =Scores!L47 -> 0 | M56: =Scores!M47 -> 0 | N56: =Scores!N47 -> 0 | O56: =Scores!O47 -> 0 | P56: -0.7071067812 | Q56: 2.951299423 | R56: 2.951299423 | S56: =IF(R56<'Grading Scale'!G$8,IF(R56<'Grading Scale'!G$13,'Grading Scale'!E$13,IF(R56<'Grading Scale'!G$12,'Grading Scale'!E$11,IF(R56<'Grading Scale'!G$11,'Grading Scale'!E$9,IF(R56<'Grading Scale'!G$10,'Grading Scale'!E$7,IF(R56<'Grading Scale'!G$9,'Grading Scale'!E$5,'Grading Scale'!E$3))))),IF(R56<'Grading Scale'!G$7,'Grading Scale'!B$13,IF(R56<'Grading Scale'!G$6,'Grading Scale'!B$11,IF(R56<'Grading Scale'!G$5,'Grading Scale'!B$9,IF(R56<'Grading Scale'!G$4,'Grading Scale'!B$7,IF(R56<'Grading Scale'!G$3,'Grading Scale'!B$5,'Grading Scale'!B$3)))))) -> 3 | T56: =Scores!B47 -> 0 | U56: =IF(S56>='Grading Scale'!B$13,IF(S56='Grading Scale'!B$3,'Grading Scale'!C$3,IF(S56='Grading Scale'!B$5,'Grading Scale'!C$5,IF(S56='Grading Scale'!B$7,'Grading Scale'!C$7,IF(S56='Grading Scale'!B$9,'Grading Scale'!C$9,IF(S56='Grading Scale'!B$11,'Grading Scale'!C$11,'Grading Scale'!C$13))))),IF(S56='Grading Scale'!E$3,'Grading Scale'!F$3,IF(S56='Grading Scale'!E$5,'Grading Scale'!F$5,IF(S56='Grading Scale'!E$7,'Grading Scale'!F$7,IF(S56='Grading Scale'!E$9,'Grading Scale'!F$9,IF(S56='Grading Scale'!E$11,'Grading Scale'!F$11,'Grading Scale'!F$13)))))) -> B
A57: =Scores!A48 -> 0 | B57: =Scores!B48 -> 0 | C57: =Scores!C48 -> 0 | D57: =Scores!D48 -> 0 | E57: =Scores!E48 -> 0 | F57: =Scores!F48 -> 0 | G57: =Scores!G48 -> 0 | H57: =Scores!H48 -> 0 | I57: =Scores!I48 -> 0 | J57: =Scores!J48 -> 0 | K57: =Scores!K48 -> 0 | L57: =Scores!L48 -> 0 | M57: =Scores!M48 -> 0 | N57: =Scores!N48 -> 0 | O57: =Scores!O48 -> 0 | P57: -0.7071067812 | Q57: 2.951299423 | R57: 2.951299423 | S57: =IF(R57<'Grading Scale'!G$8,IF(R57<'Grading Scale'!G$13,'Grading Scale'!E$13,IF(R57<'Grading Scale'!G$12,'Grading Scale'!E$11,IF(R57<'Grading Scale'!G$11,'Grading Scale'!E$9,IF(R57<'Grading Scale'!G$10,'Grading Scale'!E$7,IF(R57<'Grading Scale'!G$9,'Grading Scale'!E$5,'Grading Scale'!E$3))))),IF(R57<'Grading Scale'!G$7,'Grading Scale'!B$13,IF(R57<'Grading Scale'!G$6,'Grading Scale'!B$11,IF(R57<'Grading Scale'!G$5,'Grading Scale'!B$9,IF(R57<'Grading Scale'!G$4,'Grading Scale'!B$7,IF(R57<'Grading Scale'!G$3,'Grading Scale'!B$5,'Grading Scale'!B$3)))))) -> 3 | T57: =Scores!B48 -> 0 | U57: =IF(S57>='Grading Scale'!B$13,IF(S57='Grading Scale'!B$3,'Grading Scale'!C$3,IF(S57='Grading Scale'!B$5,'Grading Scale'!C$5,IF(S57='Grading Scale'!B$7,'Grading Scale'!C$7,IF(S57='Grading Scale'!B$9,'Grading Scale'!C$9,IF(S57='Grading Scale'!B$11,'Grading Scale'!C$11,'Grading Scale'!C$13))))),IF(S57='Grading Scale'!E$3,'Grading Scale'!F$3,IF(S57='Grading Scale'!E$5,'Grading Scale'!F$5,IF(S57='Grading Scale'!E$7,'Grading Scale'!F$7,IF(S57='Grading Scale'!E$9,'Grading Scale'!F$9,IF(S57='Grading Scale'!E$11,'Grading Scale'!F$11,'Grading Scale'!F$13)))))) -> B
A58: =Scores!A49 -> 0 | B58: =Scores!B49 -> 0 | C58: =Scores!C49 -> 0 | D58: =Scores!D49 -> 0 | E58: =Scores!E49 -> 0 | F58: =Scores!F49 -> 0 | G58: =Scores!G49 -> 0 | H58: =Scores!H49 -> 0 | I58: =Scores!I49 -> 0 | J58: =Scores!J49 -> 0 | K58: =Scores!K49 -> 0 | L58: =Scores!L49 -> 0 | M58: =Scores!M49 -> 0 | N58: =Scores!N49 -> 0 | O58: =Scores!O49 -> 0 | P58: -0.7071067812 | Q58: 2.951299423 | R58: 2.951299423 | S58: =IF(R58<'Grading Scale'!G$8,IF(R58<'Grading Scale'!G$13,'Grading Scale'!E$13,IF(R58<'Grading Scale'!G$12,'Grading Scale'!E$11,IF(R58<'Grading Scale'!G$11,'Grading Scale'!E$9,IF(R58<'Grading Scale'!G$10,'Grading Scale'!E$7,IF(R58<'Grading Scale'!G$9,'Grading Scale'!E$5,'Grading Scale'!E$3))))),IF(R58<'Grading Scale'!G$7,'Grading Scale'!B$13,IF(R58<'Grading Scale'!G$6,'Grading Scale'!B$11,IF(R58<'Grading Scale'!G$5,'Grading Scale'!B$9,IF(R58<'Grading Scale'!G$4,'Grading Scale'!B$7,IF(R58<'Grading Scale'!G$3,'Grading Scale'!B$5,'Grading Scale'!B$3)))))) -> 3 | T58: =Scores!B49 -> 0 | U58: =IF(S58>='Grading Scale'!B$13,IF(S58='Grading Scale'!B$3,'Grading Scale'!C$3,IF(S58='Grading Scale'!B$5,'Grading Scale'!C$5,IF(S58='Grading Scale'!B$7,'Grading Scale'!C$7,IF(S58='Grading Scale'!B$9,'Grading Scale'!C$9,IF(S58='Grading Scale'!B$11,'Grading Scale'!C$11,'Grading Scale'!C$13))))),IF(S58='Grading Scale'!E$3,'Grading Scale'!F$3,IF(S58='Grading Scale'!E$5,'Grading Scale'!F$5,IF(S58='Grading Scale'!E$7,'Grading Scale'!F$7,IF(S58='Grading Scale'!E$9,'Grading Scale'!F$9,IF(S58='Grading Scale'!E$11,'Grading Scale'!F$11,'Grading Scale'!F$13)))))) -> B
A59: =Scores!A50 -> 0 | B59: =Scores!B50 -> 0 | C59: =Scores!C50 -> 0 | D59: =Scores!D50 -> 0 | E59: =Scores!E50 -> 0 | F59: =Scores!F50 -> 0 | G59: =Scores!G50 -> 0 | H59: =Scores!H50 -> 0 | I59: =Scores!I50 -> 0 | J59: =Scores!J50 -> 0 | K59: =Scores!K50 -> 0 | L59: =Scores!L50 -> 0 | M59: =Scores!M50 -> 0 | N59: =Scores!N50 -> 0 | O59: =Scores!O50 -> 0 | P59: -0.7071067812 | Q59: 2.951299423 | R59: 2.951299423 | S59: =IF(R59<'Grading Scale'!G$8,IF(R59<'Grading Scale'!G$13,'Grading Scale'!E$13,IF(R59<'Grading Scale'!G$12,'Grading Scale'!E$11,IF(R59<'Grading Scale'!G$11,'Grading Scale'!E$9,IF(R59<'Grading Scale'!G$10,'Grading Scale'!E$7,IF(R59<'Grading Scale'!G$9,'Grading Scale'!E$5,'Grading Scale'!E$3))))),IF(R59<'Grading Scale'!G$7,'Grading Scale'!B$13,IF(R59<'Grading Scale'!G$6,'Grading Scale'!B$11,IF(R59<'Grading Scale'!G$5,'Grading Scale'!B$9,IF(R59<'Grading Scale'!G$4,'Grading Scale'!B$7,IF(R59<'Grading Scale'!G$3,'Grading Scale'!B$5,'Grading Scale'!B$3)))))) -> 3 | T59: =Scores!B50 -> 0 | U59: =IF(S59>='Grading Scale'!B$13,IF(S59='Grading Scale'!B$3,'Grading Scale'!C$3,IF(S59='Grading Scale'!B$5,'Grading Scale'!C$5,IF(S59='Grading Scale'!B$7,'Grading Scale'!C$7,IF(S59='Grading Scale'!B$9,'Grading Scale'!C$9,IF(S59='Grading Scale'!B$11,'Grading Scale'!C$11,'Grading Scale'!C$13))))),IF(S59='Grading Scale'!E$3,'Grading Scale'!F$3,IF(S59='Grading Scale'!E$5,'Grading Scale'!F$5,IF(S59='Grading Scale'!E$7,'Grading Scale'!F$7,IF(S59='Grading Scale'!E$9,'Grading Scale'!F$9,IF(S59='Grading Scale'!E$11,'Grading Scale'!F$11,'Grading Scale'!F$13)))))) -> B
A60: =Scores!A51 -> 0 | B60: =Scores!B51 -> 0 | C60: =Scores!C51 -> 0 | D60: =Scores!D51 -> 0 | E60: =Scores!E51 -> 0 | F60: =Scores!F51 -> 0 | G60: =Scores!G51 -> 0 | H60: =Scores!H51 -> 0 | I60: =Scores!I51 -> 0 | J60: =Scores!J51 -> 0 | K60: =Scores!K51 -> 0 | L60: =Scores!L51 -> 0 | M60: =Scores!M51 -> 0 | N60: =Scores!N51 -> 0 | O60: =Scores!O51 -> 0 | P60: -0.7071067812 | Q60: 2.951299423 | R60: 2.951299423 | S60: =IF(R60<'Grading Scale'!G$8,IF(R60<'Grading Scale'!G$13,'Grading Scale'!E$13,IF(R60<'Grading Scale'!G$12,'Grading Scale'!E$11,IF(R60<'Grading Scale'!G$11,'Grading Scale'!E$9,IF(R60<'Grading Scale'!G$10,'Grading Scale'!E$7,IF(R60<'Grading Scale'!G$9,'Grading Scale'!E$5,'Grading Scale'!E$3))))),IF(R60<'Grading Scale'!G$7,'Grading Scale'!B$13,IF(R60<'Grading Scale'!G$6,'Grading Scale'!B$11,IF(R60<'Grading Scale'!G$5,'Grading Scale'!B$9,IF(R60<'Grading Scale'!G$4,'Grading Scale'!B$7,IF(R60<'Grading Scale'!G$3,'Grading Scale'!B$5,'Grading Scale'!B$3)))))) -> 3 | T60: =Scores!B51 -> 0 | U60: =IF(S60>='Grading Scale'!B$13,IF(S60='Grading Scale'!B$3,'Grading Scale'!C$3,IF(S60='Grading Scale'!B$5,'Grading Scale'!C$5,IF(S60='Grading Scale'!B$7,'Grading Scale'!C$7,IF(S60='Grading Scale'!B$9,'Grading Scale'!C$9,IF(S60='Grading Scale'!B$11,'Grading Scale'!C$11,'Grading Scale'!C$13))))),IF(S60='Grading Scale'!E$3,'Grading Scale'!F$3,IF(S60='Grading Scale'!E$5,'Grading Scale'!F$5,IF(S60='Grading Scale'!E$7,'Grading Scale'!F$7,IF(S60='Grading Scale'!E$9,'Grading Scale'!F$9,IF(S60='Grading Scale'!E$11,'Grading Scale'!F$11,'Grading Scale'!F$13)))))) -> B
A61: =Scores!A52 -> 0 | B61: =Scores!B52 -> 0 | C61: =Scores!C52 -> 0 | D61: =Scores!D52 -> 0 | E61: =Scores!E52 -> 0 | F61: =Scores!F52 -> 0 | G61: =Scores!G52 -> 0 | H61: =Scores!H52 -> 0 | I61: =Scores!I52 -> 0 | J61: =Scores!J52 -> 0 | K61: =Scores!K52 -> 0 | L61: =Scores!L52 -> 0 | M61: =Scores!M52 -> 0 | N61: =Scores!N52 -> 0 | O61: =Scores!O52 -> 0 | P61: -0.7071067812 | Q61: 2.951299423 | R61: 2.951299423 | S61: =IF(R61<'Grading Scale'!G$8,IF(R61<'Grading Scale'!G$13,'Grading Scale'!E$13,IF(R61<'Grading Scale'!G$12,'Grading Scale'!E$11,IF(R61<'Grading Scale'!G$11,'Grading Scale'!E$9,IF(R61<'Grading Scale'!G$10,'Grading Scale'!E$7,IF(R61<'Grading Scale'!G$9,'Grading Scale'!E$5,'Grading Scale'!E$3))))),IF(R61<'Grading Scale'!G$7,'Grading Scale'!B$13,IF(R61<'Grading Scale'!G$6,'Grading Scale'!B$11,IF(R61<'Grading Scale'!G$5,'Grading Scale'!B$9,IF(R61<'Grading Scale'!G$4,'Grading Scale'!B$7,IF(R61<'Grading Scale'!G$3,'Grading Scale'!B$5,'Grading Scale'!B$3)))))) -> 3 | T61: =Scores!B52 -> 0 | U61: =IF(S61>='Grading Scale'!B$13,IF(S61='Grading Scale'!B$3,'Grading Scale'!C$3,IF(S61='Grading Scale'!B$5,'Grading Scale'!C$5,IF(S61='Grading Scale'!B$7,'Grading Scale'!C$7,IF(S61='Grading Scale'!B$9,'Grading Scale'!C$9,IF(S61='Grading Scale'!B$11,'Grading Scale'!C$11,'Grading Scale'!C$13))))),IF(S61='Grading Scale'!E$3,'Grading Scale'!F$3,IF(S61='Grading Scale'!E$5,'Grading Scale'!F$5,IF(S61='Grading Scale'!E$7,'Grading Scale'!F$7,IF(S61='Grading Scale'!E$9,'Grading Scale'!F$9,IF(S61='Grading Scale'!E$11,'Grading Scale'!F$11,'Grading Scale'!F$13)))))) -> B
A62: =Scores!A53 -> 0 | B62: =Scores!B53 -> 0 | C62: =Scores!C53 -> 0 | D62: =Scores!D53 -> 0 | E62: =Scores!E53 -> 0 | F62: =Scores!F53 -> 0 | G62: =Scores!G53 -> 0 | H62: =Scores!H53 -> 0 | I62: =Scores!I53 -> 0 | J62: =Scores!J53 -> 0 | K62: =Scores!K53 -> 0 | L62: =Scores!L53 -> 0 | M62: =Scores!M53 -> 0 | N62: =Scores!N53 -> 0 | O62: =Scores!O53 -> 0 | P62: -0.7071067812 | Q62: 2.951299423 | R62: 2.951299423 | S62: =IF(R62<'Grading Scale'!G$8,IF(R62<'Grading Scale'!G$13,'Grading Scale'!E$13,IF(R62<'Grading Scale'!G$12,'Grading Scale'!E$11,IF(R62<'Grading Scale'!G$11,'Grading Scale'!E$9,IF(R62<'Grading Scale'!G$10,'Grading Scale'!E$7,IF(R62<'Grading Scale'!G$9,'Grading Scale'!E$5,'Grading Scale'!E$3))))),IF(R62<'Grading Scale'!G$7,'Grading Scale'!B$13,IF(R62<'Grading Scale'!G$6,'Grading Scale'!B$11,IF(R62<'Grading Scale'!G$5,'Grading Scale'!B$9,IF(R62<'Grading Scale'!G$4,'Grading Scale'!B$7,IF(R62<'Grading Scale'!G$3,'Grading Scale'!B$5,'Grading Scale'!B$3)))))) -> 3 | T62: =Scores!B53 -> 0 | U62: =IF(S62>='Grading Scale'!B$13,IF(S62='Grading Scale'!B$3,'Grading Scale'!C$3,IF(S62='Grading Scale'!B$5,'Grading Scale'!C$5,IF(S62='Grading Scale'!B$7,'Grading Scale'!C$7,IF(S62='Grading Scale'!B$9,'Grading Scale'!C$9,IF(S62='Grading Scale'!B$11,'Grading Scale'!C$11,'Grading Scale'!C$13))))),IF(S62='Grading Scale'!E$3,'Grading Scale'!F$3,IF(S62='Grading Scale'!E$5,'Grading Scale'!F$5,IF(S62='Grading Scale'!E$7,'Grading Scale'!F$7,IF(S62='Grading Scale'!E$9,'Grading Scale'!F$9,IF(S62='Grading Scale'!E$11,'Grading Scale'!F$11,'Grading Scale'!F$13)))))) -> B
A63: =Scores!A54 -> 0 | B63: =Scores!B54 -> 0 | C63: =Scores!C54 -> 0 | D63: =Scores!D54 -> 0 | E63: =Scores!E54 -> 0 | F63: =Scores!F54 -> 0 | G63: =Scores!G54 -> 0 | H63: =Scores!H54 -> 0 | I63: =Scores!I54 -> 0 | J63: =Scores!J54 -> 0 | K63: =Scores!K54 -> 0 | L63: =Scores!L54 -> 0 | M63: =Scores!M54 -> 0 | N63: =Scores!N54 -> 0 | O63: =Scores!O54 -> 0 | P63: -0.7071067812 | Q63: 2.951299423 | R63: 2.951299423 | S63: =IF(R63<'Grading Scale'!G$8,IF(R63<'Grading Scale'!G$13,'Grading Scale'!E$13,IF(R63<'Grading Scale'!G$12,'Grading Scale'!E$11,IF(R63<'Grading Scale'!G$11,'Grading Scale'!E$9,IF(R63<'Grading Scale'!G$10,'Grading Scale'!E$7,IF(R63<'Grading Scale'!G$9,'Grading Scale'!E$5,'Grading Scale'!E$3))))),IF(R63<'Grading Scale'!G$7,'Grading Scale'!B$13,IF(R63<'Grading Scale'!G$6,'Grading Scale'!B$11,IF(R63<'Grading Scale'!G$5,'Grading Scale'!B$9,IF(R63<'Grading Scale'!G$4,'Grading Scale'!B$7,IF(R63<'Grading Scale'!G$3,'Grading Scale'!B$5,'Grading Scale'!B$3)))))) -> 3 | T63: =Scores!B54 -> 0 | U63: =IF(S63>='Grading Scale'!B$13,IF(S63='Grading Scale'!B$3,'Grading Scale'!C$3,IF(S63='Grading Scale'!B$5,'Grading Scale'!C$5,IF(S63='Grading Scale'!B$7,'Grading Scale'!C$7,IF(S63='Grading Scale'!B$9,'Grading Scale'!C$9,IF(S63='Grading Scale'!B$11,'Grading Scale'!C$11,'Grading Scale'!C$13))))),IF(S63='Grading Scale'!E$3,'Grading Scale'!F$3,IF(S63='Grading Scale'!E$5,'Grading Scale'!F$5,IF(S63='Grading Scale'!E$7,'Grading Scale'!F$7,IF(S63='Grading Scale'!E$9,'Grading Scale'!F$9,IF(S63='Grading Scale'!E$11,'Grading Scale'!F$11,'Grading Scale'!F$13)))))) -> B
A64: =Scores!A55 -> 0 | B64: =Scores!B55 -> 0 | C64: =Scores!C55 -> 0 | D64: =Scores!D55 -> 0 | E64: =Scores!E55 -> 0 | F64: =Scores!F55 -> 0 | G64: =Scores!G55 -> 0 | H64: =Scores!H55 -> 0 | I64: =Scores!I55 -> 0 | J64: =Scores!J55 -> 0 | K64: =Scores!K55 -> 0 | L64: =Scores!L55 -> 0 | M64: =Scores!M55 -> 0 | N64: =Scores!N55 -> 0 | O64: =Scores!O55 -> 0 | P64: -0.7071067812 | Q64: 2.951299423 | R64: 2.951299423 | S64: =IF(R64<'Grading Scale'!G$8,IF(R64<'Grading Scale'!G$13,'Grading Scale'!E$13,IF(R64<'Grading Scale'!G$12,'Grading Scale'!E$11,IF(R64<'Grading Scale'!G$11,'Grading Scale'!E$9,IF(R64<'Grading Scale'!G$10,'Grading Scale'!E$7,IF(R64<'Grading Scale'!G$9,'Grading Scale'!E$5,'Grading Scale'!E$3))))),IF(R64<'Grading Scale'!G$7,'Grading Scale'!B$13,IF(R64<'Grading Scale'!G$6,'Grading Scale'!B$11,IF(R64<'Grading Scale'!G$5,'Grading Scale'!B$9,IF(R64<'Grading Scale'!G$4,'Grading Scale'!B$7,IF(R64<'Grading Scale'!G$3,'Grading Scale'!B$5,'Grading Scale'!B$3)))))) -> 3 | T64: =Scores!B55 -> 0 | U64: =IF(S64>='Grading Scale'!B$13,IF(S64='Grading Scale'!B$3,'Grading Scale'!C$3,IF(S64='Grading Scale'!B$5,'Grading Scale'!C$5,IF(S64='Grading Scale'!B$7,'Grading Scale'!C$7,IF(S64='Grading Scale'!B$9,'Grading Scale'!C$9,IF(S64='Grading Scale'!B$11,'Grading Scale'!C$11,'Grading Scale'!C$13))))),IF(S64='Grading Scale'!E$3,'Grading Scale'!F$3,IF(S64='Grading Scale'!E$5,'Grading Scale'!F$5,IF(S64='Grading Scale'!E$7,'Grading Scale'!F$7,IF(S64='Grading Scale'!E$9,'Grading Scale'!F$9,IF(S64='Grading Scale'!E$11,'Grading Scale'!F$11,'Grading Scale'!F$13)))))) -> B
A65: =Scores!A56 -> 0 | B65: =Scores!B56 -> 0 | C65: =Scores!C56 -> 0 | D65: =Scores!D56 -> 0 | E65: =Scores!E56 -> 0 | F65: =Scores!F56 -> 0 | G65: =Scores!G56 -> 0 | H65: =Scores!H56 -> 0 | I65: =Scores!I56 -> 0 | J65: =Scores!J56 -> 0 | K65: =Scores!K56 -> 0 | L65: =Scores!L56 -> 0 | M65: =Scores!M56 -> 0 | N65: =Scores!N56 -> 0 | O65: =Scores!O56 -> 0 | P65: -0.7071067812 | Q65: 2.951299423 | R65: 2.951299423 | S65: =IF(R65<'Grading Scale'!G$8,IF(R65<'Grading Scale'!G$13,'Grading Scale'!E$13,IF(R65<'Grading Scale'!G$12,'Grading Scale'!E$11,IF(R65<'Grading Scale'!G$11,'Grading Scale'!E$9,IF(R65<'Grading Scale'!G$10,'Grading Scale'!E$7,IF(R65<'Grading Scale'!G$9,'Grading Scale'!E$5,'Grading Scale'!E$3))))),IF(R65<'Grading Scale'!G$7,'Grading Scale'!B$13,IF(R65<'Grading Scale'!G$6,'Grading Scale'!B$11,IF(R65<'Grading Scale'!G$5,'Grading Scale'!B$9,IF(R65<'Grading Scale'!G$4,'Grading Scale'!B$7,IF(R65<'Grading Scale'!G$3,'Grading Scale'!B$5,'Grading Scale'!B$3)))))) -> 3 | T65: =Scores!B56 -> 0 | U65: =IF(S65>='Grading Scale'!B$13,IF(S65='Grading Scale'!B$3,'Grading Scale'!C$3,IF(S65='Grading Scale'!B$5,'Grading Scale'!C$5,IF(S65='Grading Scale'!B$7,'Grading Scale'!C$7,IF(S65='Grading Scale'!B$9,'Grading Scale'!C$9,IF(S65='Grading Scale'!B$11,'Grading Scale'!C$11,'Grading Scale'!C$13))))),IF(S65='Grading Scale'!E$3,'Grading Scale'!F$3,IF(S65='Grading Scale'!E$5,'Grading Scale'!F$5,IF(S65='Grading Scale'!E$7,'Grading Scale'!F$7,IF(S65='Grading Scale'!E$9,'Grading Scale'!F$9,IF(S65='Grading Scale'!E$11,'Grading Scale'!F$11,'Grading Scale'!F$13)))))) -> B
A66: =Scores!A57 -> 0 | B66: =Scores!B57 -> 0 | C66: =Scores!C57 -> 0 | D66: =Scores!D57 -> 0 | E66: =Scores!E57 -> 0 | F66: =Scores!F57 -> 0 | G66: =Scores!G57 -> 0 | H66: =Scores!H57 -> 0 | I66: =Scores!I57 -> 0 | J66: =Scores!J57 -> 0 | K66: =Scores!K57 -> 0 | L66: =Scores!L57 -> 0 | M66: =Scores!M57 -> 0 | N66: =Scores!N57 -> 0 | O66: =Scores!O57 -> 0 | P66: -0.7071067812 | Q66: 2.951299423 | R66: 2.951299423 | S66: =IF(R66<'Grading Scale'!G$8,IF(R66<'Grading Scale'!G$13,'Grading Scale'!E$13,IF(R66<'Grading Scale'!G$12,'Grading Scale'!E$11,IF(R66<'Grading Scale'!G$11,'Grading Scale'!E$9,IF(R66<'Grading Scale'!G$10,'Grading Scale'!E$7,IF(R66<'Grading Scale'!G$9,'Grading Scale'!E$5,'Grading Scale'!E$3))))),IF(R66<'Grading Scale'!G$7,'Grading Scale'!B$13,IF(R66<'Grading Scale'!G$6,'Grading Scale'!B$11,IF(R66<'Grading Scale'!G$5,'Grading Scale'!B$9,IF(R66<'Grading Scale'!G$4,'Grading Scale'!B$7,IF(R66<'Grading Scale'!G$3,'Grading Scale'!B$5,'Grading Scale'!B$3)))))) -> 3 | T66: =Scores!B57 -> 0 | U66: =IF(S66>='Grading Scale'!B$13,IF(S66='Grading Scale'!B$3,'Grading Scale'!C$3,IF(S66='Grading Scale'!B$5,'Grading Scale'!C$5,IF(S66='Grading Scale'!B$7,'Grading Scale'!C$7,IF(S66='Grading Scale'!B$9,'Grading Scale'!C$9,IF(S66='Grading Scale'!B$11,'Grading Scale'!C$11,'Grading Scale'!C$13))))),IF(S66='Grading Scale'!E$3,'Grading Scale'!F$3,IF(S66='Grading Scale'!E$5,'Grading Scale'!F$5,IF(S66='Grading Scale'!E$7,'Grading Scale'!F$7,IF(S66='Grading Scale'!E$9,'Grading Scale'!F$9,IF(S66='Grading Scale'!E$11,'Grading Scale'!F$11,'Grading Scale'!F$13)))))) -> B
A67: =Scores!A58 -> 0 | B67: =Scores!B58 -> 0 | C67: =Scores!C58 -> 0 | D67: =Scores!D58 -> 0 | E67: =Scores!E58 -> 0 | F67: =Scores!F58 -> 0 | G67: =Scores!G58 -> 0 | H67: =Scores!H58 -> 0 | I67: =Scores!I58 -> 0 | J67: =Scores!J58 -> 0 | K67: =Scores!K58 -> 0 | L67: =Scores!L58 -> 0 | M67: =Scores!M58 -> 0 | N67: =Scores!N58 -> 0 | O67: =Scores!O58 -> 0 | P67: -0.7071067812 | Q67: 2.951299423 | R67: 2.951299423 | S67: =IF(R67<'Grading Scale'!G$8,IF(R67<'Grading Scale'!G$13,'Grading Scale'!E$13,IF(R67<'Grading Scale'!G$12,'Grading Scale'!E$11,IF(R67<'Grading Scale'!G$11,'Grading Scale'!E$9,IF(R67<'Grading Scale'!G$10,'Grading Scale'!E$7,IF(R67<'Grading Scale'!G$9,'Grading Scale'!E$5,'Grading Scale'!E$3))))),IF(R67<'Grading Scale'!G$7,'Grading Scale'!B$13,IF(R67<'Grading Scale'!G$6,'Grading Scale'!B$11,IF(R67<'Grading Scale'!G$5,'Grading Scale'!B$9,IF(R67<'Grading Scale'!G$4,'Grading Scale'!B$7,IF(R67<'Grading Scale'!G$3,'Grading Scale'!B$5,'Grading Scale'!B$3)))))) -> 3 | T67: =Scores!B58 -> 0 | U67: =IF(S67>='Grading Scale'!B$13,IF(S67='Grading Scale'!B$3,'Grading Scale'!C$3,IF(S67='Grading Scale'!B$5,'Grading Scale'!C$5,IF(S67='Grading Scale'!B$7,'Grading Scale'!C$7,IF(S67='Grading Scale'!B$9,'Grading Scale'!C$9,IF(S67='Grading Scale'!B$11,'Grading Scale'!C$11,'Grading Scale'!C$13))))),IF(S67='Grading Scale'!E$3,'Grading Scale'!F$3,IF(S67='Grading Scale'!E$5,'Grading Scale'!F$5,IF(S67='Grading Scale'!E$7,'Grading Scale'!F$7,IF(S67='Grading Scale'!E$9,'Grading Scale'!F$9,IF(S67='Grading Scale'!E$11,'Grading Scale'!F$11,'Grading Scale'!F$13)))))) -> B
A68: =Scores!A59 -> 0 | B68: =Scores!B59 -> 0 | C68: =Scores!C59 -> 0 | D68: =Scores!D59 -> 0 | E68: =Scores!E59 -> 0 | F68: =Scores!F59 -> 0 | G68: =Scores!G59 -> 0 | H68: =Scores!H59 -> 0 | I68: =Scores!I59 -> 0 | J68: =Scores!J59 -> 0 | K68: =Scores!K59 -> 0 | L68: =Scores!L59 -> 0 | M68: =Scores!M59 -> 0 | N68: =Scores!N59 -> 0 | O68: =Scores!O59 -> 0 | P68: -0.7071067812 | Q68: 2.951299423 | R68: 2.951299423 | S68: =IF(R68<'Grading Scale'!G$8,IF(R68<'Grading Scale'!G$13,'Grading Scale'!E$13,IF(R68<'Grading Scale'!G$12,'Grading Scale'!E$11,IF(R68<'Grading Scale'!G$11,'Grading Scale'!E$9,IF(R68<'Grading Scale'!G$10,'Grading Scale'!E$7,IF(R68<'Grading Scale'!G$9,'Grading Scale'!E$5,'Grading Scale'!E$3))))),IF(R68<'Grading Scale'!G$7,'Grading Scale'!B$13,IF(R68<'Grading Scale'!G$6,'Grading Scale'!B$11,IF(R68<'Grading Scale'!G$5,'Grading Scale'!B$9,IF(R68<'Grading Scale'!G$4,'Grading Scale'!B$7,IF(R68<'Grading Scale'!G$3,'Grading Scale'!B$5,'Grading Scale'!B$3)))))) -> 3 | T68: =Scores!B59 -> 0 | U68: =IF(S68>='Grading Scale'!B$13,IF(S68='Grading Scale'!B$3,'Grading Scale'!C$3,IF(S68='Grading Scale'!B$5,'Grading Scale'!C$5,IF(S68='Grading Scale'!B$7,'Grading Scale'!C$7,IF(S68='Grading Scale'!B$9,'Grading Scale'!C$9,IF(S68='Grading Scale'!B$11,'Grading Scale'!C$11,'Grading Scale'!C$13))))),IF(S68='Grading Scale'!E$3,'Grading Scale'!F$3,IF(S68='Grading Scale'!E$5,'Grading Scale'!F$5,IF(S68='Grading Scale'!E$7,'Grading Scale'!F$7,IF(S68='Grading Scale'!E$9,'Grading Scale'!F$9,IF(S68='Grading Scale'!E$11,'Grading Scale'!F$11,'Grading Scale'!F$13)))))) -> B
A69: =Scores!A60 -> 0 | B69: =Scores!B60 -> 0 | C69: =Scores!C60 -> 0 | D69: =Scores!D60 -> 0 | E69: =Scores!E60 -> 0 | F69: =Scores!F60 -> 0 | G69: =Scores!G60 -> 0 | H69: =Scores!H60 -> 0 | I69: =Scores!I60 -> 0 | J69: =Scores!J60 -> 0 | K69: =Scores!K60 -> 0 | L69: =Scores!L60 -> 0 | M69: =Scores!M60 -> 0 | N69: =Scores!N60 -> 0 | O69: =Scores!O60 -> 0 | P69: -0.7071067812 | Q69: 2.951299423 | R69: 2.951299423 | S69: =IF(R69<'Grading Scale'!G$8,IF(R69<'Grading Scale'!G$13,'Grading Scale'!E$13,IF(R69<'Grading Scale'!G$12,'Grading Scale'!E$11,IF(R69<'Grading Scale'!G$11,'Grading Scale'!E$9,IF(R69<'Grading Scale'!G$10,'Grading Scale'!E$7,IF(R69<'Grading Scale'!G$9,'Grading Scale'!E$5,'Grading Scale'!E$3))))),IF(R69<'Grading Scale'!G$7,'Grading Scale'!B$13,IF(R69<'Grading Scale'!G$6,'Grading Scale'!B$11,IF(R69<'Grading Scale'!G$5,'Grading Scale'!B$9,IF(R69<'Grading Scale'!G$4,'Grading Scale'!B$7,IF(R69<'Grading Scale'!G$3,'Grading Scale'!B$5,'Grading Scale'!B$3)))))) -> 3 | T69: =Scores!B60 -> 0 | U69: =IF(S69>='Grading Scale'!B$13,IF(S69='Grading Scale'!B$3,'Grading Scale'!C$3,IF(S69='Grading Scale'!B$5,'Grading Scale'!C$5,IF(S69='Grading Scale'!B$7,'Grading Scale'!C$7,IF(S69='Grading Scale'!B$9,'Grading Scale'!C$9,IF(S69='Grading Scale'!B$11,'Grading Scale'!C$11,'Grading Scale'!C$13))))),IF(S69='Grading Scale'!E$3,'Grading Scale'!F$3,IF(S69='Grading Scale'!E$5,'Grading Scale'!F$5,IF(S69='Grading Scale'!E$7,'Grading Scale'!F$7,IF(S69='Grading Scale'!E$9,'Grading Scale'!F$9,IF(S69='Grading Scale'!E$11,'Grading Scale'!F$11,'Grading Scale'!F$13)))))) -> B
A70: =Scores!A61 -> 0 | B70: =Scores!B61 -> 0 | C70: =Scores!C61 -> 0 | D70: =Scores!D61 -> 0 | E70: =Scores!E61 -> 0 | F70: =Scores!F61 -> 0 | G70: =Scores!G61 -> 0 | H70: =Scores!H61 -> 0 | I70: =Scores!I61 -> 0 | J70: =Scores!J61 -> 0 | K70: =Scores!K61 -> 0 | L70: =Scores!L61 -> 0 | M70: =Scores!M61 -> 0 | N70: =Scores!N61 -> 0 | O70: =Scores!O61 -> 0 | P70: -0.7071067812 | Q70: 2.951299423 | R70: 2.951299423 | S70: =IF(R70<'Grading Scale'!G$8,IF(R70<'Grading Scale'!G$13,'Grading Scale'!E$13,IF(R70<'Grading Scale'!G$12,'Grading Scale'!E$11,IF(R70<'Grading Scale'!G$11,'Grading Scale'!E$9,IF(R70<'Grading Scale'!G$10,'Grading Scale'!E$7,IF(R70<'Grading Scale'!G$9,'Grading Scale'!E$5,'Grading Scale'!E$3))))),IF(R70<'Grading Scale'!G$7,'Grading Scale'!B$13,IF(R70<'Grading Scale'!G$6,'Grading Scale'!B$11,IF(R70<'Grading Scale'!G$5,'Grading Scale'!B$9,IF(R70<'Grading Scale'!G$4,'Grading Scale'!B$7,IF(R70<'Grading Scale'!G$3,'Grading Scale'!B$5,'Grading Scale'!B$3)))))) -> 3 | T70: =Scores!B61 -> 0 | U70: =IF(S70>='Grading Scale'!B$13,IF(S70='Grading Scale'!B$3,'Grading Scale'!C$3,IF(S70='Grading Scale'!B$5,'Grading Scale'!C$5,IF(S70='Grading Scale'!B$7,'Grading Scale'!C$7,IF(S70='Grading Scale'!B$9,'Grading Scale'!C$9,IF(S70='Grading Scale'!B$11,'Grading Scale'!C$11,'Grading Scale'!C$13))))),IF(S70='Grading Scale'!E$3,'Grading Scale'!F$3,IF(S70='Grading Scale'!E$5,'Grading Scale'!F$5,IF(S70='Grading Scale'!E$7,'Grading Scale'!F$7,IF(S70='Grading Scale'!E$9,'Grading Scale'!F$9,IF(S70='Grading Scale'!E$11,'Grading Scale'!F$11,'Grading Scale'!F$13)))))) -> B
A71: =Scores!A62 -> 0 | B71: =Scores!B62 -> 0 | C71: =Scores!C62 -> 0 | D71: =Scores!D62 -> 0 | E71: =Scores!E62 -> 0 | F71: =Scores!F62 -> 0 | G71: =Scores!G62 -> 0 | H71: =Scores!H62 -> 0 | I71: =Scores!I62 -> 0 | J71: =Scores!J62 -> 0 | K71: =Scores!K62 -> 0 | L71: =Scores!L62 -> 0 | M71: =Scores!M62 -> 0 | N71: =Scores!N62 -> 0 | O71: =Scores!O62 -> 0 | P71: -0.7071067812 | Q71: 2.951299423 | R71: 2.951299423 | S71: =IF(R71<'Grading Scale'!G$8,IF(R71<'Grading Scale'!G$13,'Grading Scale'!E$13,IF(R71<'Grading Scale'!G$12,'Grading Scale'!E$11,IF(R71<'Grading Scale'!G$11,'Grading Scale'!E$9,IF(R71<'Grading Scale'!G$10,'Grading Scale'!E$7,IF(R71<'Grading Scale'!G$9,'Grading Scale'!E$5,'Grading Scale'!E$3))))),IF(R71<'Grading Scale'!G$7,'Grading Scale'!B$13,IF(R71<'Grading Scale'!G$6,'Grading Scale'!B$11,IF(R71<'Grading Scale'!G$5,'Grading Scale'!B$9,IF(R71<'Grading Scale'!G$4,'Grading Scale'!B$7,IF(R71<'Grading Scale'!G$3,'Grading Scale'!B$5,'Grading Scale'!B$3)))))) -> 3 | T71: =Scores!B62 -> 0 | U71: =IF(S71>='Grading Scale'!B$13,IF(S71='Grading Scale'!B$3,'Grading Scale'!C$3,IF(S71='Grading Scale'!B$5,'Grading Scale'!C$5,IF(S71='Grading Scale'!B$7,'Grading Scale'!C$7,IF(S71='Grading Scale'!B$9,'Grading Scale'!C$9,IF(S71='Grading Scale'!B$11,'Grading Scale'!C$11,'Grading Scale'!C$13))))),IF(S71='Grading Scale'!E$3,'Grading Scale'!F$3,IF(S71='Grading Scale'!E$5,'Grading Scale'!F$5,IF(S71='Grading Scale'!E$7,'Grading Scale'!F$7,IF(S71='Grading Scale'!E$9,'Grading Scale'!F$9,IF(S71='Grading Scale'!E$11,'Grading Scale'!F$11,'Grading Scale'!F$13)))))) -> B
A72: =Scores!A63 -> 0 | B72: =Scores!B63 -> 0 | C72: =Scores!C63 -> 0 | D72: =Scores!D63 -> 0 | E72: =Scores!E63 -> 0 | F72: =Scores!F63 -> 0 | G72: =Scores!G63 -> 0 | H72: =Scores!H63 -> 0 | I72: =Scores!I63 -> 0 | J72: =Scores!J63 -> 0 | K72: =Scores!K63 -> 0 | L72: =Scores!L63 -> 0 | M72: =Scores!M63 -> 0 | N72: =Scores!N63 -> 0 | O72: =Scores!O63 -> 0 | P72: -0.7071067812 | Q72: 2.951299423 | R72: 2.951299423 | S72: =IF(R72<'Grading Scale'!G$8,IF(R72<'Grading Scale'!G$13,'Grading Scale'!E$13,IF(R72<'Grading Scale'!G$12,'Grading Scale'!E$11,IF(R72<'Grading Scale'!G$11,'Grading Scale'!E$9,IF(R72<'Grading Scale'!G$10,'Grading Scale'!E$7,IF(R72<'Grading Scale'!G$9,'Grading Scale'!E$5,'Grading Scale'!E$3))))),IF(R72<'Grading Scale'!G$7,'Grading Scale'!B$13,IF(R72<'Grading Scale'!G$6,'Grading Scale'!B$11,IF(R72<'Grading Scale'!G$5,'Grading Scale'!B$9,IF(R72<'Grading Scale'!G$4,'Grading Scale'!B$7,IF(R72<'Grading Scale'!G$3,'Grading Scale'!B$5,'Grading Scale'!B$3)))))) -> 3 | T72: =Scores!B63 -> 0 | U72: =IF(S72>='Grading Scale'!B$13,IF(S72='Grading Scale'!B$3,'Grading Scale'!C$3,IF(S72='Grading Scale'!B$5,'Grading Scale'!C$5,IF(S72='Grading Scale'!B$7,'Grading Scale'!C$7,IF(S72='Grading Scale'!B$9,'Grading Scale'!C$9,IF(S72='Grading Scale'!B$11,'Grading Scale'!C$11,'Grading Scale'!C$13))))),IF(S72='Grading Scale'!E$3,'Grading Scale'!F$3,IF(S72='Grading Scale'!E$5,'Grading Scale'!F$5,IF(S72='Grading Scale'!E$7,'Grading Scale'!F$7,IF(S72='Grading Scale'!E$9,'Grading Scale'!F$9,IF(S72='Grading Scale'!E$11,'Grading Scale'!F$11,'Grading Scale'!F$13)))))) -> B
A73: =Scores!A64 -> 0 | B73: =Scores!B64 -> 0 | C73: =Scores!C64 -> 0 | D73: =Scores!D64 -> 0 | E73: =Scores!E64 -> 0 | F73: =Scores!F64 -> 0 | G73: =Scores!G64 -> 0 | H73: =Scores!H64 -> 0 | I73: =Scores!I64 -> 0 | J73: =Scores!J64 -> 0 | K73: =Scores!K64 -> 0 | L73: =Scores!L64 -> 0 | M73: =Scores!M64 -> 0 | N73: =Scores!N64 -> 0 | O73: =Scores!O64 -> 0 | P73: -0.7071067812 | Q73: 2.951299423 | R73: 2.951299423 | S73: =IF(R73<'Grading Scale'!G$8,IF(R73<'Grading Scale'!G$13,'Grading Scale'!E$13,IF(R73<'Grading Scale'!G$12,'Grading Scale'!E$11,IF(R73<'Grading Scale'!G$11,'Grading Scale'!E$9,IF(R73<'Grading Scale'!G$10,'Grading Scale'!E$7,IF(R73<'Grading Scale'!G$9,'Grading Scale'!E$5,'Grading Scale'!E$3))))),IF(R73<'Grading Scale'!G$7,'Grading Scale'!B$13,IF(R73<'Grading Scale'!G$6,'Grading Scale'!B$11,IF(R73<'Grading Scale'!G$5,'Grading Scale'!B$9,IF(R73<'Grading Scale'!G$4,'Grading Scale'!B$7,IF(R73<'Grading Scale'!G$3,'Grading Scale'!B$5,'Grading Scale'!B$3)))))) -> 3 | T73: =Scores!B64 -> 0 | U73: =IF(S73>='Grading Scale'!B$13,IF(S73='Grading Scale'!B$3,'Grading Scale'!C$3,IF(S73='Grading Scale'!B$5,'Grading Scale'!C$5,IF(S73='Grading Scale'!B$7,'Grading Scale'!C$7,IF(S73='Grading Scale'!B$9,'Grading Scale'!C$9,IF(S73='Grading Scale'!B$11,'Grading Scale'!C$11,'Grading Scale'!C$13))))),IF(S73='Grading Scale'!E$3,'Grading Scale'!F$3,IF(S73='Grading Scale'!E$5,'Grading Scale'!F$5,IF(S73='Grading Scale'!E$7,'Grading Scale'!F$7,IF(S73='Grading Scale'!E$9,'Grading Scale'!F$9,IF(S73='Grading Scale'!E$11,'Grading Scale'!F$11,'Grading Scale'!F$13)))))) -> B
A74: =Scores!A65 -> 0 | B74: =Scores!B65 -> 0 | C74: =Scores!C65 -> 0 | D74: =Scores!D65 -> 0 | E74: =Scores!E65 -> 0 | F74: =Scores!F65 -> 0 | G74: =Scores!G65 -> 0 | H74: =Scores!H65 -> 0 | I74: =Scores!I65 -> 0 | J74: =Scores!J65 -> 0 | K74: =Scores!K65 -> 0 | L74: =Scores!L65 -> 0 | M74: =Scores!M65 -> 0 | N74: =Scores!N65 -> 0 | O74: =Scores!O65 -> 0 | P74: -0.7071067812 | Q74: 2.951299423 | R74: 2.951299423 | S74: =IF(R74<'Grading Scale'!G$8,IF(R74<'Grading Scale'!G$13,'Grading Scale'!E$13,IF(R74<'Grading Scale'!G$12,'Grading Scale'!E$11,IF(R74<'Grading Scale'!G$11,'Grading Scale'!E$9,IF(R74<'Grading Scale'!G$10,'Grading Scale'!E$7,IF(R74<'Grading Scale'!G$9,'Grading Scale'!E$5,'Grading Scale'!E$3))))),IF(R74<'Grading Scale'!G$7,'Grading Scale'!B$13,IF(R74<'Grading Scale'!G$6,'Grading Scale'!B$11,IF(R74<'Grading Scale'!G$5,'Grading Scale'!B$9,IF(R74<'Grading Scale'!G$4,'Grading Scale'!B$7,IF(R74<'Grading Scale'!G$3,'Grading Scale'!B$5,'Grading Scale'!B$3)))))) -> 3 | T74: =Scores!B65 -> 0 | U74: =IF(S74>='Grading Scale'!B$13,IF(S74='Grading Scale'!B$3,'Grading Scale'!C$3,IF(S74='Grading Scale'!B$5,'Grading Scale'!C$5,IF(S74='Grading Scale'!B$7,'Grading Scale'!C$7,IF(S74='Grading Scale'!B$9,'Grading Scale'!C$9,IF(S74='Grading Scale'!B$11,'Grading Scale'!C$11,'Grading Scale'!C$13))))),IF(S74='Grading Scale'!E$3,'Grading Scale'!F$3,IF(S74='Grading Scale'!E$5,'Grading Scale'!F$5,IF(S74='Grading Scale'!E$7,'Grading Scale'!F$7,IF(S74='Grading Scale'!E$9,'Grading Scale'!F$9,IF(S74='Grading Scale'!E$11,'Grading Scale'!F$11,'Grading Scale'!F$13)))))) -> B
A75: =Scores!A66 -> 0 | B75: =Scores!B66 -> 0 | C75: =Scores!C66 -> 0 | D75: =Scores!D66 -> 0 | E75: =Scores!E66 -> 0 | F75: =Scores!F66 -> 0 | G75: =Scores!G66 -> 0 | H75: =Scores!H66 -> 0 | I75: =Scores!I66 -> 0 | J75: =Scores!J66 -> 0 | K75: =Scores!K66 -> 0 | L75: =Scores!L66 -> 0 | M75: =Scores!M66 -> 0 | N75: =Scores!N66 -> 0 | O75: =Scores!O66 -> 0 | P75: -0.7071067812 | Q75: 2.951299423 | R75: 2.951299423 | S75: =IF(R75<'Grading Scale'!G$8,IF(R75<'Grading Scale'!G$13,'Grading Scale'!E$13,IF(R75<'Grading Scale'!G$12,'Grading Scale'!E$11,IF(R75<'Grading Scale'!G$11,'Grading Scale'!E$9,IF(R75<'Grading Scale'!G$10,'Grading Scale'!E$7,IF(R75<'Grading Scale'!G$9,'Grading Scale'!E$5,'Grading Scale'!E$3))))),IF(R75<'Grading Scale'!G$7,'Grading Scale'!B$13,IF(R75<'Grading Scale'!G$6,'Grading Scale'!B$11,IF(R75<'Grading Scale'!G$5,'Grading Scale'!B$9,IF(R75<'Grading Scale'!G$4,'Grading Scale'!B$7,IF(R75<'Grading Scale'!G$3,'Grading Scale'!B$5,'Grading Scale'!B$3)))))) -> 3 | T75: =Scores!B66 -> 0 | U75: =IF(S75>='Grading Scale'!B$13,IF(S75='Grading Scale'!B$3,'Grading Scale'!C$3,IF(S75='Grading Scale'!B$5,'Grading Scale'!C$5,IF(S75='Grading Scale'!B$7,'Grading Scale'!C$7,IF(S75='Grading Scale'!B$9,'Grading Scale'!C$9,IF(S75='Grading Scale'!B$11,'Grading Scale'!C$11,'Grading Scale'!C$13))))),IF(S75='Grading Scale'!E$3,'Grading Scale'!F$3,IF(S75='Grading Scale'!E$5,'Grading Scale'!F$5,IF(S75='Grading Scale'!E$7,'Grading Scale'!F$7,IF(S75='Grading Scale'!E$9,'Grading Scale'!F$9,IF(S75='Grading Scale'!E$11,'Grading Scale'!F$11,'Grading Scale'!F$13)))))) -> B
A76: =Scores!A67 -> 0 | B76: =Scores!B67 -> 0 | C76: =Scores!C67 -> 0 | D76: =Scores!D67 -> 0 | E76: =Scores!E67 -> 0 | F76: =Scores!F67 -> 0 | G76: =Scores!G67 -> 0 | H76: =Scores!H67 -> 0 | I76: =Scores!I67 -> 0 | J76: =Scores!J67 -> 0 | K76: =Scores!K67 -> 0 | L76: =Scores!L67 -> 0 | M76: =Scores!M67 -> 0 | N76: =Scores!N67 -> 0 | O76: =Scores!O67 -> 0 | P76: -0.7071067812 | Q76: 2.951299423 | R76: 2.951299423 | S76: =IF(R76<'Grading Scale'!G$8,IF(R76<'Grading Scale'!G$13,'Grading Scale'!E$13,IF(R76<'Grading Scale'!G$12,'Grading Scale'!E$11,IF(R76<'Grading Scale'!G$11,'Grading Scale'!E$9,IF(R76<'Grading Scale'!G$10,'Grading Scale'!E$7,IF(R76<'Grading Scale'!G$9,'Grading Scale'!E$5,'Grading Scale'!E$3))))),IF(R76<'Grading Scale'!G$7,'Grading Scale'!B$13,IF(R76<'Grading Scale'!G$6,'Grading Scale'!B$11,IF(R76<'Grading Scale'!G$5,'Grading Scale'!B$9,IF(R76<'Grading Scale'!G$4,'Grading Scale'!B$7,IF(R76<'Grading Scale'!G$3,'Grading Scale'!B$5,'Grading Scale'!B$3)))))) -> 3 | T76: =Scores!B67 -> 0 | U76: =IF(S76>='Grading Scale'!B$13,IF(S76='Grading Scale'!B$3,'Grading Scale'!C$3,IF(S76='Grading Scale'!B$5,'Grading Scale'!C$5,IF(S76='Grading Scale'!B$7,'Grading Scale'!C$7,IF(S76='Grading Scale'!B$9,'Grading Scale'!C$9,IF(S76='Grading Scale'!B$11,'Grading Scale'!C$11,'Grading Scale'!C$13))))),IF(S76='Grading Scale'!E$3,'Grading Scale'!F$3,IF(S76='Grading Scale'!E$5,'Grading Scale'!F$5,IF(S76='Grading Scale'!E$7,'Grading Scale'!F$7,IF(S76='Grading Scale'!E$9,'Grading Scale'!F$9,IF(S76='Grading Scale'!E$11,'Grading Scale'!F$11,'Grading Scale'!F$13)))))) -> B
A77: =Scores!A68 -> 0 | B77: =Scores!B68 -> 0 | C77: =Scores!C68 -> 0 | D77: =Scores!D68 -> 0 | E77: =Scores!E68 -> 0 | F77: =Scores!F68 -> 0 | G77: =Scores!G68 -> 0 | H77: =Scores!H68 -> 0 | I77: =Scores!I68 -> 0 | J77: =Scores!J68 -> 0 | K77: =Scores!K68 -> 0 | L77: =Scores!L68 -> 0 | M77: =Scores!M68 -> 0 | N77: =Scores!N68 -> 0 | O77: =Scores!O68 -> 0 | P77: -0.7071067812 | Q77: 2.951299423 | R77: 2.951299423 | S77: =IF(R77<'Grading Scale'!G$8,IF(R77<'Grading Scale'!G$13,'Grading Scale'!E$13,IF(R77<'Grading Scale'!G$12,'Grading Scale'!E$11,IF(R77<'Grading Scale'!G$11,'Grading Scale'!E$9,IF(R77<'Grading Scale'!G$10,'Grading Scale'!E$7,IF(R77<'Grading Scale'!G$9,'Grading Scale'!E$5,'Grading Scale'!E$3))))),IF(R77<'Grading Scale'!G$7,'Grading Scale'!B$13,IF(R77<'Grading Scale'!G$6,'Grading Scale'!B$11,IF(R77<'Grading Scale'!G$5,'Grading Scale'!B$9,IF(R77<'Grading Scale'!G$4,'Grading Scale'!B$7,IF(R77<'Grading Scale'!G$3,'Grading Scale'!B$5,'Grading Scale'!B$3)))))) -> 3 | T77: =Scores!B68 -> 0 | U77: =IF(S77>='Grading Scale'!B$13,IF(S77='Grading Scale'!B$3,'Grading Scale'!C$3,IF(S77='Grading Scale'!B$5,'Grading Scale'!C$5,IF(S77='Grading Scale'!B$7,'Grading Scale'!C$7,IF(S77='Grading Scale'!B$9,'Grading Scale'!C$9,IF(S77='Grading Scale'!B$11,'Grading Scale'!C$11,'Grading Scale'!C$13))))),IF(S77='Grading Scale'!E$3,'Grading Scale'!F$3,IF(S77='Grading Scale'!E$5,'Grading Scale'!F$5,IF(S77='Grading Scale'!E$7,'Grading Scale'!F$7,IF(S77='Grading Scale'!E$9,'Grading Scale'!F$9,IF(S77='Grading Scale'!E$11,'Grading Scale'!F$11,'Grading Scale'!F$13)))))) -> B
A78: =Scores!A69 -> 0 | B78: =Scores!B69 -> 0 | C78: =Scores!C69 -> 0 | D78: =Scores!D69 -> 0 | E78: =Scores!E69 -> 0 | F78: =Scores!F69 -> 0 | G78: =Scores!G69 -> 0 | H78: =Scores!H69 -> 0 | I78: =Scores!I69 -> 0 | J78: =Scores!J69 -> 0 | K78: =Scores!K69 -> 0 | L78: =Scores!L69 -> 0 | M78: =Scores!M69 -> 0 | N78: =Scores!N69 -> 0 | O78: =Scores!O69 -> 0 | P78: -0.7071067812 | Q78: 2.951299423 | R78: 2.951299423 | S78: =IF(R78<'Grading Scale'!G$8,IF(R78<'Grading Scale'!G$13,'Grading Scale'!E$13,IF(R78<'Grading Scale'!G$12,'Grading Scale'!E$11,IF(R78<'Grading Scale'!G$11,'Grading Scale'!E$9,IF(R78<'Grading Scale'!G$10,'Grading Scale'!E$7,IF(R78<'Grading Scale'!G$9,'Grading Scale'!E$5,'Grading Scale'!E$3))))),IF(R78<'Grading Scale'!G$7,'Grading Scale'!B$13,IF(R78<'Grading Scale'!G$6,'Grading Scale'!B$11,IF(R78<'Grading Scale'!G$5,'Grading Scale'!B$9,IF(R78<'Grading Scale'!G$4,'Grading Scale'!B$7,IF(R78<'Grading Scale'!G$3,'Grading Scale'!B$5,'Grading Scale'!B$3)))))) -> 3 | T78: =Scores!B69 -> 0 | U78: =IF(S78>='Grading Scale'!B$13,IF(S78='Grading Scale'!B$3,'Grading Scale'!C$3,IF(S78='Grading Scale'!B$5,'Grading Scale'!C$5,IF(S78='Grading Scale'!B$7,'Grading Scale'!C$7,IF(S78='Grading Scale'!B$9,'Grading Scale'!C$9,IF(S78='Grading Scale'!B$11,'Grading Scale'!C$11,'Grading Scale'!C$13))))),IF(S78='Grading Scale'!E$3,'Grading Scale'!F$3,IF(S78='Grading Scale'!E$5,'Grading Scale'!F$5,IF(S78='Grading Scale'!E$7,'Grading Scale'!F$7,IF(S78='Grading Scale'!E$9,'Grading Scale'!F$9,IF(S78='Grading Scale'!E$11,'Grading Scale'!F$11,'Grading Scale'!F$13)))))) -> B
A79: =Scores!A70 -> 0 | B79: =Scores!B70 -> 0 | C79: =Scores!C70 -> 0 | D79: =Scores!D70 -> 0 | E79: =Scores!E70 -> 0 | F79: =Scores!F70 -> 0 | G79: =Scores!G70 -> 0 | H79: =Scores!H70 -> 0 | I79: =Scores!I70 -> 0 | J79: =Scores!J70 -> 0 | K79: =Scores!K70 -> 0 | L79: =Scores!L70 -> 0 | M79: =Scores!M70 -> 0 | N79: =Scores!N70 -> 0 | O79: =Scores!O70 -> 0 | P79: -0.7071067812 | Q79: 2.951299423 | R79: 2.951299423 | S79: =IF(R79<'Grading Scale'!G$8,IF(R79<'Grading Scale'!G$13,'Grading Scale'!E$13,IF(R79<'Grading Scale'!G$12,'Grading Scale'!E$11,IF(R79<'Grading Scale'!G$11,'Grading Scale'!E$9,IF(R79<'Grading Scale'!G$10,'Grading Scale'!E$7,IF(R79<'Grading Scale'!G$9,'Grading Scale'!E$5,'Grading Scale'!E$3))))),IF(R79<'Grading Scale'!G$7,'Grading Scale'!B$13,IF(R79<'Grading Scale'!G$6,'Grading Scale'!B$11,IF(R79<'Grading Scale'!G$5,'Grading Scale'!B$9,IF(R79<'Grading Scale'!G$4,'Grading Scale'!B$7,IF(R79<'Grading Scale'!G$3,'Grading Scale'!B$5,'Grading Scale'!B$3)))))) -> 3 | T79: =Scores!B70 -> 0 | U79: =IF(S79>='Grading Scale'!B$13,IF(S79='Grading Scale'!B$3,'Grading Scale'!C$3,IF(S79='Grading Scale'!B$5,'Grading Scale'!C$5,IF(S79='Grading Scale'!B$7,'Grading Scale'!C$7,IF(S79='Grading Scale'!B$9,'Grading Scale'!C$9,IF(S79='Grading Scale'!B$11,'Grading Scale'!C$11,'Grading Scale'!C$13))))),IF(S79='Grading Scale'!E$3,'Grading Scale'!F$3,IF(S79='Grading Scale'!E$5,'Grading Scale'!F$5,IF(S79='Grading Scale'!E$7,'Grading Scale'!F$7,IF(S79='Grading Scale'!E$9,'Grading Scale'!F$9,IF(S79='Grading Scale'!E$11,'Grading Scale'!F$11,'Grading Scale'!F$13)))))) -> B
A80: =Scores!A71 -> 0 | B80: =Scores!B71 -> 0 | C80: =Scores!C71 -> 0 | D80: =Scores!D71 -> 0 | E80: =Scores!E71 -> 0 | F80: =Scores!F71 -> 0 | G80: =Scores!G71 -> 0 | H80: =Scores!H71 -> 0 | I80: =Scores!I71 -> 0 | J80: =Scores!J71 -> 0 | K80: =Scores!K71 -> 0 | L80: =Scores!L71 -> 0 | M80: =Scores!M71 -> 0 | N80: =Scores!N71 -> 0 | O80: =Scores!O71 -> 0 | P80: -0.7071067812 | Q80: 2.951299423 | R80: 2.951299423 | S80: =IF(R80<'Grading Scale'!G$8,IF(R80<'Grading Scale'!G$13,'Grading Scale'!E$13,IF(R80<'Grading Scale'!G$12,'Grading Scale'!E$11,IF(R80<'Grading Scale'!G$11,'Grading Scale'!E$9,IF(R80<'Grading Scale'!G$10,'Grading Scale'!E$7,IF(R80<'Grading Scale'!G$9,'Grading Scale'!E$5,'Grading Scale'!E$3))))),IF(R80<'Grading Scale'!G$7,'Grading Scale'!B$13,IF(R80<'Grading Scale'!G$6,'Grading Scale'!B$11,IF(R80<'Grading Scale'!G$5,'Grading Scale'!B$9,IF(R80<'Grading Scale'!G$4,'Grading Scale'!B$7,IF(R80<'Grading Scale'!G$3,'Grading Scale'!B$5,'Grading Scale'!B$3)))))) -> 3 | T80: =Scores!B71 -> 0 | U80: =IF(S80>='Grading Scale'!B$13,IF(S80='Grading Scale'!B$3,'Grading Scale'!C$3,IF(S80='Grading Scale'!B$5,'Grading Scale'!C$5,IF(S80='Grading Scale'!B$7,'Grading Scale'!C$7,IF(S80='Grading Scale'!B$9,'Grading Scale'!C$9,IF(S80='Grading Scale'!B$11,'Grading Scale'!C$11,'Grading Scale'!C$13))))),IF(S80='Grading Scale'!E$3,'Grading Scale'!F$3,IF(S80='Grading Scale'!E$5,'Grading Scale'!F$5,IF(S80='Grading Scale'!E$7,'Grading Scale'!F$7,IF(S80='Grading Scale'!E$9,'Grading Scale'!F$9,IF(S80='Grading Scale'!E$11,'Grading Scale'!F$11,'Grading Scale'!F$13)))))) -> B
A81: =Scores!A72 -> 0 | B81: =Scores!B72 -> 0 | C81: =Scores!C72 -> 0 | D81: =Scores!D72 -> 0 | E81: =Scores!E72 -> 0 | F81: =Scores!F72 -> 0 | G81: =Scores!G72 -> 0 | H81: =Scores!H72 -> 0 | I81: =Scores!I72 -> 0 | J81: =Scores!J72 -> 0 | K81: =Scores!K72 -> 0 | L81: =Scores!L72 -> 0 | M81: =Scores!M72 -> 0 | N81: =Scores!N72 -> 0 | O81: =Scores!O72 -> 0 | P81: -0.7071067812 | Q81: 2.951299423 | R81: 2.951299423 | S81: =IF(R81<'Grading Scale'!G$8,IF(R81<'Grading Scale'!G$13,'Grading Scale'!E$13,IF(R81<'Grading Scale'!G$12,'Grading Scale'!E$11,IF(R81<'Grading Scale'!G$11,'Grading Scale'!E$9,IF(R81<'Grading Scale'!G$10,'Grading Scale'!E$7,IF(R81<'Grading Scale'!G$9,'Grading Scale'!E$5,'Grading Scale'!E$3))))),IF(R81<'Grading Scale'!G$7,'Grading Scale'!B$13,IF(R81<'Grading Scale'!G$6,'Grading Scale'!B$11,IF(R81<'Grading Scale'!G$5,'Grading Scale'!B$9,IF(R81<'Grading Scale'!G$4,'Grading Scale'!B$7,IF(R81<'Grading Scale'!G$3,'Grading Scale'!B$5,'Grading Scale'!B$3)))))) -> 3 | T81: =Scores!B72 -> 0 | U81: =IF(S81>='Grading Scale'!B$13,IF(S81='Grading Scale'!B$3,'Grading Scale'!C$3,IF(S81='Grading Scale'!B$5,'Grading Scale'!C$5,IF(S81='Grading Scale'!B$7,'Grading Scale'!C$7,IF(S81='Grading Scale'!B$9,'Grading Scale'!C$9,IF(S81='Grading Scale'!B$11,'Grading Scale'!C$11,'Grading Scale'!C$13))))),IF(S81='Grading Scale'!E$3,'Grading Scale'!F$3,IF(S81='Grading Scale'!E$5,'Grading Scale'!F$5,IF(S81='Grading Scale'!E$7,'Grading Scale'!F$7,IF(S81='Grading Scale'!E$9,'Grading Scale'!F$9,IF(S81='Grading Scale'!E$11,'Grading Scale'!F$11,'Grading Scale'!F$13)))))) -> B
A82: =Scores!A73 -> 0 | B82: =Scores!B73 -> 0 | C82: =Scores!C73 -> 0 | D82: =Scores!D73 -> 0 | E82: =Scores!E73 -> 0 | F82: =Scores!F73 -> 0 | G82: =Scores!G73 -> 0 | H82: =Scores!H73 -> 0 | I82: =Scores!I73 -> 0 | J82: =Scores!J73 -> 0 | K82: =Scores!K73 -> 0 | L82: =Scores!L73 -> 0 | M82: =Scores!M73 -> 0 | N82: =Scores!N73 -> 0 | O82: =Scores!O73 -> 0 | P82: -0.7071067812 | Q82: 2.951299423 | R82: 2.951299423 | S82: =IF(R82<'Grading Scale'!G$8,IF(R82<'Grading Scale'!G$13,'Grading Scale'!E$13,IF(R82<'Grading Scale'!G$12,'Grading Scale'!E$11,IF(R82<'Grading Scale'!G$11,'Grading Scale'!E$9,IF(R82<'Grading Scale'!G$10,'Grading Scale'!E$7,IF(R82<'Grading Scale'!G$9,'Grading Scale'!E$5,'Grading Scale'!E$3))))),IF(R82<'Grading Scale'!G$7,'Grading Scale'!B$13,IF(R82<'Grading Scale'!G$6,'Grading Scale'!B$11,IF(R82<'Grading Scale'!G$5,'Grading Scale'!B$9,IF(R82<'Grading Scale'!G$4,'Grading Scale'!B$7,IF(R82<'Grading Scale'!G$3,'Grading Scale'!B$5,'Grading Scale'!B$3)))))) -> 3 | T82: =Scores!B73 -> 0 | U82: =IF(S82>='Grading Scale'!B$13,IF(S82='Grading Scale'!B$3,'Grading Scale'!C$3,IF(S82='Grading Scale'!B$5,'Grading Scale'!C$5,IF(S82='Grading Scale'!B$7,'Grading Scale'!C$7,IF(S82='Grading Scale'!B$9,'Grading Scale'!C$9,IF(S82='Grading Scale'!B$11,'Grading Scale'!C$11,'Grading Scale'!C$13))))),IF(S82='Grading Scale'!E$3,'Grading Scale'!F$3,IF(S82='Grading Scale'!E$5,'Grading Scale'!F$5,IF(S82='Grading Scale'!E$7,'Grading Scale'!F$7,IF(S82='Grading Scale'!E$9,'Grading Scale'!F$9,IF(S82='Grading Scale'!E$11,'Grading Scale'!F$11,'Grading Scale'!F$13)))))) -> B
A83: =Scores!A74 -> 0 | B83: =Scores!B74 -> 0 | C83: =Scores!C74 -> 0 | D83: =Scores!D74 -> 0 | E83: =Scores!E74 -> 0 | F83: =Scores!F74 -> 0 | G83: =Scores!G74 -> 0 | H83: =Scores!H74 -> 0 | I83: =Scores!I74 -> 0 | J83: =Scores!J74 -> 0 | K83: =Scores!K74 -> 0 | L83: =Scores!L74 -> 0 | M83: =Scores!M74 -> 0 | N83: =Scores!N74 -> 0 | O83: =Scores!O74 -> 0 | P83: -0.7071067812 | Q83: 2.951299423 | R83: 2.951299423 | S83: =IF(R83<'Grading Scale'!G$8,IF(R83<'Grading Scale'!G$13,'Grading Scale'!E$13,IF(R83<'Grading Scale'!G$12,'Grading Scale'!E$11,IF(R83<'Grading Scale'!G$11,'Grading Scale'!E$9,IF(R83<'Grading Scale'!G$10,'Grading Scale'!E$7,IF(R83<'Grading Scale'!G$9,'Grading Scale'!E$5,'Grading Scale'!E$3))))),IF(R83<'Grading Scale'!G$7,'Grading Scale'!B$13,IF(R83<'Grading Scale'!G$6,'Grading Scale'!B$11,IF(R83<'Grading Scale'!G$5,'Grading Scale'!B$9,IF(R83<'Grading Scale'!G$4,'Grading Scale'!B$7,IF(R83<'Grading Scale'!G$3,'Grading Scale'!B$5,'Grading Scale'!B$3)))))) -> 3 | T83: =Scores!B74 -> 0 | U83: =IF(S83>='Grading Scale'!B$13,IF(S83='Grading Scale'!B$3,'Grading Scale'!C$3,IF(S83='Grading Scale'!B$5,'Grading Scale'!C$5,IF(S83='Grading Scale'!B$7,'Grading Scale'!C$7,IF(S83='Grading Scale'!B$9,'Grading Scale'!C$9,IF(S83='Grading Scale'!B$11,'Grading Scale'!C$11,'Grading Scale'!C$13))))),IF(S83='Grading Scale'!E$3,'Grading Scale'!F$3,IF(S83='Grading Scale'!E$5,'Grading Scale'!F$5,IF(S83='Grading Scale'!E$7,'Grading Scale'!F$7,IF(S83='Grading Scale'!E$9,'Grading Scale'!F$9,IF(S83='Grading Scale'!E$11,'Grading Scale'!F$11,'Grading Scale'!F$13)))))) -> B
A84: =Scores!A75 -> 0 | B84: =Scores!B75 -> 0 | C84: =Scores!C75 -> 0 | D84: =Scores!D75 -> 0 | E84: =Scores!E75 -> 0 | F84: =Scores!F75 -> 0 | G84: =Scores!G75 -> 0 | H84: =Scores!H75 -> 0 | I84: =Scores!I75 -> 0 | J84: =Scores!J75 -> 0 | K84: =Scores!K75 -> 0 | L84: =Scores!L75 -> 0 | M84: =Scores!M75 -> 0 | N84: =Scores!N75 -> 0 | O84: =Scores!O75 -> 0 | P84: -0.7071067812 | Q84: 2.951299423 | R84: 2.951299423 | S84: =IF(R84<'Grading Scale'!G$8,IF(R84<'Grading Scale'!G$13,'Grading Scale'!E$13,IF(R84<'Grading Scale'!G$12,'Grading Scale'!E$11,IF(R84<'Grading Scale'!G$11,'Grading Scale'!E$9,IF(R84<'Grading Scale'!G$10,'Grading Scale'!E$7,IF(R84<'Grading Scale'!G$9,'Grading Scale'!E$5,'Grading Scale'!E$3))))),IF(R84<'Grading Scale'!G$7,'Grading Scale'!B$13,IF(R84<'Grading Scale'!G$6,'Grading Scale'!B$11,IF(R84<'Grading Scale'!G$5,'Grading Scale'!B$9,IF(R84<'Grading Scale'!G$4,'Grading Scale'!B$7,IF(R84<'Grading Scale'!G$3,'Grading Scale'!B$5,'Grading Scale'!B$3)))))) -> 3 | T84: =Scores!B75 -> 0 | U84: =IF(S84>='Grading Scale'!B$13,IF(S84='Grading Scale'!B$3,'Grading Scale'!C$3,IF(S84='Grading Scale'!B$5,'Grading Scale'!C$5,IF(S84='Grading Scale'!B$7,'Grading Scale'!C$7,IF(S84='Grading Scale'!B$9,'Grading Scale'!C$9,IF(S84='Grading Scale'!B$11,'Grading Scale'!C$11,'Grading Scale'!C$13))))),IF(S84='Grading Scale'!E$3,'Grading Scale'!F$3,IF(S84='Grading Scale'!E$5,'Grading Scale'!F$5,IF(S84='Grading Scale'!E$7,'Grading Scale'!F$7,IF(S84='Grading Scale'!E$9,'Grading Scale'!F$9,IF(S84='Grading Scale'!E$11,'Grading Scale'!F$11,'Grading Scale'!F$13)))))) -> B
A85: =Scores!A76 -> 0 | B85: =Scores!B76 -> 0 | C85: =Scores!C76 -> 0 | D85: =Scores!D76 -> 0 | E85: =Scores!E76 -> 0 | F85: =Scores!F76 -> 0 | G85: =Scores!G76 -> 0 | H85: =Scores!H76 -> 0 | I85: =Scores!I76 -> 0 | J85: =Scores!J76 -> 0 | K85: =Scores!K76 -> 0 | L85: =Scores!L76 -> 0 | M85: =Scores!M76 -> 0 | N85: =Scores!N76 -> 0 | O85: =Scores!O76 -> 0 | P85: -0.7071067812 | Q85: 2.951299423 | R85: 2.951299423 | S85: =IF(R85<'Grading Scale'!G$8,IF(R85<'Grading Scale'!G$13,'Grading Scale'!E$13,IF(R85<'Grading Scale'!G$12,'Grading Scale'!E$11,IF(R85<'Grading Scale'!G$11,'Grading Scale'!E$9,IF(R85<'Grading Scale'!G$10,'Grading Scale'!E$7,IF(R85<'Grading Scale'!G$9,'Grading Scale'!E$5,'Grading Scale'!E$3))))),IF(R85<'Grading Scale'!G$7,'Grading Scale'!B$13,IF(R85<'Grading Scale'!G$6,'Grading Scale'!B$11,IF(R85<'Grading Scale'!G$5,'Grading Scale'!B$9,IF(R85<'Grading Scale'!G$4,'Grading Scale'!B$7,IF(R85<'Grading Scale'!G$3,'Grading Scale'!B$5,'Grading Scale'!B$3)))))) -> 3 | T85: =Scores!B76 -> 0 | U85: =IF(S85>='Grading Scale'!B$13,IF(S85='Grading Scale'!B$3,'Grading Scale'!C$3,IF(S85='Grading Scale'!B$5,'Grading Scale'!C$5,IF(S85='Grading Scale'!B$7,'Grading Scale'!C$7,IF(S85='Grading Scale'!B$9,'Grading Scale'!C$9,IF(S85='Grading Scale'!B$11,'Grading Scale'!C$11,'Grading Scale'!C$13))))),IF(S85='Grading Scale'!E$3,'Grading Scale'!F$3,IF(S85='Grading Scale'!E$5,'Grading Scale'!F$5,IF(S85='Grading Scale'!E$7,'Grading Scale'!F$7,IF(S85='Grading Scale'!E$9,'Grading Scale'!F$9,IF(S85='Grading Scale'!E$11,'Grading Scale'!F$11,'Grading Scale'!F$13)))))) -> B
A86: =Scores!A77 -> 0 | B86: =Scores!B77 -> 0 | C86: =Scores!C77 -> 0 | D86: =Scores!D77 -> 0 | E86: =Scores!E77 -> 0 | F86: =Scores!F77 -> 0 | G86: =Scores!G77 -> 0 | H86: =Scores!H77 -> 0 | I86: =Scores!I77 -> 0 | J86: =Scores!J77 -> 0 | K86: =Scores!K77 -> 0 | L86: =Scores!L77 -> 0 | M86: =Scores!M77 -> 0 | N86: =Scores!N77 -> 0 | O86: =Scores!O77 -> 0 | P86: -0.7071067812 | Q86: 2.951299423 | R86: 2.951299423 | S86: =IF(R86<'Grading Scale'!G$8,IF(R86<'Grading Scale'!G$13,'Grading Scale'!E$13,IF(R86<'Grading Scale'!G$12,'Grading Scale'!E$11,IF(R86<'Grading Scale'!G$11,'Grading Scale'!E$9,IF(R86<'Grading Scale'!G$10,'Grading Scale'!E$7,IF(R86<'Grading Scale'!G$9,'Grading Scale'!E$5,'Grading Scale'!E$3))))),IF(R86<'Grading Scale'!G$7,'Grading Scale'!B$13,IF(R86<'Grading Scale'!G$6,'Grading Scale'!B$11,IF(R86<'Grading Scale'!G$5,'Grading Scale'!B$9,IF(R86<'Grading Scale'!G$4,'Grading Scale'!B$7,IF(R86<'Grading Scale'!G$3,'Grading Scale'!B$5,'Grading Scale'!B$3)))))) -> 3 | T86: =Scores!B77 -> 0 | U86: =IF(S86>='Grading Scale'!B$13,IF(S86='Grading Scale'!B$3,'Grading Scale'!C$3,IF(S86='Grading Scale'!B$5,'Grading Scale'!C$5,IF(S86='Grading Scale'!B$7,'Grading Scale'!C$7,IF(S86='Grading Scale'!B$9,'Grading Scale'!C$9,IF(S86='Grading Scale'!B$11,'Grading Scale'!C$11,'Grading Scale'!C$13))))),IF(S86='Grading Scale'!E$3,'Grading Scale'!F$3,IF(S86='Grading Scale'!E$5,'Grading Scale'!F$5,IF(S86='Grading Scale'!E$7,'Grading Scale'!F$7,IF(S86='Grading Scale'!E$9,'Grading Scale'!F$9,IF(S86='Grading Scale'!E$11,'Grading Scale'!F$11,'Grading Scale'!F$13)))))) -> B
A87: =Scores!A78 -> 0 | B87: =Scores!B78 -> 0 | C87: =Scores!C78 -> 0 | D87: =Scores!D78 -> 0 | E87: =Scores!E78 -> 0 | F87: =Scores!F78 -> 0 | G87: =Scores!G78 -> 0 | H87: =Scores!H78 -> 0 | I87: =Scores!I78 -> 0 | J87: =Scores!J78 -> 0 | K87: =Scores!K78 -> 0 | L87: =Scores!L78 -> 0 | M87: =Scores!M78 -> 0 | N87: =Scores!N78 -> 0 | O87: =Scores!O78 -> 0 | P87: =(C87-$C$17)*$C$19+(D87-$D$17)*$D$19+(E87-$E$17)*$E$19+(F87-$F$17)*$F$19+(G87-$G$17)*$G$19+(H87-$H$17)*$H$19+(I87-$I$17)*$I$19+(J87-$J$17)*$J$19+(K87-$K$17)*$K$19+(L87-$L$17)*$L$19 -> -0.7071067812 | Q87: =(((P87-$P$19)/$P$16)*$S$2)+$S$1 -> 2.951299423 | R87: =Q87+(N87*N$21)+(O87*O$21) -> 2.951299423 | S87: =IF(R87<'Grading Scale'!G$8,IF(R87<'Grading Scale'!G$13,'Grading Scale'!E$13,IF(R87<'Grading Scale'!G$12,'Grading Scale'!E$11,IF(R87<'Grading Scale'!G$11,'Grading Scale'!E$9,IF(R87<'Grading Scale'!G$10,'Grading Scale'!E$7,IF(R87<'Grading Scale'!G$9,'Grading Scale'!E$5,'Grading Scale'!E$3))))),IF(R87<'Grading Scale'!G$7,'Grading Scale'!B$13,IF(R87<'Grading Scale'!G$6,'Grading Scale'!B$11,IF(R87<'Grading Scale'!G$5,'Grading Scale'!B$9,IF(R87<'Grading Scale'!G$4,'Grading Scale'!B$7,IF(R87<'Grading Scale'!G$3,'Grading Scale'!B$5,'Grading Scale'!B$3)))))) -> 3 | T87: =Scores!B78 -> 0 | U87: =IF(S87>='Grading Scale'!B$13,IF(S87='Grading Scale'!B$3,'Grading Scale'!C$3,IF(S87='Grading Scale'!B$5,'Grading Scale'!C$5,IF(S87='Grading Scale'!B$7,'Grading Scale'!C$7,IF(S87='Grading Scale'!B$9,'Grading Scale'!C$9,IF(S87='Grading Scale'!B$11,'Grading Scale'!C$11,'Grading Scale'!C$13))))),IF(S87='Grading Scale'!E$3,'Grading Scale'!F$3,IF(S87='Grading Scale'!E$5,'Grading Scale'!F$5,IF(S87='Grading Scale'!E$7,'Grading Scale'!F$7,IF(S87='Grading Scale'!E$9,'Grading Scale'!F$9,IF(S87='Grading Scale'!E$11,'Grading Scale'!F$11,'Grading Scale'!F$13)))))) -> B | V87: =IF(P87=$P$17,"BEST"," ") ->  | X87: =IF(W87=0,"",IF(W87=S87,"",IF(W87>S87,"dropped","increased"))) -> 
A88: =Scores!A79 -> 0 | B88: =Scores!B79 -> 0 | C88: =Scores!C79 -> 0 | D88: =Scores!D79 -> 0 | E88: =Scores!E79 -> 0 | F88: =Scores!F79 -> 0 | G88: =Scores!G79 -> 0 | H88: =Scores!H79 -> 0 | I88: =Scores!I79 -> 0 | J88: =Scores!J79 -> 0 | K88: =Scores!K79 -> 0 | L88: =Scores!L79 -> 0 | M88: =Scores!M79 -> 0 | N88: =Scores!N79 -> 0 | O88: =Scores!O79 -> 0 | P88: -0.7071067812 | Q88: 2.951299423 | R88: 2.951299423 | S88: =IF(R88<'Grading Scale'!G$8,IF(R88<'Grading Scale'!G$13,'Grading Scale'!E$13,IF(R88<'Grading Scale'!G$12,'Grading Scale'!E$11,IF(R88<'Grading Scale'!G$11,'Grading Scale'!E$9,IF(R88<'Grading Scale'!G$10,'Grading Scale'!E$7,IF(R88<'Grading Scale'!G$9,'Grading Scale'!E$5,'Grading Scale'!E$3))))),IF(R88<'Grading Scale'!G$7,'Grading Scale'!B$13,IF(R88<'Grading Scale'!G$6,'Grading Scale'!B$11,IF(R88<'Grading Scale'!G$5,'Grading Scale'!B$9,IF(R88<'Grading Scale'!G$4,'Grading Scale'!B$7,IF(R88<'Grading Scale'!G$3,'Grading Scale'!B$5,'Grading Scale'!B$3)))))) -> 3 | T88: =Scores!B79 -> 0 | U88: =IF(S88>='Grading Scale'!B$13,IF(S88='Grading Scale'!B$3,'Grading Scale'!C$3,IF(S88='Grading Scale'!B$5,'Grading Scale'!C$5,IF(S88='Grading Scale'!B$7,'Grading Scale'!C$7,IF(S88='Grading Scale'!B$9,'Grading Scale'!C$9,IF(S88='Grading Scale'!B$11,'Grading Scale'!C$11,'Grading Scale'!C$13))))),IF(S88='Grading Scale'!E$3,'Grading Scale'!F$3,IF(S88='Grading Scale'!E$5,'Grading Scale'!F$5,IF(S88='Grading Scale'!E$7,'Grading Scale'!F$7,IF(S88='Grading Scale'!E$9,'Grading Scale'!F$9,IF(S88='Grading Scale'!E$11,'Grading Scale'!F$11,'Grading Scale'!F$13)))))) -> B
A89: =Scores!A80 -> 0 | B89: =Scores!B80 -> 0 | C89: =Scores!C80 -> 0 | D89: =Scores!D80 -> 0 | E89: =Scores!E80 -> 0 | F89: =Scores!F80 -> 0 | G89: =Scores!G80 -> 0 | H89: =Scores!H80 -> 0 | I89: =Scores!I80 -> 0 | J89: =Scores!J80 -> 0 | K89: =Scores!K80 -> 0 | L89: =Scores!L80 -> 0 | M89: =Scores!M80 -> 0 | N89: =Scores!N80 -> 0 | O89: =Scores!O80 -> 0 | P89: -0.7071067812 | Q89: 2.951299423 | R89: 2.951299423 | S89: =IF(R89<'Grading Scale'!G$8,IF(R89<'Grading Scale'!G$13,'Grading Scale'!E$13,IF(R89<'Grading Scale'!G$12,'Grading Scale'!E$11,IF(R89<'Grading Scale'!G$11,'Grading Scale'!E$9,IF(R89<'Grading Scale'!G$10,'Grading Scale'!E$7,IF(R89<'Grading Scale'!G$9,'Grading Scale'!E$5,'Grading Scale'!E$3))))),IF(R89<'Grading Scale'!G$7,'Grading Scale'!B$13,IF(R89<'Grading Scale'!G$6,'Grading Scale'!B$11,IF(R89<'Grading Scale'!G$5,'Grading Scale'!B$9,IF(R89<'Grading Scale'!G$4,'Grading Scale'!B$7,IF(R89<'Grading Scale'!G$3,'Grading Scale'!B$5,'Grading Scale'!B$3)))))) -> 3 | T89: =Scores!B80 -> 0 | U89: =IF(S89>='Grading Scale'!B$13,IF(S89='Grading Scale'!B$3,'Grading Scale'!C$3,IF(S89='Grading Scale'!B$5,'Grading Scale'!C$5,IF(S89='Grading Scale'!B$7,'Grading Scale'!C$7,IF(S89='Grading Scale'!B$9,'Grading Scale'!C$9,IF(S89='Grading Scale'!B$11,'Grading Scale'!C$11,'Grading Scale'!C$13))))),IF(S89='Grading Scale'!E$3,'Grading Scale'!F$3,IF(S89='Grading Scale'!E$5,'Grading Scale'!F$5,IF(S89='Grading Scale'!E$7,'Grading Scale'!F$7,IF(S89='Grading Scale'!E$9,'Grading Scale'!F$9,IF(S89='Grading Scale'!E$11,'Grading Scale'!F$11,'Grading Scale'!F$13)))))) -> B
A90: =Scores!A81 -> 0 | B90: =Scores!B81 -> 0 | C90: =Scores!C81 -> 0 | D90: =Scores!D81 -> 0 | E90: =Scores!E81 -> 0 | F90: =Scores!F81 -> 0 | G90: =Scores!G81 -> 0 | H90: =Scores!H81 -> 0 | I90: =Scores!I81 -> 0 | J90: =Scores!J81 -> 0 | K90: =Scores!K81 -> 0 | L90: =Scores!L81 -> 0 | M90: =Scores!M81 -> 0 | N90: =Scores!N81 -> 0 | O90: =Scores!O81 -> 0 | P90: -0.7071067812 | Q90: 2.951299423 | R90: 2.951299423 | S90: =IF(R90<'Grading Scale'!G$8,IF(R90<'Grading Scale'!G$13,'Grading Scale'!E$13,IF(R90<'Grading Scale'!G$12,'Grading Scale'!E$11,IF(R90<'Grading Scale'!G$11,'Grading Scale'!E$9,IF(R90<'Grading Scale'!G$10,'Grading Scale'!E$7,IF(R90<'Grading Scale'!G$9,'Grading Scale'!E$5,'Grading Scale'!E$3))))),IF(R90<'Grading Scale'!G$7,'Grading Scale'!B$13,IF(R90<'Grading Scale'!G$6,'Grading Scale'!B$11,IF(R90<'Grading Scale'!G$5,'Grading Scale'!B$9,IF(R90<'Grading Scale'!G$4,'Grading Scale'!B$7,IF(R90<'Grading Scale'!G$3,'Grading Scale'!B$5,'Grading Scale'!B$3)))))) -> 3 | T90: =Scores!B81 -> 0 | U90: =IF(S90>='Grading Scale'!B$13,IF(S90='Grading Scale'!B$3,'Grading Scale'!C$3,IF(S90='Grading Scale'!B$5,'Grading Scale'!C$5,IF(S90='Grading Scale'!B$7,'Grading Scale'!C$7,IF(S90='Grading Scale'!B$9,'Grading Scale'!C$9,IF(S90='Grading Scale'!B$11,'Grading Scale'!C$11,'Grading Scale'!C$13))))),IF(S90='Grading Scale'!E$3,'Grading Scale'!F$3,IF(S90='Grading Scale'!E$5,'Grading Scale'!F$5,IF(S90='Grading Scale'!E$7,'Grading Scale'!F$7,IF(S90='Grading Scale'!E$9,'Grading Scale'!F$9,IF(S90='Grading Scale'!E$11,'Grading Scale'!F$11,'Grading Scale'!F$13)))))) -> B
A91: =Scores!A82 -> 0 | B91: =Scores!B82 -> 0 | C91: =Scores!C82 -> 0 | D91: =Scores!D82 -> 0 | E91: =Scores!E82 -> 0 | F91: =Scores!F82 -> 0 | G91: =Scores!G82 -> 0 | H91: =Scores!H82 -> 0 | I91: =Scores!I82 -> 0 | J91: =Scores!J82 -> 0 | K91: =Scores!K82 -> 0 | L91: =Scores!L82 -> 0 | M91: =Scores!M82 -> 0 | N91: =Scores!N82 -> 0 | O91: =Scores!O82 -> 0 | P91: -0.7071067812 | Q91: 2.951299423 | R91: 2.951299423 | S91: =IF(R91<'Grading Scale'!G$8,IF(R91<'Grading Scale'!G$13,'Grading Scale'!E$13,IF(R91<'Grading Scale'!G$12,'Grading Scale'!E$11,IF(R91<'Grading Scale'!G$11,'Grading Scale'!E$9,IF(R91<'Grading Scale'!G$10,'Grading Scale'!E$7,IF(R91<'Grading Scale'!G$9,'Grading Scale'!E$5,'Grading Scale'!E$3))))),IF(R91<'Grading Scale'!G$7,'Grading Scale'!B$13,IF(R91<'Grading Scale'!G$6,'Grading Scale'!B$11,IF(R91<'Grading Scale'!G$5,'Grading Scale'!B$9,IF(R91<'Grading Scale'!G$4,'Grading Scale'!B$7,IF(R91<'Grading Scale'!G$3,'Grading Scale'!B$5,'Grading Scale'!B$3)))))) -> 3 | T91: =Scores!B82 -> 0 | U91: =IF(S91>='Grading Scale'!B$13,IF(S91='Grading Scale'!B$3,'Grading Scale'!C$3,IF(S91='Grading Scale'!B$5,'Grading Scale'!C$5,IF(S91='Grading Scale'!B$7,'Grading Scale'!C$7,IF(S91='Grading Scale'!B$9,'Grading Scale'!C$9,IF(S91='Grading Scale'!B$11,'Grading Scale'!C$11,'Grading Scale'!C$13))))),IF(S91='Grading Scale'!E$3,'Grading Scale'!F$3,IF(S91='Grading Scale'!E$5,'Grading Scale'!F$5,IF(S91='Grading Scale'!E$7,'Grading Scale'!F$7,IF(S91='Grading Scale'!E$9,'Grading Scale'!F$9,IF(S91='Grading Scale'!E$11,'Grading Scale'!F$11,'Grading Scale'!F$13)))))) -> B
A92: =Scores!A83 -> 0 | B92: =Scores!B83 -> 0 | C92: =Scores!C83 -> 0 | D92: =Scores!D83 -> 0 | E92: =Scores!E83 -> 0 | F92: =Scores!F83 -> 0 | G92: =Scores!G83 -> 0 | H92: =Scores!H83 -> 0 | I92: =Scores!I83 -> 0 | J92: =Scores!J83 -> 0 | K92: =Scores!K83 -> 0 | L92: =Scores!L83 -> 0 | M92: =Scores!M83 -> 0 | N92: =Scores!N83 -> 0 | O92: =Scores!O83 -> 0 | P92: -0.7071067812 | Q92: 2.951299423 | R92: 2.951299423 | S92: =IF(R92<'Grading Scale'!G$8,IF(R92<'Grading Scale'!G$13,'Grading Scale'!E$13,IF(R92<'Grading Scale'!G$12,'Grading Scale'!E$11,IF(R92<'Grading Scale'!G$11,'Grading Scale'!E$9,IF(R92<'Grading Scale'!G$10,'Grading Scale'!E$7,IF(R92<'Grading Scale'!G$9,'Grading Scale'!E$5,'Grading Scale'!E$3))))),IF(R92<'Grading Scale'!G$7,'Grading Scale'!B$13,IF(R92<'Grading Scale'!G$6,'Grading Scale'!B$11,IF(R92<'Grading Scale'!G$5,'Grading Scale'!B$9,IF(R92<'Grading Scale'!G$4,'Grading Scale'!B$7,IF(R92<'Grading Scale'!G$3,'Grading Scale'!B$5,'Grading Scale'!B$3)))))) -> 3 | T92: =Scores!B83 -> 0 | U92: =IF(S92>='Grading Scale'!B$13,IF(S92='Grading Scale'!B$3,'Grading Scale'!C$3,IF(S92='Grading Scale'!B$5,'Grading Scale'!C$5,IF(S92='Grading Scale'!B$7,'Grading Scale'!C$7,IF(S92='Grading Scale'!B$9,'Grading Scale'!C$9,IF(S92='Grading Scale'!B$11,'Grading Scale'!C$11,'Grading Scale'!C$13))))),IF(S92='Grading Scale'!E$3,'Grading Scale'!F$3,IF(S92='Grading Scale'!E$5,'Grading Scale'!F$5,IF(S92='Grading Scale'!E$7,'Grading Scale'!F$7,IF(S92='Grading Scale'!E$9,'Grading Scale'!F$9,IF(S92='Grading Scale'!E$11,'Grading Scale'!F$11,'Grading Scale'!F$13)))))) -> B
A93: =Scores!A84 -> 0 | B93: =Scores!B84 -> 0 | C93: =Scores!C84 -> 0 | D93: =Scores!D84 -> 0 | E93: =Scores!E84 -> 0 | F93: =Scores!F84 -> 0 | G93: =Scores!G84 -> 0 | H93: =Scores!H84 -> 0 | I93: =Scores!I84 -> 0 | J93: =Scores!J84 -> 0 | K93: =Scores!K84 -> 0 | L93: =Scores!L84 -> 0 | M93: =Scores!M84 -> 0 | N93: =Scores!N84 -> 0 | O93: =Scores!O84 -> 0 | P93: -0.7071067812 | Q93: 2.951299423 | R93: 2.951299423 | S93: =IF(R93<'Grading Scale'!G$8,IF(R93<'Grading Scale'!G$13,'Grading Scale'!E$13,IF(R93<'Grading Scale'!G$12,'Grading Scale'!E$11,IF(R93<'Grading Scale'!G$11,'Grading Scale'!E$9,IF(R93<'Grading Scale'!G$10,'Grading Scale'!E$7,IF(R93<'Grading Scale'!G$9,'Grading Scale'!E$5,'Grading Scale'!E$3))))),IF(R93<'Grading Scale'!G$7,'Grading Scale'!B$13,IF(R93<'Grading Scale'!G$6,'Grading Scale'!B$11,IF(R93<'Grading Scale'!G$5,'Grading Scale'!B$9,IF(R93<'Grading Scale'!G$4,'Grading Scale'!B$7,IF(R93<'Grading Scale'!G$3,'Grading Scale'!B$5,'Grading Scale'!B$3)))))) -> 3 | T93: =Scores!B84 -> 0 | U93: =IF(S93>='Grading Scale'!B$13,IF(S93='Grading Scale'!B$3,'Grading Scale'!C$3,IF(S93='Grading Scale'!B$5,'Grading Scale'!C$5,IF(S93='Grading Scale'!B$7,'Grading Scale'!C$7,IF(S93='Grading Scale'!B$9,'Grading Scale'!C$9,IF(S93='Grading Scale'!B$11,'Grading Scale'!C$11,'Grading Scale'!C$13))))),IF(S93='Grading Scale'!E$3,'Grading Scale'!F$3,IF(S93='Grading Scale'!E$5,'Grading Scale'!F$5,IF(S93='Grading Scale'!E$7,'Grading Scale'!F$7,IF(S93='Grading Scale'!E$9,'Grading Scale'!F$9,IF(S93='Grading Scale'!E$11,'Grading Scale'!F$11,'Grading Scale'!F$13)))))) -> B
A94: =Scores!A85 -> 0 | B94: =Scores!B85 -> 0 | C94: =Scores!C85 -> 0 | D94: =Scores!D85 -> 0 | E94: =Scores!E85 -> 0 | F94: =Scores!F85 -> 0 | G94: =Scores!G85 -> 0 | H94: =Scores!H85 -> 0 | I94: =Scores!I85 -> 0 | J94: =Scores!J85 -> 0 | K94: =Scores!K85 -> 0 | L94: =Scores!L85 -> 0 | M94: =Scores!M85 -> 0 | N94: =Scores!N85 -> 0 | O94: =Scores!O85 -> 0 | P94: -0.7071067812 | Q94: 2.951299423 | R94: 2.951299423 | S94: =IF(R94<'Grading Scale'!G$8,IF(R94<'Grading Scale'!G$13,'Grading Scale'!E$13,IF(R94<'Grading Scale'!G$12,'Grading Scale'!E$11,IF(R94<'Grading Scale'!G$11,'Grading Scale'!E$9,IF(R94<'Grading Scale'!G$10,'Grading Scale'!E$7,IF(R94<'Grading Scale'!G$9,'Grading Scale'!E$5,'Grading Scale'!E$3))))),IF(R94<'Grading Scale'!G$7,'Grading Scale'!B$13,IF(R94<'Grading Scale'!G$6,'Grading Scale'!B$11,IF(R94<'Grading Scale'!G$5,'Grading Scale'!B$9,IF(R94<'Grading Scale'!G$4,'Grading Scale'!B$7,IF(R94<'Grading Scale'!G$3,'Grading Scale'!B$5,'Grading Scale'!B$3)))))) -> 3 | T94: =Scores!B85 -> 0 | U94: =IF(S94>='Grading Scale'!B$13,IF(S94='Grading Scale'!B$3,'Grading Scale'!C$3,IF(S94='Grading Scale'!B$5,'Grading Scale'!C$5,IF(S94='Grading Scale'!B$7,'Grading Scale'!C$7,IF(S94='Grading Scale'!B$9,'Grading Scale'!C$9,IF(S94='Grading Scale'!B$11,'Grading Scale'!C$11,'Grading Scale'!C$13))))),IF(S94='Grading Scale'!E$3,'Grading Scale'!F$3,IF(S94='Grading Scale'!E$5,'Grading Scale'!F$5,IF(S94='Grading Scale'!E$7,'Grading Scale'!F$7,IF(S94='Grading Scale'!E$9,'Grading Scale'!F$9,IF(S94='Grading Scale'!E$11,'Grading Scale'!F$11,'Grading Scale'!F$13)))))) -> B
A95: =Scores!A86 -> 0 | B95: =Scores!B86 -> 0 | C95: =Scores!C86 -> 0 | D95: =Scores!D86 -> 0 | E95: =Scores!E86 -> 0 | F95: =Scores!F86 -> 0 | G95: =Scores!G86 -> 0 | H95: =Scores!H86 -> 0 | I95: =Scores!I86 -> 0 | J95: =Scores!J86 -> 0 | K95: =Scores!K86 -> 0 | L95: =Scores!L86 -> 0 | M95: =Scores!M86 -> 0 | N95: =Scores!N86 -> 0 | O95: =Scores!O86 -> 0 | P95: -0.7071067812 | Q95: 2.951299423 | R95: 2.951299423 | S95: =IF(R95<'Grading Scale'!G$8,IF(R95<'Grading Scale'!G$13,'Grading Scale'!E$13,IF(R95<'Grading Scale'!G$12,'Grading Scale'!E$11,IF(R95<'Grading Scale'!G$11,'Grading Scale'!E$9,IF(R95<'Grading Scale'!G$10,'Grading Scale'!E$7,IF(R95<'Grading Scale'!G$9,'Grading Scale'!E$5,'Grading Scale'!E$3))))),IF(R95<'Grading Scale'!G$7,'Grading Scale'!B$13,IF(R95<'Grading Scale'!G$6,'Grading Scale'!B$11,IF(R95<'Grading Scale'!G$5,'Grading Scale'!B$9,IF(R95<'Grading Scale'!G$4,'Grading Scale'!B$7,IF(R95<'Grading Scale'!G$3,'Grading Scale'!B$5,'Grading Scale'!B$3)))))) -> 3 | T95: =Scores!B86 -> 0 | U95: =IF(S95>='Grading Scale'!B$13,IF(S95='Grading Scale'!B$3,'Grading Scale'!C$3,IF(S95='Grading Scale'!B$5,'Grading Scale'!C$5,IF(S95='Grading Scale'!B$7,'Grading Scale'!C$7,IF(S95='Grading Scale'!B$9,'Grading Scale'!C$9,IF(S95='Grading Scale'!B$11,'Grading Scale'!C$11,'Grading Scale'!C$13))))),IF(S95='Grading Scale'!E$3,'Grading Scale'!F$3,IF(S95='Grading Scale'!E$5,'Grading Scale'!F$5,IF(S95='Grading Scale'!E$7,'Grading Scale'!F$7,IF(S95='Grading Scale'!E$9,'Grading Scale'!F$9,IF(S95='Grading Scale'!E$11,'Grading Scale'!F$11,'Grading Scale'!F$13)))))) -> B
A96: =Scores!A87 -> 0 | B96: =Scores!B87 -> 0 | C96: =Scores!C87 -> 0 | D96: =Scores!D87 -> 0 | E96: =Scores!E87 -> 0 | F96: =Scores!F87 -> 0 | G96: =Scores!G87 -> 0 | H96: =Scores!H87 -> 0 | I96: =Scores!I87 -> 0 | J96: =Scores!J87 -> 0 | K96: =Scores!K87 -> 0 | L96: =Scores!L87 -> 0 | M96: =Scores!M87 -> 0 | N96: =Scores!N87 -> 0 | O96: =Scores!O87 -> 0 | P96: -0.7071067812 | Q96: 2.951299423 | R96: 2.951299423 | S96: =IF(R96<'Grading Scale'!G$8,IF(R96<'Grading Scale'!G$13,'Grading Scale'!E$13,IF(R96<'Grading Scale'!G$12,'Grading Scale'!E$11,IF(R96<'Grading Scale'!G$11,'Grading Scale'!E$9,IF(R96<'Grading Scale'!G$10,'Grading Scale'!E$7,IF(R96<'Grading Scale'!G$9,'Grading Scale'!E$5,'Grading Scale'!E$3))))),IF(R96<'Grading Scale'!G$7,'Grading Scale'!B$13,IF(R96<'Grading Scale'!G$6,'Grading Scale'!B$11,IF(R96<'Grading Scale'!G$5,'Grading Scale'!B$9,IF(R96<'Grading Scale'!G$4,'Grading Scale'!B$7,IF(R96<'Grading Scale'!G$3,'Grading Scale'!B$5,'Grading Scale'!B$3)))))) -> 3 | T96: =Scores!B87 -> 0 | U96: =IF(S96>='Grading Scale'!B$13,IF(S96='Grading Scale'!B$3,'Grading Scale'!C$3,IF(S96='Grading Scale'!B$5,'Grading Scale'!C$5,IF(S96='Grading Scale'!B$7,'Grading Scale'!C$7,IF(S96='Grading Scale'!B$9,'Grading Scale'!C$9,IF(S96='Grading Scale'!B$11,'Grading Scale'!C$11,'Grading Scale'!C$13))))),IF(S96='Grading Scale'!E$3,'Grading Scale'!F$3,IF(S96='Grading Scale'!E$5,'Grading Scale'!F$5,IF(S96='Grading Scale'!E$7,'Grading Scale'!F$7,IF(S96='Grading Scale'!E$9,'Grading Scale'!F$9,IF(S96='Grading Scale'!E$11,'Grading Scale'!F$11,'Grading Scale'!F$13)))))) -> B
A97: =Scores!A88 -> 0 | B97: =Scores!B88 -> 0 | C97: =Scores!C88 -> 0 | D97: =Scores!D88 -> 0 | E97: =Scores!E88 -> 0 | F97: =Scores!F88 -> 0 | G97: =Scores!G88 -> 0 | H97: =Scores!H88 -> 0 | I97: =Scores!I88 -> 0 | J97: =Scores!J88 -> 0 | K97: =Scores!K88 -> 0 | L97: =Scores!L88 -> 0 | M97: =Scores!M88 -> 0 | N97: =Scores!N88 -> 0 | O97: =Scores!O88 -> 0 | P97: -0.7071067812 | Q97: 2.951299423 | R97: 2.951299423 | S97: =IF(R97<'Grading Scale'!G$8,IF(R97<'Grading Scale'!G$13,'Grading Scale'!E$13,IF(R97<'Grading Scale'!G$12,'Grading Scale'!E$11,IF(R97<'Grading Scale'!G$11,'Grading Scale'!E$9,IF(R97<'Grading Scale'!G$10,'Grading Scale'!E$7,IF(R97<'Grading Scale'!G$9,'Grading Scale'!E$5,'Grading Scale'!E$3))))),IF(R97<'Grading Scale'!G$7,'Grading Scale'!B$13,IF(R97<'Grading Scale'!G$6,'Grading Scale'!B$11,IF(R97<'Grading Scale'!G$5,'Grading Scale'!B$9,IF(R97<'Grading Scale'!G$4,'Grading Scale'!B$7,IF(R97<'Grading Scale'!G$3,'Grading Scale'!B$5,'Grading Scale'!B$3)))))) -> 3 | T97: =Scores!B88 -> 0 | U97: =IF(S97>='Grading Scale'!B$13,IF(S97='Grading Scale'!B$3,'Grading Scale'!C$3,IF(S97='Grading Scale'!B$5,'Grading Scale'!C$5,IF(S97='Grading Scale'!B$7,'Grading Scale'!C$7,IF(S97='Grading Scale'!B$9,'Grading Scale'!C$9,IF(S97='Grading Scale'!B$11,'Grading Scale'!C$11,'Grading Scale'!C$13))))),IF(S97='Grading Scale'!E$3,'Grading Scale'!F$3,IF(S97='Grading Scale'!E$5,'Grading Scale'!F$5,IF(S97='Grading Scale'!E$7,'Grading Scale'!F$7,IF(S97='Grading Scale'!E$9,'Grading Scale'!F$9,IF(S97='Grading Scale'!E$11,'Grading Scale'!F$11,'Grading Scale'!F$13)))))) -> B
A98: =Scores!A89 -> 0 | B98: =Scores!B89 -> 0 | C98: =Scores!C89 -> 0 | D98: =Scores!D89 -> 0 | E98: =Scores!E89 -> 0 | F98: =Scores!F89 -> 0 | G98: =Scores!G89 -> 0 | H98: =Scores!H89 -> 0 | I98: =Scores!I89 -> 0 | J98: =Scores!J89 -> 0 | K98: =Scores!K89 -> 0 | L98: =Scores!L89 -> 0 | M98: =Scores!M89 -> 0 | N98: =Scores!N89 -> 0 | O98: =Scores!O89 -> 0 | P98: -0.7071067812 | Q98: 2.951299423 | R98: 2.951299423 | S98: =IF(R98<'Grading Scale'!G$8,IF(R98<'Grading Scale'!G$13,'Grading Scale'!E$13,IF(R98<'Grading Scale'!G$12,'Grading Scale'!E$11,IF(R98<'Grading Scale'!G$11,'Grading Scale'!E$9,IF(R98<'Grading Scale'!G$10,'Grading Scale'!E$7,IF(R98<'Grading Scale'!G$9,'Grading Scale'!E$5,'Grading Scale'!E$3))))),IF(R98<'Grading Scale'!G$7,'Grading Scale'!B$13,IF(R98<'Grading Scale'!G$6,'Grading Scale'!B$11,IF(R98<'Grading Scale'!G$5,'Grading Scale'!B$9,IF(R98<'Grading Scale'!G$4,'Grading Scale'!B$7,IF(R98<'Grading Scale'!G$3,'Grading Scale'!B$5,'Grading Scale'!B$3)))))) -> 3 | T98: =Scores!B89 -> 0 | U98: =IF(S98>='Grading Scale'!B$13,IF(S98='Grading Scale'!B$3,'Grading Scale'!C$3,IF(S98='Grading Scale'!B$5,'Grading Scale'!C$5,IF(S98='Grading Scale'!B$7,'Grading Scale'!C$7,IF(S98='Grading Scale'!B$9,'Grading Scale'!C$9,IF(S98='Grading Scale'!B$11,'Grading Scale'!C$11,'Grading Scale'!C$13))))),IF(S98='Grading Scale'!E$3,'Grading Scale'!F$3,IF(S98='Grading Scale'!E$5,'Grading Scale'!F$5,IF(S98='Grading Scale'!E$7,'Grading Scale'!F$7,IF(S98='Grading Scale'!E$9,'Grading Scale'!F$9,IF(S98='Grading Scale'!E$11,'Grading Scale'!F$11,'Grading Scale'!F$13)))))) -> B
A99: =Scores!A90 -> 0 | B99: =Scores!B90 -> 0 | C99: =Scores!C90 -> 0 | D99: =Scores!D90 -> 0 | E99: =Scores!E90 -> 0 | F99: =Scores!F90 -> 0 | G99: =Scores!G90 -> 0 | H99: =Scores!H90 -> 0 | I99: =Scores!I90 -> 0 | J99: =Scores!J90 -> 0 | K99: =Scores!K90 -> 0 | L99: =Scores!L90 -> 0 | M99: =Scores!M90 -> 0 | N99: =Scores!N90 -> 0 | O99: =Scores!O90 -> 0 | P99: -0.7071067812 | Q99: 2.951299423 | R99: 2.951299423 | S99: =IF(R99<'Grading Scale'!G$8,IF(R99<'Grading Scale'!G$13,'Grading Scale'!E$13,IF(R99<'Grading Scale'!G$12,'Grading Scale'!E$11,IF(R99<'Grading Scale'!G$11,'Grading Scale'!E$9,IF(R99<'Grading Scale'!G$10,'Grading Scale'!E$7,IF(R99<'Grading Scale'!G$9,'Grading Scale'!E$5,'Grading Scale'!E$3))))),IF(R99<'Grading Scale'!G$7,'Grading Scale'!B$13,IF(R99<'Grading Scale'!G$6,'Grading Scale'!B$11,IF(R99<'Grading Scale'!G$5,'Grading Scale'!B$9,IF(R99<'Grading Scale'!G$4,'Grading Scale'!B$7,IF(R99<'Grading Scale'!G$3,'Grading Scale'!B$5,'Grading Scale'!B$3)))))) -> 3 | T99: =Scores!B90 -> 0 | U99: =IF(S99>='Grading Scale'!B$13,IF(S99='Grading Scale'!B$3,'Grading Scale'!C$3,IF(S99='Grading Scale'!B$5,'Grading Scale'!C$5,IF(S99='Grading Scale'!B$7,'Grading Scale'!C$7,IF(S99='Grading Scale'!B$9,'Grading Scale'!C$9,IF(S99='Grading Scale'!B$11,'Grading Scale'!C$11,'Grading Scale'!C$13))))),IF(S99='Grading Scale'!E$3,'Grading Scale'!F$3,IF(S99='Grading Scale'!E$5,'Grading Scale'!F$5,IF(S99='Grading Scale'!E$7,'Grading Scale'!F$7,IF(S99='Grading Scale'!E$9,'Grading Scale'!F$9,IF(S99='Grading Scale'!E$11,'Grading Scale'!F$11,'Grading Scale'!F$13)))))) -> B
A100: =Scores!A91 -> 0 | B100: =Scores!B91 -> 0 | C100: =Scores!C91 -> 0 | D100: =Scores!D91 -> 0 | E100: =Scores!E91 -> 0 | F100: =Scores!F91 -> 0 | G100: =Scores!G91 -> 0 | H100: =Scores!H91 -> 0 | I100: =Scores!I91 -> 0 | J100: =Scores!J91 -> 0 | K100: =Scores!K91 -> 0 | L100: =Scores!L91 -> 0 | M100: =Scores!M91 -> 0 | N100: =Scores!N91 -> 0 | O100: =Scores!O91 -> 0 | P100: -0.7071067812 | Q100: 2.951299423 | R100: 2.951299423 | S100: =IF(R100<'Grading Scale'!G$8,IF(R100<'Grading Scale'!G$13,'Grading Scale'!E$13,IF(R100<'Grading Scale'!G$12,'Grading Scale'!E$11,IF(R100<'Grading Scale'!G$11,'Grading Scale'!E$9,IF(R100<'Grading Scale'!G$10,'Grading Scale'!E$7,IF(R100<'Grading Scale'!G$9,'Grading Scale'!E$5,'Grading Scale'!E$3))))),IF(R100<'Grading Scale'!G$7,'Grading Scale'!B$13,IF(R100<'Grading Scale'!G$6,'Grading Scale'!B$11,IF(R100<'Grading Scale'!G$5,'Grading Scale'!B$9,IF(R100<'Grading Scale'!G$4,'Grading Scale'!B$7,IF(R100<'Grading Scale'!G$3,'Grading Scale'!B$5,'Grading Scale'!B$3)))))) -> 3 | T100: =Scores!B91 -> 0 | U100: =IF(S100>='Grading Scale'!B$13,IF(S100='Grading Scale'!B$3,'Grading Scale'!C$3,IF(S100='Grading Scale'!B$5,'Grading Scale'!C$5,IF(S100='Grading Scale'!B$7,'Grading Scale'!C$7,IF(S100='Grading Scale'!B$9,'Grading Scale'!C$9,IF(S100='Grading Scale'!B$11,'Grading Scale'!C$11,'Grading Scale'!C$13))))),IF(S100='Grading Scale'!E$3,'Grading Scale'!F$3,IF(S100='Grading Scale'!E$5,'Grading Scale'!F$5,IF(S100='Grading Scale'!E$7,'Grading Scale'!F$7,IF(S100='Grading Scale'!E$9,'Grading Scale'!F$9,IF(S100='Grading Scale'!E$11,'Grading Scale'!F$11,'Grading Scale'!F$13)))))) -> B
A101: =Scores!A92 -> 0 | B101: =Scores!B92 -> 0 | C101: =Scores!C92 -> 0 | D101: =Scores!D92 -> 0 | E101: =Scores!E92 -> 0 | F101: =Scores!F92 -> 0 | G101: =Scores!G92 -> 0 | H101: =Scores!H92 -> 0 | I101: =Scores!I92 -> 0 | J101: =Scores!J92 -> 0 | K101: =Scores!K92 -> 0 | L101: =Scores!L92 -> 0 | M101: =Scores!M92 -> 0 | N101: =Scores!N92 -> 0 | O101: =Scores!O92 -> 0 | P101: -0.7071067812 | Q101: 2.951299423 | R101: 2.951299423 | S101: =IF(R101<'Grading Scale'!G$8,IF(R101<'Grading Scale'!G$13,'Grading Scale'!E$13,IF(R101<'Grading Scale'!G$12,'Grading Scale'!E$11,IF(R101<'Grading Scale'!G$11,'Grading Scale'!E$9,IF(R101<'Grading Scale'!G$10,'Grading Scale'!E$7,IF(R101<'Grading Scale'!G$9,'Grading Scale'!E$5,'Grading Scale'!E$3))))),IF(R101<'Grading Scale'!G$7,'Grading Scale'!B$13,IF(R101<'Grading Scale'!G$6,'Grading Scale'!B$11,IF(R101<'Grading Scale'!G$5,'Grading Scale'!B$9,IF(R101<'Grading Scale'!G$4,'Grading Scale'!B$7,IF(R101<'Grading Scale'!G$3,'Grading Scale'!B$5,'Grading Scale'!B$3)))))) -> 3 | T101: =Scores!B92 -> 0 | U101: =IF(S101>='Grading Scale'!B$13,IF(S101='Grading Scale'!B$3,'Grading Scale'!C$3,IF(S101='Grading Scale'!B$5,'Grading Scale'!C$5,IF(S101='Grading Scale'!B$7,'Grading Scale'!C$7,IF(S101='Grading Scale'!B$9,'Grading Scale'!C$9,IF(S101='Grading Scale'!B$11,'Grading Scale'!C$11,'Grading Scale'!C$13))))),IF(S101='Grading Scale'!E$3,'Grading Scale'!F$3,IF(S101='Grading Scale'!E$5,'Grading Scale'!F$5,IF(S101='Grading Scale'!E$7,'Grading Scale'!F$7,IF(S101='Grading Scale'!E$9,'Grading Scale'!F$9,IF(S101='Grading Scale'!E$11,'Grading Scale'!F$11,'Grading Scale'!F$13)))))) -> B
A102: =Scores!A93 -> 0 | B102: =Scores!B93 -> 0 | C102: =Scores!C93 -> 0 | D102: =Scores!D93 -> 0 | E102: =Scores!E93 -> 0 | F102: =Scores!F93 -> 0 | G102: =Scores!G93 -> 0 | H102: =Scores!H93 -> 0 | I102: =Scores!I93 -> 0 | J102: =Scores!J93 -> 0 | K102: =Scores!K93 -> 0 | L102: =Scores!L93 -> 0 | M102: =Scores!M93 -> 0 | N102: =Scores!N93 -> 0 | O102: =Scores!O93 -> 0 | P102: -0.7071067812 | Q102: 2.951299423 | R102: 2.951299423 | S102: =IF(R102<'Grading Scale'!G$8,IF(R102<'Grading Scale'!G$13,'Grading Scale'!E$13,IF(R102<'Grading Scale'!G$12,'Grading Scale'!E$11,IF(R102<'Grading Scale'!G$11,'Grading Scale'!E$9,IF(R102<'Grading Scale'!G$10,'Grading Scale'!E$7,IF(R102<'Grading Scale'!G$9,'Grading Scale'!E$5,'Grading Scale'!E$3))))),IF(R102<'Grading Scale'!G$7,'Grading Scale'!B$13,IF(R102<'Grading Scale'!G$6,'Grading Scale'!B$11,IF(R102<'Grading Scale'!G$5,'Grading Scale'!B$9,IF(R102<'Grading Scale'!G$4,'Grading Scale'!B$7,IF(R102<'Grading Scale'!G$3,'Grading Scale'!B$5,'Grading Scale'!B$3)))))) -> 3 | T102: =Scores!B93 -> 0 | U102: =IF(S102>='Grading Scale'!B$13,IF(S102='Grading Scale'!B$3,'Grading Scale'!C$3,IF(S102='Grading Scale'!B$5,'Grading Scale'!C$5,IF(S102='Grading Scale'!B$7,'Grading Scale'!C$7,IF(S102='Grading Scale'!B$9,'Grading Scale'!C$9,IF(S102='Grading Scale'!B$11,'Grading Scale'!C$11,'Grading Scale'!C$13))))),IF(S102='Grading Scale'!E$3,'Grading Scale'!F$3,IF(S102='Grading Scale'!E$5,'Grading Scale'!F$5,IF(S102='Grading Scale'!E$7,'Grading Scale'!F$7,IF(S102='Grading Scale'!E$9,'Grading Scale'!F$9,IF(S102='Grading Scale'!E$11,'Grading Scale'!F$11,'Grading Scale'!F$13)))))) -> B
A103: =Scores!A94 -> 0 | B103: =Scores!B94 -> 0 | C103: =Scores!C94 -> 0 | D103: =Scores!D94 -> 0 | E103: =Scores!E94 -> 0 | F103: =Scores!F94 -> 0 | G103: =Scores!G94 -> 0 | H103: =Scores!H94 -> 0 | I103: =Scores!I94 -> 0 | J103: =Scores!J94 -> 0 | K103: =Scores!K94 -> 0 | L103: =Scores!L94 -> 0 | M103: =Scores!M94 -> 0 | N103: =Scores!N94 -> 0 | O103: =Scores!O94 -> 0 | P103: -0.7071067812 | Q103: 2.951299423 | R103: 2.951299423 | S103: =IF(R103<'Grading Scale'!G$8,IF(R103<'Grading Scale'!G$13,'Grading Scale'!E$13,IF(R103<'Grading Scale'!G$12,'Grading Scale'!E$11,IF(R103<'Grading Scale'!G$11,'Grading Scale'!E$9,IF(R103<'Grading Scale'!G$10,'Grading Scale'!E$7,IF(R103<'Grading Scale'!G$9,'Grading Scale'!E$5,'Grading Scale'!E$3))))),IF(R103<'Grading Scale'!G$7,'Grading Scale'!B$13,IF(R103<'Grading Scale'!G$6,'Grading Scale'!B$11,IF(R103<'Grading Scale'!G$5,'Grading Scale'!B$9,IF(R103<'Grading Scale'!G$4,'Grading Scale'!B$7,IF(R103<'Grading Scale'!G$3,'Grading Scale'!B$5,'Grading Scale'!B$3)))))) -> 3 | T103: =Scores!B94 -> 0 | U103: =IF(S103>='Grading Scale'!B$13,IF(S103='Grading Scale'!B$3,'Grading Scale'!C$3,IF(S103='Grading Scale'!B$5,'Grading Scale'!C$5,IF(S103='Grading Scale'!B$7,'Grading Scale'!C$7,IF(S103='Grading Scale'!B$9,'Grading Scale'!C$9,IF(S103='Grading Scale'!B$11,'Grading Scale'!C$11,'Grading Scale'!C$13))))),IF(S103='Grading Scale'!E$3,'Grading Scale'!F$3,IF(S103='Grading Scale'!E$5,'Grading Scale'!F$5,IF(S103='Grading Scale'!E$7,'Grading Scale'!F$7,IF(S103='Grading Scale'!E$9,'Grading Scale'!F$9,IF(S103='Grading Scale'!E$11,'Grading Scale'!F$11,'Grading Scale'!F$13)))))) -> B
A104: =Scores!A95 -> 0 | B104: =Scores!B95 -> 0 | C104: =Scores!C95 -> 0 | D104: =Scores!D95 -> 0 | E104: =Scores!E95 -> 0 | F104: =Scores!F95 -> 0 | G104: =Scores!G95 -> 0 | H104: =Scores!H95 -> 0 | I104: =Scores!I95 -> 0 | J104: =Scores!J95 -> 0 | K104: =Scores!K95 -> 0 | L104: =Scores!L95 -> 0 | M104: =Scores!M95 -> 0 | N104: =Scores!N95 -> 0 | O104: =Scores!O95 -> 0 | P104: -0.7071067812 | Q104: 2.951299423 | R104: 2.951299423 | S104: =IF(R104<'Grading Scale'!G$8,IF(R104<'Grading Scale'!G$13,'Grading Scale'!E$13,IF(R104<'Grading Scale'!G$12,'Grading Scale'!E$11,IF(R104<'Grading Scale'!G$11,'Grading Scale'!E$9,IF(R104<'Grading Scale'!G$10,'Grading Scale'!E$7,IF(R104<'Grading Scale'!G$9,'Grading Scale'!E$5,'Grading Scale'!E$3))))),IF(R104<'Grading Scale'!G$7,'Grading Scale'!B$13,IF(R104<'Grading Scale'!G$6,'Grading Scale'!B$11,IF(R104<'Grading Scale'!G$5,'Grading Scale'!B$9,IF(R104<'Grading Scale'!G$4,'Grading Scale'!B$7,IF(R104<'Grading Scale'!G$3,'Grading Scale'!B$5,'Grading Scale'!B$3)))))) -> 3 | T104: =Scores!B95 -> 0 | U104: =IF(S104>='Grading Scale'!B$13,IF(S104='Grading Scale'!B$3,'Grading Scale'!C$3,IF(S104='Grading Scale'!B$5,'Grading Scale'!C$5,IF(S104='Grading Scale'!B$7,'Grading Scale'!C$7,IF(S104='Grading Scale'!B$9,'Grading Scale'!C$9,IF(S104='Grading Scale'!B$11,'Grading Scale'!C$11,'Grading Scale'!C$13))))),IF(S104='Grading Scale'!E$3,'Grading Scale'!F$3,IF(S104='Grading Scale'!E$5,'Grading Scale'!F$5,IF(S104='Grading Scale'!E$7,'Grading Scale'!F$7,IF(S104='Grading Scale'!E$9,'Grading Scale'!F$9,IF(S104='Grading Scale'!E$11,'Grading Scale'!F$11,'Grading Scale'!F$13)))))) -> B
A105: =Scores!A96 -> 0 | B105: =Scores!B96 -> 0 | C105: =Scores!C96 -> 0 | D105: =Scores!D96 -> 0 | E105: =Scores!E96 -> 0 | F105: =Scores!F96 -> 0 | G105: =Scores!G96 -> 0 | H105: =Scores!H96 -> 0 | I105: =Scores!I96 -> 0 | J105: =Scores!J96 -> 0 | K105: =Scores!K96 -> 0 | L105: =Scores!L96 -> 0 | M105: =Scores!M96 -> 0 | N105: =Scores!N96 -> 0 | O105: =Scores!O96 -> 0 | P105: -0.7071067812 | Q105: 2.951299423 | R105: 2.951299423 | S105: =IF(R105<'Grading Scale'!G$8,IF(R105<'Grading Scale'!G$13,'Grading Scale'!E$13,IF(R105<'Grading Scale'!G$12,'Grading Scale'!E$11,IF(R105<'Grading Scale'!G$11,'Grading Scale'!E$9,IF(R105<'Grading Scale'!G$10,'Grading Scale'!E$7,IF(R105<'Grading Scale'!G$9,'Grading Scale'!E$5,'Grading Scale'!E$3))))),IF(R105<'Grading Scale'!G$7,'Grading Scale'!B$13,IF(R105<'Grading Scale'!G$6,'Grading Scale'!B$11,IF(R105<'Grading Scale'!G$5,'Grading Scale'!B$9,IF(R105<'Grading Scale'!G$4,'Grading Scale'!B$7,IF(R105<'Grading Scale'!G$3,'Grading Scale'!B$5,'Grading Scale'!B$3)))))) -> 3 | T105: =Scores!B96 -> 0 | U105: =IF(S105>='Grading Scale'!B$13,IF(S105='Grading Scale'!B$3,'Grading Scale'!C$3,IF(S105='Grading Scale'!B$5,'Grading Scale'!C$5,IF(S105='Grading Scale'!B$7,'Grading Scale'!C$7,IF(S105='Grading Scale'!B$9,'Grading Scale'!C$9,IF(S105='Grading Scale'!B$11,'Grading Scale'!C$11,'Grading Scale'!C$13))))),IF(S105='Grading Scale'!E$3,'Grading Scale'!F$3,IF(S105='Grading Scale'!E$5,'Grading Scale'!F$5,IF(S105='Grading Scale'!E$7,'Grading Scale'!F$7,IF(S105='Grading Scale'!E$9,'Grading Scale'!F$9,IF(S105='Grading Scale'!E$11,'Grading Scale'!F$11,'Grading Scale'!F$13)))))) -> B
A106: =Scores!A97 -> 0 | B106: =Scores!B97 -> 0 | C106: =Scores!C97 -> 0 | D106: =Scores!D97 -> 0 | E106: =Scores!E97 -> 0 | F106: =Scores!F97 -> 0 | G106: =Scores!G97 -> 0 | H106: =Scores!H97 -> 0 | I106: =Scores!I97 -> 0 | J106: =Scores!J97 -> 0 | K106: =Scores!K97 -> 0 | L106: =Scores!L97 -> 0 | M106: =Scores!M97 -> 0 | N106: =Scores!N97 -> 0 | O106: =Scores!O97 -> 0 | P106: -0.7071067812 | Q106: 2.951299423 | R106: 2.951299423 | S106: =IF(R106<'Grading Scale'!G$8,IF(R106<'Grading Scale'!G$13,'Grading Scale'!E$13,IF(R106<'Grading Scale'!G$12,'Grading Scale'!E$11,IF(R106<'Grading Scale'!G$11,'Grading Scale'!E$9,IF(R106<'Grading Scale'!G$10,'Grading Scale'!E$7,IF(R106<'Grading Scale'!G$9,'Grading Scale'!E$5,'Grading Scale'!E$3))))),IF(R106<'Grading Scale'!G$7,'Grading Scale'!B$13,IF(R106<'Grading Scale'!G$6,'Grading Scale'!B$11,IF(R106<'Grading Scale'!G$5,'Grading Scale'!B$9,IF(R106<'Grading Scale'!G$4,'Grading Scale'!B$7,IF(R106<'Grading Scale'!G$3,'Grading Scale'!B$5,'Grading Scale'!B$3)))))) -> 3 | T106: =Scores!B97 -> 0 | U106: =IF(S106>='Grading Scale'!B$13,IF(S106='Grading Scale'!B$3,'Grading Scale'!C$3,IF(S106='Grading Scale'!B$5,'Grading Scale'!C$5,IF(S106='Grading Scale'!B$7,'Grading Scale'!C$7,IF(S106='Grading Scale'!B$9,'Grading Scale'!C$9,IF(S106='Grading Scale'!B$11,'Grading Scale'!C$11,'Grading Scale'!C$13))))),IF(S106='Grading Scale'!E$3,'Grading Scale'!F$3,IF(S106='Grading Scale'!E$5,'Grading Scale'!F$5,IF(S106='Grading Scale'!E$7,'Grading Scale'!F$7,IF(S106='Grading Scale'!E$9,'Grading Scale'!F$9,IF(S106='Grading Scale'!E$11,'Grading Scale'!F$11,'Grading Scale'!F$13)))))) -> B
A107: =Scores!A98 -> 0 | B107: =Scores!B98 -> 0 | C107: =Scores!C98 -> 0 | D107: =Scores!D98 -> 0 | E107: =Scores!E98 -> 0 | F107: =Scores!F98 -> 0 | G107: =Scores!G98 -> 0 | H107: =Scores!H98 -> 0 | I107: =Scores!I98 -> 0 | J107: =Scores!J98 -> 0 | K107: =Scores!K98 -> 0 | L107: =Scores!L98 -> 0 | M107: =Scores!M98 -> 0 | N107: =Scores!N98 -> 0 | O107: =Scores!O98 -> 0 | P107: -0.7071067812 | Q107: 2.951299423 | R107: 2.951299423 | S107: =IF(R107<'Grading Scale'!G$8,IF(R107<'Grading Scale'!G$13,'Grading Scale'!E$13,IF(R107<'Grading Scale'!G$12,'Grading Scale'!E$11,IF(R107<'Grading Scale'!G$11,'Grading Scale'!E$9,IF(R107<'Grading Scale'!G$10,'Grading Scale'!E$7,IF(R107<'Grading Scale'!G$9,'Grading Scale'!E$5,'Grading Scale'!E$3))))),IF(R107<'Grading Scale'!G$7,'Grading Scale'!B$13,IF(R107<'Grading Scale'!G$6,'Grading Scale'!B$11,IF(R107<'Grading Scale'!G$5,'Grading Scale'!B$9,IF(R107<'Grading Scale'!G$4,'Grading Scale'!B$7,IF(R107<'Grading Scale'!G$3,'Grading Scale'!B$5,'Grading Scale'!B$3)))))) -> 3 | T107: =Scores!B98 -> 0 | U107: =IF(S107>='Grading Scale'!B$13,IF(S107='Grading Scale'!B$3,'Grading Scale'!C$3,IF(S107='Grading Scale'!B$5,'Grading Scale'!C$5,IF(S107='Grading Scale'!B$7,'Grading Scale'!C$7,IF(S107='Grading Scale'!B$9,'Grading Scale'!C$9,IF(S107='Grading Scale'!B$11,'Grading Scale'!C$11,'Grading Scale'!C$13))))),IF(S107='Grading Scale'!E$3,'Grading Scale'!F$3,IF(S107='Grading Scale'!E$5,'Grading Scale'!F$5,IF(S107='Grading Scale'!E$7,'Grading Scale'!F$7,IF(S107='Grading Scale'!E$9,'Grading Scale'!F$9,IF(S107='Grading Scale'!E$11,'Grading Scale'!F$11,'Grading Scale'!F$13)))))) -> B
A108: =Scores!A99 -> 0 | B108: =Scores!B99 -> 0 | C108: =Scores!C99 -> 0 | D108: =Scores!D99 -> 0 | E108: =Scores!E99 -> 0 | F108: =Scores!F99 -> 0 | G108: =Scores!G99 -> 0 | H108: =Scores!H99 -> 0 | I108: =Scores!I99 -> 0 | J108: =Scores!J99 -> 0 | K108: =Scores!K99 -> 0 | L108: =Scores!L99 -> 0 | M108: =Scores!M99 -> 0 | N108: =Scores!N99 -> 0 | O108: =Scores!O99 -> 0 | P108: -0.7071067812 | Q108: 2.951299423 | R108: 2.951299423 | S108: =IF(R108<'Grading Scale'!G$8,IF(R108<'Grading Scale'!G$13,'Grading Scale'!E$13,IF(R108<'Grading Scale'!G$12,'Grading Scale'!E$11,IF(R108<'Grading Scale'!G$11,'Grading Scale'!E$9,IF(R108<'Grading Scale'!G$10,'Grading Scale'!E$7,IF(R108<'Grading Scale'!G$9,'Grading Scale'!E$5,'Grading Scale'!E$3))))),IF(R108<'Grading Scale'!G$7,'Grading Scale'!B$13,IF(R108<'Grading Scale'!G$6,'Grading Scale'!B$11,IF(R108<'Grading Scale'!G$5,'Grading Scale'!B$9,IF(R108<'Grading Scale'!G$4,'Grading Scale'!B$7,IF(R108<'Grading Scale'!G$3,'Grading Scale'!B$5,'Grading Scale'!B$3)))))) -> 3 | T108: =Scores!B99 -> 0 | U108: =IF(S108>='Grading Scale'!B$13,IF(S108='Grading Scale'!B$3,'Grading Scale'!C$3,IF(S108='Grading Scale'!B$5,'Grading Scale'!C$5,IF(S108='Grading Scale'!B$7,'Grading Scale'!C$7,IF(S108='Grading Scale'!B$9,'Grading Scale'!C$9,IF(S108='Grading Scale'!B$11,'Grading Scale'!C$11,'Grading Scale'!C$13))))),IF(S108='Grading Scale'!E$3,'Grading Scale'!F$3,IF(S108='Grading Scale'!E$5,'Grading Scale'!F$5,IF(S108='Grading Scale'!E$7,'Grading Scale'!F$7,IF(S108='Grading Scale'!E$9,'Grading Scale'!F$9,IF(S108='Grading Scale'!E$11,'Grading Scale'!F$11,'Grading Scale'!F$13)))))) -> B
A109: =Scores!A100 -> 0 | B109: =Scores!B100 -> 0 | C109: =Scores!C100 -> 0 | D109: =Scores!D100 -> 0 | E109: =Scores!E100 -> 0 | F109: =Scores!F100 -> 0 | G109: =Scores!G100 -> 0 | H109: =Scores!H100 -> 0 | I109: =Scores!I100 -> 0 | J109: =Scores!J100 -> 0 | K109: =Scores!K100 -> 0 | L109: =Scores!L100 -> 0 | M109: =Scores!M100 -> 0 | N109: =Scores!N100 -> 0 | O109: =Scores!O100 -> 0 | P109: -0.7071067812 | Q109: 2.951299423 | R109: 2.951299423 | S109: =IF(R109<'Grading Scale'!G$8,IF(R109<'Grading Scale'!G$13,'Grading Scale'!E$13,IF(R109<'Grading Scale'!G$12,'Grading Scale'!E$11,IF(R109<'Grading Scale'!G$11,'Grading Scale'!E$9,IF(R109<'Grading Scale'!G$10,'Grading Scale'!E$7,IF(R109<'Grading Scale'!G$9,'Grading Scale'!E$5,'Grading Scale'!E$3))))),IF(R109<'Grading Scale'!G$7,'Grading Scale'!B$13,IF(R109<'Grading Scale'!G$6,'Grading Scale'!B$11,IF(R109<'Grading Scale'!G$5,'Grading Scale'!B$9,IF(R109<'Grading Scale'!G$4,'Grading Scale'!B$7,IF(R109<'Grading Scale'!G$3,'Grading Scale'!B$5,'Grading Scale'!B$3)))))) -> 3 | T109: =Scores!B100 -> 0 | U109: =IF(S109>='Grading Scale'!B$13,IF(S109='Grading Scale'!B$3,'Grading Scale'!C$3,IF(S109='Grading Scale'!B$5,'Grading Scale'!C$5,IF(S109='Grading Scale'!B$7,'Grading Scale'!C$7,IF(S109='Grading Scale'!B$9,'Grading Scale'!C$9,IF(S109='Grading Scale'!B$11,'Grading Scale'!C$11,'Grading Scale'!C$13))))),IF(S109='Grading Scale'!E$3,'Grading Scale'!F$3,IF(S109='Grading Scale'!E$5,'Grading Scale'!F$5,IF(S109='Grading Scale'!E$7,'Grading Scale'!F$7,IF(S109='Grading Scale'!E$9,'Grading Scale'!F$9,IF(S109='Grading Scale'!E$11,'Grading Scale'!F$11,'Grading Scale'!F$13)))))) -> B
A110: =Scores!A101 -> 0 | B110: =Scores!B101 -> 0 | C110: =Scores!C101 -> 0 | D110: =Scores!D101 -> 0 | E110: =Scores!E101 -> 0 | F110: =Scores!F101 -> 0 | G110: =Scores!G101 -> 0 | H110: =Scores!H101 -> 0 | I110: =Scores!I101 -> 0 | J110: =Scores!J101 -> 0 | K110: =Scores!K101 -> 0 | L110: =Scores!L101 -> 0 | M110: =Scores!M101 -> 0 | N110: =Scores!N101 -> 0 | O110: =Scores!O101 -> 0 | P110: -0.7071067812 | Q110: 2.951299423 | R110: 2.951299423 | S110: =IF(R110<'Grading Scale'!G$8,IF(R110<'Grading Scale'!G$13,'Grading Scale'!E$13,IF(R110<'Grading Scale'!G$12,'Grading Scale'!E$11,IF(R110<'Grading Scale'!G$11,'Grading Scale'!E$9,IF(R110<'Grading Scale'!G$10,'Grading Scale'!E$7,IF(R110<'Grading Scale'!G$9,'Grading Scale'!E$5,'Grading Scale'!E$3))))),IF(R110<'Grading Scale'!G$7,'Grading Scale'!B$13,IF(R110<'Grading Scale'!G$6,'Grading Scale'!B$11,IF(R110<'Grading Scale'!G$5,'Grading Scale'!B$9,IF(R110<'Grading Scale'!G$4,'Grading Scale'!B$7,IF(R110<'Grading Scale'!G$3,'Grading Scale'!B$5,'Grading Scale'!B$3)))))) -> 3 | T110: =Scores!B101 -> 0 | U110: =IF(S110>='Grading Scale'!B$13,IF(S110='Grading Scale'!B$3,'Grading Scale'!C$3,IF(S110='Grading Scale'!B$5,'Grading Scale'!C$5,IF(S110='Grading Scale'!B$7,'Grading Scale'!C$7,IF(S110='Grading Scale'!B$9,'Grading Scale'!C$9,IF(S110='Grading Scale'!B$11,'Grading Scale'!C$11,'Grading Scale'!C$13))))),IF(S110='Grading Scale'!E$3,'Grading Scale'!F$3,IF(S110='Grading Scale'!E$5,'Grading Scale'!F$5,IF(S110='Grading Scale'!E$7,'Grading Scale'!F$7,IF(S110='Grading Scale'!E$9,'Grading Scale'!F$9,IF(S110='Grading Scale'!E$11,'Grading Scale'!F$11,'Grading Scale'!F$13)))))) -> B
A111: =Scores!A102 -> 0 | B111: =Scores!B102 -> 0 | C111: =Scores!C102 -> 0 | D111: =Scores!D102 -> 0 | E111: =Scores!E102 -> 0 | F111: =Scores!F102 -> 0 | G111: =Scores!G102 -> 0 | H111: =Scores!H102 -> 0 | I111: =Scores!I102 -> 0 | J111: =Scores!J102 -> 0 | K111: =Scores!K102 -> 0 | L111: =Scores!L102 -> 0 | M111: =Scores!M102 -> 0 | N111: =Scores!N102 -> 0 | O111: =Scores!O102 -> 0 | P111: -0.7071067812 | Q111: 2.951299423 | R111: 2.951299423 | S111: =IF(R111<'Grading Scale'!G$8,IF(R111<'Grading Scale'!G$13,'Grading Scale'!E$13,IF(R111<'Grading Scale'!G$12,'Grading Scale'!E$11,IF(R111<'Grading Scale'!G$11,'Grading Scale'!E$9,IF(R111<'Grading Scale'!G$10,'Grading Scale'!E$7,IF(R111<'Grading Scale'!G$9,'Grading Scale'!E$5,'Grading Scale'!E$3))))),IF(R111<'Grading Scale'!G$7,'Grading Scale'!B$13,IF(R111<'Grading Scale'!G$6,'Grading Scale'!B$11,IF(R111<'Grading Scale'!G$5,'Grading Scale'!B$9,IF(R111<'Grading Scale'!G$4,'Grading Scale'!B$7,IF(R111<'Grading Scale'!G$3,'Grading Scale'!B$5,'Grading Scale'!B$3)))))) -> 3 | T111: =Scores!B102 -> 0 | U111: =IF(S111>='Grading Scale'!B$13,IF(S111='Grading Scale'!B$3,'Grading Scale'!C$3,IF(S111='Grading Scale'!B$5,'Grading Scale'!C$5,IF(S111='Grading Scale'!B$7,'Grading Scale'!C$7,IF(S111='Grading Scale'!B$9,'Grading Scale'!C$9,IF(S111='Grading Scale'!B$11,'Grading Scale'!C$11,'Grading Scale'!C$13))))),IF(S111='Grading Scale'!E$3,'Grading Scale'!F$3,IF(S111='Grading Scale'!E$5,'Grading Scale'!F$5,IF(S111='Grading Scale'!E$7,'Grading Scale'!F$7,IF(S111='Grading Scale'!E$9,'Grading Scale'!F$9,IF(S111='Grading Scale'!E$11,'Grading Scale'!F$11,'Grading Scale'!F$13)))))) -> B
A112: =Scores!A103 -> 0 | B112: =Scores!B103 -> 0 | C112: =Scores!C103 -> 0 | D112: =Scores!D103 -> 0 | E112: =Scores!E103 -> 0 | F112: =Scores!F103 -> 0 | G112: =Scores!G103 -> 0 | H112: =Scores!H103 -> 0 | I112: =Scores!I103 -> 0 | J112: =Scores!J103 -> 0 | K112: =Scores!K103 -> 0 | L112: =Scores!L103 -> 0 | M112: =Scores!M103 -> 0 | N112: =Scores!N103 -> 0 | O112: =Scores!O103 -> 0 | P112: -0.7071067812 | Q112: 2.951299423 | R112: 2.951299423 | S112: =IF(R112<'Grading Scale'!G$8,IF(R112<'Grading Scale'!G$13,'Grading Scale'!E$13,IF(R112<'Grading Scale'!G$12,'Grading Scale'!E$11,IF(R112<'Grading Scale'!G$11,'Grading Scale'!E$9,IF(R112<'Grading Scale'!G$10,'Grading Scale'!E$7,IF(R112<'Grading Scale'!G$9,'Grading Scale'!E$5,'Grading Scale'!E$3))))),IF(R112<'Grading Scale'!G$7,'Grading Scale'!B$13,IF(R112<'Grading Scale'!G$6,'Grading Scale'!B$11,IF(R112<'Grading Scale'!G$5,'Grading Scale'!B$9,IF(R112<'Grading Scale'!G$4,'Grading Scale'!B$7,IF(R112<'Grading Scale'!G$3,'Grading Scale'!B$5,'Grading Scale'!B$3)))))) -> 3 | T112: =Scores!B103 -> 0 | U112: =IF(S112>='Grading Scale'!B$13,IF(S112='Grading Scale'!B$3,'Grading Scale'!C$3,IF(S112='Grading Scale'!B$5,'Grading Scale'!C$5,IF(S112='Grading Scale'!B$7,'Grading Scale'!C$7,IF(S112='Grading Scale'!B$9,'Grading Scale'!C$9,IF(S112='Grading Scale'!B$11,'Grading Scale'!C$11,'Grading Scale'!C$13))))),IF(S112='Grading Scale'!E$3,'Grading Scale'!F$3,IF(S112='Grading Scale'!E$5,'Grading Scale'!F$5,IF(S112='Grading Scale'!E$7,'Grading Scale'!F$7,IF(S112='Grading Scale'!E$9,'Grading Scale'!F$9,IF(S112='Grading Scale'!E$11,'Grading Scale'!F$11,'Grading Scale'!F$13)))))) -> B
A113: =Scores!A104 -> 0 | B113: =Scores!B104 -> 0 | C113: =Scores!C104 -> 0 | D113: =Scores!D104 -> 0 | E113: =Scores!E104 -> 0 | F113: =Scores!F104 -> 0 | G113: =Scores!G104 -> 0 | H113: =Scores!H104 -> 0 | I113: =Scores!I104 -> 0 | J113: =Scores!J104 -> 0 | K113: =Scores!K104 -> 0 | L113: =Scores!L104 -> 0 | M113: =Scores!M104 -> 0 | N113: =Scores!N104 -> 0 | O113: =Scores!O104 -> 0 | P113: -0.7071067812 | Q113: 2.951299423 | R113: 2.951299423 | S113: =IF(R113<'Grading Scale'!G$8,IF(R113<'Grading Scale'!G$13,'Grading Scale'!E$13,IF(R113<'Grading Scale'!G$12,'Grading Scale'!E$11,IF(R113<'Grading Scale'!G$11,'Grading Scale'!E$9,IF(R113<'Grading Scale'!G$10,'Grading Scale'!E$7,IF(R113<'Grading Scale'!G$9,'Grading Scale'!E$5,'Grading Scale'!E$3))))),IF(R113<'Grading Scale'!G$7,'Grading Scale'!B$13,IF(R113<'Grading Scale'!G$6,'Grading Scale'!B$11,IF(R113<'Grading Scale'!G$5,'Grading Scale'!B$9,IF(R113<'Grading Scale'!G$4,'Grading Scale'!B$7,IF(R113<'Grading Scale'!G$3,'Grading Scale'!B$5,'Grading Scale'!B$3)))))) -> 3 | T113: =Scores!B104 -> 0 | U113: =IF(S113>='Grading Scale'!B$13,IF(S113='Grading Scale'!B$3,'Grading Scale'!C$3,IF(S113='Grading Scale'!B$5,'Grading Scale'!C$5,IF(S113='Grading Scale'!B$7,'Grading Scale'!C$7,IF(S113='Grading Scale'!B$9,'Grading Scale'!C$9,IF(S113='Grading Scale'!B$11,'Grading Scale'!C$11,'Grading Scale'!C$13))))),IF(S113='Grading Scale'!E$3,'Grading Scale'!F$3,IF(S113='Grading Scale'!E$5,'Grading Scale'!F$5,IF(S113='Grading Scale'!E$7,'Grading Scale'!F$7,IF(S113='Grading Scale'!E$9,'Grading Scale'!F$9,IF(S113='Grading Scale'!E$11,'Grading Scale'!F$11,'Grading Scale'!F$13)))))) -> B
A114: =Scores!A105 -> 0 | B114: =Scores!B105 -> 0 | C114: =Scores!C105 -> 0 | D114: =Scores!D105 -> 0 | E114: =Scores!E105 -> 0 | F114: =Scores!F105 -> 0 | G114: =Scores!G105 -> 0 | H114: =Scores!H105 -> 0 | I114: =Scores!I105 -> 0 | J114: =Scores!J105 -> 0 | K114: =Scores!K105 -> 0 | L114: =Scores!L105 -> 0 | M114: =Scores!M105 -> 0 | N114: =Scores!N105 -> 0 | O114: =Scores!O105 -> 0 | P114: -0.7071067812 | Q114: 2.951299423 | R114: 2.951299423 | S114: =IF(R114<'Grading Scale'!G$8,IF(R114<'Grading Scale'!G$13,'Grading Scale'!E$13,IF(R114<'Grading Scale'!G$12,'Grading Scale'!E$11,IF(R114<'Grading Scale'!G$11,'Grading Scale'!E$9,IF(R114<'Grading Scale'!G$10,'Grading Scale'!E$7,IF(R114<'Grading Scale'!G$9,'Grading Scale'!E$5,'Grading Scale'!E$3))))),IF(R114<'Grading Scale'!G$7,'Grading Scale'!B$13,IF(R114<'Grading Scale'!G$6,'Grading Scale'!B$11,IF(R114<'Grading Scale'!G$5,'Grading Scale'!B$9,IF(R114<'Grading Scale'!G$4,'Grading Scale'!B$7,IF(R114<'Grading Scale'!G$3,'Grading Scale'!B$5,'Grading Scale'!B$3)))))) -> 3 | T114: =Scores!B105 -> 0 | U114: =IF(S114>='Grading Scale'!B$13,IF(S114='Grading Scale'!B$3,'Grading Scale'!C$3,IF(S114='Grading Scale'!B$5,'Grading Scale'!C$5,IF(S114='Grading Scale'!B$7,'Grading Scale'!C$7,IF(S114='Grading Scale'!B$9,'Grading Scale'!C$9,IF(S114='Grading Scale'!B$11,'Grading Scale'!C$11,'Grading Scale'!C$13))))),IF(S114='Grading Scale'!E$3,'Grading Scale'!F$3,IF(S114='Grading Scale'!E$5,'Grading Scale'!F$5,IF(S114='Grading Scale'!E$7,'Grading Scale'!F$7,IF(S114='Grading Scale'!E$9,'Grading Scale'!F$9,IF(S114='Grading Scale'!E$11,'Grading Scale'!F$11,'Grading Scale'!F$13)))))) -> B
A115: =Scores!A106 -> 0 | B115: =Scores!B106 -> 0 | C115: =Scores!C106 -> 0 | D115: =Scores!D106 -> 0 | E115: =Scores!E106 -> 0 | F115: =Scores!F106 -> 0 | G115: =Scores!G106 -> 0 | H115: =Scores!H106 -> 0 | I115: =Scores!I106 -> 0 | J115: =Scores!J106 -> 0 | K115: =Scores!K106 -> 0 | L115: =Scores!L106 -> 0 | M115: =Scores!M106 -> 0 | N115: =Scores!N106 -> 0 | O115: =Scores!O106 -> 0 | P115: -0.7071067812 | Q115: 2.951299423 | R115: 2.951299423 | S115: =IF(R115<'Grading Scale'!G$8,IF(R115<'Grading Scale'!G$13,'Grading Scale'!E$13,IF(R115<'Grading Scale'!G$12,'Grading Scale'!E$11,IF(R115<'Grading Scale'!G$11,'Grading Scale'!E$9,IF(R115<'Grading Scale'!G$10,'Grading Scale'!E$7,IF(R115<'Grading Scale'!G$9,'Grading Scale'!E$5,'Grading Scale'!E$3))))),IF(R115<'Grading Scale'!G$7,'Grading Scale'!B$13,IF(R115<'Grading Scale'!G$6,'Grading Scale'!B$11,IF(R115<'Grading Scale'!G$5,'Grading Scale'!B$9,IF(R115<'Grading Scale'!G$4,'Grading Scale'!B$7,IF(R115<'Grading Scale'!G$3,'Grading Scale'!B$5,'Grading Scale'!B$3)))))) -> 3 | T115: =Scores!B106 -> 0 | U115: =IF(S115>='Grading Scale'!B$13,IF(S115='Grading Scale'!B$3,'Grading Scale'!C$3,IF(S115='Grading Scale'!B$5,'Grading Scale'!C$5,IF(S115='Grading Scale'!B$7,'Grading Scale'!C$7,IF(S115='Grading Scale'!B$9,'Grading Scale'!C$9,IF(S115='Grading Scale'!B$11,'Grading Scale'!C$11,'Grading Scale'!C$13))))),IF(S115='Grading Scale'!E$3,'Grading Scale'!F$3,IF(S115='Grading Scale'!E$5,'Grading Scale'!F$5,IF(S115='Grading Scale'!E$7,'Grading Scale'!F$7,IF(S115='Grading Scale'!E$9,'Grading Scale'!F$9,IF(S115='Grading Scale'!E$11,'Grading Scale'!F$11,'Grading Scale'!F$13)))))) -> B
A116: =Scores!A107 -> 0 | B116: =Scores!B107 -> 0 | C116: =Scores!C107 -> 0 | D116: =Scores!D107 -> 0 | E116: =Scores!E107 -> 0 | F116: =Scores!F107 -> 0 | G116: =Scores!G107 -> 0 | H116: =Scores!H107 -> 0 | I116: =Scores!I107 -> 0 | J116: =Scores!J107 -> 0 | K116: =Scores!K107 -> 0 | L116: =Scores!L107 -> 0 | M116: =Scores!M107 -> 0 | N116: =Scores!N107 -> 0 | O116: =Scores!O107 -> 0 | P116: -0.7071067812 | Q116: 2.951299423 | R116: 2.951299423 | S116: =IF(R116<'Grading Scale'!G$8,IF(R116<'Grading Scale'!G$13,'Grading Scale'!E$13,IF(R116<'Grading Scale'!G$12,'Grading Scale'!E$11,IF(R116<'Grading Scale'!G$11,'Grading Scale'!E$9,IF(R116<'Grading Scale'!G$10,'Grading Scale'!E$7,IF(R116<'Grading Scale'!G$9,'Grading Scale'!E$5,'Grading Scale'!E$3))))),IF(R116<'Grading Scale'!G$7,'Grading Scale'!B$13,IF(R116<'Grading Scale'!G$6,'Grading Scale'!B$11,IF(R116<'Grading Scale'!G$5,'Grading Scale'!B$9,IF(R116<'Grading Scale'!G$4,'Grading Scale'!B$7,IF(R116<'Grading Scale'!G$3,'Grading Scale'!B$5,'Grading Scale'!B$3)))))) -> 3 | T116: =Scores!B107 -> 0 | U116: =IF(S116>='Grading Scale'!B$13,IF(S116='Grading Scale'!B$3,'Grading Scale'!C$3,IF(S116='Grading Scale'!B$5,'Grading Scale'!C$5,IF(S116='Grading Scale'!B$7,'Grading Scale'!C$7,IF(S116='Grading Scale'!B$9,'Grading Scale'!C$9,IF(S116='Grading Scale'!B$11,'Grading Scale'!C$11,'Grading Scale'!C$13))))),IF(S116='Grading Scale'!E$3,'Grading Scale'!F$3,IF(S116='Grading Scale'!E$5,'Grading Scale'!F$5,IF(S116='Grading Scale'!E$7,'Grading Scale'!F$7,IF(S116='Grading Scale'!E$9,'Grading Scale'!F$9,IF(S116='Grading Scale'!E$11,'Grading Scale'!F$11,'Grading Scale'!F$13)))))) -> B
A117: =Scores!A108 -> 0 | B117: =Scores!B108 -> 0 | C117: =Scores!C108 -> 0 | D117: =Scores!D108 -> 0 | E117: =Scores!E108 -> 0 | F117: =Scores!F108 -> 0 | G117: =Scores!G108 -> 0 | H117: =Scores!H108 -> 0 | I117: =Scores!I108 -> 0 | J117: =Scores!J108 -> 0 | K117: =Scores!K108 -> 0 | L117: =Scores!L108 -> 0 | M117: =Scores!M108 -> 0 | N117: =Scores!N108 -> 0 | O117: =Scores!O108 -> 0 | P117: -0.7071067812 | Q117: 2.951299423 | R117: 2.951299423 | S117: =IF(R117<'Grading Scale'!G$8,IF(R117<'Grading Scale'!G$13,'Grading Scale'!E$13,IF(R117<'Grading Scale'!G$12,'Grading Scale'!E$11,IF(R117<'Grading Scale'!G$11,'Grading Scale'!E$9,IF(R117<'Grading Scale'!G$10,'Grading Scale'!E$7,IF(R117<'Grading Scale'!G$9,'Grading Scale'!E$5,'Grading Scale'!E$3))))),IF(R117<'Grading Scale'!G$7,'Grading Scale'!B$13,IF(R117<'Grading Scale'!G$6,'Grading Scale'!B$11,IF(R117<'Grading Scale'!G$5,'Grading Scale'!B$9,IF(R117<'Grading Scale'!G$4,'Grading Scale'!B$7,IF(R117<'Grading Scale'!G$3,'Grading Scale'!B$5,'Grading Scale'!B$3)))))) -> 3 | T117: =Scores!B108 -> 0 | U117: =IF(S117>='Grading Scale'!B$13,IF(S117='Grading Scale'!B$3,'Grading Scale'!C$3,IF(S117='Grading Scale'!B$5,'Grading Scale'!C$5,IF(S117='Grading Scale'!B$7,'Grading Scale'!C$7,IF(S117='Grading Scale'!B$9,'Grading Scale'!C$9,IF(S117='Grading Scale'!B$11,'Grading Scale'!C$11,'Grading Scale'!C$13))))),IF(S117='Grading Scale'!E$3,'Grading Scale'!F$3,IF(S117='Grading Scale'!E$5,'Grading Scale'!F$5,IF(S117='Grading Scale'!E$7,'Grading Scale'!F$7,IF(S117='Grading Scale'!E$9,'Grading Scale'!F$9,IF(S117='Grading Scale'!E$11,'Grading Scale'!F$11,'Grading Scale'!F$13)))))) -> B
A118: =Scores!A109 -> 0 | B118: =Scores!B109 -> 0 | C118: =Scores!C109 -> 0 | D118: =Scores!D109 -> 0 | E118: =Scores!E109 -> 0 | F118: =Scores!F109 -> 0 | G118: =Scores!G109 -> 0 | H118: =Scores!H109 -> 0 | I118: =Scores!I109 -> 0 | J118: =Scores!J109 -> 0 | K118: =Scores!K109 -> 0 | L118: =Scores!L109 -> 0 | M118: =Scores!M109 -> 0 | N118: =Scores!N109 -> 0 | O118: =Scores!O109 -> 0 | P118: -0.7071067812 | Q118: 2.951299423 | R118: 2.951299423 | S118: =IF(R118<'Grading Scale'!G$8,IF(R118<'Grading Scale'!G$13,'Grading Scale'!E$13,IF(R118<'Grading Scale'!G$12,'Grading Scale'!E$11,IF(R118<'Grading Scale'!G$11,'Grading Scale'!E$9,IF(R118<'Grading Scale'!G$10,'Grading Scale'!E$7,IF(R118<'Grading Scale'!G$9,'Grading Scale'!E$5,'Grading Scale'!E$3))))),IF(R118<'Grading Scale'!G$7,'Grading Scale'!B$13,IF(R118<'Grading Scale'!G$6,'Grading Scale'!B$11,IF(R118<'Grading Scale'!G$5,'Grading Scale'!B$9,IF(R118<'Grading Scale'!G$4,'Grading Scale'!B$7,IF(R118<'Grading Scale'!G$3,'Grading Scale'!B$5,'Grading Scale'!B$3)))))) -> 3 | T118: =Scores!B109 -> 0 | U118: =IF(S118>='Grading Scale'!B$13,IF(S118='Grading Scale'!B$3,'Grading Scale'!C$3,IF(S118='Grading Scale'!B$5,'Grading Scale'!C$5,IF(S118='Grading Scale'!B$7,'Grading Scale'!C$7,IF(S118='Grading Scale'!B$9,'Grading Scale'!C$9,IF(S118='Grading Scale'!B$11,'Grading Scale'!C$11,'Grading Scale'!C$13))))),IF(S118='Grading Scale'!E$3,'Grading Scale'!F$3,IF(S118='Grading Scale'!E$5,'Grading Scale'!F$5,IF(S118='Grading Scale'!E$7,'Grading Scale'!F$7,IF(S118='Grading Scale'!E$9,'Grading Scale'!F$9,IF(S118='Grading Scale'!E$11,'Grading Scale'!F$11,'Grading Scale'!F$13)))))) -> B
A119: =Scores!A110 -> 0 | B119: =Scores!B110 -> 0 | C119: =Scores!C110 -> 0 | D119: =Scores!D110 -> 0 | E119: =Scores!E110 -> 0 | F119: =Scores!F110 -> 0 | G119: =Scores!G110 -> 0 | H119: =Scores!H110 -> 0 | I119: =Scores!I110 -> 0 | J119: =Scores!J110 -> 0 | K119: =Scores!K110 -> 0 | L119: =Scores!L110 -> 0 | M119: =Scores!M110 -> 0 | N119: =Scores!N110 -> 0 | O119: =Scores!O110 -> 0 | P119: -0.7071067812 | Q119: 2.951299423 | R119: 2.951299423 | S119: =IF(R119<'Grading Scale'!G$8,IF(R119<'Grading Scale'!G$13,'Grading Scale'!E$13,IF(R119<'Grading Scale'!G$12,'Grading Scale'!E$11,IF(R119<'Grading Scale'!G$11,'Grading Scale'!E$9,IF(R119<'Grading Scale'!G$10,'Grading Scale'!E$7,IF(R119<'Grading Scale'!G$9,'Grading Scale'!E$5,'Grading Scale'!E$3))))),IF(R119<'Grading Scale'!G$7,'Grading Scale'!B$13,IF(R119<'Grading Scale'!G$6,'Grading Scale'!B$11,IF(R119<'Grading Scale'!G$5,'Grading Scale'!B$9,IF(R119<'Grading Scale'!G$4,'Grading Scale'!B$7,IF(R119<'Grading Scale'!G$3,'Grading Scale'!B$5,'Grading Scale'!B$3)))))) -> 3 | T119: =Scores!B110 -> 0 | U119: =IF(S119>='Grading Scale'!B$13,IF(S119='Grading Scale'!B$3,'Grading Scale'!C$3,IF(S119='Grading Scale'!B$5,'Grading Scale'!C$5,IF(S119='Grading Scale'!B$7,'Grading Scale'!C$7,IF(S119='Grading Scale'!B$9,'Grading Scale'!C$9,IF(S119='Grading Scale'!B$11,'Grading Scale'!C$11,'Grading Scale'!C$13))))),IF(S119='Grading Scale'!E$3,'Grading Scale'!F$3,IF(S119='Grading Scale'!E$5,'Grading Scale'!F$5,IF(S119='Grading Scale'!E$7,'Grading Scale'!F$7,IF(S119='Grading Scale'!E$9,'Grading Scale'!F$9,IF(S119='Grading Scale'!E$11,'Grading Scale'!F$11,'Grading Scale'!F$13)))))) -> B
A120: =Scores!A111 -> 0 | B120: =Scores!B111 -> 0 | C120: =Scores!C111 -> 0 | D120: =Scores!D111 -> 0 | E120: =Scores!E111 -> 0 | F120: =Scores!F111 -> 0 | G120: =Scores!G111 -> 0 | H120: =Scores!H111 -> 0 | I120: =Scores!I111 -> 0 | J120: =Scores!J111 -> 0 | K120: =Scores!K111 -> 0 | L120: =Scores!L111 -> 0 | M120: =Scores!M111 -> 0 | N120: =Scores!N111 -> 0 | O120: =Scores!O111 -> 0 | P120: -0.7071067812 | Q120: 2.951299423 | R120: 2.951299423 | S120: =IF(R120<'Grading Scale'!G$8,IF(R120<'Grading Scale'!G$13,'Grading Scale'!E$13,IF(R120<'Grading Scale'!G$12,'Grading Scale'!E$11,IF(R120<'Grading Scale'!G$11,'Grading Scale'!E$9,IF(R120<'Grading Scale'!G$10,'Grading Scale'!E$7,IF(R120<'Grading Scale'!G$9,'Grading Scale'!E$5,'Grading Scale'!E$3))))),IF(R120<'Grading Scale'!G$7,'Grading Scale'!B$13,IF(R120<'Grading Scale'!G$6,'Grading Scale'!B$11,IF(R120<'Grading Scale'!G$5,'Grading Scale'!B$9,IF(R120<'Grading Scale'!G$4,'Grading Scale'!B$7,IF(R120<'Grading Scale'!G$3,'Grading Scale'!B$5,'Grading Scale'!B$3)))))) -> 3 | T120: =Scores!B111 -> 0 | U120: =IF(S120>='Grading Scale'!B$13,IF(S120='Grading Scale'!B$3,'Grading Scale'!C$3,IF(S120='Grading Scale'!B$5,'Grading Scale'!C$5,IF(S120='Grading Scale'!B$7,'Grading Scale'!C$7,IF(S120='Grading Scale'!B$9,'Grading Scale'!C$9,IF(S120='Grading Scale'!B$11,'Grading Scale'!C$11,'Grading Scale'!C$13))))),IF(S120='Grading Scale'!E$3,'Grading Scale'!F$3,IF(S120='Grading Scale'!E$5,'Grading Scale'!F$5,IF(S120='Grading Scale'!E$7,'Grading Scale'!F$7,IF(S120='Grading Scale'!E$9,'Grading Scale'!F$9,IF(S120='Grading Scale'!E$11,'Grading Scale'!F$11,'Grading Scale'!F$13)))))) -> B
A121: =Scores!A112 -> 0 | B121: =Scores!B112 -> 0 | C121: =Scores!C112 -> 0 | D121: =Scores!D112 -> 0 | E121: =Scores!E112 -> 0 | F121: =Scores!F112 -> 0 | G121: =Scores!G112 -> 0 | H121: =Scores!H112 -> 0 | I121: =Scores!I112 -> 0 | J121: =Scores!J112 -> 0 | K121: =Scores!K112 -> 0 | L121: =Scores!L112 -> 0 | M121: =Scores!M112 -> 0 | N121: =Scores!N112 -> 0 | O121: =Scores!O112 -> 0 | P121: -0.7071067812 | Q121: 2.951299423 | R121: 2.951299423 | S121: =IF(R121<'Grading Scale'!G$8,IF(R121<'Grading Scale'!G$13,'Grading Scale'!E$13,IF(R121<'Grading Scale'!G$12,'Grading Scale'!E$11,IF(R121<'Grading Scale'!G$11,'Grading Scale'!E$9,IF(R121<'Grading Scale'!G$10,'Grading Scale'!E$7,IF(R121<'Grading Scale'!G$9,'Grading Scale'!E$5,'Grading Scale'!E$3))))),IF(R121<'Grading Scale'!G$7,'Grading Scale'!B$13,IF(R121<'Grading Scale'!G$6,'Grading Scale'!B$11,IF(R121<'Grading Scale'!G$5,'Grading Scale'!B$9,IF(R121<'Grading Scale'!G$4,'Grading Scale'!B$7,IF(R121<'Grading Scale'!G$3,'Grading Scale'!B$5,'Grading Scale'!B$3)))))) -> 3 | T121: =Scores!B112 -> 0 | U121: =IF(S121>='Grading Scale'!B$13,IF(S121='Grading Scale'!B$3,'Grading Scale'!C$3,IF(S121='Grading Scale'!B$5,'Grading Scale'!C$5,IF(S121='Grading Scale'!B$7,'Grading Scale'!C$7,IF(S121='Grading Scale'!B$9,'Grading Scale'!C$9,IF(S121='Grading Scale'!B$11,'Grading Scale'!C$11,'Grading Scale'!C$13))))),IF(S121='Grading Scale'!E$3,'Grading Scale'!F$3,IF(S121='Grading Scale'!E$5,'Grading Scale'!F$5,IF(S121='Grading Scale'!E$7,'Grading Scale'!F$7,IF(S121='Grading Scale'!E$9,'Grading Scale'!F$9,IF(S121='Grading Scale'!E$11,'Grading Scale'!F$11,'Grading Scale'!F$13)))))) -> B
A122: =Scores!A113 -> 0 | B122: =Scores!B113 -> 0 | C122: =Scores!C113 -> 0 | D122: =Scores!D113 -> 0 | E122: =Scores!E113 -> 0 | F122: =Scores!F113 -> 0 | G122: =Scores!G113 -> 0 | H122: =Scores!H113 -> 0 | I122: =Scores!I113 -> 0 | J122: =Scores!J113 -> 0 | K122: =Scores!K113 -> 0 | L122: =Scores!L113 -> 0 | M122: =Scores!M113 -> 0 | N122: =Scores!N113 -> 0 | O122: =Scores!O113 -> 0 | P122: -0.7071067812 | Q122: 2.951299423 | R122: 2.951299423 | S122: =IF(R122<'Grading Scale'!G$8,IF(R122<'Grading Scale'!G$13,'Grading Scale'!E$13,IF(R122<'Grading Scale'!G$12,'Grading Scale'!E$11,IF(R122<'Grading Scale'!G$11,'Grading Scale'!E$9,IF(R122<'Grading Scale'!G$10,'Grading Scale'!E$7,IF(R122<'Grading Scale'!G$9,'Grading Scale'!E$5,'Grading Scale'!E$3))))),IF(R122<'Grading Scale'!G$7,'Grading Scale'!B$13,IF(R122<'Grading Scale'!G$6,'Grading Scale'!B$11,IF(R122<'Grading Scale'!G$5,'Grading Scale'!B$9,IF(R122<'Grading Scale'!G$4,'Grading Scale'!B$7,IF(R122<'Grading Scale'!G$3,'Grading Scale'!B$5,'Grading Scale'!B$3)))))) -> 3 | T122: =Scores!B113 -> 0 | U122: =IF(S122>='Grading Scale'!B$13,IF(S122='Grading Scale'!B$3,'Grading Scale'!C$3,IF(S122='Grading Scale'!B$5,'Grading Scale'!C$5,IF(S122='Grading Scale'!B$7,'Grading Scale'!C$7,IF(S122='Grading Scale'!B$9,'Grading Scale'!C$9,IF(S122='Grading Scale'!B$11,'Grading Scale'!C$11,'Grading Scale'!C$13))))),IF(S122='Grading Scale'!E$3,'Grading Scale'!F$3,IF(S122='Grading Scale'!E$5,'Grading Scale'!F$5,IF(S122='Grading Scale'!E$7,'Grading Scale'!F$7,IF(S122='Grading Scale'!E$9,'Grading Scale'!F$9,IF(S122='Grading Scale'!E$11,'Grading Scale'!F$11,'Grading Scale'!F$13)))))) -> B
A123: =Scores!A114 -> 0 | B123: =Scores!B114 -> 0 | C123: =Scores!C114 -> 0 | D123: =Scores!D114 -> 0 | E123: =Scores!E114 -> 0 | F123: =Scores!F114 -> 0 | G123: =Scores!G114 -> 0 | H123: =Scores!H114 -> 0 | I123: =Scores!I114 -> 0 | J123: =Scores!J114 -> 0 | K123: =Scores!K114 -> 0 | L123: =Scores!L114 -> 0 | M123: =Scores!M114 -> 0 | N123: =Scores!N114 -> 0 | O123: =Scores!O114 -> 0 | P123: -0.7071067812 | Q123: 2.951299423 | R123: 2.951299423 | S123: =IF(R123<'Grading Scale'!G$8,IF(R123<'Grading Scale'!G$13,'Grading Scale'!E$13,IF(R123<'Grading Scale'!G$12,'Grading Scale'!E$11,IF(R123<'Grading Scale'!G$11,'Grading Scale'!E$9,IF(R123<'Grading Scale'!G$10,'Grading Scale'!E$7,IF(R123<'Grading Scale'!G$9,'Grading Scale'!E$5,'Grading Scale'!E$3))))),IF(R123<'Grading Scale'!G$7,'Grading Scale'!B$13,IF(R123<'Grading Scale'!G$6,'Grading Scale'!B$11,IF(R123<'Grading Scale'!G$5,'Grading Scale'!B$9,IF(R123<'Grading Scale'!G$4,'Grading Scale'!B$7,IF(R123<'Grading Scale'!G$3,'Grading Scale'!B$5,'Grading Scale'!B$3)))))) -> 3 | T123: =Scores!B114 -> 0 | U123: =IF(S123>='Grading Scale'!B$13,IF(S123='Grading Scale'!B$3,'Grading Scale'!C$3,IF(S123='Grading Scale'!B$5,'Grading Scale'!C$5,IF(S123='Grading Scale'!B$7,'Grading Scale'!C$7,IF(S123='Grading Scale'!B$9,'Grading Scale'!C$9,IF(S123='Grading Scale'!B$11,'Grading Scale'!C$11,'Grading Scale'!C$13))))),IF(S123='Grading Scale'!E$3,'Grading Scale'!F$3,IF(S123='Grading Scale'!E$5,'Grading Scale'!F$5,IF(S123='Grading Scale'!E$7,'Grading Scale'!F$7,IF(S123='Grading Scale'!E$9,'Grading Scale'!F$9,IF(S123='Grading Scale'!E$11,'Grading Scale'!F$11,'Grading Scale'!F$13)))))) -> B
A124: =Scores!A115 -> 0 | B124: =Scores!B115 -> 0 | C124: =Scores!C115 -> 0 | D124: =Scores!D115 -> 0 | E124: =Scores!E115 -> 0 | F124: =Scores!F115 -> 0 | G124: =Scores!G115 -> 0 | H124: =Scores!H115 -> 0 | I124: =Scores!I115 -> 0 | J124: =Scores!J115 -> 0 | K124: =Scores!K115 -> 0 | L124: =Scores!L115 -> 0 | M124: =Scores!M115 -> 0 | N124: =Scores!N115 -> 0 | O124: =Scores!O115 -> 0 | P124: -0.7071067812 | Q124: 2.951299423 | R124: 2.951299423 | S124: =IF(R124<'Grading Scale'!G$8,IF(R124<'Grading Scale'!G$13,'Grading Scale'!E$13,IF(R124<'Grading Scale'!G$12,'Grading Scale'!E$11,IF(R124<'Grading Scale'!G$11,'Grading Scale'!E$9,IF(R124<'Grading Scale'!G$10,'Grading Scale'!E$7,IF(R124<'Grading Scale'!G$9,'Grading Scale'!E$5,'Grading Scale'!E$3))))),IF(R124<'Grading Scale'!G$7,'Grading Scale'!B$13,IF(R124<'Grading Scale'!G$6,'Grading Scale'!B$11,IF(R124<'Grading Scale'!G$5,'Grading Scale'!B$9,IF(R124<'Grading Scale'!G$4,'Grading Scale'!B$7,IF(R124<'Grading Scale'!G$3,'Grading Scale'!B$5,'Grading Scale'!B$3)))))) -> 3 | T124: =Scores!B115 -> 0 | U124: =IF(S124>='Grading Scale'!B$13,IF(S124='Grading Scale'!B$3,'Grading Scale'!C$3,IF(S124='Grading Scale'!B$5,'Grading Scale'!C$5,IF(S124='Grading Scale'!B$7,'Grading Scale'!C$7,IF(S124='Grading Scale'!B$9,'Grading Scale'!C$9,IF(S124='Grading Scale'!B$11,'Grading Scale'!C$11,'Grading Scale'!C$13))))),IF(S124='Grading Scale'!E$3,'Grading Scale'!F$3,IF(S124='Grading Scale'!E$5,'Grading Scale'!F$5,IF(S124='Grading Scale'!E$7,'Grading Scale'!F$7,IF(S124='Grading Scale'!E$9,'Grading Scale'!F$9,IF(S124='Grading Scale'!E$11,'Grading Scale'!F$11,'Grading Scale'!F$13)))))) -> B
A125: =Scores!A116 -> 0 | B125: =Scores!B116 -> 0 | C125: =Scores!C116 -> 0 | D125: =Scores!D116 -> 0 | E125: =Scores!E116 -> 0 | F125: =Scores!F116 -> 0 | G125: =Scores!G116 -> 0 | H125: =Scores!H116 -> 0 | I125: =Scores!I116 -> 0 | J125: =Scores!J116 -> 0 | K125: =Scores!K116 -> 0 | L125: =Scores!L116 -> 0 | M125: =Scores!M116 -> 0 | N125: =Scores!N116 -> 0 | O125: =Scores!O116 -> 0 | P125: -0.7071067812 | Q125: 2.951299423 | R125: 2.951299423 | S125: =IF(R125<'Grading Scale'!G$8,IF(R125<'Grading Scale'!G$13,'Grading Scale'!E$13,IF(R125<'Grading Scale'!G$12,'Grading Scale'!E$11,IF(R125<'Grading Scale'!G$11,'Grading Scale'!E$9,IF(R125<'Grading Scale'!G$10,'Grading Scale'!E$7,IF(R125<'Grading Scale'!G$9,'Grading Scale'!E$5,'Grading Scale'!E$3))))),IF(R125<'Grading Scale'!G$7,'Grading Scale'!B$13,IF(R125<'Grading Scale'!G$6,'Grading Scale'!B$11,IF(R125<'Grading Scale'!G$5,'Grading Scale'!B$9,IF(R125<'Grading Scale'!G$4,'Grading Scale'!B$7,IF(R125<'Grading Scale'!G$3,'Grading Scale'!B$5,'Grading Scale'!B$3)))))) -> 3 | T125: =Scores!B116 -> 0 | U125: =IF(S125>='Grading Scale'!B$13,IF(S125='Grading Scale'!B$3,'Grading Scale'!C$3,IF(S125='Grading Scale'!B$5,'Grading Scale'!C$5,IF(S125='Grading Scale'!B$7,'Grading Scale'!C$7,IF(S125='Grading Scale'!B$9,'Grading Scale'!C$9,IF(S125='Grading Scale'!B$11,'Grading Scale'!C$11,'Grading Scale'!C$13))))),IF(S125='Grading Scale'!E$3,'Grading Scale'!F$3,IF(S125='Grading Scale'!E$5,'Grading Scale'!F$5,IF(S125='Grading Scale'!E$7,'Grading Scale'!F$7,IF(S125='Grading Scale'!E$9,'Grading Scale'!F$9,IF(S125='Grading Scale'!E$11,'Grading Scale'!F$11,'Grading Scale'!F$13)))))) -> B
A126: =Scores!A117 -> 0 | B126: =Scores!B117 -> 0 | C126: =Scores!C117 -> 0 | D126: =Scores!D117 -> 0 | E126: =Scores!E117 -> 0 | F126: =Scores!F117 -> 0 | G126: =Scores!G117 -> 0 | H126: =Scores!H117 -> 0 | I126: =Scores!I117 -> 0 | J126: =Scores!J117 -> 0 | K126: =Scores!K117 -> 0 | L126: =Scores!L117 -> 0 | M126: =Scores!M117 -> 0 | N126: =Scores!N117 -> 0 | O126: =Scores!O117 -> 0 | P126: -0.7071067812 | Q126: 2.951299423 | R126: 2.951299423 | S126: =IF(R126<'Grading Scale'!G$8,IF(R126<'Grading Scale'!G$13,'Grading Scale'!E$13,IF(R126<'Grading Scale'!G$12,'Grading Scale'!E$11,IF(R126<'Grading Scale'!G$11,'Grading Scale'!E$9,IF(R126<'Grading Scale'!G$10,'Grading Scale'!E$7,IF(R126<'Grading Scale'!G$9,'Grading Scale'!E$5,'Grading Scale'!E$3))))),IF(R126<'Grading Scale'!G$7,'Grading Scale'!B$13,IF(R126<'Grading Scale'!G$6,'Grading Scale'!B$11,IF(R126<'Grading Scale'!G$5,'Grading Scale'!B$9,IF(R126<'Grading Scale'!G$4,'Grading Scale'!B$7,IF(R126<'Grading Scale'!G$3,'Grading Scale'!B$5,'Grading Scale'!B$3)))))) -> 3 | T126: =Scores!B117 -> 0 | U126: =IF(S126>='Grading Scale'!B$13,IF(S126='Grading Scale'!B$3,'Grading Scale'!C$3,IF(S126='Grading Scale'!B$5,'Grading Scale'!C$5,IF(S126='Grading Scale'!B$7,'Grading Scale'!C$7,IF(S126='Grading Scale'!B$9,'Grading Scale'!C$9,IF(S126='Grading Scale'!B$11,'Grading Scale'!C$11,'Grading Scale'!C$13))))),IF(S126='Grading Scale'!E$3,'Grading Scale'!F$3,IF(S126='Grading Scale'!E$5,'Grading Scale'!F$5,IF(S126='Grading Scale'!E$7,'Grading Scale'!F$7,IF(S126='Grading Scale'!E$9,'Grading Scale'!F$9,IF(S126='Grading Scale'!E$11,'Grading Scale'!F$11,'Grading Scale'!F$13)))))) -> B
A127: =Scores!A118 -> 0 | B127: =Scores!B118 -> 0 | C127: =Scores!C118 -> 0 | D127: =Scores!D118 -> 0 | E127: =Scores!E118 -> 0 | F127: =Scores!F118 -> 0 | G127: =Scores!G118 -> 0 | H127: =Scores!H118 -> 0 | I127: =Scores!I118 -> 0 | J127: =Scores!J118 -> 0 | K127: =Scores!K118 -> 0 | L127: =Scores!L118 -> 0 | M127: =Scores!M118 -> 0 | N127: =Scores!N118 -> 0 | O127: =Scores!O118 -> 0 | P127: -0.7071067812 | Q127: 2.951299423 | R127: 2.951299423 | S127: =IF(R127<'Grading Scale'!G$8,IF(R127<'Grading Scale'!G$13,'Grading Scale'!E$13,IF(R127<'Grading Scale'!G$12,'Grading Scale'!E$11,IF(R127<'Grading Scale'!G$11,'Grading Scale'!E$9,IF(R127<'Grading Scale'!G$10,'Grading Scale'!E$7,IF(R127<'Grading Scale'!G$9,'Grading Scale'!E$5,'Grading Scale'!E$3))))),IF(R127<'Grading Scale'!G$7,'Grading Scale'!B$13,IF(R127<'Grading Scale'!G$6,'Grading Scale'!B$11,IF(R127<'Grading Scale'!G$5,'Grading Scale'!B$9,IF(R127<'Grading Scale'!G$4,'Grading Scale'!B$7,IF(R127<'Grading Scale'!G$3,'Grading Scale'!B$5,'Grading Scale'!B$3)))))) -> 3 | T127: =Scores!B118 -> 0 | U127: =IF(S127>='Grading Scale'!B$13,IF(S127='Grading Scale'!B$3,'Grading Scale'!C$3,IF(S127='Grading Scale'!B$5,'Grading Scale'!C$5,IF(S127='Grading Scale'!B$7,'Grading Scale'!C$7,IF(S127='Grading Scale'!B$9,'Grading Scale'!C$9,IF(S127='Grading Scale'!B$11,'Grading Scale'!C$11,'Grading Scale'!C$13))))),IF(S127='Grading Scale'!E$3,'Grading Scale'!F$3,IF(S127='Grading Scale'!E$5,'Grading Scale'!F$5,IF(S127='Grading Scale'!E$7,'Grading Scale'!F$7,IF(S127='Grading Scale'!E$9,'Grading Scale'!F$9,IF(S127='Grading Scale'!E$11,'Grading Scale'!F$11,'Grading Scale'!F$13)))))) -> B
A128: =Scores!A119 -> 0 | B128: =Scores!B119 -> 0 | C128: =Scores!C119 -> 0 | D128: =Scores!D119 -> 0 | E128: =Scores!E119 -> 0 | F128: =Scores!F119 -> 0 | G128: =Scores!G119 -> 0 | H128: =Scores!H119 -> 0 | I128: =Scores!I119 -> 0 | J128: =Scores!J119 -> 0 | K128: =Scores!K119 -> 0 | L128: =Scores!L119 -> 0 | M128: =Scores!M119 -> 0 | N128: =Scores!N119 -> 0 | O128: =Scores!O119 -> 0 | P128: -0.7071067812 | Q128: 2.951299423 | R128: 2.951299423 | S128: =IF(R128<'Grading Scale'!G$8,IF(R128<'Grading Scale'!G$13,'Grading Scale'!E$13,IF(R128<'Grading Scale'!G$12,'Grading Scale'!E$11,IF(R128<'Grading Scale'!G$11,'Grading Scale'!E$9,IF(R128<'Grading Scale'!G$10,'Grading Scale'!E$7,IF(R128<'Grading Scale'!G$9,'Grading Scale'!E$5,'Grading Scale'!E$3))))),IF(R128<'Grading Scale'!G$7,'Grading Scale'!B$13,IF(R128<'Grading Scale'!G$6,'Grading Scale'!B$11,IF(R128<'Grading Scale'!G$5,'Grading Scale'!B$9,IF(R128<'Grading Scale'!G$4,'Grading Scale'!B$7,IF(R128<'Grading Scale'!G$3,'Grading Scale'!B$5,'Grading Scale'!B$3)))))) -> 3 | T128: =Scores!B119 -> 0 | U128: =IF(S128>='Grading Scale'!B$13,IF(S128='Grading Scale'!B$3,'Grading Scale'!C$3,IF(S128='Grading Scale'!B$5,'Grading Scale'!C$5,IF(S128='Grading Scale'!B$7,'Grading Scale'!C$7,IF(S128='Grading Scale'!B$9,'Grading Scale'!C$9,IF(S128='Grading Scale'!B$11,'Grading Scale'!C$11,'Grading Scale'!C$13))))),IF(S128='Grading Scale'!E$3,'Grading Scale'!F$3,IF(S128='Grading Scale'!E$5,'Grading Scale'!F$5,IF(S128='Grading Scale'!E$7,'Grading Scale'!F$7,IF(S128='Grading Scale'!E$9,'Grading Scale'!F$9,IF(S128='Grading Scale'!E$11,'Grading Scale'!F$11,'Grading Scale'!F$13)))))) -> B
A129: =Scores!A120 -> 0 | B129: =Scores!B120 -> 0 | C129: =Scores!C120 -> 0 | D129: =Scores!D120 -> 0 | E129: =Scores!E120 -> 0 | F129: =Scores!F120 -> 0 | G129: =Scores!G120 -> 0 | H129: =Scores!H120 -> 0 | I129: =Scores!I120 -> 0 | J129: =Scores!J120 -> 0 | K129: =Scores!K120 -> 0 | L129: =Scores!L120 -> 0 | M129: =Scores!M120 -> 0 | N129: =Scores!N120 -> 0 | O129: =Scores!O120 -> 0 | P129: -0.7071067812 | Q129: 2.951299423 | R129: 2.951299423 | S129: =IF(R129<'Grading Scale'!G$8,IF(R129<'Grading Scale'!G$13,'Grading Scale'!E$13,IF(R129<'Grading Scale'!G$12,'Grading Scale'!E$11,IF(R129<'Grading Scale'!G$11,'Grading Scale'!E$9,IF(R129<'Grading Scale'!G$10,'Grading Scale'!E$7,IF(R129<'Grading Scale'!G$9,'Grading Scale'!E$5,'Grading Scale'!E$3))))),IF(R129<'Grading Scale'!G$7,'Grading Scale'!B$13,IF(R129<'Grading Scale'!G$6,'Grading Scale'!B$11,IF(R129<'Grading Scale'!G$5,'Grading Scale'!B$9,IF(R129<'Grading Scale'!G$4,'Grading Scale'!B$7,IF(R129<'Grading Scale'!G$3,'Grading Scale'!B$5,'Grading Scale'!B$3)))))) -> 3 | T129: =Scores!B120 -> 0 | U129: =IF(S129>='Grading Scale'!B$13,IF(S129='Grading Scale'!B$3,'Grading Scale'!C$3,IF(S129='Grading Scale'!B$5,'Grading Scale'!C$5,IF(S129='Grading Scale'!B$7,'Grading Scale'!C$7,IF(S129='Grading Scale'!B$9,'Grading Scale'!C$9,IF(S129='Grading Scale'!B$11,'Grading Scale'!C$11,'Grading Scale'!C$13))))),IF(S129='Grading Scale'!E$3,'Grading Scale'!F$3,IF(S129='Grading Scale'!E$5,'Grading Scale'!F$5,IF(S129='Grading Scale'!E$7,'Grading Scale'!F$7,IF(S129='Grading Scale'!E$9,'Grading Scale'!F$9,IF(S129='Grading Scale'!E$11,'Grading Scale'!F$11,'Grading Scale'!F$13)))))) -> B
A130: =Scores!A121 -> 0 | B130: =Scores!B121 -> 0 | C130: =Scores!C121 -> 0 | D130: =Scores!D121 -> 0 | E130: =Scores!E121 -> 0 | F130: =Scores!F121 -> 0 | G130: =Scores!G121 -> 0 | H130: =Scores!H121 -> 0 | I130: =Scores!I121 -> 0 | J130: =Scores!J121 -> 0 | K130: =Scores!K121 -> 0 | L130: =Scores!L121 -> 0 | M130: =Scores!M121 -> 0 | N130: =Scores!N121 -> 0 | O130: =Scores!O121 -> 0 | P130: -0.7071067812 | Q130: 2.951299423 | R130: 2.951299423 | S130: =IF(R130<'Grading Scale'!G$8,IF(R130<'Grading Scale'!G$13,'Grading Scale'!E$13,IF(R130<'Grading Scale'!G$12,'Grading Scale'!E$11,IF(R130<'Grading Scale'!G$11,'Grading Scale'!E$9,IF(R130<'Grading Scale'!G$10,'Grading Scale'!E$7,IF(R130<'Grading Scale'!G$9,'Grading Scale'!E$5,'Grading Scale'!E$3))))),IF(R130<'Grading Scale'!G$7,'Grading Scale'!B$13,IF(R130<'Grading Scale'!G$6,'Grading Scale'!B$11,IF(R130<'Grading Scale'!G$5,'Grading Scale'!B$9,IF(R130<'Grading Scale'!G$4,'Grading Scale'!B$7,IF(R130<'Grading Scale'!G$3,'Grading Scale'!B$5,'Grading Scale'!B$3)))))) -> 3 | T130: =Scores!B121 -> 0 | U130: =IF(S130>='Grading Scale'!B$13,IF(S130='Grading Scale'!B$3,'Grading Scale'!C$3,IF(S130='Grading Scale'!B$5,'Grading Scale'!C$5,IF(S130='Grading Scale'!B$7,'Grading Scale'!C$7,IF(S130='Grading Scale'!B$9,'Grading Scale'!C$9,IF(S130='Grading Scale'!B$11,'Grading Scale'!C$11,'Grading Scale'!C$13))))),IF(S130='Grading Scale'!E$3,'Grading Scale'!F$3,IF(S130='Grading Scale'!E$5,'Grading Scale'!F$5,IF(S130='Grading Scale'!E$7,'Grading Scale'!F$7,IF(S130='Grading Scale'!E$9,'Grading Scale'!F$9,IF(S130='Grading Scale'!E$11,'Grading Scale'!F$11,'Grading Scale'!F$13)))))) -> B
A131: =Scores!A122 -> 0 | B131: =Scores!B122 -> 0 | C131: =Scores!C122 -> 0 | D131: =Scores!D122 -> 0 | E131: =Scores!E122 -> 0 | F131: =Scores!F122 -> 0 | G131: =Scores!G122 -> 0 | H131: =Scores!H122 -> 0 | I131: =Scores!I122 -> 0 | J131: =Scores!J122 -> 0 | K131: =Scores!K122 -> 0 | L131: =Scores!L122 -> 0 | M131: =Scores!M122 -> 0 | N131: =Scores!N122 -> 0 | O131: =Scores!O122 -> 0 | P131: -0.7071067812 | Q131: 2.951299423 | R131: 2.951299423 | S131: =IF(R131<'Grading Scale'!G$8,IF(R131<'Grading Scale'!G$13,'Grading Scale'!E$13,IF(R131<'Grading Scale'!G$12,'Grading Scale'!E$11,IF(R131<'Grading Scale'!G$11,'Grading Scale'!E$9,IF(R131<'Grading Scale'!G$10,'Grading Scale'!E$7,IF(R131<'Grading Scale'!G$9,'Grading Scale'!E$5,'Grading Scale'!E$3))))),IF(R131<'Grading Scale'!G$7,'Grading Scale'!B$13,IF(R131<'Grading Scale'!G$6,'Grading Scale'!B$11,IF(R131<'Grading Scale'!G$5,'Grading Scale'!B$9,IF(R131<'Grading Scale'!G$4,'Grading Scale'!B$7,IF(R131<'Grading Scale'!G$3,'Grading Scale'!B$5,'Grading Scale'!B$3)))))) -> 3 | T131: =Scores!B122 -> 0 | U131: =IF(S131>='Grading Scale'!B$13,IF(S131='Grading Scale'!B$3,'Grading Scale'!C$3,IF(S131='Grading Scale'!B$5,'Grading Scale'!C$5,IF(S131='Grading Scale'!B$7,'Grading Scale'!C$7,IF(S131='Grading Scale'!B$9,'Grading Scale'!C$9,IF(S131='Grading Scale'!B$11,'Grading Scale'!C$11,'Grading Scale'!C$13))))),IF(S131='Grading Scale'!E$3,'Grading Scale'!F$3,IF(S131='Grading Scale'!E$5,'Grading Scale'!F$5,IF(S131='Grading Scale'!E$7,'Grading Scale'!F$7,IF(S131='Grading Scale'!E$9,'Grading Scale'!F$9,IF(S131='Grading Scale'!E$11,'Grading Scale'!F$11,'Grading Scale'!F$13)))))) -> B
A132: =Scores!A123 -> 0 | B132: =Scores!B123 -> 0 | C132: =Scores!C123 -> 0 | D132: =Scores!D123 -> 0 | E132: =Scores!E123 -> 0 | F132: =Scores!F123 -> 0 | G132: =Scores!G123 -> 0 | H132: =Scores!H123 -> 0 | I132: =Scores!I123 -> 0 | J132: =Scores!J123 -> 0 | K132: =Scores!K123 -> 0 | L132: =Scores!L123 -> 0 | M132: =Scores!M123 -> 0 | N132: =Scores!N123 -> 0 | O132: =Scores!O123 -> 0 | P132: -0.7071067812 | Q132: 2.951299423 | R132: 2.951299423 | S132: =IF(R132<'Grading Scale'!G$8,IF(R132<'Grading Scale'!G$13,'Grading Scale'!E$13,IF(R132<'Grading Scale'!G$12,'Grading Scale'!E$11,IF(R132<'Grading Scale'!G$11,'Grading Scale'!E$9,IF(R132<'Grading Scale'!G$10,'Grading Scale'!E$7,IF(R132<'Grading Scale'!G$9,'Grading Scale'!E$5,'Grading Scale'!E$3))))),IF(R132<'Grading Scale'!G$7,'Grading Scale'!B$13,IF(R132<'Grading Scale'!G$6,'Grading Scale'!B$11,IF(R132<'Grading Scale'!G$5,'Grading Scale'!B$9,IF(R132<'Grading Scale'!G$4,'Grading Scale'!B$7,IF(R132<'Grading Scale'!G$3,'Grading Scale'!B$5,'Grading Scale'!B$3)))))) -> 3 | T132: =Scores!B123 -> 0 | U132: =IF(S132>='Grading Scale'!B$13,IF(S132='Grading Scale'!B$3,'Grading Scale'!C$3,IF(S132='Grading Scale'!B$5,'Grading Scale'!C$5,IF(S132='Grading Scale'!B$7,'Grading Scale'!C$7,IF(S132='Grading Scale'!B$9,'Grading Scale'!C$9,IF(S132='Grading Scale'!B$11,'Grading Scale'!C$11,'Grading Scale'!C$13))))),IF(S132='Grading Scale'!E$3,'Grading Scale'!F$3,IF(S132='Grading Scale'!E$5,'Grading Scale'!F$5,IF(S132='Grading Scale'!E$7,'Grading Scale'!F$7,IF(S132='Grading Scale'!E$9,'Grading Scale'!F$9,IF(S132='Grading Scale'!E$11,'Grading Scale'!F$11,'Grading Scale'!F$13)))))) -> B
A133: =Scores!A124 -> 0 | B133: =Scores!B124 -> 0 | C133: =Scores!C124 -> 0 | D133: =Scores!D124 -> 0 | E133: =Scores!E124 -> 0 | F133: =Scores!F124 -> 0 | G133: =Scores!G124 -> 0 | H133: =Scores!H124 -> 0 | I133: =Scores!I124 -> 0 | J133: =Scores!J124 -> 0 | K133: =Scores!K124 -> 0 | L133: =Scores!L124 -> 0 | M133: =Scores!M124 -> 0 | N133: =Scores!N124 -> 0 | O133: =Scores!O124 -> 0 | P133: -0.7071067812 | Q133: 2.951299423 | R133: 2.951299423 | S133: =IF(R133<'Grading Scale'!G$8,IF(R133<'Grading Scale'!G$13,'Grading Scale'!E$13,IF(R133<'Grading Scale'!G$12,'Grading Scale'!E$11,IF(R133<'Grading Scale'!G$11,'Grading Scale'!E$9,IF(R133<'Grading Scale'!G$10,'Grading Scale'!E$7,IF(R133<'Grading Scale'!G$9,'Grading Scale'!E$5,'Grading Scale'!E$3))))),IF(R133<'Grading Scale'!G$7,'Grading Scale'!B$13,IF(R133<'Grading Scale'!G$6,'Grading Scale'!B$11,IF(R133<'Grading Scale'!G$5,'Grading Scale'!B$9,IF(R133<'Grading Scale'!G$4,'Grading Scale'!B$7,IF(R133<'Grading Scale'!G$3,'Grading Scale'!B$5,'Grading Scale'!B$3)))))) -> 3 | T133: =Scores!B124 -> 0 | U133: =IF(S133>='Grading Scale'!B$13,IF(S133='Grading Scale'!B$3,'Grading Scale'!C$3,IF(S133='Grading Scale'!B$5,'Grading Scale'!C$5,IF(S133='Grading Scale'!B$7,'Grading Scale'!C$7,IF(S133='Grading Scale'!B$9,'Grading Scale'!C$9,IF(S133='Grading Scale'!B$11,'Grading Scale'!C$11,'Grading Scale'!C$13))))),IF(S133='Grading Scale'!E$3,'Grading Scale'!F$3,IF(S133='Grading Scale'!E$5,'Grading Scale'!F$5,IF(S133='Grading Scale'!E$7,'Grading Scale'!F$7,IF(S133='Grading Scale'!E$9,'Grading Scale'!F$9,IF(S133='Grading Scale'!E$11,'Grading Scale'!F$11,'Grading Scale'!F$13)))))) -> B
A134: =Scores!A125 -> 0 | B134: =Scores!B125 -> 0 | C134: =Scores!C125 -> 0 | D134: =Scores!D125 -> 0 | E134: =Scores!E125 -> 0 | F134: =Scores!F125 -> 0 | G134: =Scores!G125 -> 0 | H134: =Scores!H125 -> 0 | I134: =Scores!I125 -> 0 | J134: =Scores!J125 -> 0 | K134: =Scores!K125 -> 0 | L134: =Scores!L125 -> 0 | M134: =Scores!M125 -> 0 | N134: =Scores!N125 -> 0 | O134: =Scores!O125 -> 0 | P134: -0.7071067812 | Q134: 2.951299423 | R134: 2.951299423 | S134: =IF(R134<'Grading Scale'!G$8,IF(R134<'Grading Scale'!G$13,'Grading Scale'!E$13,IF(R134<'Grading Scale'!G$12,'Grading Scale'!E$11,IF(R134<'Grading Scale'!G$11,'Grading Scale'!E$9,IF(R134<'Grading Scale'!G$10,'Grading Scale'!E$7,IF(R134<'Grading Scale'!G$9,'Grading Scale'!E$5,'Grading Scale'!E$3))))),IF(R134<'Grading Scale'!G$7,'Grading Scale'!B$13,IF(R134<'Grading Scale'!G$6,'Grading Scale'!B$11,IF(R134<'Grading Scale'!G$5,'Grading Scale'!B$9,IF(R134<'Grading Scale'!G$4,'Grading Scale'!B$7,IF(R134<'Grading Scale'!G$3,'Grading Scale'!B$5,'Grading Scale'!B$3)))))) -> 3 | T134: =Scores!B125 -> 0 | U134: =IF(S134>='Grading Scale'!B$13,IF(S134='Grading Scale'!B$3,'Grading Scale'!C$3,IF(S134='Grading Scale'!B$5,'Grading Scale'!C$5,IF(S134='Grading Scale'!B$7,'Grading Scale'!C$7,IF(S134='Grading Scale'!B$9,'Grading Scale'!C$9,IF(S134='Grading Scale'!B$11,'Grading Scale'!C$11,'Grading Scale'!C$13))))),IF(S134='Grading Scale'!E$3,'Grading Scale'!F$3,IF(S134='Grading Scale'!E$5,'Grading Scale'!F$5,IF(S134='Grading Scale'!E$7,'Grading Scale'!F$7,IF(S134='Grading Scale'!E$9,'Grading Scale'!F$9,IF(S134='Grading Scale'!E$11,'Grading Scale'!F$11,'Grading Scale'!F$13)))))) -> B
A135: =Scores!A126 -> 0 | B135: =Scores!B126 -> 0 | C135: =Scores!C126 -> 0 | D135: =Scores!D126 -> 0 | E135: =Scores!E126 -> 0 | F135: =Scores!F126 -> 0 | G135: =Scores!G126 -> 0 | H135: =Scores!H126 -> 0 | I135: =Scores!I126 -> 0 | J135: =Scores!J126 -> 0 | K135: =Scores!K126 -> 0 | L135: =Scores!L126 -> 0 | M135: =Scores!M126 -> 0 | N135: =Scores!N126 -> 0 | O135: =Scores!O126 -> 0 | P135: -0.7071067812 | Q135: 2.951299423 | R135: 2.951299423 | S135: =IF(R135<'Grading Scale'!G$8,IF(R135<'Grading Scale'!G$13,'Grading Scale'!E$13,IF(R135<'Grading Scale'!G$12,'Grading Scale'!E$11,IF(R135<'Grading Scale'!G$11,'Grading Scale'!E$9,IF(R135<'Grading Scale'!G$10,'Grading Scale'!E$7,IF(R135<'Grading Scale'!G$9,'Grading Scale'!E$5,'Grading Scale'!E$3))))),IF(R135<'Grading Scale'!G$7,'Grading Scale'!B$13,IF(R135<'Grading Scale'!G$6,'Grading Scale'!B$11,IF(R135<'Grading Scale'!G$5,'Grading Scale'!B$9,IF(R135<'Grading Scale'!G$4,'Grading Scale'!B$7,IF(R135<'Grading Scale'!G$3,'Grading Scale'!B$5,'Grading Scale'!B$3)))))) -> 3 | T135: =Scores!B126 -> 0 | U135: =IF(S135>='Grading Scale'!B$13,IF(S135='Grading Scale'!B$3,'Grading Scale'!C$3,IF(S135='Grading Scale'!B$5,'Grading Scale'!C$5,IF(S135='Grading Scale'!B$7,'Grading Scale'!C$7,IF(S135='Grading Scale'!B$9,'Grading Scale'!C$9,IF(S135='Grading Scale'!B$11,'Grading Scale'!C$11,'Grading Scale'!C$13))))),IF(S135='Grading Scale'!E$3,'Grading Scale'!F$3,IF(S135='Grading Scale'!E$5,'Grading Scale'!F$5,IF(S135='Grading Scale'!E$7,'Grading Scale'!F$7,IF(S135='Grading Scale'!E$9,'Grading Scale'!F$9,IF(S135='Grading Scale'!E$11,'Grading Scale'!F$11,'Grading Scale'!F$13)))))) -> B
A136: =Scores!A127 -> 0 | B136: =Scores!B127 -> 0 | C136: =Scores!C127 -> 0 | D136: =Scores!D127 -> 0 | E136: =Scores!E127 -> 0 | F136: =Scores!F127 -> 0 | G136: =Scores!G127 -> 0 | H136: =Scores!H127 -> 0 | I136: =Scores!I127 -> 0 | J136: =Scores!J127 -> 0 | K136: =Scores!K127 -> 0 | L136: =Scores!L127 -> 0 | M136: =Scores!M127 -> 0 | N136: =Scores!N127 -> 0 | O136: =Scores!O127 -> 0 | P136: -0.7071067812 | Q136: 2.951299423 | R136: 2.951299423 | S136: =IF(R136<'Grading Scale'!G$8,IF(R136<'Grading Scale'!G$13,'Grading Scale'!E$13,IF(R136<'Grading Scale'!G$12,'Grading Scale'!E$11,IF(R136<'Grading Scale'!G$11,'Grading Scale'!E$9,IF(R136<'Grading Scale'!G$10,'Grading Scale'!E$7,IF(R136<'Grading Scale'!G$9,'Grading Scale'!E$5,'Grading Scale'!E$3))))),IF(R136<'Grading Scale'!G$7,'Grading Scale'!B$13,IF(R136<'Grading Scale'!G$6,'Grading Scale'!B$11,IF(R136<'Grading Scale'!G$5,'Grading Scale'!B$9,IF(R136<'Grading Scale'!G$4,'Grading Scale'!B$7,IF(R136<'Grading Scale'!G$3,'Grading Scale'!B$5,'Grading Scale'!B$3)))))) -> 3 | T136: =Scores!B127 -> 0 | U136: =IF(S136>='Grading Scale'!B$13,IF(S136='Grading Scale'!B$3,'Grading Scale'!C$3,IF(S136='Grading Scale'!B$5,'Grading Scale'!C$5,IF(S136='Grading Scale'!B$7,'Grading Scale'!C$7,IF(S136='Grading Scale'!B$9,'Grading Scale'!C$9,IF(S136='Grading Scale'!B$11,'Grading Scale'!C$11,'Grading Scale'!C$13))))),IF(S136='Grading Scale'!E$3,'Grading Scale'!F$3,IF(S136='Grading Scale'!E$5,'Grading Scale'!F$5,IF(S136='Grading Scale'!E$7,'Grading Scale'!F$7,IF(S136='Grading Scale'!E$9,'Grading Scale'!F$9,IF(S136='Grading Scale'!E$11,'Grading Scale'!F$11,'Grading Scale'!F$13)))))) -> B
A137: =Scores!A128 -> 0 | B137: =Scores!B128 -> 0 | C137: =Scores!C128 -> 0 | D137: =Scores!D128 -> 0 | E137: =Scores!E128 -> 0 | F137: =Scores!F128 -> 0 | G137: =Scores!G128 -> 0 | H137: =Scores!H128 -> 0 | I137: =Scores!I128 -> 0 | J137: =Scores!J128 -> 0 | K137: =Scores!K128 -> 0 | L137: =Scores!L128 -> 0 | M137: =Scores!M128 -> 0 | N137: =Scores!N128 -> 0 | O137: =Scores!O128 -> 0 | P137: -0.7071067812 | Q137: 2.951299423 | R137: 2.951299423 | S137: =IF(R137<'Grading Scale'!G$8,IF(R137<'Grading Scale'!G$13,'Grading Scale'!E$13,IF(R137<'Grading Scale'!G$12,'Grading Scale'!E$11,IF(R137<'Grading Scale'!G$11,'Grading Scale'!E$9,IF(R137<'Grading Scale'!G$10,'Grading Scale'!E$7,IF(R137<'Grading Scale'!G$9,'Grading Scale'!E$5,'Grading Scale'!E$3))))),IF(R137<'Grading Scale'!G$7,'Grading Scale'!B$13,IF(R137<'Grading Scale'!G$6,'Grading Scale'!B$11,IF(R137<'Grading Scale'!G$5,'Grading Scale'!B$9,IF(R137<'Grading Scale'!G$4,'Grading Scale'!B$7,IF(R137<'Grading Scale'!G$3,'Grading Scale'!B$5,'Grading Scale'!B$3)))))) -> 3 | T137: =Scores!B128 -> 0 | U137: =IF(S137>='Grading Scale'!B$13,IF(S137='Grading Scale'!B$3,'Grading Scale'!C$3,IF(S137='Grading Scale'!B$5,'Grading Scale'!C$5,IF(S137='Grading Scale'!B$7,'Grading Scale'!C$7,IF(S137='Grading Scale'!B$9,'Grading Scale'!C$9,IF(S137='Grading Scale'!B$11,'Grading Scale'!C$11,'Grading Scale'!C$13))))),IF(S137='Grading Scale'!E$3,'Grading Scale'!F$3,IF(S137='Grading Scale'!E$5,'Grading Scale'!F$5,IF(S137='Grading Scale'!E$7,'Grading Scale'!F$7,IF(S137='Grading Scale'!E$9,'Grading Scale'!F$9,IF(S137='Grading Scale'!E$11,'Grading Scale'!F$11,'Grading Scale'!F$13)))))) -> B
A138: =Scores!A129 -> 0 | B138: =Scores!B129 -> 0 | C138: =Scores!C129 -> 0 | D138: =Scores!D129 -> 0 | E138: =Scores!E129 -> 0 | F138: =Scores!F129 -> 0 | G138: =Scores!G129 -> 0 | H138: =Scores!H129 -> 0 | I138: =Scores!I129 -> 0 | J138: =Scores!J129 -> 0 | K138: =Scores!K129 -> 0 | L138: =Scores!L129 -> 0 | M138: =Scores!M129 -> 0 | N138: =Scores!N129 -> 0 | O138: =Scores!O129 -> 0 | P138: -0.7071067812 | Q138: 2.951299423 | R138: 2.951299423 | S138: =IF(R138<'Grading Scale'!G$8,IF(R138<'Grading Scale'!G$13,'Grading Scale'!E$13,IF(R138<'Grading Scale'!G$12,'Grading Scale'!E$11,IF(R138<'Grading Scale'!G$11,'Grading Scale'!E$9,IF(R138<'Grading Scale'!G$10,'Grading Scale'!E$7,IF(R138<'Grading Scale'!G$9,'Grading Scale'!E$5,'Grading Scale'!E$3))))),IF(R138<'Grading Scale'!G$7,'Grading Scale'!B$13,IF(R138<'Grading Scale'!G$6,'Grading Scale'!B$11,IF(R138<'Grading Scale'!G$5,'Grading Scale'!B$9,IF(R138<'Grading Scale'!G$4,'Grading Scale'!B$7,IF(R138<'Grading Scale'!G$3,'Grading Scale'!B$5,'Grading Scale'!B$3)))))) -> 3 | T138: =Scores!B129 -> 0 | U138: =IF(S138>='Grading Scale'!B$13,IF(S138='Grading Scale'!B$3,'Grading Scale'!C$3,IF(S138='Grading Scale'!B$5,'Grading Scale'!C$5,IF(S138='Grading Scale'!B$7,'Grading Scale'!C$7,IF(S138='Grading Scale'!B$9,'Grading Scale'!C$9,IF(S138='Grading Scale'!B$11,'Grading Scale'!C$11,'Grading Scale'!C$13))))),IF(S138='Grading Scale'!E$3,'Grading Scale'!F$3,IF(S138='Grading Scale'!E$5,'Grading Scale'!F$5,IF(S138='Grading Scale'!E$7,'Grading Scale'!F$7,IF(S138='Grading Scale'!E$9,'Grading Scale'!F$9,IF(S138='Grading Scale'!E$11,'Grading Scale'!F$11,'Grading Scale'!F$13)))))) -> B
A139: =Scores!A130 -> 0 | B139: =Scores!B130 -> 0 | C139: =Scores!C130 -> 0 | D139: =Scores!D130 -> 0 | E139: =Scores!E130 -> 0 | F139: =Scores!F130 -> 0 | G139: =Scores!G130 -> 0 | H139: =Scores!H130 -> 0 | I139: =Scores!I130 -> 0 | J139: =Scores!J130 -> 0 | K139: =Scores!K130 -> 0 | L139: =Scores!L130 -> 0 | M139: =Scores!M130 -> 0 | N139: =Scores!N130 -> 0 | O139: =Scores!O130 -> 0 | P139: -0.7071067812 | Q139: 2.951299423 | R139: 2.951299423 | S139: =IF(R139<'Grading Scale'!G$8,IF(R139<'Grading Scale'!G$13,'Grading Scale'!E$13,IF(R139<'Grading Scale'!G$12,'Grading Scale'!E$11,IF(R139<'Grading Scale'!G$11,'Grading Scale'!E$9,IF(R139<'Grading Scale'!G$10,'Grading Scale'!E$7,IF(R139<'Grading Scale'!G$9,'Grading Scale'!E$5,'Grading Scale'!E$3))))),IF(R139<'Grading Scale'!G$7,'Grading Scale'!B$13,IF(R139<'Grading Scale'!G$6,'Grading Scale'!B$11,IF(R139<'Grading Scale'!G$5,'Grading Scale'!B$9,IF(R139<'Grading Scale'!G$4,'Grading Scale'!B$7,IF(R139<'Grading Scale'!G$3,'Grading Scale'!B$5,'Grading Scale'!B$3)))))) -> 3 | T139: =Scores!B130 -> 0 | U139: =IF(S139>='Grading Scale'!B$13,IF(S139='Grading Scale'!B$3,'Grading Scale'!C$3,IF(S139='Grading Scale'!B$5,'Grading Scale'!C$5,IF(S139='Grading Scale'!B$7,'Grading Scale'!C$7,IF(S139='Grading Scale'!B$9,'Grading Scale'!C$9,IF(S139='Grading Scale'!B$11,'Grading Scale'!C$11,'Grading Scale'!C$13))))),IF(S139='Grading Scale'!E$3,'Grading Scale'!F$3,IF(S139='Grading Scale'!E$5,'Grading Scale'!F$5,IF(S139='Grading Scale'!E$7,'Grading Scale'!F$7,IF(S139='Grading Scale'!E$9,'Grading Scale'!F$9,IF(S139='Grading Scale'!E$11,'Grading Scale'!F$11,'Grading Scale'!F$13)))))) -> B
A140: =Scores!A131 -> 0 | B140: =Scores!B131 -> 0 | C140: =Scores!C131 -> 0 | D140: =Scores!D131 -> 0 | E140: =Scores!E131 -> 0 | F140: =Scores!F131 -> 0 | G140: =Scores!G131 -> 0 | H140: =Scores!H131 -> 0 | I140: =Scores!I131 -> 0 | J140: =Scores!J131 -> 0 | K140: =Scores!K131 -> 0 | L140: =Scores!L131 -> 0 | M140: =Scores!M131 -> 0 | N140: =Scores!N131 -> 0 | O140: =Scores!O131 -> 0 | P140: -0.7071067812 | Q140: 2.951299423 | R140: 2.951299423 | S140: =IF(R140<'Grading Scale'!G$8,IF(R140<'Grading Scale'!G$13,'Grading Scale'!E$13,IF(R140<'Grading Scale'!G$12,'Grading Scale'!E$11,IF(R140<'Grading Scale'!G$11,'Grading Scale'!E$9,IF(R140<'Grading Scale'!G$10,'Grading Scale'!E$7,IF(R140<'Grading Scale'!G$9,'Grading Scale'!E$5,'Grading Scale'!E$3))))),IF(R140<'Grading Scale'!G$7,'Grading Scale'!B$13,IF(R140<'Grading Scale'!G$6,'Grading Scale'!B$11,IF(R140<'Grading Scale'!G$5,'Grading Scale'!B$9,IF(R140<'Grading Scale'!G$4,'Grading Scale'!B$7,IF(R140<'Grading Scale'!G$3,'Grading Scale'!B$5,'Grading Scale'!B$3)))))) -> 3 | T140: =Scores!B131 -> 0 | U140: =IF(S140>='Grading Scale'!B$13,IF(S140='Grading Scale'!B$3,'Grading Scale'!C$3,IF(S140='Grading Scale'!B$5,'Grading Scale'!C$5,IF(S140='Grading Scale'!B$7,'Grading Scale'!C$7,IF(S140='Grading Scale'!B$9,'Grading Scale'!C$9,IF(S140='Grading Scale'!B$11,'Grading Scale'!C$11,'Grading Scale'!C$13))))),IF(S140='Grading Scale'!E$3,'Grading Scale'!F$3,IF(S140='Grading Scale'!E$5,'Grading Scale'!F$5,IF(S140='Grading Scale'!E$7,'Grading Scale'!F$7,IF(S140='Grading Scale'!E$9,'Grading Scale'!F$9,IF(S140='Grading Scale'!E$11,'Grading Scale'!F$11,'Grading Scale'!F$13)))))) -> B
A141: =Scores!A132 -> 0 | B141: =Scores!B132 -> 0 | C141: =Scores!C132 -> 0 | D141: =Scores!D132 -> 0 | E141: =Scores!E132 -> 0 | F141: =Scores!F132 -> 0 | G141: =Scores!G132 -> 0 | H141: =Scores!H132 -> 0 | I141: =Scores!I132 -> 0 | J141: =Scores!J132 -> 0 | K141: =Scores!K132 -> 0 | L141: =Scores!L132 -> 0 | M141: =Scores!M132 -> 0 | N141: =Scores!N132 -> 0 | O141: =Scores!O132 -> 0 | P141: -0.7071067812 | Q141: 2.951299423 | R141: 2.951299423 | S141: =IF(R141<'Grading Scale'!G$8,IF(R141<'Grading Scale'!G$13,'Grading Scale'!E$13,IF(R141<'Grading Scale'!G$12,'Grading Scale'!E$11,IF(R141<'Grading Scale'!G$11,'Grading Scale'!E$9,IF(R141<'Grading Scale'!G$10,'Grading Scale'!E$7,IF(R141<'Grading Scale'!G$9,'Grading Scale'!E$5,'Grading Scale'!E$3))))),IF(R141<'Grading Scale'!G$7,'Grading Scale'!B$13,IF(R141<'Grading Scale'!G$6,'Grading Scale'!B$11,IF(R141<'Grading Scale'!G$5,'Grading Scale'!B$9,IF(R141<'Grading Scale'!G$4,'Grading Scale'!B$7,IF(R141<'Grading Scale'!G$3,'Grading Scale'!B$5,'Grading Scale'!B$3)))))) -> 3 | T141: =Scores!B132 -> 0 | U141: =IF(S141>='Grading Scale'!B$13,IF(S141='Grading Scale'!B$3,'Grading Scale'!C$3,IF(S141='Grading Scale'!B$5,'Grading Scale'!C$5,IF(S141='Grading Scale'!B$7,'Grading Scale'!C$7,IF(S141='Grading Scale'!B$9,'Grading Scale'!C$9,IF(S141='Grading Scale'!B$11,'Grading Scale'!C$11,'Grading Scale'!C$13))))),IF(S141='Grading Scale'!E$3,'Grading Scale'!F$3,IF(S141='Grading Scale'!E$5,'Grading Scale'!F$5,IF(S141='Grading Scale'!E$7,'Grading Scale'!F$7,IF(S141='Grading Scale'!E$9,'Grading Scale'!F$9,IF(S141='Grading Scale'!E$11,'Grading Scale'!F$11,'Grading Scale'!F$13)))))) -> B
A142: =Scores!A133 -> 0 | B142: =Scores!B133 -> 0 | C142: =Scores!C133 -> 0 | D142: =Scores!D133 -> 0 | E142: =Scores!E133 -> 0 | F142: =Scores!F133 -> 0 | G142: =Scores!G133 -> 0 | H142: =Scores!H133 -> 0 | I142: =Scores!I133 -> 0 | J142: =Scores!J133 -> 0 | K142: =Scores!K133 -> 0 | L142: =Scores!L133 -> 0 | M142: =Scores!M133 -> 0 | N142: =Scores!N133 -> 0 | O142: =Scores!O133 -> 0 | P142: -0.7071067812 | Q142: 2.951299423 | R142: 2.951299423 | S142: =IF(R142<'Grading Scale'!G$8,IF(R142<'Grading Scale'!G$13,'Grading Scale'!E$13,IF(R142<'Grading Scale'!G$12,'Grading Scale'!E$11,IF(R142<'Grading Scale'!G$11,'Grading Scale'!E$9,IF(R142<'Grading Scale'!G$10,'Grading Scale'!E$7,IF(R142<'Grading Scale'!G$9,'Grading Scale'!E$5,'Grading Scale'!E$3))))),IF(R142<'Grading Scale'!G$7,'Grading Scale'!B$13,IF(R142<'Grading Scale'!G$6,'Grading Scale'!B$11,IF(R142<'Grading Scale'!G$5,'Grading Scale'!B$9,IF(R142<'Grading Scale'!G$4,'Grading Scale'!B$7,IF(R142<'Grading Scale'!G$3,'Grading Scale'!B$5,'Grading Scale'!B$3)))))) -> 3 | T142: =Scores!B133 -> 0 | U142: =IF(S142>='Grading Scale'!B$13,IF(S142='Grading Scale'!B$3,'Grading Scale'!C$3,IF(S142='Grading Scale'!B$5,'Grading Scale'!C$5,IF(S142='Grading Scale'!B$7,'Grading Scale'!C$7,IF(S142='Grading Scale'!B$9,'Grading Scale'!C$9,IF(S142='Grading Scale'!B$11,'Grading Scale'!C$11,'Grading Scale'!C$13))))),IF(S142='Grading Scale'!E$3,'Grading Scale'!F$3,IF(S142='Grading Scale'!E$5,'Grading Scale'!F$5,IF(S142='Grading Scale'!E$7,'Grading Scale'!F$7,IF(S142='Grading Scale'!E$9,'Grading Scale'!F$9,IF(S142='Grading Scale'!E$11,'Grading Scale'!F$11,'Grading Scale'!F$13)))))) -> B
A143: =Scores!A134 -> 0 | B143: =Scores!B134 -> 0 | C143: =Scores!C134 -> 0 | D143: =Scores!D134 -> 0 | E143: =Scores!E134 -> 0 | F143: =Scores!F134 -> 0 | G143: =Scores!G134 -> 0 | H143: =Scores!H134 -> 0 | I143: =Scores!I134 -> 0 | J143: =Scores!J134 -> 0 | K143: =Scores!K134 -> 0 | L143: =Scores!L134 -> 0 | M143: =Scores!M134 -> 0 | N143: =Scores!N134 -> 0 | O143: =Scores!O134 -> 0 | P143: -0.7071067812 | Q143: 2.951299423 | R143: 2.951299423 | S143: =IF(R143<'Grading Scale'!G$8,IF(R143<'Grading Scale'!G$13,'Grading Scale'!E$13,IF(R143<'Grading Scale'!G$12,'Grading Scale'!E$11,IF(R143<'Grading Scale'!G$11,'Grading Scale'!E$9,IF(R143<'Grading Scale'!G$10,'Grading Scale'!E$7,IF(R143<'Grading Scale'!G$9,'Grading Scale'!E$5,'Grading Scale'!E$3))))),IF(R143<'Grading Scale'!G$7,'Grading Scale'!B$13,IF(R143<'Grading Scale'!G$6,'Grading Scale'!B$11,IF(R143<'Grading Scale'!G$5,'Grading Scale'!B$9,IF(R143<'Grading Scale'!G$4,'Grading Scale'!B$7,IF(R143<'Grading Scale'!G$3,'Grading Scale'!B$5,'Grading Scale'!B$3)))))) -> 3 | T143: =Scores!B134 -> 0 | U143: =IF(S143>='Grading Scale'!B$13,IF(S143='Grading Scale'!B$3,'Grading Scale'!C$3,IF(S143='Grading Scale'!B$5,'Grading Scale'!C$5,IF(S143='Grading Scale'!B$7,'Grading Scale'!C$7,IF(S143='Grading Scale'!B$9,'Grading Scale'!C$9,IF(S143='Grading Scale'!B$11,'Grading Scale'!C$11,'Grading Scale'!C$13))))),IF(S143='Grading Scale'!E$3,'Grading Scale'!F$3,IF(S143='Grading Scale'!E$5,'Grading Scale'!F$5,IF(S143='Grading Scale'!E$7,'Grading Scale'!F$7,IF(S143='Grading Scale'!E$9,'Grading Scale'!F$9,IF(S143='Grading Scale'!E$11,'Grading Scale'!F$11,'Grading Scale'!F$13)))))) -> B
A144: =Scores!A135 -> 0 | B144: =Scores!B135 -> 0 | C144: =Scores!C135 -> 0 | D144: =Scores!D135 -> 0 | E144: =Scores!E135 -> 0 | F144: =Scores!F135 -> 0 | G144: =Scores!G135 -> 0 | H144: =Scores!H135 -> 0 | I144: =Scores!I135 -> 0 | J144: =Scores!J135 -> 0 | K144: =Scores!K135 -> 0 | L144: =Scores!L135 -> 0 | M144: =Scores!M135 -> 0 | N144: =Scores!N135 -> 0 | O144: =Scores!O135 -> 0 | P144: -0.7071067812 | Q144: 2.951299423 | R144: 2.951299423 | S144: =IF(R144<'Grading Scale'!G$8,IF(R144<'Grading Scale'!G$13,'Grading Scale'!E$13,IF(R144<'Grading Scale'!G$12,'Grading Scale'!E$11,IF(R144<'Grading Scale'!G$11,'Grading Scale'!E$9,IF(R144<'Grading Scale'!G$10,'Grading Scale'!E$7,IF(R144<'Grading Scale'!G$9,'Grading Scale'!E$5,'Grading Scale'!E$3))))),IF(R144<'Grading Scale'!G$7,'Grading Scale'!B$13,IF(R144<'Grading Scale'!G$6,'Grading Scale'!B$11,IF(R144<'Grading Scale'!G$5,'Grading Scale'!B$9,IF(R144<'Grading Scale'!G$4,'Grading Scale'!B$7,IF(R144<'Grading Scale'!G$3,'Grading Scale'!B$5,'Grading Scale'!B$3)))))) -> 3 | T144: =Scores!B135 -> 0 | U144: =IF(S144>='Grading Scale'!B$13,IF(S144='Grading Scale'!B$3,'Grading Scale'!C$3,IF(S144='Grading Scale'!B$5,'Grading Scale'!C$5,IF(S144='Grading Scale'!B$7,'Grading Scale'!C$7,IF(S144='Grading Scale'!B$9,'Grading Scale'!C$9,IF(S144='Grading Scale'!B$11,'Grading Scale'!C$11,'Grading Scale'!C$13))))),IF(S144='Grading Scale'!E$3,'Grading Scale'!F$3,IF(S144='Grading Scale'!E$5,'Grading Scale'!F$5,IF(S144='Grading Scale'!E$7,'Grading Scale'!F$7,IF(S144='Grading Scale'!E$9,'Grading Scale'!F$9,IF(S144='Grading Scale'!E$11,'Grading Scale'!F$11,'Grading Scale'!F$13)))))) -> B
A145: =Scores!A136 -> 0 | B145: =Scores!B136 -> 0 | C145: =Scores!C136 -> 0 | D145: =Scores!D136 -> 0 | E145: =Scores!E136 -> 0 | F145: =Scores!F136 -> 0 | G145: =Scores!G136 -> 0 | H145: =Scores!H136 -> 0 | I145: =Scores!I136 -> 0 | J145: =Scores!J136 -> 0 | K145: =Scores!K136 -> 0 | L145: =Scores!L136 -> 0 | M145: =Scores!M136 -> 0 | N145: =Scores!N136 -> 0 | O145: =Scores!O136 -> 0 | P145: -0.7071067812 | Q145: 2.951299423 | R145: 2.951299423 | S145: =IF(R145<'Grading Scale'!G$8,IF(R145<'Grading Scale'!G$13,'Grading Scale'!E$13,IF(R145<'Grading Scale'!G$12,'Grading Scale'!E$11,IF(R145<'Grading Scale'!G$11,'Grading Scale'!E$9,IF(R145<'Grading Scale'!G$10,'Grading Scale'!E$7,IF(R145<'Grading Scale'!G$9,'Grading Scale'!E$5,'Grading Scale'!E$3))))),IF(R145<'Grading Scale'!G$7,'Grading Scale'!B$13,IF(R145<'Grading Scale'!G$6,'Grading Scale'!B$11,IF(R145<'Grading Scale'!G$5,'Grading Scale'!B$9,IF(R145<'Grading Scale'!G$4,'Grading Scale'!B$7,IF(R145<'Grading Scale'!G$3,'Grading Scale'!B$5,'Grading Scale'!B$3)))))) -> 3 | T145: =Scores!B136 -> 0 | U145: =IF(S145>='Grading Scale'!B$13,IF(S145='Grading Scale'!B$3,'Grading Scale'!C$3,IF(S145='Grading Scale'!B$5,'Grading Scale'!C$5,IF(S145='Grading Scale'!B$7,'Grading Scale'!C$7,IF(S145='Grading Scale'!B$9,'Grading Scale'!C$9,IF(S145='Grading Scale'!B$11,'Grading Scale'!C$11,'Grading Scale'!C$13))))),IF(S145='Grading Scale'!E$3,'Grading Scale'!F$3,IF(S145='Grading Scale'!E$5,'Grading Scale'!F$5,IF(S145='Grading Scale'!E$7,'Grading Scale'!F$7,IF(S145='Grading Scale'!E$9,'Grading Scale'!F$9,IF(S145='Grading Scale'!E$11,'Grading Scale'!F$11,'Grading Scale'!F$13)))))) -> B
A146: =Scores!A137 -> 0 | B146: =Scores!B137 -> 0 | C146: =Scores!C137 -> 0 | D146: =Scores!D137 -> 0 | E146: =Scores!E137 -> 0 | F146: =Scores!F137 -> 0 | G146: =Scores!G137 -> 0 | H146: =Scores!H137 -> 0 | I146: =Scores!I137 -> 0 | J146: =Scores!J137 -> 0 | K146: =Scores!K137 -> 0 | L146: =Scores!L137 -> 0 | M146: =Scores!M137 -> 0 | N146: =Scores!N137 -> 0 | O146: =Scores!O137 -> 0 | P146: -0.7071067812 | Q146: 2.951299423 | R146: 2.951299423 | S146: =IF(R146<'Grading Scale'!G$8,IF(R146<'Grading Scale'!G$13,'Grading Scale'!E$13,IF(R146<'Grading Scale'!G$12,'Grading Scale'!E$11,IF(R146<'Grading Scale'!G$11,'Grading Scale'!E$9,IF(R146<'Grading Scale'!G$10,'Grading Scale'!E$7,IF(R146<'Grading Scale'!G$9,'Grading Scale'!E$5,'Grading Scale'!E$3))))),IF(R146<'Grading Scale'!G$7,'Grading Scale'!B$13,IF(R146<'Grading Scale'!G$6,'Grading Scale'!B$11,IF(R146<'Grading Scale'!G$5,'Grading Scale'!B$9,IF(R146<'Grading Scale'!G$4,'Grading Scale'!B$7,IF(R146<'Grading Scale'!G$3,'Grading Scale'!B$5,'Grading Scale'!B$3)))))) -> 3 | T146: =Scores!B137 -> 0 | U146: =IF(S146>='Grading Scale'!B$13,IF(S146='Grading Scale'!B$3,'Grading Scale'!C$3,IF(S146='Grading Scale'!B$5,'Grading Scale'!C$5,IF(S146='Grading Scale'!B$7,'Grading Scale'!C$7,IF(S146='Grading Scale'!B$9,'Grading Scale'!C$9,IF(S146='Grading Scale'!B$11,'Grading Scale'!C$11,'Grading Scale'!C$13))))),IF(S146='Grading Scale'!E$3,'Grading Scale'!F$3,IF(S146='Grading Scale'!E$5,'Grading Scale'!F$5,IF(S146='Grading Scale'!E$7,'Grading Scale'!F$7,IF(S146='Grading Scale'!E$9,'Grading Scale'!F$9,IF(S146='Grading Scale'!E$11,'Grading Scale'!F$11,'Grading Scale'!F$13)))))) -> B
A147: =Scores!A138 -> 0 | B147: =Scores!B138 -> 0 | C147: =Scores!C138 -> 0 | D147: =Scores!D138 -> 0 | E147: =Scores!E138 -> 0 | F147: =Scores!F138 -> 0 | G147: =Scores!G138 -> 0 | H147: =Scores!H138 -> 0 | I147: =Scores!I138 -> 0 | J147: =Scores!J138 -> 0 | K147: =Scores!K138 -> 0 | L147: =Scores!L138 -> 0 | M147: =Scores!M138 -> 0 | N147: =Scores!N138 -> 0 | O147: =Scores!O138 -> 0 | P147: -0.7071067812 | Q147: 2.951299423 | R147: 2.951299423 | S147: =IF(R147<'Grading Scale'!G$8,IF(R147<'Grading Scale'!G$13,'Grading Scale'!E$13,IF(R147<'Grading Scale'!G$12,'Grading Scale'!E$11,IF(R147<'Grading Scale'!G$11,'Grading Scale'!E$9,IF(R147<'Grading Scale'!G$10,'Grading Scale'!E$7,IF(R147<'Grading Scale'!G$9,'Grading Scale'!E$5,'Grading Scale'!E$3))))),IF(R147<'Grading Scale'!G$7,'Grading Scale'!B$13,IF(R147<'Grading Scale'!G$6,'Grading Scale'!B$11,IF(R147<'Grading Scale'!G$5,'Grading Scale'!B$9,IF(R147<'Grading Scale'!G$4,'Grading Scale'!B$7,IF(R147<'Grading Scale'!G$3,'Grading Scale'!B$5,'Grading Scale'!B$3)))))) -> 3 | T147: =Scores!B138 -> 0 | U147: =IF(S147>='Grading Scale'!B$13,IF(S147='Grading Scale'!B$3,'Grading Scale'!C$3,IF(S147='Grading Scale'!B$5,'Grading Scale'!C$5,IF(S147='Grading Scale'!B$7,'Grading Scale'!C$7,IF(S147='Grading Scale'!B$9,'Grading Scale'!C$9,IF(S147='Grading Scale'!B$11,'Grading Scale'!C$11,'Grading Scale'!C$13))))),IF(S147='Grading Scale'!E$3,'Grading Scale'!F$3,IF(S147='Grading Scale'!E$5,'Grading Scale'!F$5,IF(S147='Grading Scale'!E$7,'Grading Scale'!F$7,IF(S147='Grading Scale'!E$9,'Grading Scale'!F$9,IF(S147='Grading Scale'!E$11,'Grading Scale'!F$11,'Grading Scale'!F$13)))))) -> B
A148: =Scores!A139 -> 0 | B148: =Scores!B139 -> 0 | C148: =Scores!C139 -> 0 | D148: =Scores!D139 -> 0 | E148: =Scores!E139 -> 0 | F148: =Scores!F139 -> 0 | G148: =Scores!G139 -> 0 | H148: =Scores!H139 -> 0 | I148: =Scores!I139 -> 0 | J148: =Scores!J139 -> 0 | K148: =Scores!K139 -> 0 | L148: =Scores!L139 -> 0 | M148: =Scores!M139 -> 0 | N148: =Scores!N139 -> 0 | O148: =Scores!O139 -> 0 | P148: -0.7071067812 | Q148: 2.951299423 | R148: 2.951299423 | S148: =IF(R148<'Grading Scale'!G$8,IF(R148<'Grading Scale'!G$13,'Grading Scale'!E$13,IF(R148<'Grading Scale'!G$12,'Grading Scale'!E$11,IF(R148<'Grading Scale'!G$11,'Grading Scale'!E$9,IF(R148<'Grading Scale'!G$10,'Grading Scale'!E$7,IF(R148<'Grading Scale'!G$9,'Grading Scale'!E$5,'Grading Scale'!E$3))))),IF(R148<'Grading Scale'!G$7,'Grading Scale'!B$13,IF(R148<'Grading Scale'!G$6,'Grading Scale'!B$11,IF(R148<'Grading Scale'!G$5,'Grading Scale'!B$9,IF(R148<'Grading Scale'!G$4,'Grading Scale'!B$7,IF(R148<'Grading Scale'!G$3,'Grading Scale'!B$5,'Grading Scale'!B$3)))))) -> 3 | T148: =Scores!B139 -> 0 | U148: =IF(S148>='Grading Scale'!B$13,IF(S148='Grading Scale'!B$3,'Grading Scale'!C$3,IF(S148='Grading Scale'!B$5,'Grading Scale'!C$5,IF(S148='Grading Scale'!B$7,'Grading Scale'!C$7,IF(S148='Grading Scale'!B$9,'Grading Scale'!C$9,IF(S148='Grading Scale'!B$11,'Grading Scale'!C$11,'Grading Scale'!C$13))))),IF(S148='Grading Scale'!E$3,'Grading Scale'!F$3,IF(S148='Grading Scale'!E$5,'Grading Scale'!F$5,IF(S148='Grading Scale'!E$7,'Grading Scale'!F$7,IF(S148='Grading Scale'!E$9,'Grading Scale'!F$9,IF(S148='Grading Scale'!E$11,'Grading Scale'!F$11,'Grading Scale'!F$13)))))) -> B
A149: =Scores!A140 -> 0 | B149: =Scores!B140 -> 0 | C149: =Scores!C140 -> 0 | D149: =Scores!D140 -> 0 | E149: =Scores!E140 -> 0 | F149: =Scores!F140 -> 0 | G149: =Scores!G140 -> 0 | H149: =Scores!H140 -> 0 | I149: =Scores!I140 -> 0 | J149: =Scores!J140 -> 0 | K149: =Scores!K140 -> 0 | L149: =Scores!L140 -> 0 | M149: =Scores!M140 -> 0 | N149: =Scores!N140 -> 0 | O149: =Scores!O140 -> 0 | P149: -0.7071067812 | Q149: 2.951299423 | R149: 2.951299423 | S149: =IF(R149<'Grading Scale'!G$8,IF(R149<'Grading Scale'!G$13,'Grading Scale'!E$13,IF(R149<'Grading Scale'!G$12,'Grading Scale'!E$11,IF(R149<'Grading Scale'!G$11,'Grading Scale'!E$9,IF(R149<'Grading Scale'!G$10,'Grading Scale'!E$7,IF(R149<'Grading Scale'!G$9,'Grading Scale'!E$5,'Grading Scale'!E$3))))),IF(R149<'Grading Scale'!G$7,'Grading Scale'!B$13,IF(R149<'Grading Scale'!G$6,'Grading Scale'!B$11,IF(R149<'Grading Scale'!G$5,'Grading Scale'!B$9,IF(R149<'Grading Scale'!G$4,'Grading Scale'!B$7,IF(R149<'Grading Scale'!G$3,'Grading Scale'!B$5,'Grading Scale'!B$3)))))) -> 3 | T149: =Scores!B140 -> 0 | U149: =IF(S149>='Grading Scale'!B$13,IF(S149='Grading Scale'!B$3,'Grading Scale'!C$3,IF(S149='Grading Scale'!B$5,'Grading Scale'!C$5,IF(S149='Grading Scale'!B$7,'Grading Scale'!C$7,IF(S149='Grading Scale'!B$9,'Grading Scale'!C$9,IF(S149='Grading Scale'!B$11,'Grading Scale'!C$11,'Grading Scale'!C$13))))),IF(S149='Grading Scale'!E$3,'Grading Scale'!F$3,IF(S149='Grading Scale'!E$5,'Grading Scale'!F$5,IF(S149='Grading Scale'!E$7,'Grading Scale'!F$7,IF(S149='Grading Scale'!E$9,'Grading Scale'!F$9,IF(S149='Grading Scale'!E$11,'Grading Scale'!F$11,'Grading Scale'!F$13)))))) -> B
A150: =Scores!A141 -> 0 | B150: =Scores!B141 -> 0 | C150: =Scores!C141 -> 0 | D150: =Scores!D141 -> 0 | E150: =Scores!E141 -> 0 | F150: =Scores!F141 -> 0 | G150: =Scores!G141 -> 0 | H150: =Scores!H141 -> 0 | I150: =Scores!I141 -> 0 | J150: =Scores!J141 -> 0 | K150: =Scores!K141 -> 0 | L150: =Scores!L141 -> 0 | M150: =Scores!M141 -> 0 | N150: =Scores!N141 -> 0 | O150: =Scores!O141 -> 0 | P150: -0.7071067812 | Q150: 2.951299423 | R150: 2.951299423 | S150: =IF(R150<'Grading Scale'!G$8,IF(R150<'Grading Scale'!G$13,'Grading Scale'!E$13,IF(R150<'Grading Scale'!G$12,'Grading Scale'!E$11,IF(R150<'Grading Scale'!G$11,'Grading Scale'!E$9,IF(R150<'Grading Scale'!G$10,'Grading Scale'!E$7,IF(R150<'Grading Scale'!G$9,'Grading Scale'!E$5,'Grading Scale'!E$3))))),IF(R150<'Grading Scale'!G$7,'Grading Scale'!B$13,IF(R150<'Grading Scale'!G$6,'Grading Scale'!B$11,IF(R150<'Grading Scale'!G$5,'Grading Scale'!B$9,IF(R150<'Grading Scale'!G$4,'Grading Scale'!B$7,IF(R150<'Grading Scale'!G$3,'Grading Scale'!B$5,'Grading Scale'!B$3)))))) -> 3 | T150: =Scores!B141 -> 0 | U150: =IF(S150>='Grading Scale'!B$13,IF(S150='Grading Scale'!B$3,'Grading Scale'!C$3,IF(S150='Grading Scale'!B$5,'Grading Scale'!C$5,IF(S150='Grading Scale'!B$7,'Grading Scale'!C$7,IF(S150='Grading Scale'!B$9,'Grading Scale'!C$9,IF(S150='Grading Scale'!B$11,'Grading Scale'!C$11,'Grading Scale'!C$13))))),IF(S150='Grading Scale'!E$3,'Grading Scale'!F$3,IF(S150='Grading Scale'!E$5,'Grading Scale'!F$5,IF(S150='Grading Scale'!E$7,'Grading Scale'!F$7,IF(S150='Grading Scale'!E$9,'Grading Scale'!F$9,IF(S150='Grading Scale'!E$11,'Grading Scale'!F$11,'Grading Scale'!F$13)))))) -> B
A151: =Scores!A142 -> 0 | B151: =Scores!B142 -> 0 | C151: =Scores!C142 -> 0 | D151: =Scores!D142 -> 0 | E151: =Scores!E142 -> 0 | F151: =Scores!F142 -> 0 | G151: =Scores!G142 -> 0 | H151: =Scores!H142 -> 0 | I151: =Scores!I142 -> 0 | J151: =Scores!J142 -> 0 | K151: =Scores!K142 -> 0 | L151: =Scores!L142 -> 0 | M151: =Scores!M142 -> 0 | N151: =Scores!N142 -> 0 | O151: =Scores!O142 -> 0 | P151: =(C151-$C$17)*$C$19+(D151-$D$17)*$D$19+(E151-$E$17)*$E$19+(F151-$F$17)*$F$19+(G151-$G$17)*$G$19+(H151-$H$17)*$H$19+(I151-$I$17)*$I$19+(J151-$J$17)*$J$19+(K151-$K$17)*$K$19+(L151-$L$17)*$L$19 -> -0.7071067812 | Q151: =(((P151-$P$19)/$P$16)*$S$2)+$S$1 -> 2.951299423 | R151: =Q151+(N151*N$21)+(O151*O$21) -> 2.951299423 | S151: =IF(R151<'Grading Scale'!G$8,IF(R151<'Grading Scale'!G$13,'Grading Scale'!E$13,IF(R151<'Grading Scale'!G$12,'Grading Scale'!E$11,IF(R151<'Grading Scale'!G$11,'Grading Scale'!E$9,IF(R151<'Grading Scale'!G$10,'Grading Scale'!E$7,IF(R151<'Grading Scale'!G$9,'Grading Scale'!E$5,'Grading Scale'!E$3))))),IF(R151<'Grading Scale'!G$7,'Grading Scale'!B$13,IF(R151<'Grading Scale'!G$6,'Grading Scale'!B$11,IF(R151<'Grading Scale'!G$5,'Grading Scale'!B$9,IF(R151<'Grading Scale'!G$4,'Grading Scale'!B$7,IF(R151<'Grading Scale'!G$3,'Grading Scale'!B$5,'Grading Scale'!B$3)))))) -> 3 | T151: =Scores!B142 -> 0 | U151: =IF(S151>='Grading Scale'!B$13,IF(S151='Grading Scale'!B$3,'Grading Scale'!C$3,IF(S151='Grading Scale'!B$5,'Grading Scale'!C$5,IF(S151='Grading Scale'!B$7,'Grading Scale'!C$7,IF(S151='Grading Scale'!B$9,'Grading Scale'!C$9,IF(S151='Grading Scale'!B$11,'Grading Scale'!C$11,'Grading Scale'!C$13))))),IF(S151='Grading Scale'!E$3,'Grading Scale'!F$3,IF(S151='Grading Scale'!E$5,'Grading Scale'!F$5,IF(S151='Grading Scale'!E$7,'Grading Scale'!F$7,IF(S151='Grading Scale'!E$9,'Grading Scale'!F$9,IF(S151='Grading Scale'!E$11,'Grading Scale'!F$11,'Grading Scale'!F$13)))))) -> B | V151: =IF(P151=$P$17,"BEST"," ") ->  | X151: =IF(W151=0,"",IF(W151=S151,"",IF(W151>S151,"dropped","increased"))) -> 
A152: =Scores!A143 -> 0 | B152: =Scores!B143 -> 0 | C152: =Scores!C143 -> 0 | D152: =Scores!D143 -> 0 | E152: =Scores!E143 -> 0 | F152: =Scores!F143 -> 0 | G152: =Scores!G143 -> 0 | H152: =Scores!H143 -> 0 | I152: =Scores!I143 -> 0 | J152: =Scores!J143 -> 0 | K152: =Scores!K143 -> 0 | L152: =Scores!L143 -> 0 | M152: =Scores!M143 -> 0 | N152: =Scores!N143 -> 0 | O152: =Scores!O143 -> 0 | P152: -0.7071067812 | Q152: 2.951299423 | R152: 2.951299423 | S152: =IF(R152<'Grading Scale'!G$8,IF(R152<'Grading Scale'!G$13,'Grading Scale'!E$13,IF(R152<'Grading Scale'!G$12,'Grading Scale'!E$11,IF(R152<'Grading Scale'!G$11,'Grading Scale'!E$9,IF(R152<'Grading Scale'!G$10,'Grading Scale'!E$7,IF(R152<'Grading Scale'!G$9,'Grading Scale'!E$5,'Grading Scale'!E$3))))),IF(R152<'Grading Scale'!G$7,'Grading Scale'!B$13,IF(R152<'Grading Scale'!G$6,'Grading Scale'!B$11,IF(R152<'Grading Scale'!G$5,'Grading Scale'!B$9,IF(R152<'Grading Scale'!G$4,'Grading Scale'!B$7,IF(R152<'Grading Scale'!G$3,'Grading Scale'!B$5,'Grading Scale'!B$3)))))) -> 3 | T152: =Scores!B143 -> 0 | U152: =IF(S152>='Grading Scale'!B$13,IF(S152='Grading Scale'!B$3,'Grading Scale'!C$3,IF(S152='Grading Scale'!B$5,'Grading Scale'!C$5,IF(S152='Grading Scale'!B$7,'Grading Scale'!C$7,IF(S152='Grading Scale'!B$9,'Grading Scale'!C$9,IF(S152='Grading Scale'!B$11,'Grading Scale'!C$11,'Grading Scale'!C$13))))),IF(S152='Grading Scale'!E$3,'Grading Scale'!F$3,IF(S152='Grading Scale'!E$5,'Grading Scale'!F$5,IF(S152='Grading Scale'!E$7,'Grading Scale'!F$7,IF(S152='Grading Scale'!E$9,'Grading Scale'!F$9,IF(S152='Grading Scale'!E$11,'Grading Scale'!F$11,'Grading Scale'!F$13)))))) -> B
A153: =Scores!A144 -> 0 | B153: =Scores!B144 -> 0 | C153: =Scores!C144 -> 0 | D153: =Scores!D144 -> 0 | E153: =Scores!E144 -> 0 | F153: =Scores!F144 -> 0 | G153: =Scores!G144 -> 0 | H153: =Scores!H144 -> 0 | I153: =Scores!I144 -> 0 | J153: =Scores!J144 -> 0 | K153: =Scores!K144 -> 0 | L153: =Scores!L144 -> 0 | M153: =Scores!M144 -> 0 | N153: =Scores!N144 -> 0 | O153: =Scores!O144 -> 0 | P153: -0.7071067812 | Q153: 2.951299423 | R153: 2.951299423 | S153: =IF(R153<'Grading Scale'!G$8,IF(R153<'Grading Scale'!G$13,'Grading Scale'!E$13,IF(R153<'Grading Scale'!G$12,'Grading Scale'!E$11,IF(R153<'Grading Scale'!G$11,'Grading Scale'!E$9,IF(R153<'Grading Scale'!G$10,'Grading Scale'!E$7,IF(R153<'Grading Scale'!G$9,'Grading Scale'!E$5,'Grading Scale'!E$3))))),IF(R153<'Grading Scale'!G$7,'Grading Scale'!B$13,IF(R153<'Grading Scale'!G$6,'Grading Scale'!B$11,IF(R153<'Grading Scale'!G$5,'Grading Scale'!B$9,IF(R153<'Grading Scale'!G$4,'Grading Scale'!B$7,IF(R153<'Grading Scale'!G$3,'Grading Scale'!B$5,'Grading Scale'!B$3)))))) -> 3 | T153: =Scores!B144 -> 0 | U153: =IF(S153>='Grading Scale'!B$13,IF(S153='Grading Scale'!B$3,'Grading Scale'!C$3,IF(S153='Grading Scale'!B$5,'Grading Scale'!C$5,IF(S153='Grading Scale'!B$7,'Grading Scale'!C$7,IF(S153='Grading Scale'!B$9,'Grading Scale'!C$9,IF(S153='Grading Scale'!B$11,'Grading Scale'!C$11,'Grading Scale'!C$13))))),IF(S153='Grading Scale'!E$3,'Grading Scale'!F$3,IF(S153='Grading Scale'!E$5,'Grading Scale'!F$5,IF(S153='Grading Scale'!E$7,'Grading Scale'!F$7,IF(S153='Grading Scale'!E$9,'Grading Scale'!F$9,IF(S153='Grading Scale'!E$11,'Grading Scale'!F$11,'Grading Scale'!F$13)))))) -> B
A154: =Scores!A145 -> 0 | B154: =Scores!B145 -> 0 | C154: =Scores!C145 -> 0 | D154: =Scores!D145 -> 0 | E154: =Scores!E145 -> 0 | F154: =Scores!F145 -> 0 | G154: =Scores!G145 -> 0 | H154: =Scores!H145 -> 0 | I154: =Scores!I145 -> 0 | J154: =Scores!J145 -> 0 | K154: =Scores!K145 -> 0 | L154: =Scores!L145 -> 0 | M154: =Scores!M145 -> 0 | N154: =Scores!N145 -> 0 | O154: =Scores!O145 -> 0 | P154: -0.7071067812 | Q154: 2.951299423 | R154: 2.951299423 | S154: =IF(R154<'Grading Scale'!G$8,IF(R154<'Grading Scale'!G$13,'Grading Scale'!E$13,IF(R154<'Grading Scale'!G$12,'Grading Scale'!E$11,IF(R154<'Grading Scale'!G$11,'Grading Scale'!E$9,IF(R154<'Grading Scale'!G$10,'Grading Scale'!E$7,IF(R154<'Grading Scale'!G$9,'Grading Scale'!E$5,'Grading Scale'!E$3))))),IF(R154<'Grading Scale'!G$7,'Grading Scale'!B$13,IF(R154<'Grading Scale'!G$6,'Grading Scale'!B$11,IF(R154<'Grading Scale'!G$5,'Grading Scale'!B$9,IF(R154<'Grading Scale'!G$4,'Grading Scale'!B$7,IF(R154<'Grading Scale'!G$3,'Grading Scale'!B$5,'Grading Scale'!B$3)))))) -> 3 | T154: =Scores!B145 -> 0 | U154: =IF(S154>='Grading Scale'!B$13,IF(S154='Grading Scale'!B$3,'Grading Scale'!C$3,IF(S154='Grading Scale'!B$5,'Grading Scale'!C$5,IF(S154='Grading Scale'!B$7,'Grading Scale'!C$7,IF(S154='Grading Scale'!B$9,'Grading Scale'!C$9,IF(S154='Grading Scale'!B$11,'Grading Scale'!C$11,'Grading Scale'!C$13))))),IF(S154='Grading Scale'!E$3,'Grading Scale'!F$3,IF(S154='Grading Scale'!E$5,'Grading Scale'!F$5,IF(S154='Grading Scale'!E$7,'Grading Scale'!F$7,IF(S154='Grading Scale'!E$9,'Grading Scale'!F$9,IF(S154='Grading Scale'!E$11,'Grading Scale'!F$11,'Grading Scale'!F$13)))))) -> B
A155: =Scores!A146 -> 0 | B155: =Scores!B146 -> 0 | C155: =Scores!C146 -> 0 | D155: =Scores!D146 -> 0 | E155: =Scores!E146 -> 0 | F155: =Scores!F146 -> 0 | G155: =Scores!G146 -> 0 | H155: =Scores!H146 -> 0 | I155: =Scores!I146 -> 0 | J155: =Scores!J146 -> 0 | K155: =Scores!K146 -> 0 | L155: =Scores!L146 -> 0 | M155: =Scores!M146 -> 0 | N155: =Scores!N146 -> 0 | O155: =Scores!O146 -> 0 | P155: -0.7071067812 | Q155: 2.951299423 | R155: 2.951299423 | S155: =IF(R155<'Grading Scale'!G$8,IF(R155<'Grading Scale'!G$13,'Grading Scale'!E$13,IF(R155<'Grading Scale'!G$12,'Grading Scale'!E$11,IF(R155<'Grading Scale'!G$11,'Grading Scale'!E$9,IF(R155<'Grading Scale'!G$10,'Grading Scale'!E$7,IF(R155<'Grading Scale'!G$9,'Grading Scale'!E$5,'Grading Scale'!E$3))))),IF(R155<'Grading Scale'!G$7,'Grading Scale'!B$13,IF(R155<'Grading Scale'!G$6,'Grading Scale'!B$11,IF(R155<'Grading Scale'!G$5,'Grading Scale'!B$9,IF(R155<'Grading Scale'!G$4,'Grading Scale'!B$7,IF(R155<'Grading Scale'!G$3,'Grading Scale'!B$5,'Grading Scale'!B$3)))))) -> 3 | T155: =Scores!B146 -> 0 | U155: =IF(S155>='Grading Scale'!B$13,IF(S155='Grading Scale'!B$3,'Grading Scale'!C$3,IF(S155='Grading Scale'!B$5,'Grading Scale'!C$5,IF(S155='Grading Scale'!B$7,'Grading Scale'!C$7,IF(S155='Grading Scale'!B$9,'Grading Scale'!C$9,IF(S155='Grading Scale'!B$11,'Grading Scale'!C$11,'Grading Scale'!C$13))))),IF(S155='Grading Scale'!E$3,'Grading Scale'!F$3,IF(S155='Grading Scale'!E$5,'Grading Scale'!F$5,IF(S155='Grading Scale'!E$7,'Grading Scale'!F$7,IF(S155='Grading Scale'!E$9,'Grading Scale'!F$9,IF(S155='Grading Scale'!E$11,'Grading Scale'!F$11,'Grading Scale'!F$13)))))) -> B
A156: =Scores!A147 -> 0 | B156: =Scores!B147 -> 0 | C156: =Scores!C147 -> 0 | D156: =Scores!D147 -> 0 | E156: =Scores!E147 -> 0 | F156: =Scores!F147 -> 0 | G156: =Scores!G147 -> 0 | H156: =Scores!H147 -> 0 | I156: =Scores!I147 -> 0 | J156: =Scores!J147 -> 0 | K156: =Scores!K147 -> 0 | L156: =Scores!L147 -> 0 | M156: =Scores!M147 -> 0 | N156: =Scores!N147 -> 0 | O156: =Scores!O147 -> 0 | P156: -0.7071067812 | Q156: 2.951299423 | R156: 2.951299423 | S156: =IF(R156<'Grading Scale'!G$8,IF(R156<'Grading Scale'!G$13,'Grading Scale'!E$13,IF(R156<'Grading Scale'!G$12,'Grading Scale'!E$11,IF(R156<'Grading Scale'!G$11,'Grading Scale'!E$9,IF(R156<'Grading Scale'!G$10,'Grading Scale'!E$7,IF(R156<'Grading Scale'!G$9,'Grading Scale'!E$5,'Grading Scale'!E$3))))),IF(R156<'Grading Scale'!G$7,'Grading Scale'!B$13,IF(R156<'Grading Scale'!G$6,'Grading Scale'!B$11,IF(R156<'Grading Scale'!G$5,'Grading Scale'!B$9,IF(R156<'Grading Scale'!G$4,'Grading Scale'!B$7,IF(R156<'Grading Scale'!G$3,'Grading Scale'!B$5,'Grading Scale'!B$3)))))) -> 3 | T156: =Scores!B147 -> 0 | U156: =IF(S156>='Grading Scale'!B$13,IF(S156='Grading Scale'!B$3,'Grading Scale'!C$3,IF(S156='Grading Scale'!B$5,'Grading Scale'!C$5,IF(S156='Grading Scale'!B$7,'Grading Scale'!C$7,IF(S156='Grading Scale'!B$9,'Grading Scale'!C$9,IF(S156='Grading Scale'!B$11,'Grading Scale'!C$11,'Grading Scale'!C$13))))),IF(S156='Grading Scale'!E$3,'Grading Scale'!F$3,IF(S156='Grading Scale'!E$5,'Grading Scale'!F$5,IF(S156='Grading Scale'!E$7,'Grading Scale'!F$7,IF(S156='Grading Scale'!E$9,'Grading Scale'!F$9,IF(S156='Grading Scale'!E$11,'Grading Scale'!F$11,'Grading Scale'!F$13)))))) -> B
A157: =Scores!A148 -> 0 | B157: =Scores!B148 -> 0 | C157: =Scores!C148 -> 0 | D157: =Scores!D148 -> 0 | E157: =Scores!E148 -> 0 | F157: =Scores!F148 -> 0 | G157: =Scores!G148 -> 0 | H157: =Scores!H148 -> 0 | I157: =Scores!I148 -> 0 | J157: =Scores!J148 -> 0 | K157: =Scores!K148 -> 0 | L157: =Scores!L148 -> 0 | M157: =Scores!M148 -> 0 | N157: =Scores!N148 -> 0 | O157: =Scores!O148 -> 0 | P157: -0.7071067812 | Q157: 2.951299423 | R157: 2.951299423 | S157: =IF(R157<'Grading Scale'!G$8,IF(R157<'Grading Scale'!G$13,'Grading Scale'!E$13,IF(R157<'Grading Scale'!G$12,'Grading Scale'!E$11,IF(R157<'Grading Scale'!G$11,'Grading Scale'!E$9,IF(R157<'Grading Scale'!G$10,'Grading Scale'!E$7,IF(R157<'Grading Scale'!G$9,'Grading Scale'!E$5,'Grading Scale'!E$3))))),IF(R157<'Grading Scale'!G$7,'Grading Scale'!B$13,IF(R157<'Grading Scale'!G$6,'Grading Scale'!B$11,IF(R157<'Grading Scale'!G$5,'Grading Scale'!B$9,IF(R157<'Grading Scale'!G$4,'Grading Scale'!B$7,IF(R157<'Grading Scale'!G$3,'Grading Scale'!B$5,'Grading Scale'!B$3)))))) -> 3 | T157: =Scores!B148 -> 0 | U157: =IF(S157>='Grading Scale'!B$13,IF(S157='Grading Scale'!B$3,'Grading Scale'!C$3,IF(S157='Grading Scale'!B$5,'Grading Scale'!C$5,IF(S157='Grading Scale'!B$7,'Grading Scale'!C$7,IF(S157='Grading Scale'!B$9,'Grading Scale'!C$9,IF(S157='Grading Scale'!B$11,'Grading Scale'!C$11,'Grading Scale'!C$13))))),IF(S157='Grading Scale'!E$3,'Grading Scale'!F$3,IF(S157='Grading Scale'!E$5,'Grading Scale'!F$5,IF(S157='Grading Scale'!E$7,'Grading Scale'!F$7,IF(S157='Grading Scale'!E$9,'Grading Scale'!F$9,IF(S157='Grading Scale'!E$11,'Grading Scale'!F$11,'Grading Scale'!F$13)))))) -> B
A158: =Scores!A149 -> 0 | B158: =Scores!B149 -> 0 | C158: =Scores!C149 -> 0 | D158: =Scores!D149 -> 0 | E158: =Scores!E149 -> 0 | F158: =Scores!F149 -> 0 | G158: =Scores!G149 -> 0 | H158: =Scores!H149 -> 0 | I158: =Scores!I149 -> 0 | J158: =Scores!J149 -> 0 | K158: =Scores!K149 -> 0 | L158: =Scores!L149 -> 0 | M158: =Scores!M149 -> 0 | N158: =Scores!N149 -> 0 | O158: =Scores!O149 -> 0 | P158: -0.7071067812 | Q158: 2.951299423 | R158: 2.951299423 | S158: =IF(R158<'Grading Scale'!G$8,IF(R158<'Grading Scale'!G$13,'Grading Scale'!E$13,IF(R158<'Grading Scale'!G$12,'Grading Scale'!E$11,IF(R158<'Grading Scale'!G$11,'Grading Scale'!E$9,IF(R158<'Grading Scale'!G$10,'Grading Scale'!E$7,IF(R158<'Grading Scale'!G$9,'Grading Scale'!E$5,'Grading Scale'!E$3))))),IF(R158<'Grading Scale'!G$7,'Grading Scale'!B$13,IF(R158<'Grading Scale'!G$6,'Grading Scale'!B$11,IF(R158<'Grading Scale'!G$5,'Grading Scale'!B$9,IF(R158<'Grading Scale'!G$4,'Grading Scale'!B$7,IF(R158<'Grading Scale'!G$3,'Grading Scale'!B$5,'Grading Scale'!B$3)))))) -> 3 | T158: =Scores!B149 -> 0 | U158: =IF(S158>='Grading Scale'!B$13,IF(S158='Grading Scale'!B$3,'Grading Scale'!C$3,IF(S158='Grading Scale'!B$5,'Grading Scale'!C$5,IF(S158='Grading Scale'!B$7,'Grading Scale'!C$7,IF(S158='Grading Scale'!B$9,'Grading Scale'!C$9,IF(S158='Grading Scale'!B$11,'Grading Scale'!C$11,'Grading Scale'!C$13))))),IF(S158='Grading Scale'!E$3,'Grading Scale'!F$3,IF(S158='Grading Scale'!E$5,'Grading Scale'!F$5,IF(S158='Grading Scale'!E$7,'Grading Scale'!F$7,IF(S158='Grading Scale'!E$9,'Grading Scale'!F$9,IF(S158='Grading Scale'!E$11,'Grading Scale'!F$11,'Grading Scale'!F$13)))))) -> B
A159: =Scores!A150 -> 0 | B159: =Scores!B150 -> 0 | C159: =Scores!C150 -> 0 | D159: =Scores!D150 -> 0 | E159: =Scores!E150 -> 0 | F159: =Scores!F150 -> 0 | G159: =Scores!G150 -> 0 | H159: =Scores!H150 -> 0 | I159: =Scores!I150 -> 0 | J159: =Scores!J150 -> 0 | K159: =Scores!K150 -> 0 | L159: =Scores!L150 -> 0 | M159: =Scores!M150 -> 0 | N159: =Scores!N150 -> 0 | O159: =Scores!O150 -> 0 | P159: -0.7071067812 | Q159: 2.951299423 | R159: 2.951299423 | S159: =IF(R159<'Grading Scale'!G$8,IF(R159<'Grading Scale'!G$13,'Grading Scale'!E$13,IF(R159<'Grading Scale'!G$12,'Grading Scale'!E$11,IF(R159<'Grading Scale'!G$11,'Grading Scale'!E$9,IF(R159<'Grading Scale'!G$10,'Grading Scale'!E$7,IF(R159<'Grading Scale'!G$9,'Grading Scale'!E$5,'Grading Scale'!E$3))))),IF(R159<'Grading Scale'!G$7,'Grading Scale'!B$13,IF(R159<'Grading Scale'!G$6,'Grading Scale'!B$11,IF(R159<'Grading Scale'!G$5,'Grading Scale'!B$9,IF(R159<'Grading Scale'!G$4,'Grading Scale'!B$7,IF(R159<'Grading Scale'!G$3,'Grading Scale'!B$5,'Grading Scale'!B$3)))))) -> 3 | T159: =Scores!B150 -> 0 | U159: =IF(S159>='Grading Scale'!B$13,IF(S159='Grading Scale'!B$3,'Grading Scale'!C$3,IF(S159='Grading Scale'!B$5,'Grading Scale'!C$5,IF(S159='Grading Scale'!B$7,'Grading Scale'!C$7,IF(S159='Grading Scale'!B$9,'Grading Scale'!C$9,IF(S159='Grading Scale'!B$11,'Grading Scale'!C$11,'Grading Scale'!C$13))))),IF(S159='Grading Scale'!E$3,'Grading Scale'!F$3,IF(S159='Grading Scale'!E$5,'Grading Scale'!F$5,IF(S159='Grading Scale'!E$7,'Grading Scale'!F$7,IF(S159='Grading Scale'!E$9,'Grading Scale'!F$9,IF(S159='Grading Scale'!E$11,'Grading Scale'!F$11,'Grading Scale'!F$13)))))) -> B
A160: =Scores!A151 -> 0 | B160: =Scores!B151 -> 0 | C160: =Scores!C151 -> 0 | D160: =Scores!D151 -> 0 | E160: =Scores!E151 -> 0 | F160: =Scores!F151 -> 0 | G160: =Scores!G151 -> 0 | H160: =Scores!H151 -> 0 | I160: =Scores!I151 -> 0 | J160: =Scores!J151 -> 0 | K160: =Scores!K151 -> 0 | L160: =Scores!L151 -> 0 | M160: =Scores!M151 -> 0 | N160: =Scores!N151 -> 0 | O160: =Scores!O151 -> 0 | P160: -0.7071067812 | Q160: 2.951299423 | R160: 2.951299423 | S160: =IF(R160<'Grading Scale'!G$8,IF(R160<'Grading Scale'!G$13,'Grading Scale'!E$13,IF(R160<'Grading Scale'!G$12,'Grading Scale'!E$11,IF(R160<'Grading Scale'!G$11,'Grading Scale'!E$9,IF(R160<'Grading Scale'!G$10,'Grading Scale'!E$7,IF(R160<'Grading Scale'!G$9,'Grading Scale'!E$5,'Grading Scale'!E$3))))),IF(R160<'Grading Scale'!G$7,'Grading Scale'!B$13,IF(R160<'Grading Scale'!G$6,'Grading Scale'!B$11,IF(R160<'Grading Scale'!G$5,'Grading Scale'!B$9,IF(R160<'Grading Scale'!G$4,'Grading Scale'!B$7,IF(R160<'Grading Scale'!G$3,'Grading Scale'!B$5,'Grading Scale'!B$3)))))) -> 3 | T160: =Scores!B151 -> 0 | U160: =IF(S160>='Grading Scale'!B$13,IF(S160='Grading Scale'!B$3,'Grading Scale'!C$3,IF(S160='Grading Scale'!B$5,'Grading Scale'!C$5,IF(S160='Grading Scale'!B$7,'Grading Scale'!C$7,IF(S160='Grading Scale'!B$9,'Grading Scale'!C$9,IF(S160='Grading Scale'!B$11,'Grading Scale'!C$11,'Grading Scale'!C$13))))),IF(S160='Grading Scale'!E$3,'Grading Scale'!F$3,IF(S160='Grading Scale'!E$5,'Grading Scale'!F$5,IF(S160='Grading Scale'!E$7,'Grading Scale'!F$7,IF(S160='Grading Scale'!E$9,'Grading Scale'!F$9,IF(S160='Grading Scale'!E$11,'Grading Scale'!F$11,'Grading Scale'!F$13)))))) -> B
A161: =Scores!A152 -> 0 | B161: =Scores!B152 -> 0 | C161: =Scores!C152 -> 0 | D161: =Scores!D152 -> 0 | E161: =Scores!E152 -> 0 | F161: =Scores!F152 -> 0 | G161: =Scores!G152 -> 0 | H161: =Scores!H152 -> 0 | I161: =Scores!I152 -> 0 | J161: =Scores!J152 -> 0 | K161: =Scores!K152 -> 0 | L161: =Scores!L152 -> 0 | M161: =Scores!M152 -> 0 | N161: =Scores!N152 -> 0 | O161: =Scores!O152 -> 0 | P161: -0.7071067812 | Q161: 2.951299423 | R161: 2.951299423 | S161: =IF(R161<'Grading Scale'!G$8,IF(R161<'Grading Scale'!G$13,'Grading Scale'!E$13,IF(R161<'Grading Scale'!G$12,'Grading Scale'!E$11,IF(R161<'Grading Scale'!G$11,'Grading Scale'!E$9,IF(R161<'Grading Scale'!G$10,'Grading Scale'!E$7,IF(R161<'Grading Scale'!G$9,'Grading Scale'!E$5,'Grading Scale'!E$3))))),IF(R161<'Grading Scale'!G$7,'Grading Scale'!B$13,IF(R161<'Grading Scale'!G$6,'Grading Scale'!B$11,IF(R161<'Grading Scale'!G$5,'Grading Scale'!B$9,IF(R161<'Grading Scale'!G$4,'Grading Scale'!B$7,IF(R161<'Grading Scale'!G$3,'Grading Scale'!B$5,'Grading Scale'!B$3)))))) -> 3 | T161: =Scores!B152 -> 0 | U161: =IF(S161>='Grading Scale'!B$13,IF(S161='Grading Scale'!B$3,'Grading Scale'!C$3,IF(S161='Grading Scale'!B$5,'Grading Scale'!C$5,IF(S161='Grading Scale'!B$7,'Grading Scale'!C$7,IF(S161='Grading Scale'!B$9,'Grading Scale'!C$9,IF(S161='Grading Scale'!B$11,'Grading Scale'!C$11,'Grading Scale'!C$13))))),IF(S161='Grading Scale'!E$3,'Grading Scale'!F$3,IF(S161='Grading Scale'!E$5,'Grading Scale'!F$5,IF(S161='Grading Scale'!E$7,'Grading Scale'!F$7,IF(S161='Grading Scale'!E$9,'Grading Scale'!F$9,IF(S161='Grading Scale'!E$11,'Grading Scale'!F$11,'Grading Scale'!F$13)))))) -> B
A162: =Scores!A153 -> 0 | B162: =Scores!B153 -> 0 | C162: =Scores!C153 -> 0 | D162: =Scores!D153 -> 0 | E162: =Scores!E153 -> 0 | F162: =Scores!F153 -> 0 | G162: =Scores!G153 -> 0 | H162: =Scores!H153 -> 0 | I162: =Scores!I153 -> 0 | J162: =Scores!J153 -> 0 | K162: =Scores!K153 -> 0 | L162: =Scores!L153 -> 0 | M162: =Scores!M153 -> 0 | N162: =Scores!N153 -> 0 | O162: =Scores!O153 -> 0 | P162: -0.7071067812 | Q162: 2.951299423 | R162: 2.951299423 | S162: =IF(R162<'Grading Scale'!G$8,IF(R162<'Grading Scale'!G$13,'Grading Scale'!E$13,IF(R162<'Grading Scale'!G$12,'Grading Scale'!E$11,IF(R162<'Grading Scale'!G$11,'Grading Scale'!E$9,IF(R162<'Grading Scale'!G$10,'Grading Scale'!E$7,IF(R162<'Grading Scale'!G$9,'Grading Scale'!E$5,'Grading Scale'!E$3))))),IF(R162<'Grading Scale'!G$7,'Grading Scale'!B$13,IF(R162<'Grading Scale'!G$6,'Grading Scale'!B$11,IF(R162<'Grading Scale'!G$5,'Grading Scale'!B$9,IF(R162<'Grading Scale'!G$4,'Grading Scale'!B$7,IF(R162<'Grading Scale'!G$3,'Grading Scale'!B$5,'Grading Scale'!B$3)))))) -> 3 | T162: =Scores!B153 -> 0 | U162: =IF(S162>='Grading Scale'!B$13,IF(S162='Grading Scale'!B$3,'Grading Scale'!C$3,IF(S162='Grading Scale'!B$5,'Grading Scale'!C$5,IF(S162='Grading Scale'!B$7,'Grading Scale'!C$7,IF(S162='Grading Scale'!B$9,'Grading Scale'!C$9,IF(S162='Grading Scale'!B$11,'Grading Scale'!C$11,'Grading Scale'!C$13))))),IF(S162='Grading Scale'!E$3,'Grading Scale'!F$3,IF(S162='Grading Scale'!E$5,'Grading Scale'!F$5,IF(S162='Grading Scale'!E$7,'Grading Scale'!F$7,IF(S162='Grading Scale'!E$9,'Grading Scale'!F$9,IF(S162='Grading Scale'!E$11,'Grading Scale'!F$11,'Grading Scale'!F$13)))))) -> B
A163: =Scores!A154 -> 0 | B163: =Scores!B154 -> 0 | C163: =Scores!C154 -> 0 | D163: =Scores!D154 -> 0 | E163: =Scores!E154 -> 0 | F163: =Scores!F154 -> 0 | G163: =Scores!G154 -> 0 | H163: =Scores!H154 -> 0 | I163: =Scores!I154 -> 0 | J163: =Scores!J154 -> 0 | K163: =Scores!K154 -> 0 | L163: =Scores!L154 -> 0 | M163: =Scores!M154 -> 0 | N163: =Scores!N154 -> 0 | O163: =Scores!O154 -> 0 | P163: -0.7071067812 | Q163: 2.951299423 | R163: 2.951299423 | S163: =IF(R163<'Grading Scale'!G$8,IF(R163<'Grading Scale'!G$13,'Grading Scale'!E$13,IF(R163<'Grading Scale'!G$12,'Grading Scale'!E$11,IF(R163<'Grading Scale'!G$11,'Grading Scale'!E$9,IF(R163<'Grading Scale'!G$10,'Grading Scale'!E$7,IF(R163<'Grading Scale'!G$9,'Grading Scale'!E$5,'Grading Scale'!E$3))))),IF(R163<'Grading Scale'!G$7,'Grading Scale'!B$13,IF(R163<'Grading Scale'!G$6,'Grading Scale'!B$11,IF(R163<'Grading Scale'!G$5,'Grading Scale'!B$9,IF(R163<'Grading Scale'!G$4,'Grading Scale'!B$7,IF(R163<'Grading Scale'!G$3,'Grading Scale'!B$5,'Grading Scale'!B$3)))))) -> 3 | T163: =Scores!B154 -> 0 | U163: =IF(S163>='Grading Scale'!B$13,IF(S163='Grading Scale'!B$3,'Grading Scale'!C$3,IF(S163='Grading Scale'!B$5,'Grading Scale'!C$5,IF(S163='Grading Scale'!B$7,'Grading Scale'!C$7,IF(S163='Grading Scale'!B$9,'Grading Scale'!C$9,IF(S163='Grading Scale'!B$11,'Grading Scale'!C$11,'Grading Scale'!C$13))))),IF(S163='Grading Scale'!E$3,'Grading Scale'!F$3,IF(S163='Grading Scale'!E$5,'Grading Scale'!F$5,IF(S163='Grading Scale'!E$7,'Grading Scale'!F$7,IF(S163='Grading Scale'!E$9,'Grading Scale'!F$9,IF(S163='Grading Scale'!E$11,'Grading Scale'!F$11,'Grading Scale'!F$13)))))) -> B
A164: =Scores!A155 -> 0 | B164: =Scores!B155 -> 0 | C164: =Scores!C155 -> 0 | D164: =Scores!D155 -> 0 | E164: =Scores!E155 -> 0 | F164: =Scores!F155 -> 0 | G164: =Scores!G155 -> 0 | H164: =Scores!H155 -> 0 | I164: =Scores!I155 -> 0 | J164: =Scores!J155 -> 0 | K164: =Scores!K155 -> 0 | L164: =Scores!L155 -> 0 | M164: =Scores!M155 -> 0 | N164: =Scores!N155 -> 0 | O164: =Scores!O155 -> 0 | P164: -0.7071067812 | Q164: 2.951299423 | R164: 2.951299423 | S164: =IF(R164<'Grading Scale'!G$8,IF(R164<'Grading Scale'!G$13,'Grading Scale'!E$13,IF(R164<'Grading Scale'!G$12,'Grading Scale'!E$11,IF(R164<'Grading Scale'!G$11,'Grading Scale'!E$9,IF(R164<'Grading Scale'!G$10,'Grading Scale'!E$7,IF(R164<'Grading Scale'!G$9,'Grading Scale'!E$5,'Grading Scale'!E$3))))),IF(R164<'Grading Scale'!G$7,'Grading Scale'!B$13,IF(R164<'Grading Scale'!G$6,'Grading Scale'!B$11,IF(R164<'Grading Scale'!G$5,'Grading Scale'!B$9,IF(R164<'Grading Scale'!G$4,'Grading Scale'!B$7,IF(R164<'Grading Scale'!G$3,'Grading Scale'!B$5,'Grading Scale'!B$3)))))) -> 3 | T164: =Scores!B155 -> 0 | U164: =IF(S164>='Grading Scale'!B$13,IF(S164='Grading Scale'!B$3,'Grading Scale'!C$3,IF(S164='Grading Scale'!B$5,'Grading Scale'!C$5,IF(S164='Grading Scale'!B$7,'Grading Scale'!C$7,IF(S164='Grading Scale'!B$9,'Grading Scale'!C$9,IF(S164='Grading Scale'!B$11,'Grading Scale'!C$11,'Grading Scale'!C$13))))),IF(S164='Grading Scale'!E$3,'Grading Scale'!F$3,IF(S164='Grading Scale'!E$5,'Grading Scale'!F$5,IF(S164='Grading Scale'!E$7,'Grading Scale'!F$7,IF(S164='Grading Scale'!E$9,'Grading Scale'!F$9,IF(S164='Grading Scale'!E$11,'Grading Scale'!F$11,'Grading Scale'!F$13)))))) -> B
A165: =Scores!A156 -> 0 | B165: =Scores!B156 -> 0 | C165: =Scores!C156 -> 0 | D165: =Scores!D156 -> 0 | E165: =Scores!E156 -> 0 | F165: =Scores!F156 -> 0 | G165: =Scores!G156 -> 0 | H165: =Scores!H156 -> 0 | I165: =Scores!I156 -> 0 | J165: =Scores!J156 -> 0 | K165: =Scores!K156 -> 0 | L165: =Scores!L156 -> 0 | M165: =Scores!M156 -> 0 | N165: =Scores!N156 -> 0 | O165: =Scores!O156 -> 0 | P165: -0.7071067812 | Q165: 2.951299423 | R165: 2.951299423 | S165: =IF(R165<'Grading Scale'!G$8,IF(R165<'Grading Scale'!G$13,'Grading Scale'!E$13,IF(R165<'Grading Scale'!G$12,'Grading Scale'!E$11,IF(R165<'Grading Scale'!G$11,'Grading Scale'!E$9,IF(R165<'Grading Scale'!G$10,'Grading Scale'!E$7,IF(R165<'Grading Scale'!G$9,'Grading Scale'!E$5,'Grading Scale'!E$3))))),IF(R165<'Grading Scale'!G$7,'Grading Scale'!B$13,IF(R165<'Grading Scale'!G$6,'Grading Scale'!B$11,IF(R165<'Grading Scale'!G$5,'Grading Scale'!B$9,IF(R165<'Grading Scale'!G$4,'Grading Scale'!B$7,IF(R165<'Grading Scale'!G$3,'Grading Scale'!B$5,'Grading Scale'!B$3)))))) -> 3 | T165: =Scores!B156 -> 0 | U165: =IF(S165>='Grading Scale'!B$13,IF(S165='Grading Scale'!B$3,'Grading Scale'!C$3,IF(S165='Grading Scale'!B$5,'Grading Scale'!C$5,IF(S165='Grading Scale'!B$7,'Grading Scale'!C$7,IF(S165='Grading Scale'!B$9,'Grading Scale'!C$9,IF(S165='Grading Scale'!B$11,'Grading Scale'!C$11,'Grading Scale'!C$13))))),IF(S165='Grading Scale'!E$3,'Grading Scale'!F$3,IF(S165='Grading Scale'!E$5,'Grading Scale'!F$5,IF(S165='Grading Scale'!E$7,'Grading Scale'!F$7,IF(S165='Grading Scale'!E$9,'Grading Scale'!F$9,IF(S165='Grading Scale'!E$11,'Grading Scale'!F$11,'Grading Scale'!F$13)))))) -> B
A166: =Scores!A157 -> 0 | B166: =Scores!B157 -> 0 | C166: =Scores!C157 -> 0 | D166: =Scores!D157 -> 0 | E166: =Scores!E157 -> 0 | F166: =Scores!F157 -> 0 | G166: =Scores!G157 -> 0 | H166: =Scores!H157 -> 0 | I166: =Scores!I157 -> 0 | J166: =Scores!J157 -> 0 | K166: =Scores!K157 -> 0 | L166: =Scores!L157 -> 0 | M166: =Scores!M157 -> 0 | N166: =Scores!N157 -> 0 | O166: =Scores!O157 -> 0 | P166: -0.7071067812 | Q166: 2.951299423 | R166: 2.951299423 | S166: =IF(R166<'Grading Scale'!G$8,IF(R166<'Grading Scale'!G$13,'Grading Scale'!E$13,IF(R166<'Grading Scale'!G$12,'Grading Scale'!E$11,IF(R166<'Grading Scale'!G$11,'Grading Scale'!E$9,IF(R166<'Grading Scale'!G$10,'Grading Scale'!E$7,IF(R166<'Grading Scale'!G$9,'Grading Scale'!E$5,'Grading Scale'!E$3))))),IF(R166<'Grading Scale'!G$7,'Grading Scale'!B$13,IF(R166<'Grading Scale'!G$6,'Grading Scale'!B$11,IF(R166<'Grading Scale'!G$5,'Grading Scale'!B$9,IF(R166<'Grading Scale'!G$4,'Grading Scale'!B$7,IF(R166<'Grading Scale'!G$3,'Grading Scale'!B$5,'Grading Scale'!B$3)))))) -> 3 | T166: =Scores!B157 -> 0 | U166: =IF(S166>='Grading Scale'!B$13,IF(S166='Grading Scale'!B$3,'Grading Scale'!C$3,IF(S166='Grading Scale'!B$5,'Grading Scale'!C$5,IF(S166='Grading Scale'!B$7,'Grading Scale'!C$7,IF(S166='Grading Scale'!B$9,'Grading Scale'!C$9,IF(S166='Grading Scale'!B$11,'Grading Scale'!C$11,'Grading Scale'!C$13))))),IF(S166='Grading Scale'!E$3,'Grading Scale'!F$3,IF(S166='Grading Scale'!E$5,'Grading Scale'!F$5,IF(S166='Grading Scale'!E$7,'Grading Scale'!F$7,IF(S166='Grading Scale'!E$9,'Grading Scale'!F$9,IF(S166='Grading Scale'!E$11,'Grading Scale'!F$11,'Grading Scale'!F$13)))))) -> B
A167: =Scores!A158 -> 0 | B167: =Scores!B158 -> 0 | C167: =Scores!C158 -> 0 | D167: =Scores!D158 -> 0 | E167: =Scores!E158 -> 0 | F167: =Scores!F158 -> 0 | G167: =Scores!G158 -> 0 | H167: =Scores!H158 -> 0 | I167: =Scores!I158 -> 0 | J167: =Scores!J158 -> 0 | K167: =Scores!K158 -> 0 | L167: =Scores!L158 -> 0 | M167: =Scores!M158 -> 0 | N167: =Scores!N158 -> 0 | O167: =Scores!O158 -> 0 | P167: -0.7071067812 | Q167: 2.951299423 | R167: 2.951299423 | S167: =IF(R167<'Grading Scale'!G$8,IF(R167<'Grading Scale'!G$13,'Grading Scale'!E$13,IF(R167<'Grading Scale'!G$12,'Grading Scale'!E$11,IF(R167<'Grading Scale'!G$11,'Grading Scale'!E$9,IF(R167<'Grading Scale'!G$10,'Grading Scale'!E$7,IF(R167<'Grading Scale'!G$9,'Grading Scale'!E$5,'Grading Scale'!E$3))))),IF(R167<'Grading Scale'!G$7,'Grading Scale'!B$13,IF(R167<'Grading Scale'!G$6,'Grading Scale'!B$11,IF(R167<'Grading Scale'!G$5,'Grading Scale'!B$9,IF(R167<'Grading Scale'!G$4,'Grading Scale'!B$7,IF(R167<'Grading Scale'!G$3,'Grading Scale'!B$5,'Grading Scale'!B$3)))))) -> 3 | T167: =Scores!B158 -> 0 | U167: =IF(S167>='Grading Scale'!B$13,IF(S167='Grading Scale'!B$3,'Grading Scale'!C$3,IF(S167='Grading Scale'!B$5,'Grading Scale'!C$5,IF(S167='Grading Scale'!B$7,'Grading Scale'!C$7,IF(S167='Grading Scale'!B$9,'Grading Scale'!C$9,IF(S167='Grading Scale'!B$11,'Grading Scale'!C$11,'Grading Scale'!C$13))))),IF(S167='Grading Scale'!E$3,'Grading Scale'!F$3,IF(S167='Grading Scale'!E$5,'Grading Scale'!F$5,IF(S167='Grading Scale'!E$7,'Grading Scale'!F$7,IF(S167='Grading Scale'!E$9,'Grading Scale'!F$9,IF(S167='Grading Scale'!E$11,'Grading Scale'!F$11,'Grading Scale'!F$13)))))) -> B
A168: =Scores!A159 -> 0 | B168: =Scores!B159 -> 0 | C168: =Scores!C159 -> 0 | D168: =Scores!D159 -> 0 | E168: =Scores!E159 -> 0 | F168: =Scores!F159 -> 0 | G168: =Scores!G159 -> 0 | H168: =Scores!H159 -> 0 | I168: =Scores!I159 -> 0 | J168: =Scores!J159 -> 0 | K168: =Scores!K159 -> 0 | L168: =Scores!L159 -> 0 | M168: =Scores!M159 -> 0 | N168: =Scores!N159 -> 0 | O168: =Scores!O159 -> 0 | P168: -0.7071067812 | Q168: 2.951299423 | R168: 2.951299423 | S168: =IF(R168<'Grading Scale'!G$8,IF(R168<'Grading Scale'!G$13,'Grading Scale'!E$13,IF(R168<'Grading Scale'!G$12,'Grading Scale'!E$11,IF(R168<'Grading Scale'!G$11,'Grading Scale'!E$9,IF(R168<'Grading Scale'!G$10,'Grading Scale'!E$7,IF(R168<'Grading Scale'!G$9,'Grading Scale'!E$5,'Grading Scale'!E$3))))),IF(R168<'Grading Scale'!G$7,'Grading Scale'!B$13,IF(R168<'Grading Scale'!G$6,'Grading Scale'!B$11,IF(R168<'Grading Scale'!G$5,'Grading Scale'!B$9,IF(R168<'Grading Scale'!G$4,'Grading Scale'!B$7,IF(R168<'Grading Scale'!G$3,'Grading Scale'!B$5,'Grading Scale'!B$3)))))) -> 3 | T168: =Scores!B159 -> 0 | U168: =IF(S168>='Grading Scale'!B$13,IF(S168='Grading Scale'!B$3,'Grading Scale'!C$3,IF(S168='Grading Scale'!B$5,'Grading Scale'!C$5,IF(S168='Grading Scale'!B$7,'Grading Scale'!C$7,IF(S168='Grading Scale'!B$9,'Grading Scale'!C$9,IF(S168='Grading Scale'!B$11,'Grading Scale'!C$11,'Grading Scale'!C$13))))),IF(S168='Grading Scale'!E$3,'Grading Scale'!F$3,IF(S168='Grading Scale'!E$5,'Grading Scale'!F$5,IF(S168='Grading Scale'!E$7,'Grading Scale'!F$7,IF(S168='Grading Scale'!E$9,'Grading Scale'!F$9,IF(S168='Grading Scale'!E$11,'Grading Scale'!F$11,'Grading Scale'!F$13)))))) -> B
